Workbook

Sheet Design Regulator
A1: LM(2)5137-Q1 Functional Safety Buck Controller Design Tool
O2: http://www.ti.com/product/lm5175
A3: About | C3: xx | F3: = Input Box | O3: TERMS OF USE
A5: Step 1: Operating Specifications
D7: Input Voltage – Min, VIN(min) | E7: 36 | F7: V
D8: Input Voltage – Nom, VIN(nom) | E8: 48 | F8: V
D9: Input Voltage – Max, VIN(max) | E9: 65 | F9: V
D10: Output Voltage, VOUT | E10: 12 | F10: V | I10: Output Voltage, VOUT2 | J10: 5 | K10: V
D11: Full Load Output Current, IOUT | E11: 20 | F11: A | I11: Full Load Output Current, IOUT2 | J11: 15 | K11: A
D12: Switching Frequency, FSW | E12: 400 | F12: kHz
D13: Frequency Set Resistor, RT | E13: =IF('Standard Value Calculator'!O4/1000>550, "N/A",'Standard Value Calculator'!O4/1000) -> 57.6 | F13: kΩ
D14: Ambient Temperature, TA | E14: 25 | F14: °C
A16: Step 2: Current Sense Resistors
D17: Required IOCP Setpoint at VIN(nom) | E17: 27 | F17: A | I17: Required IOCP Setpoint at VIN(nom) | J17: 25 | K17: A
D18: Recommended Sense Resistance | E18: =Rs_ideal*1000 -> 3.953672589 | F18: mΩ | I18: Recommended Sense Resistance | J18: =Rs2_ideal*1000 -> 1.956459476 | K18: mΩ
D19: Sense Resistance, RS | E19: 4 | F19: mΩ | I19: Sense Resistance, RS2 | J19: 2 | K19: mΩ
D20: Min Inductor Sat Current, ILO(SAT) | E20: ='Variable Management'!B96 -> 15 | F20: A | I20: Min Inductor Sat Current, ILO2(SAT) | J20: ='Variable Management'!D96 -> 30 | K20: A
D21: Max power loss in shunt | E21: ='Variable Management'!B106 -> 0.7331285898 | F21: W | I21: Max power loss in shunt RS2 | J21: ='Variable Management'!D106 -> 1.225494725 | K21: W
D22: VIN(min) | E22: ='Variable Management'!B98 -> 27.02169158 | F22: A | I22: VIN(min) | J22: ='Variable Management'!D98 -> 24.5531675 | K22: A
C23: IOUT(typ) at OCP Inception: | D23: VIN(nom) | E23: ='Variable Management'!B99 -> 26.64847309 | F23: A | H23: IOUT2(typ) at OCP Inception: | I23: VIN(nom) | J23: ='Variable Management'!D99 -> 24.33235738 | K23: A
D24: VIN(max) | E24: ='Variable Management'!B100 -> 26.35549503 | F24: A | I24: VIN(max) | J24: ='Variable Management'!D100 -> 24.15904198 | K24: A
A26: Step 3: Buck Inductances
D27: Ch1 Recommended Inductance | E27: =IF('Variable Management'!B45<1.1, ROUND('Variable Management'!B45,2), ROUND('Variable Management'!B45,1)) -> 5.5 | F27: µH | I27: Ch2 Recommended Inductance | J27: =IF('Variable Management'!D45<1, ROUND('Variable Management'!D45,2), ROUND('Variable Management'!D45,1)) -> 1.1 | K27: µH
D28: Ch1 Inductance, LO1 | E28: 6.8 | F28: µH | I28: Ch2 Inductance, LO2 | J28: 1 | K28: µH
D29: Ch1 Inductor DCR | E29: 12.5 | F29: mΩ | I29: Ch2 Inductor DCR | J29: 2.3 | K29: mΩ
D30: DIL as a % at VIN(nom) | E30: ='Variable Management'!B69*100 -> 33.51526914 | F30: % | I30: DIL2 as a % at VIN(nom) | J30: ='Variable Management'!D69*100 -> 75.56856826 | K30: %
D31: Estimate Core Loss at VIN(nom) | E31: 0.4 | F31: W | I31: Estimate Core Loss at VIN(nom) | J31: 0.17 | K31: W
A33: Step 4: Output Capacitors
D34: =IF(MODE=1, "Ch1 Output Voltage Ripple Spec", "Output Voltage Ripple Spec") -> Output Voltage Ripple Spec | E34: 80 | F34: mVPK-PK | I34: Ch2 Output Voltage Ripple Spec | J34: 50 | K34: mVPK-PK
D35: =IF(MODE=1, "Ch1 Minimum Output Capacitance", "Minimum Output Capacitance") -> Minimum Output Capacitance | E35: ='Variable Management'!B122 -> 13.09190201 | F35: µF | I35: Ch2 Minimum Output Capacitance | J35: ='Variable Management'!D122 -> 70.84553274 | K35: µF
D36: Output Capacitance (derated), COUT | E36: 70 | F36: µF | I36: Ch2 Output Cap (derated), COUT2 | J36: 165 | K36: µF | L36: =CHOOSE(SCH_MODE, "", "** For Single-Output Operation in 2-Phase Mode, use FB1 to set VOUT **", "** For Single-Output Operation in 3-Phase Mode, use FB1 of master IC to set VOUT. Connect FB2 of master IC to AGND. Connect FB2 of slave IC to VDDA to configure it as a slave **", "** For Single-Output Operation in 4-Phase Mode, use FB1 of master IC to set VOUT. Connect FB2 of master IC to AGND. Connect FB2 of slave IC to VDDA to configure it as a slave **") -> ** For Single-Output Operation in 2-Phase Mode, use FB1 to set VOUT **
D37: =IF(MODE=1, "Ch1 Maximum Permitted ESR", "Maximum Permitted ESR") -> Maximum Permitted ESR | E37: ='Variable Management'!B126 -> 23.44852997 | F37: mΩ | I37: Ch2 Maximum Permitted ESR | J37: ='Variable Management'!D126 -> 3.983711685 | K37: mΩ
D38: =IF(MODE=1, "Ch1 Output Capacitor ESR", "Output Capacitor ESR") -> Output Capacitor ESR | E38: 1 | F38: mΩ | I38: Ch2 Output Capacitor ESR | J38: 1 | K38: mΩ
D39: Resulting Output Voltage Ripple (max) | E39: ='Variable Management'!B128*1000 -> 15.33295063 | F39: mVPK-PK | I39: Resulting Output Voltage Ripple (max) | J39: ='Variable Management'!D128*1000 -> 24.2771179 | K39: mVPK-PK
D40: Output Capacitor RMS Current (max) | E40: ='Variable Management'!B115 -> 1.052077961 | F40: ARMS | I40: Output Capacitor RMS Current (max) | J40: ='Variable Management'!D115 -> 3.372278685 | K40: ARMS
A42: Step 5: Input Capacitors
D43: Input Voltage Ripple Spec | E43: 200 | F43: mVpk-pk
D44: Minimum Input Capacitance | E44: ='Variable Management'!B147 -> 27.77777778 | F44: µF
D45: Input Capacitance, CIN | E45: 35 | F45: µF
D46: Maximum Permitted ESR | E46: ='Variable Management'!B153 -> 3.592069575 | F46: mΩ
D47: Input Capacitor ESR | E47: 2 | F47: mΩ
D48: Resulting Input Voltage Ripple (max) | E48: ='Variable Management'!B159*1000 -> 182.6977905 | F48: mVPK-PK
D49: Input Capacitor RMS Current (max) | E49: ='Variable Management'!B139 -> 5 | F49: ARMS
A51: Step 6: Soft start, Input UVLO, PFM, DRSS
D52: Soft-Start Time, tSS | E52: 4.6 | F52: ms
D53: Soft-Start Resistance, RSS | E53: =IF(Tss>1.5/1000, Rss_u/1000, 0) -> 20 | F53: kΩ
D54: UVLO Turn-on Voltage, VIN(on) | E54: 36 | F54: V
D55: UVLO Turn-off Voltage, VIN(off) | E55: 30 | F55: V
D56: EN Pin Series Resistance, RUV3 | E56: 2.5 | F56: kΩ
D57: Total EN Hysteresis Current | E57: 20 | F57: µA
D58: UVLO Resistance, RUV1 | E58: ='Variable Management'!D186 -> 118 | F58: =IF(DITHER=1, "kΩ", "") -> kΩ
D59: UVLO Resistance, RUV2 | E59: ='Variable Management'!D185 -> 3.4 | F59: =IF(DITHER=1, "kΩ", "") -> kΩ
D60: =IF(DEMB=1, "* Tie PFM/SYNCIN to AGND", "*Tie PFM/SYNCIN to VDDA") -> *Tie PFM/SYNCIN to VDDA
D61: CNFG Resistance, RCNFG | E61: =Rcnfg -> 41.2 | F61: kΩ
A63: Step 7: Compensation Design
D64: =IF(MODE=1, "Ch1 Load Pole Frequency", "Load Pole Frequency") -> Load Pole Frequency | E64: =Fp_dominant -> 4652.157917 | F64: Hz | I64: Ch2 Load Pole Frequency | J64: =Fp_dominant_Ch2 -> 4036.717902 | K64: Hz
D65: =IF(MODE=1, "Ch1 ESR Zero Frequency", "ESR Zero Frequency") -> ESR Zero Frequency | E65: =Fesr/1000 -> 2273.642047 | F65: kHz | I65: Ch2 ESR Zero Frequency | J65: =Fesr_Ch2/1000 -> 964.5754138 | K65: kHz
D66: =IF(MODE=1, "Ch1 Desired Crossover Frequency", "Desired Crossover Frequency") -> Desired Crossover Frequency | E66: 50 | F66: =" kHz " -> kHz | I66: Ch2 Desired Crossover Frequency | J66: 50 | K66: =" kHz " -> kHz
D67: =IF(MODE=1, "Ch1 Error Amp Pole Frequency", "Error Amp Pole Frequency") -> Error Amp Pole Frequency | E67: =Fp1_u -> 0.796452896 | F67: Hz | I67: Ch2 Error Amp Pole Frequency | J67: =Fp1_u_Ch2 -> 0.7964561244 | K67: Hz
D68: =CHOOSE(Ch1_VOUT, "Ch1 3.3V Out: Tie 7.5kΩ FB1 to VDDA", "Ch1 5V Out: Tie 24.9kΩ FB1 to VDDA", "Ch1 12V Out: Tie 48.7kΩ FB1 to VDDA", IF(MODE=1, "Ch1 Upper Feedback Resistor", "Upper Feedback Resistor")) -> Ch1 12V Out: Tie 48.7kΩ FB1 to VDDA | E68: 100 | F68: kΩ | I68: =CHOOSE(Ch2_VOUT, "Ch2 3.3V Out: Tie 7.5kΩ FB2 to VDDA", "Ch2 5V Out: Tie 24.9kΩ FB2 to VDDA", "Ch2 12V: Tie 48.7kΩ FB2 to VDDA", "Ch2 Upper Feedback Resistor") -> Ch2 5V Out: Tie 24.9kΩ FB2 to VDDA | J68: 78.7 | K68: kΩ
D69: =IF(Ch1_VOUT=4, IF(MODE=1,"Ch1 Lower Feedback Resistor","Lower Feedback Resistor"),"") ->  | E69: =IF(Vout=Vref,"OPEN",Rfb2_u/1000) -> 7.15 | F69: =IF(Vout=Vref,"","kΩ") -> kΩ | I69: =IF(Ch2_VOUT=4, "Ch2 Lower Feedback Resistor","") ->  | J69: =IF(Vout2=Vref,"OPEN",Rfb4_u/1000) -> 15 | K69: =IF(Vout=Vref,"","kΩ") -> kΩ
A71: Compensation Components
B72: Calculated / | C72: Std Values | D72: =C72 -> Std Values | F72: Actual P/Z Frequencies
A73: RC1 | B73: =Rcea1/1000 -> 10.99557427 | C73: ='Standard Value Calculator'!O26 -> 11 | D73: =C73 -> 11 | E73: kΩ | F73: =Fp1_u -> 0.796452896 | G73: Hz (FPEA)
A74: CC1 | B74: =Cc1ea*1000000000 -> 2.894890968 | C74: ='Standard Value Calculator'!O27 -> 2.7 | D74: 2.7 | E74: nF | F74: =Fz1_u/1000 -> 5.358752299 | G74: kHz (FZCOMP)
A75: CC2 | B75: =IF(Cc2ea<0, "N/A", Cc2ea*1000000000000) -> 65.02666143 | C75: ='Standard Value Calculator'!O28 -> 68 | D75: 68 | E75: pF | F75: =Fp2_u/1000 -> 192.030175 | G75: kHz (FPCOMP)
A76: RC2 | B76: =Rcea2/1000 -> 10.79922473 | C76: ='Standard Value Calculator'!O30 -> 10.7 | D76: 10.7 | E76: kΩ | F76: =Fp1_u_Ch2 -> 0.7964561244 | G76: Hz (FPEA2)
A77: CC3 | B77: =Cc3ea*1000000000 -> 2.947525349 | C77: ='Standard Value Calculator'!O31 -> 2.7 | D77: 2.7 | E77: nF | F77: =Fz1_u_Ch2/1000 -> 5.50899769 | G77: kHz (FZCOMP2)
A78: CC4 | B78: =IF(Cc4ea<0, "N/A", Cc4ea*1000000000000) -> 66.34252096 | C78: =IF(1, 'Standard Value Calculator'!O32) -> 68 | D78: 68 | E78: pF | F78: =Fp2_u_Ch2/1000 -> 197.4141986 | G78: kHz (FPCOMP2)
A80: Efficiency / Power Loss Analyzer
A82: Step 8: Efficiency
F83: =IF(MODE=1, "Ch1 Power MOSFETs", "Power MOSFETs") -> Power MOSFETs | G83: (Q1, Q2) | I83: =IF(MODE=1, "Ch2 Power MOSFETs ", "Power MOSFETs ") -> Power MOSFETs | J83: (Q3, Q4)
E84: '852NL, '836NL | H84: 852, 836
E85: High-side | F85: Low-side | H85: High-side | I85: Low-side
D86: On-State Resistance, RDS(on) | E86: 11.5 | F86: 6.2 | G86: mΩ | H86: 12 | I86: 6.2 | J86: mΩ
D87: Total Gate Charge, QG | E87: 8 | F87: 16 | G87: nC | H87: 8 | I87: 16 | J87: nC
D88: Gate-Drain Charge, QGD | E88: 2.8 | F88: 5.5 | G88: nC | H88: 2.9 | I88: 5.5 | J88: nC
D89: Gate-Source Charge, QGS | E89: 3.1 | F89: 6.3 | G89: nC | H89: 3.1 | I89: 6.3 | J89: nC
D90: Output Charge, QOSS | F90: 25 | G90: nC | I90: 25 | J90: nC
D91: Output Capacitance, COSS | E91: 116 | F91: 250 | G91: pF | H91: 116 | I91: 250 | J91: pF
D92: Gate Resistance, RG | E92: 1.2 | F92: 1.2 | G92: Ω | H92: 1.2 | I92: 1.2 | J92: Ω
D93: Transconductance, gFS | E93: 55 | F93: 99 | G93: S | H93: 55 | I93: 99 | J93: S
D94: Gate Miller Plateau Voltage, VPL | E94: 3 | F94: 3 | G94: V | H94: 3 | I94: 3 | J94: V
D95: Body Diode Forward Voltage, VBD | E95: 0.7 | F95: 0.7 | G95: V | H95: 0.7 | I95: 0.7 | J95: V
D96: Body Diode Rev Recovery Charge, QRR | F96: 45 | G96: nC | I96: 45 | J96: nC
D97: Thermal Resistance, θJA | E97: 42 | F97: 40.7 | G97: °C/W | H97: 42 | I97: 40.7 | J97: °C/W
A103: Step 9: IC Power Dissipation
D104: IC Power Dissipation | E104: ='Variable Management'!B343 -> 0.2304 | F104: W
D105: IC Junction Temperature (estimate) | E105: ='Variable Management'!B347 -> 33.01792 | F105: °C

Sheet BOM & Schematic
A37: ** Tie PFM/SYNCIN to VDDA for PFM, AGND for FPWM **
A38: ** For dual-output operation, tie FB1/FB2 to VDDA through a 7.5kΩ, 24.9kΩ or 49.9kΩ resistor for fixed 3.3V, 5V and 12V outputs, respectively **
A39: ** For single-output operation in 2-phase mode, use FB1 to set VOUT. Connect FB2 to AGND to disable the EA of channel 2 **
A40: ** For single-output operation in 3-phase or 4-phase mode, use FB1 of the master IC to set VOUT. Connect FB2 of the master IC to AGND. Connect FB1 of the slave IC to GND for FPWM and to PFM/SYNCIN of the master for PFM. Connect FB2 of the slave IC to GND to configure it as a slave **
A41: =CHOOSE(MODE, "VIN = "&VIN_min&" V to "&VIN_max&" V, VOUT1 = "& Vout &" V, IOUT1 = " &Iout &"A"&", VOUT2 = "& Vout2 &" V, IOUT2 = " &Iout2 & " A, Fsw = " & Fsw/1000 &" kHz, Current Limit = "&ROUNDUP(Ilimit_DC,0)&" A", "VIN = "&VIN_min&" V to "&VIN_max&" V, VOUT = "& Vout &" V, IOUT = " &Iout & " A, Fsw = " & Fsw/1000 &" kHz, Current Limit = "&ROUNDUP(Ilimit_DC,0)&" A") -> VIN = 36 V to 65 V, VOUT = 12 V, IOUT = 20 A, Fsw = 400 kHz, Current Limit = 27 A
A42: High Efficiency Synchronous Buck Regulator BOM
A43: Count | B43: Ref Des | C43: Value | D43: Description | H43: Size | I43: Part Number | J43: MFR
A44: 2 | B44: CBOOT1, CBOOT2 | C44: 0.1 | D44: =C44 -> 0.1 | H44: 0603 | I44: Std | J44: Std
A45: 1 | B45: CC1 | C45: ='Design Regulator'!D74 -> 2.7 | D45: 2.7 | H45: 0603 | I45: Std | J45: Std
A46: 1 | B46: CC2 | C46: ='Design Regulator'!D75 -> 68 | D46: 68 | H46: 0603 | I46: Std | J46: Std
A47: 1 | B47: CC3 | C47: =IF(MODE=1, 'Variable Management'!E375, "N/A") -> N/A | D47: =C47 -> N/A | H47: =IF(MODE=1, "0603", "-") -> - | I47: =IF(MODE=1, "Std", "-") -> - | J47: =IF(MODE=1, "Std", "-") -> -
A48: 1 | B48: CC4 | C48: =IF(MODE=1, 'Variable Management'!E376, "N/A") -> N/A | D48: N/A | H48: =IF(MODE=1, "0603", "-") -> - | I48: =IF(MODE=1, "Std", "-") -> - | J48: =IF(MODE=1, "Std", "-") -> -
A49: =ROUNDUP('Design Regulator'!E45/10,0) -> 4 | B49: CIN | C49: 10 | D49: =C49 -> 10 | H49: 1210 | I49: Std | J49: Std
A50: =ROUNDUP('Design Regulator'!E36/47,0) -> 2 | B50: COUT | C50: 47 | D50: =C50 -> 47 | H50: 1210 | I50: Std | J50: Std
A51: 3 | B51: CVCC | C51: 2.2 | D51: 2.2 | H51: 0603 | I51: Std | J51: Std
A52: 1 | B52: CVDDA | C52: 0.47 | D52: 0.47 | H52: 0603 | I52: Std | J52: Std
A53: 1 | B53: LO1 | C53: ='Design Regulator'!E28 -> 6.8 | D53: ="Inductor, "&Lf*1000000&"µH, "&Rdcr*1000&"mΩ, >"&ROUNDUP(Ilimit_DC*1.3/SCH_MODE,0)&"A" -> Inductor, 6.8µH, 12.5mΩ, >18A | H53: - | I53: - | J53: Various
A54: 1 | B54: LO2 | C54: =IF(MODE = 1, 'Design Regulator'!J28, 'Design Regulator'!E28) -> 6.8 | D54: =IF(MODE=1, "Inductor, "&Lo_2*1000000&"µH, "&Rdcr2*1000&"mΩ, >"&ROUNDUP(Ilimit2_DC*1.3,0)&"A", "Inductor, "&Lf*1000000&"µH, "&Rdcr*1000&"mΩ, >"&ROUNDUP(Ilimit_DC*1.3/SCH_MODE,0)&"A") -> Inductor, 6.8µH, 12.5mΩ, >18A | H54: - | I54: - | J54: Various
A55: 2 | B55: Q1, Q2 | C55: See description | D55: ='Design Regulator'!E86 -> 11.5 | H55: Std | I55: ='Design Regulator'!E84 -> '852NL, '836NL | J55: -
A56: 2 | B56: Q3, Q4 | C56: See description | D56: ='Design Regulator'!H86 -> 12 | H56: Std | I56: =IF(MODE=1, 'Design Regulator'!H84, 'Design Regulator'!E84) -> '852NL, '836NL | J56: -
A57: 1 | B57: RC1 | C57: ='Design Regulator'!D73 -> 11 | D57: =C57 -> 11 | H57: 0603 | I57: Std | J57: Std
A58: 1 | B58: RC2 | C58: =IF(MODE=1, 'Variable Management'!E374, "N/A") -> N/A | D58: =C58 -> N/A | H58: =IF(MODE=1, "0603", "-") -> - | I58: =IF(MODE=1, "Std", "-") -> - | J58: =IF(MODE=1, "Std", "-") -> -
A59: 1 | B59: RS1 | C59: =Rs*1000 -> 4 | D59: 4 | H59: 0508 | I59: Std | J59: Std
A60: 1 | B60: RS2 | C60: =IF(MODE=1, Rs_Ch2*1000, Rs*1000) -> 4 | D60: =C60 -> 4 | H60: 0508 | I60: Std | J60: Std
A61: 1 | B61: RRT | C61: ='Design Regulator'!E13 -> 57.6 | D61: 57.6 | H61: 0603 | I61: Std | J61: Std
A62: 1 | B62: RFB1 | C62: ='Design Regulator'!E68 -> 100 | D62: 100 | H62: 0603 | I62: Std | J62: Std
A63: 1 | B63: RFB2 | C63: ='Design Regulator'!E69 -> 7.15 | D63: 7.15 | H63: 0603 | I63: Std | J63: Std
A64: 1 | B64: RFB3 | C64: =IF(MODE=1, 'Design Regulator'!J68, "N/A") -> N/A | D64: =C64 -> N/A | H64: =IF(MODE=1, "0603", "-") -> - | I64: =IF(MODE=1, "Std", "-") -> - | J64: =IF(MODE=1, "Std", "-") -> -
A65: 1 | B65: RFB4 | C65: =IF(MODE=1, 'Design Regulator'!J69, "N/A") -> N/A | D65: N/A | H65: =IF(MODE=1, "0603", "-") -> - | I65: =IF(MODE=1, "Std", "-") -> - | J65: =IF(MODE=1, "Std", "-") -> -
A66: 1 | B66: RCNFG | C66: =Rcnfg -> 41.2 | D66: 41.2 | H66: 0603 | I66: Std | J66: Std
A67: 2 | B67: RPG1, RPG2 | C67: 100 | D67: 100 | H67: 0603 | I67: Std | J67: Std
A68: 1 | B68: RRSS | C68: =Rss_u/1000 -> 20 | D68: 20 | H68: 0603 | I68: Std | J68: Std
A69: 1 | B69: RVIN | C69: 2.2 | D69: 2.2 | H69: 0603 | I69: Std | J69: Std
A70: 1 | B70: U1 | C70: =CHOOSE(VARIANT, "LM5137F", "LM5137F-Q1","LM25137F","LM25137F-Q1") -> LM5137F-Q1 | D70: =CHOOSE(VARIANT, "IC, LM5137, Functional Safety Buck PWM Controller, 4V–80V Input", "IC, LM5137F-Q1, Functional Safety Buck PWM Controller, 4V–80V Input", "IC, LM25137F, Functional Safety Buck PWM Controller, 4V–42V Input", "IC, LM25137F-Q1, Functional Safety Buck PWM Controller, 4V–42V Input") -> IC, LM5137F-Q1, Functional Safety Buck PWM Controller, 4V–80V Input | H70: VQFNP-36 | I70: =CHOOSE(VARIANT, "LM5137FDRHAR", "LM5137FDQRHARQ1", "LM25137FDRHAR", "LM25137FDQRHARQ1") -> LM5137FDQRHARQ1 | J70: TI
A73: NOTES:
A74: ** For information on TI NexFETTM MOSFETs, see ** | D74: http://www.ti.com/nexfet | E74: **
A75: ** Inductor saturation current should be higher than the peak inductor current at the OCP setpoint for all input voltages and operating temperatures **
A76: ** Effective input and output capacitances should be appropriately derated for applied voltage and temperature, particularly with ceramics **

Sheet EVM
A1: LM(2)5137F/-Q1 Quickstart Design Tool
B6: LM25137F-Q1-EVM5D3 PCB Layout

Sheet Variable Management (hidden)
A1: EXCEL Variables Names/Calculations
B2: Input from user =
B3: Output =
B4: Constant
A5: Variable Name | B5: Value | C5: STD Units | E5: Notes | I5: Iteration
A6: Step 1: Operational Specs
A7: VIN_min | B7: ='Design Regulator'!E7 -> 36 | C7: V | D7: Minimum input voltage | I7: 1
A8: VIN_nom | B8: ='Design Regulator'!E8 -> 48 | C8: V | D8: Nominal input voltage | K8: =CHOOSE(SCH_MODE, "Efficiency vs. IOUT (Ch1)", "Efficiency vs. IOUT - 2 Ph", "Efficiency vs. IOUT - 3 Ph", "Efficiency vs. IOUT - 4 Ph") -> Efficiency vs. IOUT - 2 Ph | L8: 1 | N8: Input UVLO - Yes | O8: 1 | T8: Dual Outputs | U8: 1 | W8: FPWM | X8: 1 | Z8: =CHOOSE(SCH_MODE, "Bode Plot (Ch1)", "Bode Plot - 2 Ph", "Bode Plot - 3 Ph", "Bode Plot - 4 Ph") -> Bode Plot - 2 Ph | AA8: 1 | AE8: 9.6 | AF8: 41.2
A9: VIN_max | B9: ='Design Regulator'!E9 -> 65 | C9: V | D9: Maximum input voltage | K9: =IF(MODE=1, "Efficiency vs. IOUT (Ch2)", "N/A - Do Not Use") -> N/A - Do Not Use | L9: 2 | N9: Input UVLO - No | O9: 2 | T9: Single Output – 2 Phases | U9: 2 | W9: PFM | X9: 2 | Z9: =IF(MODE=1, "Bode Plot (Ch2)", "N/A - Do Not Use") -> N/A - Do Not Use | AA9: 2 | AE9: 19.1 | AF9: 54.9
K10: PLOT_TYPE | L10: 1 | N10: Input UVLO Yes/No | O10: 1 | P10: 1 = Yes, 2 = No | T10: Single Output – 3 Phases | U10: 3 | W10: FPWM/PFM | X10: 2 | Z10: BODE_PLOT_TYPE | AA10: 1 | AE10: 29.4 | AF10: 71.5
A11: Vout | B11: ='Design Regulator'!E10 -> 12 | C11: V | D11: Output voltage - channel 1 | T11: Single Output – 4 Phases | U11: 4
A12: Iout | B12: ='Design Regulator'!E11 -> 20 | C12: A | D12: Output current - channel 1 | I12: 1 | T12: Single/Dual Yes/No | U12: 2
A13: Vout2 | B13: ='Design Regulator'!J10 -> 5 | C13: V | D13: Output voltage - channel 2 | I13: 1 | K13: 3.3V | L13: 1 | N13: 3.3V | O13: 1 | T13: MODE (Single/Dual), DUAL = 1, SINGLE = 2 | U13: =IF(U12=1, 1, 2) -> 2 | W13: DRSS - OFF | X13: 1 | Z13: Shunt current sensing | AA13: 1
A14: Iout2 | B14: ='Design Regulator'!J11 -> 15 | C14: A | D14: Output current - channel 2 | K14: 5V | L14: 2 | N14: 5V | O14: 2 | T14: SINGLE OUTPUT (1 = YES) | U14: =IF(U12=1, 2, 1) -> 1 | W14: DRSS ON - 5% | X14: 2 | Z14: Inductor DCR current sensing | AA14: 2
K15: 12 | L15: 3 | N15: 12V | O15: 3 | T15: Number of Phases | U15: =SCH_MODE -> 2 | W15: DRSS ON - 10% | X15: 3 | Z15: SENSING_TYPE | AA15: 1
A16: Rout | B16: =Vout/Iout -> 0.6 | C16: W | D16: Load resistance - Channel 1 | K16: Adjustable | L16: 4 | N16: Adjustable | O16: 4 | W16: CNFG | X16: 1 | AA16: =SENSING_TYPE -> 1
A17: Rout2 | B17: =Vout2/Iout2 -> 0.3333333333 | C17: W | K17: Ch1 Output Setting | L17: =IF(Vout=3.3, 1, IF(Vout=5, 2, IF(Vout=12, 3, 4))) -> 3 | N17: Ch2 Output Setting | O17: =IF(Vout2=3.3, 1, IF(Vout2=5, 2, IF(Vout2=12, 3, 4))) -> 2 | T17: =SCH_MODE -> 2
A18: Pout | B18: =CHOOSE(MODE, Vout*Iout+Vout2*Iout2, Vout*Iout) -> 240 | C18: W | D18: Output power
X19: LM5137 | Y19: 1
A20: Efficiency | B20: 0.9 | D20: Estimate of efficiency | X20: LM5137-Q1 | Y20: 2
A21: Pin | B21: =Pout/Efficiency -> 266.6666667 | C21: W | D21: Calculate input power assuming finite efficiency | L21: =Vout -> 12 | X21: LM25137 | Y21: 3
X22: LM25137-Q1 | Y22: 4
A23: Iin_Vinmin | B23: =Pin/VIN_min -> 7.407407407 | C23: A | W23: VARIANT | X23: =CHOOSE(VARIANT, "LM5137F", "LM5137F-Q1", "LM25137F", "LM25137F-Q1") -> LM5137F-Q1 | Y23: 2
A24: Iin_Vinnom | B24: =Pin/VIN_nom -> 5.555555556 | C24: A | D24: Input currents at min, nom, max Vin | W24: VIN-MAX | X24: =CHOOSE(VARIANT, 80, 80, 42, 42) -> 80 | Y24: V
A25: Iin_Vinmax | B25: =Pin/VIN_max -> 4.102564103 | C25: A | W25: VOUT-MAX | X25: =CHOOSE(VARIANT, 60, 60, 36, 36) -> 60 | Y25: V
A27: Fsw | B27: ='Design Regulator'!E12*1000 -> 400000 | C27: Hz | D27: Nominal switching frequency - determines RT resistor (SYNCIN must be 80-120% of this)
A28: Tsw | B28: =1/Fsw -> 2.5e-06 | C28: sec | D28: Switching period | I28: 1
A29: Vref | B29: 0.8 | C29: V | D29: Reference voltage
A30: Rt | B30: =(1000000/(Fsw/1000)-15)/42.8*1000 -> 58060.74766 | C30: W | D30: Frequency set resistor
A33: Step 2: Buck Inductor | B33: Channel 1 | D33: Channel 2
A34: Don1 | B34: =Vout/VIN_nom -> 0.25 | F34: Ideal Duty Cycle at VIN(nom)
A35: Doff1 | B35: =1-34:34 -> 0.75 | F35: Ideal 1- Duty Cycle at VIN(nom)
A37: D_Vinmin | B37: =Vout/VIN_min -> 0.3333333333 | D37: =Vout2/VIN_min -> 0.1388888889
A38: D_Vinnom | B38: =Vout/VIN_nom -> 0.25 | D38: =Vout2/VIN_nom -> 0.1041666667
A39: D_Vinmax | B39: =Vout/VIN_max -> 0.1846153846 | D39: =Vout2/VIN_max -> 0.07692307692
A41: L_Vinnom | B41: =(VIN_nom-Vout)*D1_Vinnom/(Fsw*(Iout/Number_of_Phases)*0.35) -> 6.428571429e-06 | C41: H | D41: =(VIN_nom-Vout2)*D2_Vinnom/(Fsw*Iout2*0.35) -> 2.132936508e-06 | E41: H | F41: Calculated inductance for 35% ripple at VIN(nom)
A42: L_slopecomp | B42: =1000*Vout*Rs/21.82/Fsw -> 5.499541705e-06 | C42: H | D42: =1000*Vout2*Rs_Ch2/21.82/Fsw -> 1.145737855e-06 | E42: H | F42: Calculated inductance based on one times inductor downslope
A44: Lopt | B44: =B42 -> 5.499541705e-06 | C44: H | D44: =D42 -> 1.145737855e-06 | E44: H | F44: min of calculated inductances at VIN(min) and VIN(nom)
B45: =Lopt*1000000 -> 5.499541705 | C45: µH | D45: =Lopt2*1000000 -> 1.145737855 | E45: µH
A47: Lo | B47: ='Design Regulator'!E28/1000000 -> 6.8e-06 | C47: H | D47: ='Design Regulator'!J28/1000000 -> 1e-06 | E47: H | F47: Chosen inductance
A48: Rdcr | B48: ='Design Regulator'!E29/1000 -> 0.0125 | C48: W | D48: ='Design Regulator'!J29/1000 -> 0.0023 | E48: W | F48: Chosen inductor DCR
A50: Don2 | B50: =(Vout+Iout*(Rdcr+Rs))/(Vin+Iout*Rs) -> 0.2564475874
A51: Doff2 | B51: =1-_Don2 -> 0.7435524126
A53: D_Vinmin_2 | B53: =CHOOSE(MODE, (Vout+Iout*(Rdcr+Rs))/(VIN_min+Iout*Rs), (Vout+Iout/Number_of_Phases*(Rdcr+Rs))/(VIN_min+Iout/Number_of_Phases*Rs)) -> 0.3375416204 | D53: =(Vout2+Iout2*(Rdcr2+Rs_Ch2))/(VIN_min+Iout2*Rs_Ch2) -> 0.1405634194 | F53: Duty cycles adjusted for DCR/shunt voltage drops
A54: D_Vinnom_2 | B54: =CHOOSE(MODE, (Vout+Iout*(Rdcr+Rs))/(VIN_nom+Iout*Rs), (Vout+Iout/Number_of_Phases*(Rdcr+Rs))/(VIN_nom+Iout/Number_of_Phases*Rs)) -> 0.2532264779 | D54: =(Vout2+Iout2*(Rdcr2+Rs_Ch2))/(VIN_nom+Iout2*Rs_Ch2) -> 0.1054445138 | F54: need to include RDS(on) later
A55: D_Vinmax_2 | B55: =CHOOSE(MODE, (Vout+Iout*(Rdcr+Rs))/(VIN_max+Iout*Rs), (Vout+Iout/Number_of_Phases*(Rdcr+Rs))/(VIN_max+Iout/Number_of_Phases*Rs)) -> 0.1870387454 | D55: =(Vout2+Iout2*(Rdcr2+Rs_Ch2))/(VIN_max+Iout2*Rs_Ch2) -> 0.07787944026
A57: Iripple_Vinmin | B57: =MAX(0, (VIN_min-Vout)*D1_Vinmin_2/(Fsw*Lf)) -> 2.978308415 | C57: A | D57: =MAX(0.1, (VIN_min-Vout2)*D2_Vinmin_2/(Fsw*Lo_2)) -> 10.893665 | E57: A
A58: Iripple_Vinnom | B58: =MAX(0, (VIN_nom-Vout)*D1_Vinnom_2/(Fsw*Lf)) -> 3.351526914 | C58: A | D58: =MAX(0, (VIN_nom-Vout2)*D2_Vinnom_2/(Fsw*Lo_2)) -> 11.33528524 | E58: A
A59: Iripple_Vinmax | B59: =MAX(0, (VIN_max-Vout)*D1_Vinmax_2/(Fsw*Lf)) -> 3.644504965 | C59: A | D59: =MAX(0, (VIN_max-Vout2)*D2_Vinmax_2/(Fsw*Lo_2)) -> 11.68191604 | E59: A
A61: Ishunt_rms_Vinmin | B61: =SQRT((Iout/Number_of_Phases)^2+(Iripple_Vinmin^2)/12) -> 10.03689162 | C61: A | D61: =SQRT(Iout2^2+(Iripple2_Vinmin^2)/12) -> 15.32609957 | E61: A
A62: Ishunt_rms_Vinnom | B62: =SQRT((Iout/Number_of_Phases)^2+(Iripple_Vinnom^2)/12) -> 10.04669404 | C62: A | D62: =SQRT(Iout2^2+(Iripple2_Vinnom^2)/12) -> 15.35276493 | E62: A
A63: Ishunt_rms_Vinmax | B63: =SQRT((Iout/Number_of_Phases)^2+(Iripple_Vinmax^2)/12) -> 10.0551911 | C63: A | D63: =SQRT(Iout2^2+(Iripple2_Vinmax^2)/12) -> 15.37440287 | E63: A
A64: Max shunt power loss at full load | B64: =B62^2*Rs -> 0.4037442442 | C64: W | D64: =D62^2*Rs -> 0.9428295638 | E64: W | F64: Note this is power loss at full load - not loss near OCP!
A66: Max inductor ripple current | B66: =MAX(B57:B59) -> 3.644504965 | C66: A | D66: =MAX(D57:D59) -> 11.68191604 | E66: A | F66: Ripple current at Vin(max)
B68: =B57/(Iout/Number_of_Phases) -> 0.2978308415 | D68: =D57/Iout2 -> 0.7262443334
A69: % ripple current | B69: =B58/(Iout/Number_of_Phases) -> 0.3351526914 | D69: =D58/Iout2 -> 0.7556856826
B70: =B59/(Iout/Number_of_Phases) -> 0.3644504965 | D70: =D59/Iout2 -> 0.7787944026
A72: Inductor copper temerature | B72: 100 | C72: °C | D72: 100 | E72: °C
A73: DCR at hot | B73: =Rdcr*(1+0.0039*(B72-25)) -> 0.01615625 | C73: W | D73: =Rdcr2*(1+0.0039*(D72-25)) -> 0.00297275 | E73: W
A76: Step 3: Sense Resistors, Slope Comp, Current Limit
A78: Ilimit_DC | B78: ='Design Regulator'!E17 -> 27 | C78: A | D78: ='Design Regulator'!J17 -> 25 | E78: A | F78: Chosen OCP level - based on output current
A80: Ilimit_inductor_Vinmin | B80: =CHOOSE(MODE, Ilimit_DC+Iripple_Vinmin/2, Ilimit_DC/Number_of_Phases+Iripple_Vinmin/2) -> 14.98915421 | C80: A | D80: =Ilimit2_DC+Iripple2_Vinmin/2 -> 30.4468325 | E80: A | F80: Peak inductor current at current limit inception
A81: Ilimit_inductor_Vinnom | B81: =CHOOSE(MODE, Ilimit_DC+Iripple_Vinnom/2, Ilimit_DC/Number_of_Phases+Iripple_Vinnom/2) -> 15.17576346 | C81: A | D81: =Ilimit2_DC+Iripple2_Vinnom/2 -> 30.66764262 | E81: A
A82: Ilimit_inductor_Vinmax | B82: =CHOOSE(MODE, Ilimit_DC+Iripple_Vinmax/2, Ilimit_DC/Number_of_Phases+Iripple_Vinmax/2) -> 15.32225248 | C82: A | D82: =Ilimit2_DC+Iripple2_Vinmax/2 -> 30.84095802 | E82: A
A85: CS threshold_min | B85: 0.054 | C85: V
A86: CS threshold | B86: 0.06 | C86: V
A87: CS threshold_max | B87: 0.066 | C87: V
F88: =SENSING_TYPE -> 1
A89: Shunt required to get OCP at VIN(min) | B89: =Buck_CS_threshold/B80 -> 0.004002894304 | C89: W | D89: =Buck_CS_threshold/D80 -> 0.001970648342 | E89: W
A90: Shunt required to get OCP at VIN(nom) | B90: =Buck_CS_threshold/B81 -> 0.003953672589 | C90: W | D90: =Buck_CS_threshold/D81 -> 0.001956459476 | E90: W
A91: Shunt required to get OCP at VIN(max) | B91: =Buck_CS_threshold/B82 -> 0.00391587334 | C91: W | D91: =Buck_CS_threshold/D82 -> 0.001945464858 | E91: W
A93: Rs_ideal | B93: =B90 -> 0.003953672589 | C93: W | D93: =D90 -> 0.001956459476 | E93: W | F93: Ideal Rs for the required OCP -- based on 73mV CL threshold
A94: Rs | B94: =CHOOSE(SENSING_TYPE, 'Design Regulator'!E19/1000, Rdcr) -> 0.004 | C94: W | D94: =CHOOSE(SENSING_TYPE, 'Design Regulator'!J19/1000, Rdcr2) -> 0.002 | E94: W | F94: Selected (starndard value) current limit sense resistor
A96: Current limit - peak | B96: =Buck_CS_threshold/Rs -> 15 | C96: A | D96: =Buck_CS_threshold/Rs_Ch2 -> 30 | E96: A | F96: Peak inductor current limit = min sat current
A98: Iout_OCP_Vinmin | B98: =Number_of_Phases*(Buck_CS_threshold/Rs-Iripple_Vinmin/2) -> 27.02169158 | C98: A | D98: =Buck_CS_threshold/Rs_Ch2-Iripple2_Vinmin/2 -> 24.5531675 | E98: A | F98: Current limit setpoints (i.e. IOUT) after standard components are selected
A99: Iout_OCP_Vinnom | B99: =Number_of_Phases*(Buck_CS_threshold/Rs-Iripple_Vinnom/2) -> 26.64847309 | C99: A | D99: =Buck_CS_threshold/Rs_Ch2-Iripple2_Vinnom/2 -> 24.33235738 | E99: A
A100: Iout_OCP_Vinmax | B100: =Number_of_Phases*(Buck_CS_threshold/Rs-Iripple_Vinmax/2) -> 26.35549503 | C100: A | D100: =Buck_CS_threshold/Rs_Ch2-Iripple2_Vinmax/2 -> 24.15904198 | E100: A
A102: Irms_OCP_Vinmin | B102: =SQRT((Iout_OCP_Vinmin/Number_of_Phases)^2+(Iripple_Vinmin^2)/12) -> 13.53817371 | C102: A | D102: =SQRT(Iout2_OCP_Vinmin^2+(Iripple2_Vinmin^2)/12) -> 24.75373431 | E102: A
A103: Irms_OCP_Vinnom | B103: =SQRT((Iout_OCP_Vinnom/Number_of_Phases)^2+(Iripple_Vinnom^2)/12) -> 13.35931662 | C103: A | D103: =SQRT(Iout2_OCP_Vinnom^2+(Iripple2_Vinnom^2)/12) -> 24.55139521 | E103: A
A104: Irms_OCP_Vinmax | B104: =SQRT((Iout_OCP_Vinmax/Number_of_Phases)^2+(Iripple_Vinmax^2)/12) -> 13.21967843 | C104: A | D104: =SQRT(Iout2_OCP_Vinmax^2+(Iripple2_Vinmax^2)/12) -> 24.39326901 | E104: A
A106: Pshunt_Vinmin | B106: =B102^2*Rs -> 0.7331285898 | C106: W | D106: =D102^2*Rs_Ch2 -> 1.225494725 | E106: W | F106: Max power dissipations in shunt
A107: Pshunt_Vinnom | B107: =B103^2*Rs -> 0.713885362 | C107: W | D107: =D103^2*Rs_Ch2 -> 1.205542013 | E107: W
A108: Pshunt_Vinmax | B108: =B104^2*Rs -> 0.6990395907 | C108: W | D108: =D104^2*Rs_Ch2 -> 1.190063146 | E108: W
A111: Step 4: Output Capacitor
A112: Icoutrms_VINmin | B112: =Iripple_Vinmin/SQRT(12) -> 0.8597635827 | C112: A | D112: =Iripple2_Vinmin/SQRT(12) -> 3.144730211 | E112: A | F112: Output Cap RMS current
A113: Icoutrms_VINnom | B113: =Iripple_Vinnom/SQRT(12) -> 0.967502483 | C113: A | D113: =Iripple2_Vinnom/SQRT(12) -> 3.272214992 | E113: A
A114: Icoutrms_VINmax | B114: =Iripple_Vinmax/SQRT(12) -> 1.052077961 | C114: A | D114: =Iripple2_Vinmax/SQRT(12) -> 3.372278685 | E114: A
A115: Max Cout rms current | B115: =MAX(B112:B114) -> 1.052077961 | C115: A | D115: =MAX(D112:D114) -> 3.372278685 | E115: A
A117: Vripple1 | B117: ='Design Regulator'!E34/1000 -> 0.08 | C117: V | D117: ='Design Regulator'!J34/1000 -> 0.05 | E117: V | F117: Output voltage ripple spec(pk-pk)
A119: Output Ripple Spec (pk-pk) | B119: =Vo1_ripple*1000 -> 80 | C119: mV | D119: =Vo2_ripple*1000 -> 50 | E119: mV | F119: Vout ripple spec at Vin(nom)
A121: Coutmin | B121: =Iripple_Vinnom/(Fsw*8*Vo1_ripple) -> 1.309190201e-05 | C121: F | D121: =Iripple2_Vinnom/(Fsw*8*Vo2_ripple) -> 7.084553274e-05 | E121: F | F121: Minimum output capacitnace | H121: =Vo2_ripple -> 0.05 | I121: 1
A122: Reported Coutmin | B122: =IF(Cout_min*1000000<2, 2.2,Cout_min*1000000) -> 13.09190201 | C122: uF | D122: =IF(Cout2_min*1000000<2, 2.2,Cout2_min*1000000) -> 70.84553274 | E122: uF
A123: Cout | B123: ='Design Regulator'!E36/1000000 -> 7e-05 | C123: F | D123: ='Design Regulator'!J36/1000000 -> 0.000165 | E123: F | F123: Chosen output capacitance | I123: 1
A124: Resrmax | B124: =SQRT((Vo1_ripple/Iripple_Vinnom)^2-(1/(Fsw*Cout*8))^2) -> 0.02344852997 | C124: W | D124: =SQRT((Vo2_ripple/Iripple2_Vinnom)^2-(1/(Fsw*Cout2*8))^2) -> 0.003983711685 | E124: W | F124: Max ESR before ripple exceeds Vripple1 | I124: 1
A126: Reported Cout ESR max | B126: =IF(OR(CoutEsrMax>0.3, CoutEsrMax<0, (ISERROR(CoutEsrMax))), "N/A", CoutEsrMax*1000) -> 23.44852997 | C126: mΩ | D126: =IF(OR(Cout2EsrMax>0.3, Cout2EsrMax<0, (ISERROR(Cout2EsrMax))), "N/A", Cout2EsrMax*1000) -> 3.983711685 | E126: mΩ
A127: CoutEsr | B127: ='Design Regulator'!E38/1000 -> 0.001 | C127: W | D127: ='Design Regulator'!J38/1000 -> 0.001 | E127: W | F127: Chosen ESR | I127: 1 | K127: =ISERROR(CoutEsrMax) -> FALSE | L127: =ISERROR(B126) -> FALSE
A128: Vripple | B128: =Iripple_Vinnom*SQRT(Cout_ESR^2+(1/(8*Fsw*Cout))^2) -> 0.01533295063 | C128: Vp-p | D128: =Iripple2_Vinnom*SQRT(Cout2_ESR^2+(1/(8*Fsw*Cout2))^2) -> 0.0242771179 | E128: Vp-p | L128: =OR(CoutEsrMax>0.3,CoutEsrMax<0) -> FALSE
K129: =OR(TRUE, FALSE, TRUE) -> TRUE
A130: Step 5: Input Capacitor
K131: Two channels operating at full load
A132: Icinrms_VINmin | B132: =SQRT(D1_Vinmin_2*(Iout^2*(1-D1_Vinmin_2)+Iripple_Vinmin^2/12)) -> 9.470608138 | C132: A | D132: =SQRT(D2_Vinmin_2*(Iout2^2*(1-D2_Vinmin_2)+Iripple2_Vinmin^2/12)) -> 5.345210967 | E132: A | F132: Calculate input cap rms current with one output unloaded | K132: =SQRT(Iout^2*D1_Vinmin*(1-D1_Vinmin)+Iout2^2*D2_Vinmin*(1-D2_Vinmin)-2*Iout*Iout2*D1_Vinmin*D2_Vinmin) -> 9.381941874 | L132: A | M132: =SQRT(Iout^2*D1_Vinmin*(1-D1_Vinmin)+Iout2^2*D2_Vinmin*(1-D2_Vinmin)-2*Iout*Iout2*(0.5-D2_Vinmin*(1-D1_Vinmin))) ->  | N132: A
A133: Icinrms_VINnom | B133: =SQRT(D1_Vinnom_2*(Iout^2*(1-D1_Vinnom_2)+Iripple_Vinnom^2/12)) -> 8.710807481 | C133: A | D133: =SQRT(D2_Vinnom_2*(Iout2^2*(1-D2_Vinnom_2)+Iripple2_Vinnom^2/12)) -> 4.727830212 | E133: A | K133: =SQRT(Iout^2*D1_Vinnom*(1-D1_Vinnom)+Iout2^2*D2_Vinnom*(1-D2_Vinnom)-2*Iout*Iout2*D1_Vinnom*D2_Vinnom) -> 8.96499268 | L133: A
A134: Icinrms_VINmax | B134: =SQRT(D1_Vinmax_2*(Iout^2*(1-D1_Vinmax_2)+Iripple_Vinmax^2/12)) -> 7.812114211 | C134: A | D134: =SQRT(D2_Vinmax_2*(Iout2^2*(1-D2_Vinmax_2)+Iripple2_Vinmax^2/12)) -> 4.128421969 | E134: A | K134: =SQRT(Iout^2*D1_Vinmax*(1-D1_Vinmax)+Iout2^2*D2_Vinmax*(1-D2_Vinmax)-2*Iout*Iout2*D1_Vinmax*D2_Vinmax) -> 8.226095006 | L134: A
A135: Max Cin rms current | B135: =MAX(B132:B134, D132:D134) -> 9.470608138 | C135: A | K135: =MAX(K132:K134) -> 9.381941874 | L135: A
F136: =Number_of_Phases*D1_Vinnom -> 0.5 | G136: N*D
A137: Icinrms - multiphase | B137: =Iout*SQRT((D1_Vinnom-F137/Number_of_Phases)*((F137+1)/Number_of_Phases-D1_Vinnom)) -> 5 | C137: A | F137: =FLOOR(Number_of_Phases*D1_Vinnom,1) -> 0 | G137: floor(N*D)
A138: Icinrms - multiphase - max | B138: =Iout/2/Number_of_Phases -> 5 | C138: A
A139: Final result | B139: =CHOOSE(MODE, B135, B138) -> 5 | C139: A | D139: …report this
A141: Vinripple1 | B141: ='Design Regulator'!E43/1000 -> 0.2 | C141: Vp-p | F141: Input voltage ripple spec (pk-pk)
A143: Cinmin_Vinmin | B143: =Iout/Number_of_Phases*D1_Vinmin*(1-D1_Vinmin)/(Vinripple1*Fsw) -> 2.777777778e-05 | C143: F
A144: Cinmin_Vinmax | B144: =Iout/Number_of_Phases*D1_Vinmax*(1-D1_Vinmax)/(Vinripple1*Fsw) -> 1.881656805e-05 | C144: F | F144: Calculate cap at Vinmax and 50% duty cycle (Vin = 2*Vout)
A145: Cinmin_50%D | B145: =IF(Number_of_Phases=1,MAX(Iout*0.5*(1-0.5)/(Vinripple1*Fsw),Iout2*0.5*(1-0.5)/(Vinripple1*Fsw)),MAX(Iout/Number_of_Phases*0.5*(1-0.5)/(Vinripple1*Fsw))) -> 3.125e-05 | C145: F | F145: Buck 50% typically worst case
A146: Cinmin | B146: =IF(VIN_min>2*Vout, B143,B145) -> 2.777777778e-05 | C146: F | D146: =Number_of_Phases -> 2
A147: Reported Cinmin | B147: =IF(Cinmin*1000000<10, 10,Cinmin*1000000) -> 27.77777778 | C147: uF | F147: …report this
A148: Cin | B148: ='Design Regulator'!E45/1000000 -> 3.5e-05 | C148: F | F148: Input capacitance
A149: CinEsrMax_Vinmin | B149: =-(Iout/Number_of_Phases*D1_Vinmin*(1-D1_Vinmin)/(Cin*Fsw)-Vinripple1)/(Iout/Number_of_Phases+Iripple_Vinmin/2) -> 0.003592069575 | C149: W
A150: CinEsrMax_Vinmax | B150: =-(Iout/Number_of_Phases*D1_Vinmax*(1-D1_Vinmax)/(Cin*Fsw)-Vinripple1)/(Iout/Number_of_Phases+Iripple_Vinmax/2) -> 0.007822261803 | C150: W
A151: CinEsrMax_50%D | B151: =-(Iout/Number_of_Phases*0.5*(1-0.5)/(Cin*Fsw)-Vinripple1)/(Iout/Number_of_Phases+Iripple_Vinmax/2) -> 0.001812562493 | C151: W | F151: Calculate ESR at Vinmax and 50% duty cycle (Vin = 2*Vout)
A152: CinEsrMax | B152: =IF(VIN_min>2*Vout, B149,B151) -> 0.003592069575 | C152: W
A153: Reported Cin ESR max | B153: =IF(OR(CinEsrMax>0.3, CinEsrMax<0), "N/A",CinEsrMax*1000) -> 3.592069575 | C153: mΩ | F153: …report this
A154: RCinEsr | B154: ='Design Regulator'!E47/1000 -> 0.002 | C154: W | F154: Input capacitance series resistance (ESR)
A156: Vinripple2_Vinmin | B156: =Iout/Number_of_Phases*D1_Vinmin_2*(1-D1_Vinmin_2)/(Cin*Fsw)+(Iout/Number_of_Phases +Iripple_Vinmin/2)*RCinEsr -> 0.1826977905 | C156: Vp-p
A157: Vinripple2_Vinmax | B157: =Iout/Number_of_Phases*D1_Vinmax_2*(1-D1_Vinmax_2)/(Cin*Fsw)+(Iout/Number_of_Phases +Iripple_Vinmax/2)*RCinEsr -> 0.1322554 | C157: Vp-p
A158: Vinripple2_50%D | B158: =Iout/Number_of_Phases*0.5*(1-0.5)/(Cin*Fsw)+(Iout/Number_of_Phases +Iripple_Vinmax/2)*RCinEsr -> 0.2022159335 | C158: Vp-p | F158: Calculate ripple at Vinmax and 50% duty cycle (Vin = 2*Vout)
A159: Vinripple2 | B159: =IF(VIN_min>2*Vout, B156,B158) -> 0.1826977905 | C159: Vp-p | F159: …report highest of these
B161: =Iout*D1_Vinmax_2*(1-D1_Vinmax_2)/(Cin*Fsw) -> 0.2172217902 | C161: Vp-p
A163: Step 6a: Soft Start
A164: Tss | B164: ='Design Regulator'!E52/1000 -> 0.0046 | C164: s | D164: Soft-start time
A165: I_Cout | B165: =Cout*Vout/Tss -> 0.1826086957 | C165: A | D165: Load cap current during soft start
A166: Rss | B166: =IF(Tss>1.25/1000,4.38*Tss*1000000,0) -> 20148 | C166: W
A167: Rss_u | B167: =IF(Rss=0, 0, 'Standard Value Calculator'!O16) -> 20000 | C167: Ω
A169: Step 6b: Other Components - DRSS, Hiccup, DEMB, MODE
A170: Tres | B170: ='Design Regulator'!E52/1000 -> 0.0046 | C170: s
A171: Cres | B171: =0.00002*Tres/1.2 -> 7.666666667e-08 | C171: F
A172: Cres_u | B172: ='Standard Value Calculator'!G4 -> 8.2e-08 | C172: F
A174: RPG1/2 | B174: 100 | C174: kΩ
A175: RFB1/2 | C175: W | E175: Tie to VDDA or AGND for 3.3V/5V output, respectively.
A176: R_MODE | C176: W | E176: Tie to VDDA or AGND for Single/Dual operation, respectively.
A177: R_DEMB | C177: W | E177: Tie to VDDA or AGND for FPWM/DEM, respectively.
A180: UVLO On Voltage | B180: ='Design Regulator'!E54 -> 36 | C180: V
A181: UVLO Off Voltage | B181: ='Design Regulator'!E55 -> 30 | C181: V
A182: Ruv3 | B182: ='Design Regulator'!E56 -> 2.5 | C182: kΩ
A183: Ien-hys | B183: ='Design Regulator'!E57 -> 20 | C183: µA
F184: Ruv3 = 0
A185: Lower UVLO Resistance | B185: =((0.95-(B181/B180))/Ien_hys/0.000001-B182*1000)*B180/(B180-1)/1000 -> 3.428571429 | C185: kΩ | D185: ='Standard Value Calculator'!O15 -> 3.4 | E185: kΩ | F185: =((0.95-(B181/B180))/Ien_hys/0.000001)*B180/(B180-1)/1000 -> 6 | G185: kΩ | H185: ='Standard Value Calculator'!S15 -> 0
A186: Upper UVLO Resistance | B186: =D185*(B180-1) -> 119 | C186: kΩ | D186: ='Standard Value Calculator'!O14 -> 118 | E186: kΩ | F186: =F185*(B180-1) -> 210 | G186: kΩ
A188: Actual Turn-on Voltage | B188: =1/D185*(D185+D186) -> 35.70588235 | C188: V | F188: =1/F185*(F185+F186) -> 36 | G188: V
A189: Actual Turn-off Voltage | B189: =B188*(0.95-(Ien_hys*0.001*(B182+D185*((B188-1)/B188)))) -> 29.77529412 | C189: V | F189: =F188*(0.95-(0.01*(F185*((F188-1)/F188)))) -> 32.1 | G189: V
A191: DRSS Modulation Frequency | B191: =CHOOSE(CNFG, "N/A", "5%", "10%") -> N/A
A192: RCNFG | B192: =CHOOSE(MODE, CHOOSE(CNFG, 10, 19.1, 29.4), CHOOSE(CNFG, 41.2, 54.9, 71.5)) -> 41.2 | C192: kΩ
A196: Step 7: Compensation
A197: Pi | B197: 3.14159265 | D197: p
A198: CS Amp Gain | B198: 10
A199: Ri | B199: =Rs*CSAmp_gain -> 0.04 | C199: W | D199: =Rs_Ch2*CSAmp_gain -> 0.02 | E199: W | F199: Current Sense effective resistance = shunt resistor Rs * CS amp gain
A200: gm | B200: 0.0006 | C200: S | F200: Error Amp Transconductance
A202: Se_ext | B202: =B206/Ri*1000 -> 1909090.909 | C202: A/s | D202: =B206/Ri_Ch2*1000 -> 3818181.818 | E202: A/s | F202: Slope Comp Slope - referred to inductor current
A203: Sn | B203: =(Vin-Vout)/Lf -> 5294117.647 | C203: A/s | D203: =(Vin-Vout2)/Lo_2 -> 43000000 | E203: A/s | F203: On-time Slope
A204: Sf | B204: =Vout/Lf -> 1764705.882 | C204: A/s | D204: =Vout2/Lo_2 -> 5000000 | E204: A/s | F204: Off-time Slope
K205: Tsw | L205: Tsw (us) | M205: Slope comp amplitude
A206: Se_int | B206: =(Fsw/1000)/220*42 -> 76.36363636 | C206: mV/μs | F206: Slope Comp Slope - referred to IC | K206: =Ts -> 2.5e-06 | L206: =Ts*1000000 -> 2.5 | M206: =B206*L206 -> 190.9090909 | N206: mV
A207: Sn_int | B207: =Sn*Ri/1000 -> 211.7647059 | C207: mV/μs | D207: =Sn_Ch2*Ri_Ch2/1000 -> 860 | E207: mV/μs | F207: etc
A208: Sf_int | B208: =Sf*Ri/1000 -> 70.58823529 | C208: mV/μs | D208: =Sf_Ch2*Ri_Ch2/1000 -> 100 | E208: mV/μs | F208: etc
A210: mc_buck | B210: =1+Se_ext/Sn -> 1.360606061 | D210: =1+Se_ext_Ch2/Sn_Ch2 -> 1.088794926 | F210: mc = 1 + Se/Sf for peak current-mode buck
A211: k_buck | B211: =mc_buck*(1-D1_Vinnom_2) -> 1.01606458 | D211: =mc_buck_Ch2*(1-D2_Vinnom_2) -> 0.9739874744 | F211: mc*(1-d)
A213: mc | B213: =1+Se_ext/Sn -> 1.360606061 | D213: =1+Se_ext_Ch2/Sn_Ch2 -> 1.088794926
A214: k | B214: =mc_buck*(1-D1_Vinnom_2) -> 1.01606458 | D214: =mc_buck_Ch2*(1-D2_Vinnom_2) -> 0.9739874744
A215: Q | B215: =1/Pi/(k-0.5) -> 0.6168024291 | D215: =1/Pi/(k_Ch2-0.5) -> 0.6715575912 | F215: 1/(Pi*(k-0.5)) | H215: Q = 2/Pi = 0.636 gives ideal one-cycle damping
A217: Error Amp (EA)
A218: GBW | B218: 13 | C218: MHz | F218: EA gain-bandwidth product
A219: Cbw | B219: =gm/(2*Pi*GBW*1000000) -> 7.345612766e-12 | C219: F | F219: EA effective bandwidth limiting capacitance = gm/(2*Pi*GBW)
A220: RoEA | B220: 74000000 | C220: W | F220: EA output resistance
A221: AEA | B221: =gm*RoEA -> 44400 | C221: V/V | F221: EA DC gain = gm*RoEA | H221: =20*LOG(AEA) -> 92.9476594
A222: Afb | B222: =Vref/Vout -> 0.06666666667 | C222: V/V | D222: =Vref/Vout2 -> 0.16 | E222: V/V | F222: Feedback gain from Vout to FB
A223: Acs | B223: =1/Ri -> 25 | D223: =1/Ri_Ch2 -> 50 | F223: Acs = 1/Ri
A224: kd | B224: =1+Ro*Number_of_Phases*(k-0.5)/(Fsw*Lf) -> 1.22767555
B225: =Ro*Number_of_Phases/kd/Ri -> 24.43642378
A226: Am_buck | D226: =Ro_Ch2/Ri_Ch2/((1+Ro_Ch2*(k_Ch2-0.5)/(Fsw*Lo_2))) -> 11.9475207
A227: Am | B227: =(Ro*Number_of_Phases)/Ri/((1+Ro*Number_of_Phases*(k-0.5)/(Fsw*Lf))) -> 24.43642378 | D227: =Ro_Ch2/Ri_Ch2/((1+Ro_Ch2*(k_Ch2-0.5)/(Fsw*Lo_2))) -> 11.9475207 | F227: Buck modulator gain
A229: Scaling factor to calculate Rcomp - buck | B229: =2*Pi*Ri/gm -> 418.87902 | F229: 2*Pi*Ri/gm -- scaling factor to calculate Rcomp given desired buck crossover frequency
A230: DC Gain is Adc = AEA*Afb*Am
A232: Ro | B232: =Rout -> 0.6 | C232: W | D232: =Rout2 -> 0.3333333333 | E232: W | F232: Output Resistance
A234: Fp_load_buck | B234: =1/(2*Pi*Ro*Cout)+(k-0.5)/(2*Pi*Fsw*Lf*Cout/Number_of_Phases) -> 4652.157917 | C234: Hz | D234: =1/(2*Pi*Ro_Ch2*Cout2)+(k_Ch2-0.5)/(2*Pi*Fsw*Lo_2*Cout2) -> 4036.717902 | E234: Hz | F234: Buck dominant pole frequency -- note slope comp influence
A235: Fp_dominant | B235: =Fload_u -> 4652.157917 | C235: Hz | D235: =Fload_u_Ch2 -> 4036.717902 | E235: Hz
B236: =Cbw -> 7.345612766e-12
A237: Fp_EA | B237: =1/(2*Pi*(RoEA+Rcea1_u)*Cc1ea_u) -> 0.796452896 | C237: Hz | D237: =1/(2*Pi*(RoEA+Rcea2_u)*Cc3ea_u) -> 0.7964561244 | E237: Hz | F237: Error Amp LF pole -- related to amplifier ouptut resistance and comp cap
A238: Fp_HF | B238: =1/(2*Pi*Rcea1_u*(Cc2ea_u+Cbw)) -> 192030.175 | C238: Hz | D238: =1/(2*Pi*Rcea2_u*(Cc4ea_u+Cbw)) -> 197414.1986 | E238: Hz | F238: Error Amp HF pole cancels zero related to Output Cap ESR
A239: Fesr | B239: =1/(2*Pi*Cout*Cout_ESR) -> 2273642.047 | C239: Hz | D239: =1/(2*Pi*Cout2*Cout2_ESR) -> 964575.4138 | E239: Hz | F239: Cout ESR zero frequency
A240: F_mod | B240: =Fsw/2 -> 200000 | C240: Hz | F240: Zero-order sample-and-hold effects of current-mode control modeled as pole at Fsw/2
A242: Desired Crossover Frequency | B242: ='Design Regulator'!E66*1000 -> 50000 | C242: Hz | D242: ='Design Regulator'!J66*1000 -> 50000 | E242: Hz
A243: Rcea1 | B243: =Fcross*Cout/Number_of_Phases*2*Pi*Ri/(gm*Afb) -> 10995.57427 | C243: W | D243: =Fcross_Ch2*Cout2*2*Pi*Ri_Ch2/(gm*Afb_Ch2) -> 10799.22473 | E243: W | F243: This component will largely determine the crossover frequency
A244: Cc1ea, Cc3ea | B244: =10/(Rcea1*Fcross*2*Pi) -> 2.894890968e-09 | C244: F | D244: =10/(Rcea2*Fcross_Ch2*2*Pi) -> 2.947525349e-09 | E244: F | F244: This along with Rcea1 will set a zero at Fcrossover/5 to optimize phase margin
A245: Cc2ea, Cc4ea | B245: =MAX(1/(Rcea1*2*Pi*Fesr)-Cbw, 1/(Rcea1*2*Pi*(Fsw/2))-Cbw) -> 6.502666143e-11 | C245: F | D245: =MAX(1/(Rcea2*2*Pi*Fesr_Ch2)-Cbw, 1/(Rcea2*2*Pi*(Fsw/2))-Cbw) -> 6.634252096e-11 | E245: F | F245: This along with Rcea1 places a pole at the output cap ESR zero
A247: Chosen Compensation Components from the standard value sheet
A248: Rcea1_u | B248: ='Design Regulator'!D73*1000 -> 11000 | C248: W | D248: ='Design Regulator'!D76*1000 -> 10700 | E248: W | F248: =1/(Rcea1*2*Pi*(Fsw/2))-Cbw -> 6.502666143e-11
A249: Cc1ea_u | B249: ='Design Regulator'!D74*0.000000001 -> 2.7e-09 | C249: F | D249: ='Design Regulator'!D77*0.000000001 -> 2.7e-09 | E249: F
A250: Cc2ea_u | B250: ='Design Regulator'!D75*0.000000000001 -> 6.8e-11 | C250: F | D250: ='Design Regulator'!D78*0.000000000001 -> 6.8e-11 | E250: F
A252: Resulting Pole/Zero Locations | F252: =Cout -> 7e-05 | G252: =Cout_ESR -> 0.001
A253: Fz1 | B253: =1/(2*Pi*Rcea1_u*Cc1ea_u) -> 5358.752299 | C253: Hz | D253: =1/(2*Pi*Rcea2_u*Cc3ea_u) -> 5508.99769 | E253: Hz | F253: This zero is set at or close to the dominant load pole
A254: Fp2 | B254: =1/(2*Pi*Rcea1_u*(Cc1ea_u*(Cc2ea_u+Cbw)/(Cc1ea_u+Cc2ea_u+Cbw))) -> 197388.9273 | C254: Hz | D254: =1/(2*Pi*Rcea2_u*(Cc3ea_u*(Cc4ea_u+Cbw)/(Cc3ea_u+Cc4ea_u+Cbw))) -> 202923.1963 | E254: Hz | F254: This pole cancels the zero from the Output Cap ESR
A256: Rfb1 | B256: ='Design Regulator'!E68*1000 -> 100000 | C256: W | D256: ='Design Regulator'!J68*1000 -> 78700 | E256: W | F256: Upper Feedback Resistance - chosen by user
... 123 more rows

Sheet Stability Calculations (hidden)
A2: Divider Network & EA Poles/Zeros | E2: Modulator | J2: Power Stage Poles/Zeros | M2: Complex Pole Pair | P2: Total System
B3: Afb1 | C3: =Afb -> 0.06666666667 | D3: V/V | E3: Acs | F3: =Acs -> 25 | G3: A/V | H3: gm | I3: =gm -> 0.0006 | J3: z_ESR | K3: =Fesr -> 2273642.047 | L3: Hz | M3: p3 | N3: =Fsw/2 -> 200000 | O3: Hz | P3: Adc | Q3: =Am*Afb*AEA -> 72331.81438 | R3: V/V
B4: EA zero, z1 | C4: =Fz1_u -> 5358.752299 | D4: Hz | E4: Am | F4: =Am -> 24.43642378 | G4: V/V | J4: p_dom | K4: =Fp_dominant -> 4652.157917 | L4: Hz | M4: pterm1 | N4: =Q*pole3 -> 123360.4858 | P4: Crossover | Q4: =AE7 -> 47.59075 | R4: kHz
B5: EA pole, p1 | C5: =Fp1_u -> 0.796452896 | D5: Hz | E5: Q | F5: =Q -> 0.6168024291 | M5: pterm2 | N5: =pole3^2 -> 40000000000 | P5: Phase Margin | Q5: =AE9 -> 54.19789506 | R5: °
B6: Aea | C6: =AEA -> 44400 | D6: V/V | E6: mc | F6: =mc -> 1.360606061 | P6: radconv | Q6: =180/Pi -> 57.29577958 | AD6: XOVER SEARCH
B7: EA pole, p2 | C7: =Fp2_u -> 192030.175 | D7: Hz | E7: k | F7: =k -> 1.01606458 | AD7: xover | AE7: =SUM(AD12:AD613)/1000 -> 47.59075
AD9: phase margin | AE9: =SUM(AE13:AE613) -> 54.19789506
A10: Freq (Hz) | C10: Power Stage | I10: Error Amplifier | O10: Sampling Double Pole | Q10: System Response | X10: ERROR AMP Response | AA10: PLANT Response
C11: p_dom | E11: z_ESR | G11: z_RHP | I11: p1 | K11: z1 | M11: p2 | O11: p3
C12: Gain(V/V) | D12: Phase(rad) | E12: Gain(V/V) | F12: Phase(rad) | G12: Gain(V/V) | H12: Phase(rad) | I12: Gain(V/V) | J12: Phase(rad) | K12: Gain(V/V) | L12: Phase(rad) | M12: Gain(V/V) | N12: Phase(rad) | O12: Gain(V/V) | P12: Phase(rad) | Q12: Gain (dB) | R12: Phase (°) | S12: Phase Margin (°) | V12: Fsquare | X12: Gain(dB) | Y12: Phase(Deg) | AA12: Gain(dB) | AB12: Phase(Deg)
A13: 1 | B13: =A13/1000 -> 0.001 | C13: =SQRT(1+(A13/pole1)^2) -> 1.000000023 | D13: =ATAN(A13/pole1) -> 0.0002149540068 | E13: =SQRT(1+(A13/Zero1)^2) -> 1 | F13: =ATAN(A13/Zero1) -> 4.39822971e-07 | G13: =IF(VIN_nom>Vout, 1, SQRT(1+(A13/z_RHP)^2)) -> 1 | H13: =IF(VIN_nom>Vout, 0, -ATAN(A13/z_RHP)) -> 0 | I13: =SQRT(1+(A13/Pole2)^2) -> 1.60513195 | J13: =ATAN(A13/Pole2) -> 0.8982219984 | K13: =SQRT(1+(A13/Zero2)^2) -> 1.000000017 | L13: =ATAN(A13/Zero2) -> 0.0001866106012 | M13: =SQRT(1+(A13/pole4)^2) -> 1 | N13: =ATAN(A13/pole4) -> 5.207514912e-06 | O13: =SQRT((1-(V13/pterm2))^2+(A13/pterm1)^2) -> 1 | P13: =IF((ATAN((A13/pterm1)/(1-A13^2/pterm2))>0),ATAN((A13/pterm1)/(1-A13^2/pterm2)),PI()+ATAN((A13/pterm1)/(1-A13^2/pterm2))) -> 8.106323458e-06 | Q13: =20*LOG10(((E13*K13*G13)/(C13*I13*O13*M13))*Adc) -> 93.07637235 | R13: =((F13+L13+H13)-(D13+J13+P13+N13))*radconv -> -51.46669121 | S13: =IF(R13>0,R13,R13+180) -> 128.5333088 | U13: =IF(Q13<0,A13,1000000000) -> 1000000000 | V13: =A13^2 -> 1 | X13: =20*LOG10((K13/(I13*M13))*AEA*Afb) -> 65.31561959 | Y13: =(L13-(J13+N13))*radconv -> -51.453936 | AA13: =20*LOG10((E13*G13/(C13*O13))*Am) -> 27.76075276 | AB13: =(F13+H13-(D13+P13))*radconv -> -0.01275521552 | AD13: =SUM((Q14<0)*(Q13>0))*A13 -> 0 | AE13: =IF(AD13>0,S11,0) -> 0
A14: 1.0965 | B14: =A14/1000 -> 0.0010965 | C14: 1.000000028 | D14: 0.0002356970677 | E14: 1 | F14: 4.822658877e-07 | G14: 1 | H14: 0 | I14: 1.701582626 | J14: 0.9425977764 | K14: 1.000000021 | L14: 0.0002046185238 | M14: 1 | N14: 5.710040101e-06 | O14: 1 | P14: 8.888583671e-06 | Q14: 92.56952627 | R14: -54.00946391 | S14: 125.9905361 | U14: =IF(Q14<0,A14,1000000000) -> 1000000000 | V14: =A14^2 -> 1.20231225 | X14: 64.80877355 | Y14: -53.99547781 | AA14: 27.76075272 | AB14: -0.01398609377 | AD14: =SUM((Q15<0)*(Q14>0))*A14 -> 0 | AE14: 0
A15: 1.2023 | B15: 0.0012023 | C15: 1.000000033 | D15: 0.0002584392006 | E15: 1 | F15: 5.28799158e-07 | G15: 1 | H15: 0 | I15: 1.810744677 | J15: 0.9857248459 | K15: 1.000000025 | L15: 0.0002243619247 | M15: 1 | N15: 6.260995179e-06 | O15: 1 | P15: 9.746232693e-06 | Q15: 92.02944277 | R15: -56.48071283 | S15: 123.5192872 | U15: 1000000000 | V15: 1.44552529 | X15: 64.2686901 | Y15: -56.46537723 | AA15: 27.76075267 | AB15: -0.01533559551 | AD15: 0 | AE15: 0
A16: 1.3183 | B16: 0.0013183 | C16: 1.00000004 | D16: 0.000283373864 | E16: 1 | F16: 5.798186227e-07 | G16: 1 | H16: 0 | I16: 1.933839045 | J16: 1.027329858 | K16: 1.00000003 | L16: 0.0002460087535 | M16: 1 | N16: 6.865066909e-06 | O16: 1 | P16: 1.068656621e-05 | Q16: 91.4581806 | R16: -58.86477836 | S16: 121.1352216 | U16: 1000000000 | V16: 1.73791489 | X16: 63.69742799 | Y16: -58.84796316 | AA16: 27.76075261 | AB16: -0.01681520043 | AD16: 0 | AE16: 0
A17: 1.4454 | B17: 0.0014454 | C17: 1.000000048 | D17: 0.0003106945162 | E17: 1 | F17: 6.357201223e-07 | G17: 1 | H17: 0 | I17: 2.072073035 | J17: 1.067165786 | K17: 1.000000036 | L17: 0.0002697269596 | M17: 1 | N17: 7.526942054e-06 | O17: 1 | P17: 1.171687993e-05 | Q17: 90.8584859 | R17: -61.14750908 | S17: 118.8524909 | U17: 1000000000 | V17: 2.08918116 | X17: 63.09773335 | Y17: -61.12907269 | AA17: 27.76075254 | AB17: -0.01843638821 | AD17: 0 | AE17: 0
A18: 1.5849 | B18: 0.0015849 | C18: 1.000000058 | D18: 0.0003406805975 | E18: 1 | F18: 6.970754267e-07 | G18: 1 | H18: 0 | I18: 2.227081903 | J18: 1.105130243 | K18: 1.000000044 | L18: 0.0002957591367 | M18: 1 | N18: 8.253390384e-06 | O18: 1 | P18: 1.284771205e-05 | Q18: 90.23186328 | R18: -63.32304169 | S18: 116.6769583 | U18: 1000000000 | V18: 2.51190801 | X18: 62.47111082 | Y18: -63.30282595 | AA18: 27.76075246 | AB18: -0.02021574062 | AD18: 0 | AE18: 0
A19: 1.7378 | B19: 0.0017378 | C19: 1.00000007 | D19: 0.0003735470614 | E19: 1 | F19: 7.64324359e-07 | G19: 1 | H19: 0 | I19: 2.400165421 | J19: 1.141052485 | K19: 1.000000053 | L19: 0.0003242918952 | M19: 1 | N19: 9.049619414e-06 | O19: 1 | P19: 1.40871689e-05 | Q19: 89.58176354 | R19: -65.38159563 | S19: 114.6184044 | U19: 1000000000 | V19: 3.01994884 | X19: 61.82101119 | Y19: -65.35942961 | AA19: 27.76075235 | AB19: -0.02216601286 | AD19: 0 | AE19: 0
A20: 1.9055 | B20: 0.0019055 | C20: 1.000000084 | D20: 0.0004095948434 | E20: 1 | F20: 8.380826712e-07 | G20: 1 | H20: 0 | I20: 2.593062826 | J20: 1.174890247 | K20: 1.000000063 | L20: 0.0003555864898 | M20: 1 | N20: 9.922919665e-06 | O20: 1 | P20: 1.544659935e-05 | Q20: 88.91032622 | R20: -67.32075263 | S20: 112.6792474 | U20: 1000000000 | V20: 3.63093025 | X20: 61.14957398 | Y20: -67.29644757 | AA20: 27.76075223 | AB20: -0.02430506221 | AD20: 0 | AE20: 0
A21: 2.0893 | B21: 0.0020893 | C21: 1.000000101 | D21: 0.0004491033831 | E21: 1 | F21: 9.189221333e-07 | G21: 1 | H21: 0 | I21: 2.807396144 | J21: 1.206596246 | K21: 1.000000076 | L21: 0.0003898855139 | M21: 1 | N21: 1.088006091e-05 | O21: 1 | P21: 1.69365416e-05 | Q21: 88.22051299 | R21: -69.13780661 | S21: 110.8621934 | U21: 1000000000 | V21: 4.36517449 | X21: 60.4597609 | Y21: -69.11115714 | AA21: 27.76075208 | AB21: -0.02664947044 | AD21: 0 | AE21: 0
A22: 2.2909 | B22: 0.0022909 | C22: 1.000000121 | D22: 0.000492438102 | E22: 1 | F22: 1.007590444e-06 | G22: 1 | H22: 0 | I22: 3.045250954 | J22: 1.236208203 | K22: 1.000000091 | L22: 0.0004275062053 | M22: 1 | N22: 1.192989591e-05 | O22: 1 | P22: 1.857077641e-05 | Q22: 87.51412516 | R22: -70.83492289 | S22: 109.1650771 | U22: 1000000000 | V22: 5.24822281 | X22: 59.75337326 | Y22: -70.80570197 | AA22: 27.76075191 | AB22: -0.02922092138 | AD22: 0 | AE22: 0
A23: 2.5119 | B23: 0.0025119 | C23: 1.000000146 | D23: 0.0005399429255 | E23: 1 | F23: 1.104791321e-06 | G23: 1 | H23: 0 | I23: 3.308598726 | J23: 1.263751753 | K23: 1.00000011 | L23: 0.0004687471404 | M23: 1 | N23: 1.308075671e-05 | O23: 1 | P23: 2.036227389e-05 | Q23: 86.79370491 | R23: -72.41357394 | S23: 107.5864261 | U23: 1000000000 | V23: 6.30964161 | X23: 59.03295321 | Y23: -72.38153412 | AA23: 27.76075169 | AB23: -0.03203982332 | AD23: 0 | AE23: 0
A24: 2.7542 | B24: 0.0027542 | C24: 1.000000175 | D24: 0.0005920262655 | E24: 1 | F24: 1.211360427e-06 | G24: 1 | H24: 0 | I24: 3.599768899 | J24: 1.28929769 | K24: 1.000000132 | L24: 0.0005139628787 | M24: 1 | N24: 1.434253757e-05 | O24: 1 | P24: 2.232643607e-05 | Q24: 86.0610944 | R24: -73.87782053 | S24: 106.1221795 | U24: 1000000000 | V24: 7.58561764 | X24: 58.30034296 | Y24: -73.84269012 | AA24: 27.76075144 | AB24: -0.03513041113 | AD24: 0 | AE24: 0
A25: 3.02 | B25: 0.00302 | C25: 1.000000211 | D25: 0.0006491610194 | E25: 1 | F25: 1.328265372e-06 | G25: 1 | H25: 0 | I25: 3.921459115 | J25: 1.312941259 | K25: 1.000000159 | L25: 0.0005635639626 | M25: 1 | N25: 1.572669503e-05 | O25: 1 | P25: 2.448109684e-05 | Q25: 85.3176329 | R25: -75.23312495 | S25: 104.766875 | U25: 1000000000 | V25: 9.1204 | X25: 57.55688177 | Y25: -75.1946042 | AA25: 27.76075113 | AB25: -0.03852074621 | AD25: 0 | AE25: 0
A26: 3.3113 | B26: 0.0033113 | C26: 1.000000253 | D26: 0.0007117770935 | E26: 1 | F26: 1.456385804e-06 | G26: 1 | H26: 0 | I26: 4.276131174 | J26: 1.334754295 | K26: 1.000000191 | L26: 0.0006179236124 | M26: 1 | N26: 1.724364413e-05 | O26: 1 | P26: 2.684246887e-05 | Q26: 84.56556626 | R26: -76.48360779 | S26: 103.5163922 | U26: 1000000000 | V26: 10.96470769 | X26: 56.8048155 | Y26: -76.44137145 | AA26: 27.76075076 | AB26: -0.04223633888 | AD26: 0 | AE26: 0
A27: 3.6308 | B27: 0.0036308 | C27: 1.000000305 | D27: 0.0007804548615 | E27: 1 | F27: 1.596909243e-06 | G27: 1 | H27: 0 | I27: 4.667104269 | J27: 1.354856398 | K27: 1.00000023 | L27: 0.0006775456752 | M27: 1 | N27: 1.890744514e-05 | O27: 1 | P27: 2.943243921e-05 | Q27: 83.80563645 | R27: -77.63612798 | S27: 102.363872 | U27: 1000000000 | V27: 13.18270864 | X27: 56.04488614 | Y27: -77.58981635 | AA27: 27.76075031 | AB27: -0.0463116281 | AD27: 0 | AE27: 0
A28: 3.9811 | B28: 0.0039811 | C28: 1.000000366 | D28: 0.0008557532008 | E28: 1 | F28: 1.75097923e-06 | G28: 1 | H28: 0 | I28: 5.097585832 | J28: 1.373344517 | K28: 1.000000276 | L28: 0.0007429153366 | M28: 1 | N28: 2.073163761e-05 | O28: 1 | P28: 3.227208432e-05 | Q28: 83.03929546 | R28: -78.69624644 | S28: 101.3037536 | U28: 1000000000 | V28: 15.84915721 | X28: 55.27854568 | Y28: -78.64546666 | AA28: 27.76074978 | AB28: -0.05077977728 | AD28: 0 | AE28: 0
A29: 4.3652 | B29: 0.0043652 | C29: 1.00000044 | D29: 0.0009383169696 | E29: 1 | F29: 1.919915233e-06 | G29: 1 | H29: 0 | I29: 5.571281895 | J29: 1.390326383 | K29: 1.000000332 | L29: 0.0008145924258 | M29: 1 | N29: 2.273184409e-05 | O29: 1 | P29: 3.538572316e-05 | Q29: 82.26748357 | R29: -79.67014277 | S29: 100.3298572 | U29: 1000000000 | V29: 19.05497104 | X29: 54.50673443 | Y29: -79.61446371 | AA29: 27.76074914 | AB29: -0.05567905182 | AD29: 0 | AE29: 0
A30: 4.7863 | B30: 0.0047863 | C30: 1.000000529 | D30: 0.001028834016 | E30: 1 | F30: 2.105124686e-06 | G30: 1 | H30: 0 | I30: 6.092153687 | J30: 1.405904563 | K30: 1.000000399 | L30: 0.0008931740936 | M30: 1 | N30: 2.492472862e-05 | O30: 1 | P30: 3.879929597e-05 | Q30: 81.49116903 | R30: -80.56370121 | S30: 99.43629879 | U30: 1000000000 | V30: 22.90866769 | X30: 53.73042067 | Y30: -80.50265095 | AA30: 27.76074836 | AB30: -0.06105026813 | AD30: 0 | AE30: 0
A31: 5.2481 | B31: 0.0052481 | C31: 1.000000636 | D31: 0.001128099662 | E31: 1 | F31: 2.308234934e-06 | G31: 1 | H31: 0 | I31: 6.664789525 | J31: 1.420185323 | K31: 1.00000048 | L31: 0.0009793507946 | M31: 1 | N31: 2.7329559e-05 | O31: 1 | P31: 4.254279614e-05 | Q31: 80.71085704 | R31: -81.38301904 | S31: 98.61698096 | U31: 1000000000 | V31: 27.54255361 | X31: 52.95010961 | Y31: -81.31607842 | AA31: 27.76074743 | AB31: -0.06694062012 | AD31: 0 | AE31: 0
A32: 5.7544 | B32: 0.0057544 | C32: 1.000000765 | D32: 0.001236930725 | E32: 1 | F32: 2.530917304e-06 | G32: 1 | H32: 0 | I32: 7.293910464 | J32: 1.43326248 | K32: 1.000000577 | L32: 0.001073831644 | M32: 1 | N32: 2.99661238e-05 | O32: 1 | P32: 4.664702771e-05 | Q32: 79.92737698 | R32: -82.13348062 | S32: 97.86651938 | U32: 1000000000 | V32: 33.11311936 | X32: 52.16663067 | Y32: -82.06008204 | AA32: 27.76074631 | AB32: -0.07339857711 | AD32: 0 | AE32: 0
A33: 6.3096 | B33: 0.0063096 | C33: 1.00000092 | D33: 0.001356272991 | E33: 1 | F33: 2.775107018e-06 | G33: 1 | H33: 0 | I33: 7.9849907 | J33: 1.445231674 | K33: 1.000000693 | L33: 0.001177437719 | M33: 1.000000001 | N33: 3.285733608e-05 | O33: 1 | P33: 5.114765849e-05 | Q33: 79.14109691 | R33: -82.82057604 | S33: 97.17942396 | U33: 1000000000 | V33: 39.81105216 | X33: 51.38035194 | Y33: -82.74009578 | AA33: 27.76074497 | AB33: -0.08048026137 | AD33: 0 | AE33: 0
A34: 6.9183 | B34: 0.0069183 | C34: 1.000001106 | D34: 0.001487115232 | E34: 1 | F34: 3.04282726e-06 | G34: 1 | H34: 0 | I34: 8.743761259 | J34: 1.456178272 | K34: 1.000000833 | L34: 0.00129102742 | M34: 1.000000001 | N34: 3.60271504e-05 | O34: 1 | P34: 5.608197759e-05 | Q34: 78.35261899 | R34: -83.44920741 | S34: 96.55079259 | U34: 1000000000 | V34: 47.86287489 | X34: 50.59187563 | Y34: -83.36096306 | AA34: 27.76074335 | AB34: -0.088244346 | AD34: 0 | AE34: 0
A35: 7.5858 | B35: 0.0075858 | C35: 1.000001329 | D35: 0.001630596685 | E35: 1 | F35: 3.336409093e-06 | G35: 1 | H35: 0 | I35: 9.576832824 | J35: 1.466186984 | K35: 1.000001002 | L35: 0.00141558977 | M35: 1.000000001 | N35: 3.95031666e-05 | O35: 1 | P35: 6.14929485e-05 | Q35: 77.5621462 | R35: -84.02424076 | S35: 95.97575924 | U35: 1000000000 | V35: 57.54436164 | X35: 49.80140479 | Y35: -83.92748233 | AA35: 27.76074141 | AB35: -0.0967584325 | AD35: 0 | AE35: 0
A36: 8.3176 | B36: 0.0083176 | C36: 1.000001598 | D36: 0.00178789957 | E36: 1 | F36: 3.658271544e-06 | G36: 1 | H36: 0 | I36: 10.49107268 | J36: 1.475332255 | K36: 1.000001205 | L36: 0.001552151108 | M36: 1.000000001 | N36: 4.331402601e-05 | O36: 1.000000001 | P36: 6.742515601e-05 | Q36: 76.77018584 | R36: -84.54995437 | S36: 95.45004563 | U36: 1000000000 | V36: 69.18246976 | X36: 49.00944676 | Y36: -84.44386169 | AA36: 27.76073907 | AB36: -0.106092673 | AD36: 0 | AE36: 0
A37: 9.1201 | B37: 0.0091201 | C37: 1.000001922 | D37: 0.001960399556 | E37: 1 | F37: 4.011229478e-06 | G37: 1 | H37: 0 | I37: 11.49447867 | J37: 1.483687916 | K37: 1.000001448 | L37: 0.001701905721 | M37: 1.000000001 | N37: 4.749305671e-05 | O37: 1.000000001 | P37: 7.393048058e-05 | Q37: 75.97679748 | R37: -85.03059365 | S37: 94.96940635 | U37: 1000000000 | V37: 83.17622401 | X37: 48.21606122 | Y37: -84.91426495 | AA37: 27.76073626 | AB37: -0.1163286989 | AD37: 0 | AE37: 0
A38: 10 | B38: 0.01 | C38: 1.00000231 | D38: 0.002149536791 | E38: 1 | F38: 4.39822971e-06 | G38: 1 | H38: 0 | I38: 12.59543003 | J38: 1.491318806 | K38: 1.000001741 | L38: 0.001866103868 | M38: 1.000000001 | N38: 5.207514907e-05 | O38: 1.000000001 | P38: 8.10632346e-05 | Q38: 75.18232223 | R38: -85.46988935 | S38: 94.53011065 | U38: 1000000000 | V38: 100 | X38: 47.42158934 | Y38: -85.34233738 | AA38: 27.76073289 | AB38: -0.1275519674 | AD38: 0 | AE38: 0
A39: 10.965 | B39: 0.010965 | C39: 1.000002778 | D39: 0.002356966356 | E39: 1 | F39: 4.822658877e-06 | G39: 1 | H39: 0 | I39: 13.80356271 | J39: 1.498287743 | K39: 1.000002093 | L39: 0.002046182411 | M39: 1.000000002 | N39: 5.710040095e-05 | O39: 1.000000001 | P39: 8.888583675e-05 | Q39: 74.38675737 | R39: -85.87145894 | S39: 94.12854106 | U39: 1000000000 | V39: 120.231225 | X39: 46.62602854 | Y39: -85.73159825 | AA39: 27.76072883 | AB39: -0.1398606901 | AD39: 0 | AE39: 0
A40: 12.023 | B40: 0.012023 | C40: 1.00000334 | D40: 0.00258438631 | E40: 1 | F40: 5.28799158e-06 | G40: 1 | H40: 0 | I40: 15.12876824 | J40: 1.504648865 | K40: 1.000002517 | L40: 0.00224361552 | M40: 1.000000002 | N40: 6.260995171e-05 | O40: 1.000000001 | P40: 9.746232697e-05 | Q40: 73.59050861 | R40: -86.23842292 | S40: 93.76157708 | U40: 1000000000 | V40: 144.552529 | X40: 45.82978467 | Y40: -86.08506729 | AA40: 27.76072394 | AB40: -0.1533556288 | AD40: 0 | AE40: 0
A41: 13.183 | B41: 0.013183 | C41: 1.000004015 | D41: 0.00283373113 | E41: 1 | F41: 5.798186227e-06 | G41: 1 | H41: 0 | I41: 16.58232026 | J41: 1.510454523 | K41: 1.000003026 | L41: 0.002460082622 | M41: 1.000000002 | N41: 6.865066898e-05 | O41: 1.000000001 | P41: 0.0001068656622 | Q41: 72.79367259 | R41: -86.57380204 | S41: 93.42619796 | U41: 1000000000 | V41: 173.791489 | X41: 45.03295451 | Y41: -86.40565046 | AA41: 27.76071808 | AB41: -0.1681515741 | AD41: 0 | AE41: 0
A42: 14.454 | B42: 0.014454 | C42: 1.000004827 | D42: 0.003106935265 | E42: 1 | F42: 6.357201223e-06 | G42: 1 | H42: 0 | I42: 18.17549632 | J42: 1.515749401 | K42: 1.000003638 | L42: 0.002697263121 | M42: 1.000000003 | N42: 7.52694204e-05 | O42: 1.000000002 | P42: 0.0001171687993 | Q42: 71.99685124 | R42: -86.88017769 | S42: 93.11982231 | U42: 1000000000 | V42: 208.918116 | X42: 44.23614021 | Y42: -86.69581438 | AA42: 27.76071102 | AB42: -0.184363315 | AD42: 0 | AE42: 0
A43: 15.849 | B43: 0.015849 | C43: 1.000005803 | D43: 0.003406792926 | E43: 1 | F43: 6.970754267e-06 | G43: 1 | H43: 0 | I43: 19.92459235 | J43: 1.520586 | K43: 1.000004374 | L43: 0.00295758283 | M43: 1.000000003 | N43: 8.253390365e-05 | O43: 1.000000002 | P43: 0.0001284771206 | Q43: 71.19878582 | R43: -87.16058875 | S43: 92.83941125 | U43: 1000000000 | V43: 251.190801 | X43: 43.43808329 | Y43: -86.95843209 | AA43: 27.76070254 | AB43: -0.2021566586 | AD43: 0 | AE43: 0
A44: 17.378 | B44: 0.017378 | C44: 1.000006977 | D44: 0.003735453413 | E44: 1 | F44: 7.64324359e-06 | G44: 1 | H44: 0 | I44: 21.84214744 | J44: 1.524997273 | K44: 1.000005258 | L44: 0.003242907698 | M44: 1.000000004 | N44: 9.04961939e-05 | O44: 1.000000002 | P44: 0.0001408716892 | Q44: 70.40066551 | R44: -87.4169469 | S44: 92.5830531 | U44: 1000000000 | V44: 301.994884 | X44: 42.63997317 | Y44: -87.19528776 | AA44: 27.76069234 | AB44: -0.2216591431 | AD44: 0 | AE44: 0
A45: 19.055 | B45: 0.019055 | C45: 1.000008388 | D45: 0.004095925757 | E45: 1 | F45: 8.380826712e-06 | G45: 1 | H45: 0 | I45: 23.94571949 | J45: 1.529023061 | K45: 1.000006322 | L45: 0.003555850061 | M45: 1.000000005 | N45: 9.922919632e-05 | O45: 1.000000003 | P45: 0.0001544659937 | Q45: 69.60201135 | R45: -87.65156784 | S45: 92.34843216 | U45: 1000000000 | V45: 363.093025 | X45: 41.84133128 | Y45: -87.40851851 | AA45: 27.76068008 | AB45: -0.2430493229 | AD45: 0 | AE45: =IF(AD45>0,S43,0) -> 0
A46: 20.893 | B46: 0.020893 | C46: 1.000010085 | D46: 0.00449100394 | E46: 1 | F46: 9.189221333e-06 | G46: 1 | H46: 0 | I46: 26.25161539 | J46: 1.532694214 | K46: 1.000007601 | L46: 0.003898835582 | M46: 1.000000006 | N46: 0.0001088006086 | O46: 1.000000003 | P46: 0.0001693654162 | Q46: 68.80344487 | R46: -87.86624985 | S46: 92.13375015 | U46: 1000000000 | V46: 436.517449 | X46: 41.04277953 | Y46: -87.59975686 | AA46: 27.76066534 | AB46: -0.2664929918 | AD46: 0 | AE46: 0
A47: 22.909 | B47: 0.022909 | C47: 1.000012125 | D47: 0.004924341614 | E47: 1 | F47: 1.007590444e-05 | G47: 1 | H47: 0 | I47: 28.78116289 | J47: 1.536044385 | K47: 1.000009138 | L47: 0.00427503627 | M47: 1.000000007 | N47: 0.0001192989586 | O47: 1.000000004 | P47: 0.0001857077644 | Q47: 68.00439439 | R47: -88.06296123 | S47: 91.93703877 | U47: 1000000000 | V47: 524.822281 | X47: 40.24374678 | Y47: -87.77075427 | AA47: 27.76064761 | AB47: -0.292206956 | AD47: 0 | AE47: 0
A48: 25.119 | B48: 0.025119 | C48: 1.000014577 | D48: 0.00539937731 | E48: 1 | F48: 1.104791321e-05 | G48: 1 | H48: 0 | I48: 31.55443793 | J48: 1.539099756 | K48: 1.000010986 | L48: 0.004687437416 | M48: 1.000000009 | N48: 0.0001308075663 | O48: 1.000000005 | P48: 0.0002036227393 | Q48: 67.20534691 | R48: -88.24323999 | S48: 91.75676001 | U48: 1000000000 | V48: 630.964161 | X48: 39.4447206 | Y48: -87.92284473 | AA48: 27.76062631 | AB48: -0.320395257 | AD48: 0 | AE48: 0
A49: 27.542 | B49: 0.027542 | C49: 1.000017525 | D49: 0.005920194181 | E49: 1 | F49: 1.211360427e-05 | G49: 1 | H49: 0 | I49: 34.5952831 | J49: 1.541886625 | K49: 1.000013208 | L49: 0.005139583984 | M49: 1.00000001 | N49: 0.0001434253747 | O49: 1.000000006 | P49: 0.0002232643612 | Q49: 66.40621177 | R49: -88.4086376 | S49: 91.5913624 | U49: 1000000000 | V49: 758.561764 | X49: 38.64561108 | Y49: -88.05733741 | AA49: 27.76060069 | AB49: -0.3513001881 | AD49: 0 | AE49: 0
A50: 30.2 | B50: 0.0302 | C50: 1.00002107 | D50: 0.00649151992 | E50: 1 | F50: 1.328265372e-05 | G50: 1 | H50: 0 | I50: 37.93130843 | J50: 1.544429826 | K50: 1.00001588 | L50: 0.005635580561 | M50: 1.000000012 | N50: 0.000157266949 | O50: 1.000000007 | P50: 0.0002448109691 | Q50: 65.60658546 | R50: -88.56062892 | S50: 91.43937108 | U50: 1000000000 | V50: 912.04 | X50: 37.84601557 | Y50: -88.17542663 | AA50: 27.76056989 | AB50: -0.3852022898 | AD50: 0 | AE50: 0
A51: 33.113 | B51: 0.033113 | C51: 1.000025331 | D51: 0.007117651939 | E51: 1 | F51: 1.456385804e-05 | G51: 1 | H51: 0 | I51: 41.58761573 | J51: 1.546748389 | K51: 1.000019091 | L51: 0.006179158265 | M51: 1.000000015 | N51: 0.0001724364396 | O51: 1.000000009 | P51: 0.0002684246896 | Q51: 64.80725233 | R51: -88.70035153 | S51: 91.29964847 | U51: 1000000000 | V51: 1096.470769 | X51: 37.04671947 | Y51: -88.27799496 | AA51: 27.76053287 | AB51: -0.4223565709 | AD51: 0 | AE51: 0
A52: 36.308 | B52: 0.036308 | C52: 1.000030455 | D52: 0.007804391744 | E52: 1 | F52: 1.596909243e-05 | G52: 1 | H52: 0 | I52: 45.59809454 | J52: 1.548863827 | K52: 1.000022953 | L52: 0.006775354112 | M52: 1.000000018 | N52: 0.0001890744492 | O52: 1.00000001 | P52: 0.0002943243933 | Q52: 64.00758789 | R52: -88.82910172 | S52: 91.17089828 | U52: 1000000000 | V52: 1318.270864 | X52: 36.24709954 | Y52: -88.36599443 | AA52: 27.76048835 | AB52: -0.4631072931 | AD52: 0 | AE52: 0
A53: 39.811 | B53: 0.039811 | C53: 1.000036615 | D53: 0.008557325213 | E53: 1 | F53: 1.75097923e-05 | G53: 1 | H53: 0 | I53: 49.9953811 | J53: 1.550793145 | K53: 1.000027596 | L53: 0.007429018059 | M53: 1.000000021 | N53: 0.0002073163732 | O53: 1.000000012 | P53: 0.0003227208448 | Q53: 63.20791089 | R53: -88.94791511 | S53: 91.05208489 | U53: 1000000000 | V53: 1584.915721 | X53: 35.44747606 | Y53: -88.44012919 | AA53: 27.76043483 | AB53: -0.5077859244 | AD53: 0 | AE53: 0
A54: 43.652 | B54: 0.043652 | C54: 1.000044021 | D54: 0.009382897087 | E54: 1 | F54: 1.919915233e-05 | G54: 1 | H54: 0 | I54: 54.81713414 | J54: 1.552552843 | K54: 1.000033178 | L54: 0.00814574589 | M54: 1.000000026 | N54: 0.000227318437 | O54: 1.000000015 | P54: 0.0003538572337 | Q54: 62.40816611 | R54: -89.05780793 | S54: 90.94219207 | U54: 1000000000 | V54: 1905.497104 | X54: 34.64779563 | Y54: -88.50103303 | AA54: 27.76037048 | AB54: -0.556774899 | AD54: 0 | AE54: 0
A55: 47.863 | B55: 0.047863 | C55: 1.000052924 | D55: 0.0102879808 | E55: 1 | F55: 2.105124686e-05 | G55: 1 | H55: 0 | I55: 60.10352448 | J55: 1.5541576 | K55: 1.000039887 | L55: 0.008931505809 | M55: 1.000000031 | N55: 0.0002492472811 | O55: 1.000000018 | P55: 0.0003879929624 | Q55: 61.60847473 | R55: -89.15969658 | S55: 90.84030342 | U55: 1000000000 | V55: 2290.866769 | X55: 33.8481816 | Y55: -88.54921449 | AA55: 27.76029313 | AB55: -0.610482092 | AD55: 0 | AE55: 0
A56: 52.481 | B56: 0.052481 | C56: 1.000063628 | D56: 0.0112805229 | E56: 1 | F56: 2.308234934e-05 | G56: 1 | H56: 0 | I56: 65.90100106 | J56: 1.555621468 | K56: 1.000047955 | L56: 0.009793197988 | M56: 1.000000037 | N56: 0.0002732955833 | O56: 1.000000022 | P56: 0.000425427965 | Q56: 60.80861031 | R56: -89.25447357 | S56: 90.74552643 | U56: 1000000000 | V56: 2754.255361 | X56: 33.04841019 | Y56: -88.58509451 | AA56: 27.76020012 | AB56: -0.6693790592 | AD56: 0 | AE56: 0
A57: 57.544 | B57: 0.057544 | C57: 1.000076497 | D57: 0.01236868278 | E57: 1 | F57: 2.530917304e-05 | G57: 1 | H57: 0 | I57: 72.25726943 | J57: 1.556956447 | K57: 1.000057654 | L57: 0.01073790784 | M57: 1.000000045 | N57: 0.0002996612291 | O57: 1.000000026 | P57: 0.0004664702818 | Q57: 60.008792 | R57: -89.34291591 | S57: 90.65708409 | U57: 1000000000 | V57: 3311.311936 | X57: 32.24870368 | Y57: -88.60896592 | AA57: 27.76008832 | AB57: -0.733949992 | AD57: 0 | AE57: 0
A58: 63.096 | B58: 0.063096 | C58: 1.00009197 | D58: 0.0135619067 | E58: 1 | F58: 2.775107017e-05 | G58: 1 | H58: 0 | I58: 79.22756873 | J58: 1.558174123 | K58: 1.000069316 | L58: 0.01177383856 | M58: 1.000000054 | N58: 0.0003285733491 | O58: 1.000000031 | P58: 0.0005114765912 | Q58: 59.20886311 | R58: -89.42579113 | S58: 90.57420887 | U58: 1000000000 | V58: 3981.105216 | X58: 31.44890922 | Y58: -88.62103568 | AA58: 27.75995389 | AB58: -0.8047554479 | AD58: 0 | AE58: 0
A59: 69.183 | B59: 0.069183 | C59: 1.00011057 | D59: 0.01487006717 | E59: 1 | F59: 3.042827259e-05 | G59: 1 | H59: 0 | I59: 86.86965002 | J59: 1.559284572 | K59: 1.000083334 | L59: 0.01290956417 | M59: 1.000000065 | N59: 0.0003602714886 | O59: 1.000000038 | P59: 0.0005608197841 | Q59: 58.40898832 | R59: -89.50378493 | S59: 90.49621507 | U59: 1000000000 | V59: 4786.287489 | X59: 30.64919602 | Y59: -88.62140365 | AA59: 27.7597923 | AB59: -0.8823812859 | AD59: 0 | AE59: 0
A60: 75.858 | B60: 0.075858 | C60: 1.000132934 | D60: 0.01630453636 | E60: 1.000000001 | F60: 3.336409092e-05 | G60: 1 | H60: 0 | I60: 95.25005352 | J60: 1.560297452 | K60: 1.00010019 | L60: 0.0141549617 | M60: 1.000000078 | N60: 0.0003950316457 | O60: 1.000000045 | P60: 0.0006149294958 | Q60: 57.60899717 | R60: -89.57757534 | S60: 90.42242466 | U60: 1000000000 | V60: 5754.436164 | X60: 29.84939917 | Y60: -88.61007298 | AA60: 27.759598 | AB60: -0.9675023645 | AD60: 0 | AE60: 0
A61: 83.176 | B61: 0.083176 | C61: 1.000159817 | D61: 0.01787711005 | E61: 1.000000001 | F61: 3.658271542e-05 | G61: 1 | H61: 0 | I61: 104.4378312 | J61: 1.561221106 | K61: 1.000120452 | L61: 0.01552027726 | M61: 1.000000094 | N61: 0.0004331402332 | O61: 1.000000054 | P61: 0.0006742515744 | Q61: 56.80908713 | R61: -89.64776978 | S61: 90.35223022 | U61: 1000000000 | V61: 6918.246976 | X61: 29.04972268 | Y61: -88.58695109 | AA61: 27.75936445 | AB61: -1.060818691 | AD61: 0 | AE61: 0
A62: 91.201 | B62: 0.091201 | C62: 1.00019214 | D62: 0.01960150987 | E62: 1.000000001 | F62: 4.011229476e-05 | G62: 1 | H62: 0 | I62: 114.5133354 | J62: 1.562063608 | K62: 1.000144814 | L62: 0.01701743074 | M62: 1.000000113 | N62: 0.0004749305318 | O62: 1.000000065 | P62: 0.0007393048247 | Q62: 56.00905335 | R62: -89.71498132 | S62: 90.28501868 | U62: 1000000000 | V62: 8317.622401 | X62: 28.2499697 | Y62: -88.55183675 | AA62: 27.75908365 | AB62: -1.16314457 | AD62: 0 | AE62: 0
A63: 100 | B63: 0.1 | C63: 1.000230999 | D63: 0.02149209126 | E63: 1.000000001 | F63: 4.398229707e-05 | G63: 1 | H63: 0 | I63: 125.5606856 | J63: 1.562831966 | K63: 1.000174102 | L63: 0.01865889465 | M63: 1.000000136 | N63: 0.0005207514441 | O63: 1.000000079 | P63: 0.0008106323709 | Q63: 55.20901766 | R63: -89.77976874 | S63: 90.22023126 | U63: 1000000000 | V63: 10000 | X63: 27.45027158 | Y63: -88.5044368 | AA63: 27.75874608 | AB63: -1.275331937 | AD63: 0 | AE63: 0
A64: 109.65 | B64: 0.10965 | C64: 1.000277727 | D64: 0.0235653441 | E64: 1.000000001 | F64: 4.822658873e-05 | G64: 1 | H64: 0 | I64: 137.676557 | J64: 1.563532862 | K64: 1.000209322 | L64: 0.02045899767 | M64: 1.000000163 | N64: 0.0005710039481 | O64: 1.000000094 | P64: 0.0008888584002 | Q64: 54.40879101 | R64: -89.84269555 | S64: 90.15730445 | U64: 1000000000 | V64: 12023.1225 | X64: 26.65045083 | Y64: -88.44433613 | AA64: 27.75834018 | AB64: -1.398359416 | AD64: 0 | AE64: 0
A65: 120.23 | B65: 0.12023 | C65: 1.000333898 | D65: 0.02583816915 | E65: 1.000000001 | F65: 5.287991575e-05 | G65: 1 | H65: 0 | I65: 150.9601366 | J65: 1.564172013 | K65: 1.00025166 | L65: 0.02243242932 | M65: 1.000000196 | N65: 0.0006260994361 | O65: 1.000000114 | P65: 0.0009746233129 | Q65: 53.6086248 | R65: -89.90427426 | S65: 90.09572574 | U65: 1000000000 | V65: 14455.2529 | X65: 25.85077253 | Y65: -88.37104421 | AA65: 27.75785227 | AB65: -1.533230051 | AD65: 0 | AE65: 0
A66: 131.83 | B66: 0.13183 | C66: 1.000401423 | D66: 0.02832980576 | E66: 1.000000002 | F66: 5.79818622e-05 | G66: 1 | H66: 0 | I66: 165.5244228 | J66: 1.564754885 | K66: 1.000302556 | L66: 0.02459591481 | M66: 1.000000236 | N66: 0.000686506583 | O66: 1.000000137 | P66: 0.001068656679 | Q66: 52.80848387 | R66: -89.96502854 | S66: 90.03497146 | U66: 1000000000 | V66: 17379.1489 | X66: 25.0512181 | Y66: -88.28394283 | AA66: 27.75726577 | AB66: -1.681085708 | AD66: 0 | AE66: 0
A67: 144.54 | B67: 0.14454 | C67: 1.000482539 | D67: 0.03105946118 | E67: 1.000000002 | F67: 6.357201214e-05 | G67: 1 | H67: 0 | I67: 181.4824141 | J67: 1.565286123 | K67: 1.000363697 | L67: 0.02696615835 | M67: 1.000000283 | N67: 0.0007526940632 | O67: 1.000000164 | P67: 0.001171688068 | Q67: 52.00886055 | R67: -90.02543423 | S67: 89.97456577 | U67: 1000000000 | V67: 20891.8116 | X67: 24.25229926 | Y67: -88.18236782 | AA67: 27.75656128 | AB67: -1.843066415 | AD67: 0 | AE67: 0
A68: 158.49 | B68: 0.15849 | C68: 1.000580148 | D68: 0.03405489007 | E68: 1.000000002 | F68: 6.970754256e-05 | G68: 1 | H68: 0 | I68: 198.9973318 | J68: 1.565771113 | K68: 1.000437272 | L68: 0.02956729536 | M68: 1.000000341 | N68: 0.000825338851 | O68: 1.000000197 | P68: 0.001284771305 | Q68: 51.20839709 | R68: -90.08610324 | S68: 89.91389676 | U68: 1000000000 | V68: 25119.0801 | X68: 23.45268346 | Y68: -88.06528374 | AA68: 27.75571363 | AB68: -2.0208195 | AD68: 0 | AE68: 0
A69: 173.78 | B69: 0.17378 | C69: 1.000697444 | D69: 0.03733734781 | E69: 1.000000003 | F69: 7.643243575e-05 | G69: 1 | H69: 0 | I69: 218.1947306 | J69: 1.566213249 | K69: 1.000525688 | L69: 0.03241782975 | M69: 1.000000409 | N69: 0.0009049616944 | O69: 1.000000237 | P69: 0.001408717022 | Q69: 50.40820548 | R69: -90.14746146 | S69: 89.85253854 | U69: 1000000000 | V69: 30199.4884 | X69: 22.65351037 | Y69: -87.93185473 | AA69: 27.75469512 | AB69: -2.215606734 | AD69: 0 | AE69: 0
A70: 190.55 | B70: 0.19055 | C70: 1.000838488 | D70: 0.04093660403 | E70: 1.000000004 | F70: 8.380826693e-05 | G70: 1 | H70: 0 | I70: 239.2503881 | J70: 1.566616593 | K70: 1.000632009 | L70: 0.03554367484 | M70: 1.000000492 | N70: 0.0009922916408 | O70: 1.000000285 | P70: 0.001544660108 | Q70: 49.6077353 | R70: -90.21006585 | S70: 89.78993415 | U70: 1000000000 | V70: 36309.3025 | X70: 21.85426475 | Y70: -87.78087057 | AA70: 27.75347055 | AB70: -2.429195286 | AD70: 0 | AE70: 0
A71: 208.93 | B71: 0.20893 | C71: 1.001007961 | D71: 0.04488018402 | E71: 1.000000004 | F71: 9.189221307e-05 | G71: 1 | H71: 0 | I71: 262.3275263 | J71: 1.566984289 | K71: 1.000759765 | L71: 0.03896881577 | M71: 1.000000592 | N71: 0.001088005661 | O71: 1.000000343 | P71: 0.001693654389 | Q71: 48.80754792 | R71: -90.27439523 | S71: 89.72560477 | U71: 1000000000 | V71: 43651.7449 | X71: 21.05554853 | Y71: -87.61117588 | AA71: 27.75199939 | AB71: -2.663219344 | AD71: 0 | AE71: 0
A72: 229.09 | B72: 0.22909 | C72: 1.001211742 | D72: 0.04920406734 | E72: 1.000000005 | F72: 0.0001007590441 | G72: 1 | H72: 0 | I72: 287.63959 | J72: 1.567319747 | K72: 1.000913391 | L72: 0.04272460775 | M72: 1.000000712 | N72: 0.001192989025 | O72: 1.000000412 | P72: 0.001857077943 | Q72: 48.00701554 | R72: -90.34103533 | S72: 89.65896467 | U72: 1000000000 | V72: 52482.2281 | X72: 20.25678481 | Y72: -87.42122028 | AA72: 27.75023073 | AB72: -2.919815057 | AD72: 0 | AE72: 0
A73: 251.19 | B73: 0.25119 | C73: 1.001456631 | D73: 0.05394191802 | E73: 1.000000006 | F73: 0.0001104791316 | G73: 1 | H73: 0 | I73: 315.3874685 | J73: 1.567625618 | K73: 1.001098017 | L73: 0.04684043101 | M73: 1.000000856 | N73: 0.001308074925 | O73: 1.000000496 | P73: 0.002036227787 | Q73: 47.20657592 | R73: -90.41050157 | S73: 89.58949843 | U73: 1000000000 | V73: 63096.4161 | X73: 19.45847015 | Y73: -87.20952006 | AA73: 27.74810578 | AB73: -3.200981515 | AD73: 0 | AE73: 0
A74: 275.42 | B74: 0.27542 | C74: 1.001750943 | D74: 0.0591336111 | E74: 1.000000007 | F74: 0.0001211360421 | G74: 1 | H74: 0 | I74: 345.8097183 | J74: 1.567904559 | K74: 1.001319918 | L74: 0.0513511082 | M74: 1.000001029 | N74: 0.001434252774 | O74: 1.000000596 | P74: 0.002232644131 | Q74: 46.40609116 | R74: -90.48337572 | S74: 89.51662428 | U74: 1000000000 | V74: 75856.1764 | X74: 18.66053851 | Y74: -86.97428887 | AA74: 27.74555265 | AB74: -3.509086849 | AD74: 0 | AE74: 0
A75: 302 | B75: 0.302 | C75: 1.002104836 | D75: 0.06482515324 | E75: 1.000000009 | F75: 0.0001328265365 | G75: 1 | H75: 0 | I75: 379.1825628 | J75: 1.568159072 | K75: 1.001586763 | L75: 0.0562968522 | M75: 1.000001237 | N75: 0.001572668207 | O75: 1.000000717 | P75: 0.002448110375 | Q75: 45.60511151 | R75: -90.56029541 | S75: 89.43970459 | U75: 1000000000 | V75: 91204 | X75: 17.86262786 | Y75: -86.71343173 | AA75: 27.74248366 | AB75: -3.846863683 | AD75: 0 | AE75: 0
A76: 331.13 | B76: 0.33113 | C76: 1.002529934 | D76: 0.07105788363 | E76: 1.000000011 | F76: 0.0001456385794 | G76: 1 | H76: 0 | I76: 415.7571144 | J76: 1.568391074 | K76: 1.001907329 | L76: 0.06171390159 | M76: 1.000001487 | N76: 0.001724362704 | O76: 1.000000861 | P76: 0.002684247798 | Q76: 44.80437719 | R76: -90.6418103 | S76: 89.3581897 | U76: 1000000000 | V76: 109647.0769 | X76: 17.06557859 | Y76: -86.42504187 | AA76: 27.7387986 | AB76: -4.216768432 | AD76: 0 | AE76: 0
A77: 363.08 | B77: 0.36308 | C77: =SQRT(1+(A77/pole1)^2) -> 1.003040927 | D77: =ATAN(A77/pole1) -> 0.07788761761 | E77: =SQRT(1+(A77/Zero1)^2) -> 1.000000013 | F77: =ATAN(A77/Zero1) -> 0.000159690923 | G77: =IF(VIN_nom>Vout, 1, SQRT(1+(A77/z_RHP)^2)) -> 1 | H77: =IF(VIN_nom>Vout, 0, -ATAN(A77/z_RHP)) -> 0 | I77: =SQRT(1+(A77/Pole2)^2) -> 455.8723753 | J77: =ATAN(A77/Pole2) -> 1.568602729 | K77: =SQRT(1+(A77/Zero2)^2) -> 1.002292713 | L77: =ATAN(A77/Zero2) -> 0.0676511826 | M77: =SQRT(1+(A77/pole4)^2) -> 1.000001787 | N77: =ATAN(A77/pole4) -> 0.001890742261 | O77: =SQRT((1-(V77/pterm2))^2+(A77/pterm1)^2) -> 1.000001036 | P77: =IF((ATAN((A77/pterm1)/(1-A77^2/pterm2))>0),ATAN((A77/pterm1)/(1-A77^2/pterm2)),PI()+ATAN((A77/pterm1)/(1-A77^2/pterm2))) -> 0.002943245122 | Q77: =20*LOG10(((E77*K77*G77)/(C77*I77*O77*M77))*Adc) -> 44.00321564 | R77: =((F77+L77+H77)-(D77+J77+P77+N77))*radconv -> -90.72863817 | S77: =IF(R77>0,R77,R77+180) -> 89.27136183 | U77: 1000000000 | V77: 131827.0864 | X77: =20*LOG10((K77/(I77*M77))*AEA*Afb) -> 16.26884464 | Y77: =(L77-(J77+N77))*radconv -> -86.10652049 | AA77: =20*LOG10((E77*G77/(C77*O77))*Am) -> 27.734371 | AB77: =(F77+H77-(D77+P77))*radconv -> -4.622117678 | AD77: 0 | AE77: =IF(AD77>0,S75,0) -> 0
A78: 398.11 | B78: =A78/1000 -> 0.39811 | C78: 1.00365489 | D78: 0.08536736068 | E78: 1.000000015 | F78: 0.0001750979212 | G78: 1 | H78: 0 | I78: 499.854792 | J78: 1.568795744 | K78: 1.00275582 | L78: 0.07415532068 | M78: 1.000002149 | N78: 0.002073160792 | O78: 1.000001245 | P78: 0.003227210015 | Q78: 43.20189636 | R78: -90.82143426 | S78: 89.17856574 | U78: =IF(Q78<0,A78,1000000000) -> 1000000000 | V78: =A78^2 -> 158491.5721 | X78: 15.47284218 | Y78: -85.75537163 | AA78: 27.72905418 | AB78: -5.066062622 | AD78: =SUM((Q79<0)*(Q78>0))*A78 -> 0 | AE78: 0
A79: 436.52 | B79: 0.43652 | C79: 1.004392549 | D79: 0.09355779302 | E79: 1.000000018 | F79: 0.0001919915209 | G79: 1 | H79: 0 | I79: 548.0810338 | J79: 1.568971778 | K79: 1.00331232 | L79: 0.08127979724 | M79: 1.000002584 | N79: 0.002273180494 | O79: 1.000001497 | P79: 0.003538574403 | Q79: 42.40030968 | R79: -90.92092722 | S79: 89.07907278 | U79: 1000000000 | V79: 190549.7104 | X79: 14.67763921 | Y79: -85.36871546 | AA79: 27.72267047 | AB79: -5.552211762 | AD79: 0 | AE79: 0
A80: 478.63 | B80: 0.47863 | C80: 1.005278569 | D80: 0.1025227189 | E80: 1.000000022 | F80: 0.0002105124655 | G80: 1 | H80: 0 | I80: 600.9528813 | J80: 1.569132302 | K80: 1.003980878 | L80: 0.08908105051 | M80: 1.000003106 | N80: 0.002492467701 | O80: 1.0000018 | P80: 0.003879932348 | Q80: 41.59851667 | R80: -91.02785953 | S80: 88.97214047 | U80: 1000000000 | V80: 229086.6769 | X80: 13.88350763 | Y80: -84.94349815 | AA80: 27.71500904 | AB80: -6.084361377 | AD80: 0 | AE80: 0
A81: 524.81 | B81: 0.52481 | C81: 1.006342933 | D81: 0.1123350913 | E81: 1.000000027 | F81: 0.0002308234893 | G81: 1 | H81: 0 | I81: 658.9348937 | J81: 1.569278726 | K81: 1.004784199 | L81: 0.0976237925 | M81: 1.000003735 | N81: 0.002732949097 | O81: 1.000002164 | P81: 0.004254283241 | Q81: 40.79622197 | R81: -91.14305701 | S81: 88.85694299 | U81: 1000000000 | V81: 275425.5361 | X81: 13.0904076 | Y81: -84.47620311 | AA81: 27.70581437 | AB81: -6.666853896 | AD81: 0 | AE81: 0
A82: 575.44 | B82: 0.57544 | C82: 1.007620956 | D82: 0.1230680294 | E82: 1.000000032 | F82: 0.000253091725 | G82: 1 | H82: 0 | I82: 722.5041858 | J82: 1.569412251 | K82: 1.005749051 | L82: 0.1069732873 | M82: 1.00000449 | N82: 0.002996603412 | O82: 1.000002601 | P82: 0.004664707552 | Q82: 39.99356732 | R82: -91.26731892 | S82: 88.73268108 | U82: 1000000000 | V82: 331131.1936 | X82: 12.2987805 | Y82: -83.96327326 | AA82: 27.69478682 | AB82: -7.304045656 | AD82: 0 | AE82: 0
A83: 630.96 | B83: 0.63096 | C83: 1.009155482 | D83: 0.1348048295 | E83: 1.000000039 | F83: 0.0002775106947 | G83: 1 | H83: 0 | I83: 792.2132066 | J83: 1.56953404 | K83: 1.006907944 | L83: 0.1172041899 | M83: 1.000005398 | N83: 0.003285721785 | O83: 1.000003128 | P83: 0.005114772153 | Q83: 39.19030558 | R83: -91.40153142 | S83: 88.59846858 | U83: 1000000000 | V83: 398110.5216 | X83: 11.50874112 | Y83: -83.40062896 | AA83: 27.68156445 | AB83: -8.000902461 | AD83: 0 | AE83: 0
A84: 691.83 | B84: 0.69183 | C84: 1.010997107 | D84: 0.1476296933 | E84: 1.000000046 | F84: 0.0003042827166 | G84: 1 | H84: 0 | I84: 868.6395164 | J84: 1.569645101 | K84: 1.008299329 | L84: 0.1283926273 | M84: 1.00000649 | N84: 0.003602699455 | O84: 1.00000376 | P84: 0.005608206067 | Q84: 38.38649821 | R84: -91.54655431 | S84: 88.45344569 | U84: 1000000000 | V84: 478628.7489 | X84: 10.72077576 | Y84: -82.78410352 | AA84: 27.66572245 | AB84: -8.762450789 | AD84: 0 | AE84: 0
A85: 758.58 | B85: 0.75858 | C85: 1.013207038 | D85: 0.1616372669 | E85: 1.000000056 | F85: 0.000333640897 | G85: 1 | H85: 0 | I85: 952.4485653 | J85: 1.569746401 | K85: 1.009969787 | L85: 0.1406247142 | M85: 1.000007802 | N85: 0.003950296114 | O85: 1.000004521 | P85: 0.006149305803 | Q85: 37.58185367 | R85: -91.70332273 | S85: 88.29667727 | U85: 1000000000 | V85: 575443.6164 | X85: 9.935103455 | Y85: -82.10897646 | AA85: 27.64675022 | AB85: -9.59434627 | AD85: 0 | AE85: 0
A86: 831.76 | B86: 0.83176 | C86: 1.015857233 | D86: 0.176920808 | E86: 1.000000067 | F86: 0.000365827138 | G86: 1 | H86: 0 | I86: 1044.330915 | J86: 1.569838776 | K86: 1.011974194 | L86: 0.153986479 | M86: 1.00000938 | N86: 0.004331375516 | O86: 1.000005435 | P86: 0.00674253004 | Q86: 36.77643161 | R86: -91.87270443 | S86: 88.12729557 | U86: 1000000000 | V86: 691824.6976 | X86: 9.152378815 | Y86: -81.37053064 | AA86: 27.62405279 | AB86: -10.50217378 | AD86: 0 | AE86: 0
A87: 912.01 | B87: 0.91201 | C87: 1.019034721 | D87: 0.1935851832 | E87: 1.00000008 | F87: 0.0004011229263 | G87: 1 | H87: 0 | I87: 1145.090127 | J87: 1.569923033 | K87: 1.014379065 | L87: 0.1685755303 | M87: 1.000011278 | N87: 0.004749269967 | O87: 1.000006535 | P87: 0.007393067093 | Q87: 35.96986567 | R87: -92.05563363 | S87: 87.94436637 | U87: 1000000000 | V87: 831762.2401 | X87: 8.372948408 | Y87: -80.56341075 | AA87: 27.59691727 | AB87: -11.49222288 | AD87: 0 | AE87: 0
A88: 1000 | B88: 1 | C88: 1.022841741 | D88: 0.2117322017 | E88: 1.000000097 | F88: 0.0004398229426 | G88: 1 | H88: 0 | I88: 1255.567432 | J88: 1.569999874 | K88: 1.017262757 | L88: 0.1844886211 | M88: 1.000013559 | N88: 0.00520746784 | O88: 1.000007857 | P88: 0.008106348552 | Q88: 35.16209522 | R88: -92.2529344 | S88: 87.7470656 | U88: 1000000000 | V88: 1000000 | X88: 7.597578509 | Y88: -79.68231328 | AA88: 27.56451671 | AB88: -12.57062112 | AD88: 0 | AE88: 0
A89: 1096.5 | B89: 1.0965 | C89: 1.027401144 | D89: 0.2314724487 | E89: 1.000000116 | F89: 0.0004822658503 | G89: 1 | H89: 0 | I89: 1376.729615 | J89: 1.570069968 | K89: 1.020719717 | L89: 0.2018324809 | M89: 1.000016302 | N89: 0.005709978045 | O89: 1.000009446 | P89: 0.008888616754 | Q89: 34.35272064 | R89: -92.46543393 | S89: 87.53456607 | U89: 1000000000 | V89: 1202312.25 | X89: 6.826849611 | Y89: -78.7213911 | AA89: 27.52587103 | AB89: -13.74404283 | AD89: 0 | AE89: 0
A90: 1202.3 | B90: 1.2023 | C90: 1.032855664 | D90: 0.2529055389 | E90: 1.00000014 | F90: 0.0005287991087 | G90: 1 | H90: 0 | I90: 1509.568576 | J90: 1.570133886 | K90: 1.024860125 | L90: 0.2207070338 | M90: 1.0000196 | N90: 0.00626091337 | O90: 1.000011357 | P90: 0.009746276305 | Q90: 33.54176178 | R90: -92.69372994 | S90: 87.30627006 | U90: 1000000000 | V90: 1445525.29 | X90: 6.061898965 | Y90: -77.67518739 | AA90: 27.47986282 | AB90: -15.01854255 | AD90: 0 | AE90: =IF(AD90>0,S90,0) -> 0
A91: 1318.3 | B91: 1.3183 | C91: 1.039375173 | D91: 0.2761345447 | E91: 1.000000168 | F91: 0.0005798185577 | G91: 1 | H91: 0 | I91: 1655.214322 | J91: 1.570192175 | K91: 1.029815668 | L91: 0.2412186872 | M91: 1.000023564 | N91: 0.006864959063 | O91: 1.000013654 | P91: 0.01068662371 | Q91: 32.72892377 | R91: -92.93832652 | S91: 87.06167348 | U91: 1000000000 | V91: 1737914.89 | X91: 5.303734733 | Y91: -76.53790523 | AA91: 27.42518904 | AB91: -16.40042129 | AD91: 0 | AE91: 0
A92: 1445.4 | B92: 1.4454 | C92: 1.047153804 | D92: 0.3012391795 | E92: 1.000000202 | F92: 0.0006357200366 | G92: 1 | H92: 0 | I92: 1814.796866 | J92: 1.570245301 | K92: 1.035737726 | L92: 0.2634573349 | M92: 1.000028327 | N92: 0.007526799913 | O92: 1.000016414 | P92: 0.0117169557 | Q92: 31.91442633 | R92: -93.19933079 | S92: 86.80066921 | U92: 1000000000 | V92: 2089181.16 | X92: 4.554023673 | Y92: -75.30468913 | AA92: 27.36040265 | AB92: -17.89464167 | AD92: 0 | AE92: 0
A93: 1584.9 | B93: 1.5849 | C93: 1.056438961 | D93: 0.328348465 | E93: 1.000000243 | F93: 0.0006970753138 | G93: 1 | H93: 0 | I93: 1989.948443 | J93: 1.570293801 | K93: 1.042819961 | L93: 0.2875615753 | M93: 1.000034059 | N93: 0.008253202989 | O93: 1.000019736 | P93: 0.01284781195 | Q93: 31.09658408 | R93: -93.47718378 | S93: 86.52281622 | U93: 1000000000 | V93: 2511908.01 | X93: 3.812888622 | Y93: -73.96801657 | AA93: 27.28369546 | AB93: -19.5091672 | AD93: 0 | AE93: 0
A94: 1737.8 | B94: 1.7378 | C94: 1.06749118 | D94: 0.3574962683 | E94: 1.000000292 | F94: 0.0007643242102 | G94: 1 | H94: 0 | I94: 2181.92462 | J94: 1.570338016 | K94: 1.051268396 | L94: 0.3135913196 | M94: 1.000040947 | N94: 0.009049372385 | O94: 1.000023728 | P94: 0.01408730059 | Q94: 30.27621938 | R94: -93.77115024 | S94: 86.22884976 | U94: 1000000000 | V94: 3019948.84 | X94: 3.082955884 | Y94: -72.52477254 | AA94: 27.19326349 | AB94: -21.24637771 | AD94: 0 | AE94: 0
A95: 1905.5 | B95: 1.9055 | C95: 1.080633127 | D95: 0.3887503504 | E95: 1.000000351 | F95: 0.000838082475 | G95: 1 | H95: 0 | I95: 2392.483191 | J95: 1.570378351 | K95: 1.061339607 | L95: 0.3416429661 | M95: 1.000049231 | N95: 0.009922594 | O95: 1.000028529 | P95: 0.01544677295 | Q95: 29.45245883 | R95: -94.08064523 | S95: 85.91935477 | U95: 1000000000 | V95: 3630930.25 | X95: 2.365516145 | Y95: -70.96987453 | AA95: 27.08694268 | AB95: -23.1107707 | AD95: 0 | AE95: 0
A96: 2089.3 | B96: 2.0893 | C96: 1.096217987 | D96: 0.4221080738 | E96: 1.000000422 | F96: 0.0009189218747 | G96: 1 | H96: 0 | I96: 2623.256394 | J96: 1.570415121 | K96: 1.073317627 | L96: 0.3717567155 | M96: 1.000059186 | N96: 0.01087963162 | O96: 1.000034299 | P96: 0.01693677043 | Q96: 28.62559083 | R96: -94.40419105 | S96: 85.59580895 | U96: 1000000000 | V96: 4365174.49 | X96: 1.663070591 | Y96: -69.30142478 | AA96: 26.96252024 | AB96: -25.10276628 | AD96: 0 | AE96: 0
A97: 2290.9 | B97: 2.2909 | C97: 1.114672743 | D97: 0.4575798432 | E97: 1.000000508 | F97: 0.001007590103 | G97: 1 | H97: 0 | I97: 2876.378691 | J97: 1.570448667 | K97: 1.087548426 | L97: 0.4039915313 | M97: 1.000071159 | N97: 0.01192933 | O97: 1.000041239 | P97: 0.01857107806 | Q97: 27.79471854 | R97: -94.74027879 | S97: 85.25972121 | U97: 1000000000 | V97: 5248222.81 | X97: 0.9772669922 | Y97: -67.51657122 | AA97: 26.81745155 | AB97: -27.22370757 | AD97: 0 | AE97: 0
A98: 2511.9 | B98: 2.5119 | C98: 1.136458719 | D98: 0.4950891141 | E98: 1.00000061 | F98: 0.001104790871 | G98: 1 | H98: 0 | I98: 3153.85899 | J98: 1.570479255 | K98: 1.104411116 | L98: 0.4383342435 | M98: 1.000085549 | N98: 0.01308001072 | O98: 1.000049581 | P98: 0.02036267152 | Q98: 26.96011544 | R98: -95.08647247 | S98: 84.91352753 | U98: 1000000000 | V98: 6309641.61 | X98: 0.3108611263 | Y98: -65.61656043 | AA98: 26.64925432 | AB98: -29.46991204 | AD98: 0 | AE98: 0
A99: 2754.2 | B99: 2.7542 | C99: 1.162108076 | D99: 0.5345358814 | E99: 1.000000734 | F99: 0.001211359834 | G99: 1 | H99: 0 | I99: 3458.082868 | J99: 1.570507149 | K99: 1.124347761 | L99: 0.4747554495 | M99: 1.000102849 | N99: 0.01434155423 | O99: 1.000059611 | P99: 0.02232696018 | Q99: 26.12155738 | R99: -95.44014321 | S99: 84.55985679 | U99: 1000000000 | V99: 7585617.64 | X99: -0.3337538082 | Y99: -63.60365839 | AA99: 26.45531119 | AB99: -31.83648482 | AD99: 0 | AE99: 0
A100: 3020 | B100: 3.02 | C100: 1.192229067 | D100: 0.5757852656 | E100: 1.000000882 | F100: 0.001328264591 | G100: 1 | H100: 0 | I100: 3791.812573 | J100: 1.570532601 | K100: 1.147869508 | L100: 0.5131973709 | M100: 1.000123657 | N100: 0.01572539867 | O100: 1.000071675 | P100: 0.02448178776 | Q100: 25.27861733 | R100: -95.79851006 | S100: 84.20148994 | U100: 1000000000 | V100: 9120400 | X100: -0.9543266397 | Y100: -61.48184524 | AA100: 26.23294396 | AB100: -34.31666482 | AD100: 0 | AE100: 0
A101: 3311.3 | B101: 3.3113 | C101: 1.227447271 | D101: 0.6185864803 | E101: 1.000001061 | F101: 0.001456384774 | G101: 1 | H101: 0 | I101: 4157.559238 | J101: 1.570555801 | K101: 1.175512521 | L101: 0.5534945428 | M101: 1.000148661 | N101: 0.01724193534 | O101: 1.000086175 | P101: 0.02684337953 | Q101: 24.43227615 | R101: -96.15817008 | S101: 83.84182992 | U101: 1000000000 | V101: 10964707.69 | X101: -1.54768066 | Y101: -59.2612078 | AA101: 25.97995681 | AB101: -36.89696228 | AD101: 0 | AE101: 0
A102: 3630.8 | B102: 3.6308 | C102: 1.268507011 | D102: 0.6627091336 | E102: 1.000001275 | F102: 0.001596907886 | G102: 1 | H102: 0 | I102: 4558.712895 | J102: 1.570576967 | K102: 1.207918988 | L102: 0.5954965277 | M102: 1.00017873 | N102: 0.01890519254 | O102: 1.000103615 | P102: 0.0294336396 | Q102: 23.58219992 | R102: -96.51654534 | S102: 83.48345466 | U102: 1000000000 | V102: 13182708.64 | X102: -2.111806729 | Y102: -56.95118165 | AA102: 25.69400665 | AB102: -39.56536369 | AD102: 0 | AE102: 0
A103: 3981.1 | B103: 3.9811 | C103: 1.316173962 | D103: 0.7078247464 | E103: 1.000001533 | F103: 0.00175097744 | G103: 1 | H103: 0 | I103: 4998.538017 | J103: 1.570596268 | K103: 1.245762176 | L103: 0.6389515719 | M103: 1.000214877 | N103: 0.02072866822 | O103: 1.000124586 | P103: 0.03227366654 | Q103: 22.72922916 | R103: -96.87116629 | S103: 83.12883371 | U103: 1000000000 | V103: 15849157.21 | X103: -2.644189154 | Y103: -54.56697437 | AA103: 25.37341831 | AB103: -42.30419192 | AD103: 0 | AE103: 0
A104: 4365.2 | B104: 4.3652 | C104: 1.37129109 | D104: 0.7535860615 | E104: 1.000001843 | F104: 0.001919912874 | G104: 1 | H104: 0 | I104: 5480.801306 | J104: 1.570613872 | K104: 1.289791112 | L104: 0.683575752 | M104: 1.000258335 | N104: 0.02272792985 | O104: 1.000149803 | P104: 0.03538780862 | Q104: 21.8739719 | R104: -97.22062509 | S104: 82.77937491 | U104: 1000000000 | V104: 19054971.04 | X104: -3.142902918 | Y104: -52.12575504 | AA104: 25.01687482 | AB104: -45.09487005 | AD104: 0 | AE104: 0
A105: 4786.3 | B105: 4.7863 | C105: 1.434747427 | D105: 0.7996094947 | E105: 1.000002216 | F105: 0.002105121576 | G105: 1 | H105: 0 | I105: 6009.520576 | J105: 1.570629924 | K105: 1.340805872 | L105: 0.7290311895 | M105: 1.000310573 | N105: 0.02491956912 | O105: 1.000180124 | P105: 0.03880204453 | Q105: 21.0173573 | R105: -97.5646699 | S105: 82.4353301 | U105: 1000000000 | V105: 22908667.69 | X105: -3.606341427 | Y105: -49.64784174 | AA105: 24.62369872 | AB105: -47.91682816 | AD105: 0 | AE105: 0
A106: 5248.1 | B106: 5.2481 | C106: 1.507517803 | D106: 0.84552022 | E106: 1.000002664 | F106: 0.002308230835 | G106: 1 | H106: 0 | I106: 6589.341425 | J106: 1.570644567 | K106: 1.399688748 | L106: 0.7749663895 | M106: 1.000373383 | N106: 0.02732275786 | O106: 1.000216595 | P106: 0.04254641867 | Q106: 20.16002687 | R106: -97.90469866 | S106: 82.09530134 | U106: 1000000000 | V106: 27542553.61 | X106: -4.033619124 | Y106: -47.15448016 | AA106: 24.19364599 | AB106: -50.75021849 | AD106: 0 | AE106: 0
A107: 5370.3 | B107: 5.3703 | C107: 1.527273509 | D107: 0.8569292024 | E107: 1.000002789 | F107: 0.002361976909 | G107: 1 | H107: 0 | I107: 6742.771714 | J107: 1.57064802 | K107: 1.415738143 | L107: 0.7864744651 | M107: 1.00039097 | N107: 0.02795863011 | O107: 1.000226809 | P107: 0.04353727014 | Q107: 19.9457995 | R107: -97.98934387 | S107: 82.01065613 | U107: 1000000000 | V107: 28840122.09 | X107: -4.134671499 | Y107: -46.53174665 | AA107: 24.080471 | AB107: -51.45759722 | AD107: 0 | AE107: 0
A108: 5432.85 | B108: 5.43285 | C108: 1.537461204 | D108: 0.8626552408 | E108: 1.000002855 | F108: 0.00238948768 | G108: 1 | H108: 0 | I108: 6821.307431 | J108: 1.570649727 | K108: 1.424024589 | L108: 0.7922642927 | M108: 1.000400129 | N108: 0.02828410264 | O108: 1.000232129 | P108: 0.04404445774 | Q108: 19.83803518 | R108: -98.03191851 | S108: 81.96808149 | U108: 1000000000 | V108: 29515859.12 | X108: -4.184643252 | Y108: -46.21876 | AA108: 24.02267843 | AB108: -51.81315851 | AD108: 0 | AE108: 0
A109: 5495.4 | B109: 5.4954 | C109: 1.547698644 | D109: 0.8683057112 | E109: 1.000002921 | F109: 0.002416998448 | G109: 1 | H109: 0 | I109: 6899.843149 | J109: 1.570651396 | K109: 1.432358218 | L109: 0.7979869385 | M109: 1.000409393 | N109: 0.02860956918 | O109: 1.000237511 | P109: 0.04455164853 | Q109: 19.73151506 | R109: -98.07401027 | S109: 81.92598973 | U109: 1000000000 | V109: 30199421.16 | X109: -4.233472477 | Y109: -45.90962001 | AA109: 23.96498754 | AB109: -52.16439026 | AD109: 0 | AE109: 0
A110: 5559.4 | B110: 5.5594 | C110: 1.558223868 | D110: 0.874010133 | E110: 1.000002989 | F110: 0.002445146952 | G110: 1 | H110: 0 | I110: 6980.199438 | J110: 1.570653064 | K110: 1.440933015 | L110: 0.8037735361 | M110: 1.000418983 | N110: 0.02894257423 | O110: 1.000243081 | P110: 0.04507060007 | Q110: 19.62378572 | R110: -98.11659827 | S110: 81.88340173 | U110: 1000000000 | V110: 30906928.36 | X110: -4.282285037 | Y110: -45.59724777 | AA110: 23.90607076 | AB110: -52.51935049 | AD110: 0 | AE110: 0
A111: 5623.4 | B111: 5.6234 | C111: 1.568799116 | D111: 0.879637829 | E111: 1.000003059 | F111: 0.002473295452 | G111: 1 | H111: 0 | I111: 7060.555727 | J111: 1.570654695 | K111: 1.44955549 | L111: 0.8094914817 | M111: 1.000428683 | N111: 0.02927557286 | O111: 1.000248717 | P111: 0.04558955502 | Q111: 19.51730348 | R111: -98.15872132 | S111: 81.84127868 | U111: 1000000000 | V111: 31622627.56 | X111: -4.329969273 | Y111: -45.28880646 | AA111: 23.84727275 | AB111: -52.86991486 | AD111: 0 | AE111: 0
A112: 5688.9 | B112: 5.6889 | C112: 1.57967297 | D112: 0.8853192198 | E112: 1.00000313 | F112: 0.002502103678 | G112: 1 | H112: 0 | I112: 7142.795367 | J112: 1.570656326 | K112: 1.458428538 | L112: 0.8152732414 | M112: 1.000438725 | N112: 0.02961636942 | O112: 1.000254551 | P112: 0.04612067655 | Q112: 19.40958894 | R112: -98.20137067 | S112: 81.79862933 | U112: 1000000000 | V112: 32363583.21 | X112: -4.37763675 | Y112: -44.97715566 | AA112: 23.78722569 | AB112: -53.22421501 | AD112: 0 | AE112: 0
A113: 5754.4 | B113: 5.7544 | C113: 1.590597114 | D113: 0.8909227504 | E113: 1.000003203 | F113: 0.0025309119 | G113: 1 | H113: 0 | I113: 7225.035007 | J113: 1.570657919 | K113: 1.467349749 | L113: 0.8209848861 | M113: 1.000448884 | N113: 0.02995715909 | O113: 1.000260453 | P113: 0.04665180174 | Q113: 19.30312487 | R113: -98.24357395 | S113: 81.75642605 | U113: 1000000000 | V113: 33113119.36 | X113: -4.42419013 | Y113: -44.66951964 | AA113: 23.727315 | AB113: -53.57405431 | AD113: 0 | AE113: 0
A114: 5821.4 | B114: 5.8214 | C114: 1.601822388 | D114: 0.8965753486 | E114: 1.000003278 | F114: 0.002560379848 | G114: 1 | H114: 0 | I114: 7309.157997 | J114: 1.570659512 | K114: 1.476524182 | L114: 0.82675573 | M114: 1.000459395 | N114: 0.03030574591 | O114: 1.000266561 | P114: 0.04719509393 | Q114: 19.1954884 | R114: -98.28630276 | S114: 81.71369724 | U114: 1000000000 | V114: 33888697.96 | X114: -4.470690832 | Y114: -44.35893847 | AA114: 23.66617923 | AB114: -53.92736429 | AD114: 0 | AE114: 0
A115: 5888.4 | B115: 5.8884 | C115: 1.613098131 | D115: 0.9021490982 | E115: 1.000003354 | F115: 0.002589847792 | G115: 1 | H115: 0 | I115: 7393.280988 | J115: 1.570661069 | K115: 1.485747179 | L115: 0.8324551149 | M115: 1.000470028 | N115: 0.03065432537 | O115: 1.00027274 | P115: 0.04773839003 | Q115: 19.08910428 | R115: -98.32860589 | S115: 81.67139411 | U115: 1000000000 | V115: 34673254.56 | X115: -4.516093387 | Y115: -44.05244909 | AA115: 23.60519767 | AB115: -54.2761568 | AD115: 0 | AE115: 0
A116: 5957 | B116: 5.957 | C116: 1.624694337 | D116: 0.9077756135 | E116: 1.000003432 | F116: 0.002620019443 | G116: 1 | H116: 0 | I116: 7479.412886 | J116: 1.570662626 | K116: 1.495239806 | L116: 0.8382175636 | M116: 1.000481041 | N116: 0.03101122138 | O116: 1.00027914 | P116: 0.04829466446 | Q116: 18.981449 | R116: -98.37149883 | S116: 81.62850117 | U116: 1000000000 | V116: 35485849 | X116: -4.561476202 | Y116: -43.74282298 | AA116: 23.5429252 | AB116: -54.62867585 | AD116: 0 | AE116: 0
A117: 6025.6 | B117: 6.0256 | C117: 1.636341248 | D117: 0.9133222072 | E117: 1.000003512 | F117: 0.002650191089 | G117: 1 | H117: 0 | I117: 7565.544783 | J117: 1.570664149 | K117: 1.504781456 | L117: 0.8439071212 | M117: 1.000492181 | N117: 0.0313681095 | O117: 1.000285614 | P117: 0.04885094309 | Q117: 18.87505017 | R117: -98.41398671 | S117: 81.58601329 | U117: 1000000000 | V117: 36307855.36 | X117: -4.605775274 | Y117: -43.43737074 | AA117: 23.48082544 | AB117: -54.97661597 | AD117: 0 | AE117: 0
A118: 6095.8 | B118: 6.0958 | C118: 1.648311177 | D118: 0.9189168433 | E118: 1.000003594 | F118: 0.002681066443 | G118: 1 | H118: 0 | I118: 7653.685588 | J118: 1.570665671 | K118: 1.514595436 | L118: 0.8496549754 | M118: 1.000503713 | N118: 0.03173331326 | O118: 1.000292317 | P118: 0.04942020055 | Q118: 18.7674421 | R118: -98.45706683 | S118: 81.54293317 | U118: 1000000000 | V118: 37158777.64 | X118: -4.650019344 | Y118: -43.1290548 | AA118: 23.41746145 | AB118: -55.32801203 | AD118: 0 | AE118: 0
A119: 6166 | B119: 6.166 | C119: 1.660331953 | D119: 0.9244306398 | E119: 1.000003677 | F119: 0.002711941791 | G119: 1 | H119: 0 | I119: 7741.826393 | J119: 1.570667158 | K119: 1.524458811 | L119: 0.8553286369 | M119: 1.000515378 | N119: 0.03209850855 | O119: 1.000299098 | P119: 0.04998946249 | Q119: 18.66109302 | R119: -98.4997639 | S119: 81.5002361 | U119: 1000000000 | V119: 38019556 | X119: -4.693195816 | Y119: -42.82498732 | AA119: 23.35428884 | AB119: -55.67477658 | AD119: 0 | AE119: 0
A120: 6237.8 | B120: 6.2378 | C120: 1.672678164 | D120: 0.9299879536 | E120: 1.000003763 | F120: 0.002743520845 | G120: 1 | H120: 0 | I120: 7831.976106 | J120: 1.570668645 | K120: 1.534597094 | L120: 0.8610559783 | M120: 1.000527448 | N120: 0.03247201852 | O120: 1.000306114 | P120: 0.05057170378 | Q120: 18.55359387 | R120: -98.54305839 | S120: 81.45694161 | U120: 1000000000 | V120: 38910148.84 | X120: -4.73628557 | Y120: -42.51832056 | AA120: 23.28987944 | AB120: -56.02473783 | AD120: 0 | AE120: 0
A121: 6309.6 | B121: 6.3096 | C121: 1.685075275 | D121: 0.935463664 | E121: 1.000003851 | F121: 0.002775099894 | G121: 1 | H121: 0 | I121: 7922.125818 | J121: 1.570670098 | K121: 1.544785054 | L121: 0.8667079586 | M121: 1.000539657 | N121: 0.03284551943 | O121: 1.000313211 | P121: 0.05115394987 | Q121: 18.44735475 | R121: -98.58599304 | S121: 81.41400696 | U121: 1000000000 | V121: 39811052.16 | X121: -4.778325443 | Y121: -42.21596921 | AA121: 23.22568019 | AB121: -56.37002382 | AD121: 0 | AE121: 0
A122: 6383.05 | B122: 6.38305 | C122: 1.697808783 | D122: 0.9409822965 | E122: 1.000003941 | F122: 0.002807404639 | G122: 1 | H122: 0 | I122: 8014.347216 | J122: 1.570671551 | K122: 1.555257523 | L122: 0.8724130171 | M122: 1.000552291 | N122: 0.03322759409 | O122: 1.000320557 | P122: 0.05174958131 | Q122: 18.33994934 | R122: -98.62956234 | S122: 81.37043766 | U122: 1000000000 | V122: 40743327.3 | X122: -4.820278453 | Y122: -41.91106793 | AA122: 23.1602278 | AB122: -56.71849442 | AD122: 0 | AE122: 0
A123: 6456.5 | B123: 6.4565 | C123: 1.710593229 | D123: 0.9464186034 | E123: 1.000004032 | F123: 0.002839709379 | G123: 1 | H123: 0 | I123: 8106.568614 | J123: 1.57067297 | K123: 1.565779934 | L123: 0.8780415781 | M123: 1.000565071 | N123: 0.03360965905 | O123: 1.000327988 | P123: 0.05234521789 | Q123: 18.23380529 | R123: -98.67279557 | S123: 81.32720443 | U123: 1000000000 | V123: 41686392.25 | X123: -4.861199328 | Y123: -41.61054718 | AA123: 23.09500461 | AB123: -57.06224839 | AD123: 0 | AE123: 0
A124: 6531.7 | B124: 6.5317 | C124: 1.723733861 | D124: 0.9519007243 | E124: 1.000004126 | F124: 0.002872783797 | G124: 1 | H124: 0 | I124: 8200.987254 | J124: 1.57067439 | K124: 1.576603746 | L124: 0.8837262214 | M124: 1.000578306 | N124: 0.03400081681 | O124: 1.000335684 | P124: 0.05295505136 | Q124: 18.12641023 | R124: -98.71673081 | S124: 81.28326919 | U124: 1000000000 | V124: 42663104.89 | X124: -4.902059089 | Y124: -41.30733417 | AA124: 23.02846932 | AB124: -57.40939664 | AD124: 0 | AE124: 0
A125: 6606.9 | B125: 6.6069 | C125: 1.736925513 | D125: 0.9572997338 | E125: 1.000004222 | F125: 0.002905858208 | G125: 1 | H125: 0 | I125: 8295.405894 | J125: 1.570675778 | K125: 1.58747781 | L125: 0.8893331654 | M125: 1.000591695 | N125: 0.03439196417 | O125: 1.00034347 | P125: 0.05356489034 | Q125: 18.02027971 | R125: -98.76035383 | S125: 81.23964617 | U125: 1000000000 | V125: 43651127.61 | X125: -4.941903208 | Y125: -41.00857055 | AA125: 22.96218291 | AB125: -57.75178328 | AD125: 0 | AE125: 0
A126: 6683.85 | B126: 6.68385 | C126: 1.750475762 | D126: 0.9627399859 | E126: 1.000004321 | F126: 0.002939702297 | G126: 1 | H126: 0 | I126: 8392.021777 | J126: 1.570677166 | K126: 1.598655878 | L126: 0.8949914476 | M126: 1.000605554 | N126: 0.03479220312 | O126: 1.00035153 | P126: 0.05418892684 | Q126: 17.91295941 | R126: -98.80468868 | S126: 81.19531132 | U126: 1000000000 | V126: 44673850.82 | X126: -4.981656228 | Y126: -40.70738638 | AA126: 22.89461564 | AB126: -58.0973023 | AD126: 0 | AE126: 0
A127: 6760.8 | B127: 6.7608 | C127: 1.764077023 | D127: 0.9680965044 | E127: 1.000004421 | F127: 0.002973546378 | G127: 1 | H127: 0 | I127: 8488.637659 | J127: 1.570678522 | K127: 1.609884418 | L127: 0.9005709763 | M127: 1.000619573 | N127: 0.03519243092 | O127: 1.000359684 | P127: 0.05481296925 | Q127: 17.80690524 | R127: -98.84873609 | S127: 81.15126391 | U127: 1000000000 | V127: 45708416.64 | X127: -5.020411642 | Y127: -40.41071201 | AA127: 22.82731688 | AB127: -58.43802407 | AD127: 0 | AE127: 0
A128: 6839.55 | B128: 6.83955 | C128: 1.778048035 | D128: 0.9734933151 | E128: 1.000004525 | F128: 0.003008182127 | G128: 1 | H128: 0 | I128: 8587.513562 | J128: 1.570679879 | K128: 1.621426774 | L128: 0.9062008303 | M128: 1.000634086 | N128: 0.0356020091 | O128: 1.000368127 | P128: 0.05545161534 | Q128: 17.699652 | R128: -98.89353575 | S128: 81.10646425 | U128: 1000000000 | V128: 46779444.2 | X128: -5.059073553 | Y128: -40.11168995 | AA128: 22.75872555 | AB128: -58.78184579 | AD128: 0 | AE128: 0
A129: 6918.3 | B129: 6.9183 | C129: 1.792070025 | D129: 0.9788058243 | E129: 1.000004629 | F129: 0.003042817869 | G129: 1 | H129: 0 | I129: 8686.389466 | J129: 1.570681204 | K129: 1.633019795 | L129: 0.9117509241 | M129: 1.000648767 | N129: 0.03601157533 | O129: 1.000376667 | P129: 0.05609026777 | Q129: 17.59366654 | R129: -98.93807312 | S129: 81.06192688 | U129: 1000000000 | V129: 47862874.89 | X129: -5.096756041 | Y129: -39.81723537 | AA129: 22.69042259 | AB129: -59.12083775 | AD129: 0 | AE129: 0
A130: 6998.9 | B130: 6.9989 | C130: 1.80647297 | D130: 0.9841575793 | E130: 1.000004738 | F130: 0.003078267269 | G130: 1 | H130: 0 | I130: 8787.588168 | J130: 1.57068253 | K130: 1.644936506 | L130: 0.9173502151 | M130: 1.000663967 | N130: 0.0364307506 | O130: 1.00038551 | P130: 0.05674393009 | Q130: 17.48647477 | R130: -98.98340428 | S130: 81.01659572 | U130: 1000000000 | V130: 48984601.21 | X130: -5.134342139 | Y130: -39.52051256 | AA130: 22.6208169 | AB130: -59.46289172 | AD130: 0 | AE130: 0
A131: 7079.5 | B131: 7.0795 | C131: 1.820926836 | D131: 0.9894245225 | E131: 1.000004848 | F131: 0.00311371666 | G131: 1 | H131: 0 | I131: 8888.78687 | J131: 1.570683826 | K131: 1.656904046 | L131: 0.9228687916 | M131: 1.000679342 | N131: 0.03684991306 | O131: 1.000394457 | P131: 0.05739759921 | Q131: 17.38055244 | R131: -99.02849861 | S131: 80.97150139 | U131: 1000000000 | V131: 50119320.25 | X131: -5.170967164 | Y131: -39.22841189 | AA131: 22.55151961 | AB131: -59.80008672 | AD131: 0 | AE131: 0
A132: 7161.95 | B132: 7.16195 | C132: 1.835763892 | D132: 0.9947263907 | E132: 1.000004961 | F132: 0.003149979709 | G132: 1 | H132: 0 | I132: 8992.308371 | J132: 1.570685121 | K132: 1.669197727 | L132: 0.9284319839 | M132: 1.000695253 | N132: 0.03727868309 | O132: 1.000403715 | P132: 0.05806627901 | Q132: 17.27348296 | R132: -99.07440157 | S132: 80.92559843 | U132: 1000000000 | V132: 51293527.8 | X132: -5.207470707 | Y132: -38.93430537 | AA132: 22.48095367 | AB132: -60.1400962 | AD132: 0 | AE132: 0
A133: 7244.4 | B133: 7.2444 | C133: 1.850651723 | D133: 0.9999431003 | E133: 1.000005076 | F133: 0.003186242749 | G133: 1 | H133: 0 | I133: 9095.829873 | J133: 1.570686386 | K133: 1.681542313 | L133: 0.9339136625 | M133: 1.000711347 | N133: 0.03770743941 | O133: 1.000413081 | P133: 0.05873496607 | Q133: 17.16768306 | R133: -99.12009363 | S133: 80.87990637 | U133: 1000000000 | V133: 52481331.36 | X133: -5.243032837 | Y133: -38.64486676 | AA133: 22.41071589 | AB133: -60.47522687 | AD133: 0 | AE133: 0
A134: 7328.75 | B134: 7.32875 | C134: 1.865933909 | D134: 1.005193734 | E134: 1.000005195 | F134: 0.003223341435 | G134: 1 | H134: 0 | I134: 9201.736951 | J134: 1.570687652 | K134: 1.694222887 | L134: 0.9394388277 | M134: 1.000728002 | N134: 0.03814606174 | O134: 1.000422775 | P134: 0.05941907015 | Q134: 17.06072932 | R134: -99.1666385 | S134: 80.8333615 | U134: 1000000000 | V134: 53710576.56 | X134: -5.278472219 | Y134: -38.35350182 | AA134: 22.33920154 | AB134: -60.81313667 | AD134: 0 | AE134: 0
A135: 7413.1 | B135: 7.4131 | C135: 1.881266701 | D135: 1.010358919 | E135: 1.000005315 | F135: 0.003260440113 | G135: 1 | H135: 0 | I135: 9307.64403 | J135: 1.570688888 | K135: 1.706954413 | L135: 0.9448817368 | M135: 1.00074485 | N135: 0.0385846694 | O135: 1.000432582 | P135: 0.06010318201 | Q135: 16.9550453 | R135: -99.21299846 | S135: 80.78700154 | U135: 1000000000 | V135: 54954051.61 | X135: -5.312989913 | Y135: -38.06684732 | AA135: 22.26803521 | AB135: -61.14615114 | AD135: 0 | AE135: 0
A136: 7499.45 | B136: 7.49945 | C136: 1.897014183 | D136: 1.015559944 | E136: 1.00000544 | F136: 0.003298418418 | G136: 1 | H136: 0 | I136: 9416.062243 | J136: 1.570690125 | K136: 1.720039408 | L136: 0.9503700706 | M136: 1.000762297 | N136: 0.03903366137 | O136: 1.000442739 | P136: 0.06080352281 | Q136: 16.84814097 | R136: -99.26028365 | S136: 80.73971635 | U136: 1000000000 | V136: 56241750.3 | X136: -5.347402956 | Y136: -37.77818518 | AA136: 22.19554392 | AB136: -61.48209848 | AD136: 0 | AE136: 0
A137: 7585.8 | B137: 7.5858 | C137: 1.912812134 | D137: 1.020675194 | E137: 1.000005566 | F137: 0.003336396714 | G137: 1 | H137: 0 | I137: 9524.480456 | J137: 1.570691334 | K137: 1.733175431 | L137: 0.9557753713 | M137: 1.000779946 | N137: 0.03948263761 | O137: 1.000453015 | P137: 0.06150387195 | Q137: 16.74250791 | R137: -99.30740976 | S137: 80.69259024 | U137: 1000000000 | V137: 57544361.64 | X137: -5.380913084 | Y137: -37.49427797 | AA137: 22.123421 | AB137: -61.81313178 | AD137: 0 | AE137: 0
A138: 7674.15 | B138: 7.67415 | C138: 1.929026934 | D138: 1.025822067 | E138: 1.000005696 | F138: 0.003375254635 | G138: 1 | H138: 0 | I138: 9635.409802 | J138: 1.570692543 | K138: 1.746667317 | L138: 0.9612215551 | M138: 1.000798212 | N138: 0.03994199634 | O138: 1.000463651 | P138: 0.062220451 | Q138: 16.6357142 | R138: -99.35547961 | S138: 80.64452039 | U138: 1000000000 | V138: 58892578.22 | X138: -5.414296122 | Y138: -37.20862319 | AA138: 22.05001032 | AB138: -62.14685642 | AD138: 0 | AE138: 0
A139: 7762.5 | B139: 7.7625 | C139: 1.945291982 | D139: 1.030883003 | E139: 1.000005828 | F139: 0.003414112547 | G139: 1 | H139: 0 | I139: 9746.339149 | J139: 1.570693724 | K139: 1.760210216 | L139: 0.9665840911 | M139: 1.000816689 | N139: 0.0404013382 | O139: 1.000474411 | P139: 0.06293703898 | Q139: 16.53019174 | R139: -99.40341633 | S139: 80.59658367 | U139: 1000000000 | V139: 60256406.25 | X139: -5.446796206 | Y139: -36.92775854 | AA139: 21.97698794 | AB139: -62.47565778 | AD139: 0 | AE139: 0
A140: 7852.9 | B140: 7.8529 | C140: 1.961985138 | D140: 1.035974381 | E140: 1.000005965 | F140: 0.003453872075 | G140: 1 | H140: 0 | I140: 9859.842408 | J140: 1.570694905 | K140: 1.774118937 | L140: 0.9719861535 | M140: 1.000835814 | N140: 0.0408713206 | O140: 1.000485549 | P140: 0.06367026342 | Q140: 16.42350672 | R140: -99.45234372 | S140: 80.54765628 | U140: 1000000000 | V140: 61668038.41 | X140: -5.479167376 | Y140: -36.64523885 | AA140: 21.9026741 | AB140: -62.80710487 | AD140: 0 | AE140: 0
A141: 7943.3 | B141: 7.9433 | C141: =SQRT(1+(A141/pole1)^2) -> 1.978728293 | D141: =ATAN(A141/pole1) -> 1.040979725 | E141: =SQRT(1+(A141/Zero1)^2) -> 1.000006103 | F141: =ATAN(A141/Zero1) -> 0.003493631592 | G141: =IF(VIN_nom>Vout, 1, SQRT(1+(A141/z_RHP)^2)) -> 1 | H141: =IF(VIN_nom>Vout, 0, -ATAN(A141/z_RHP)) -> 0 | I141: =SQRT(1+(A141/Pole2)^2) -> 9973.345668 | J141: =ATAN(A141/Pole2) -> 1.57069606 | K141: =SQRT(1+(A141/Zero2)^2) -> 1.788078624 | L141: =ATAN(A141/Zero2) -> 0.9773040202 | M141: =SQRT(1+(A141/pole4)^2) -> 1.00085516 | N141: =ATAN(A141/pole4) -> 0.04134128493 | O141: =SQRT((1-(V141/pterm2))^2+(A141/pterm1)^2) -> 1.000496818 | P141: =IF((ATAN((A141/pterm1)/(1-A141^2/pterm2))>0),ATAN((A141/pterm1)/(1-A141^2/pterm2)),PI()+ATAN((A141/pterm1)/(1-A141^2/pterm2))) -> 0.06440349743 | Q141: =20*LOG10(((E141*K141*G141)/(C141*I141*O141*M141))*Adc) -> 16.31809283 | R141: =((F141+L141+H141)-(D141+J141+P141+N141))*radconv -> -99.50116375 | S141: =IF(R141>0,R141,R141+180) -> 80.49883625 | U141: 1000000000 | V141: 63096014.89 | X141: =20*LOG10((K141/(I141*M141))*AEA*Afb) -> -5.510675633 | Y141: =(L141-(J141+N141))*radconv -> -36.36754064 | AA141: =20*LOG10((E141*G141/(C141*O141))*Am) -> 21.82876846 | AB141: =(F141+H141-(D141+P141))*radconv -> -63.13362311 | AD141: 0 | AE141: 0
A142: 8035.8 | B142: =A142/1000 -> 8.0358 | C142: 1.995910836 | D142: 1.046014288 | E142: 1.000006246 | F142: 0.003534314714 | G142: 1 | H142: 0 | I142: 10089.48562 | J142: 1.570697214 | K142: 1.802414117 | L142: 0.9826600001 | M142: 1.000875184 | N142: 0.04182214766 | O142: 1.000508483 | P142: 0.06515377454 | Q142: 16.21151587 | R142: -99.55102222 | S142: 80.44897778 | U142: =IF(Q142<0,A142,1000000000) -> 1000000000 | V142: =A142^2 -> 64574081.64 | X142: -5.542053111 | Y142: -36.08828313 | AA142: 21.75356898 | AB142: -63.46273909 | AD142: =SUM((Q143<0)*(Q142>0))*A142 -> 0 | AE142: 0
A143: 8128.3 | B143: 8.1283 | C143: 2.013143105 | D143: 1.050962785 | E143: 1.00000639 | F143: 0.003574997825 | G143: 1 | H143: 0 | I143: 10205.62557 | J143: 1.570698342 | K143: 1.816800498 | L143: 0.9879313062 | M143: 1.000895439 | N143: 0.04230299104 | O143: 1.000520285 | P143: 0.06590406189 | Q143: 16.10620976 | R143: -99.60079884 | S143: 80.39920116 | U143: 1000000000 | V143: 66069260.89 | X143: -5.57258779 | Y143: -35.81387445 | AA143: 21.67879755 | AB143: -63.78692439 | AD143: 0 | AE143: 0
A144: 8222.95 | B144: 8.22295 | C144: 2.03082606 | D144: 1.055939246 | E144: 1.00000654 | F144: 0.003616626531 | G144: 1 | H144: 0 | I144: 10324.46499 | J144: 1.570699469 | K144: 1.831572691 | L144: 0.9932392654 | M144: 1.000916405 | N144: 0.04279499052 | O144: 1.000532502 | P144: 0.06667179908 | Q144: 15.99974134 | R144: -99.65166245 | S144: 80.34833755 | U144: 1000000000 | V144: 67616906.7 | X144: -5.602989854 | Y144: -35.53800491 | AA144: 21.60273119 | AB144: -64.11365754 | AD144: 0 | AE144: 0
A145: 8270.275 | B145: 8.270275 | C145: 2.039686153 | D145: 1.058395088 | E145: 1.000006616 | F145: 0.003637440879 | G145: 1 | H145: 0 | I145: 10383.8847 | J145: 1.570700024 | K145: 1.838977905 | L145: 0.9958612297 | M145: 1.000926979 | N145: 0.0430409825 | O145: 1.000538664 | P145: 0.06705567177 | Q145: 15.94698536 | R145: -99.67707215 | S145: 80.32292785 | U145: 1000000000 | V145: 68397448.58 | X145: -5.617880599 | Y145: -35.40190348 | AA145: 21.56486596 | AB145: -64.27516867 | AD145: 0 | AE145: 0
A146: 8317.6 | B146: 8.3176 | C146: 2.04855844 | D146: 1.060829673 | E146: 1.000006691 | F146: 0.003658255224 | G146: 1 | H146: 0 | I146: 10443.30441 | J146: 1.570700572 | K146: 1.84639566 | L146: 0.9984621446 | M146: 1.000937613 | N146: 0.04328696926 | O146: 1.000544861 | P146: 0.06743954723 | Q146: 15.89454331 | R146: -99.7024694 | S146: 80.2975306 | U146: 1000000000 | V146: 69182469.76 | X146: -5.632569296 | Y146: -35.26700743 | AA146: 21.52711261 | AB146: -64.43546197 | AD146: 0 | AE146: 0
A147: 8366.05 | B147: 8.36605 | C147: 2.057654107 | D147: 1.063300368 | E147: 1.00000677 | F147: 0.00367956436 | G147: 1 | H147: 0 | I147: 10504.13663 | J147: 1.570701126 | K147: 1.854002583 | L147: 1.001103309 | M147: 1.000948563 | N147: 0.04353879815 | O147: 1.000551243 | P147: 0.06783255096 | Q147: 15.84117609 | R147: -99.72845921 | S147: 80.27154079 | U147: 1000000000 | V147: 69990792.6 | X147: -5.647401528 | Y147: -35.13014034 | AA147: 21.48857762 | AB147: -64.59831887 | AD147: 0 | AE147: 0
A148: 8414.5 | B148: 8.4145 | C148: 2.066762223 | D148: 1.0657493 | E148: 1.000006848 | F148: 0.003700873493 | G148: 1 | H148: 0 | I148: 10564.96885 | J148: 1.570701674 | K148: =SQRT(1+(A148/Zero2)^2) -> 1.861622333 | L148: =ATAN(A148/Zero2) -> 1.003722871 | M148: 1.000959576 | N148: 0.0437906215 | O148: 1.000557663 | P148: 0.06822555762 | Q148: 15.78813034 | R148: -99.7544394 | S148: 80.2455606 | U148: 1000000000 | V148: 70803810.25 | X148: -5.662029365 | Y148: -34.99451032 | AA148: 21.4501597 | AB148: -64.75992909 | AD148: 0 | AE148: 0
A149: 8462.95 | B149: 8.46295 | C149: 2.075882626 | D149: 1.068176729 | E149: 1.000006927 | F149: 0.003722182622 | G149: 1 | H149: 0 | I149: 10625.80107 | J149: 1.570702216 | K149: 1.869254754 | L149: 1.006321059 | M149: 1.000970653 | N149: 0.0440424393 | O149: 1.00056412 | P149: 0.06861856722 | Q149: 15.73540233 | R149: -99.78041164 | S149: 80.21958836 | U149: 1000000000 | V149: 71621522.7 | X149: -5.676456419 | Y149: -34.86010428 | AA149: 21.41185875 | AB149: -64.92030736 | AD149: 0 | AE149: 0
A150: 8511.4 | B150: 8.5114 | C150: 2.085015153 | D150: 1.070582907 | E150: 1.000007007 | F150: 0.003743491749 | G150: 1 | H150: 0 | I150: 10686.6333 | J150: 1.570702752 | K150: 1.876899691 | L150: 1.008898098 | M150: 1.000981793 | N150: 0.04429425151 | O150: 1.000570614 | P150: 0.06901157977 | Q150: 15.6829884 | R150: -99.80637752 | S150: 80.19362248 | U150: 1000000000 | V150: 72443929.96 | X150: -5.690686229 | Y150: -34.72690928 | AA150: 21.37367463 | AB150: -65.07946824 | AD150: 0 | AE150: 0
A151: 8560.95 | B151: 8.56095 | C151: 2.0943674 | D151: 1.073021995 | E151: 1.000007089 | F151: 0.00376528467 | G151: 1 | H151: 0 | I151: 10748.84664 | J151: 1.570703294 | K151: 1.884730983 | L151: 1.011512005 | M151: 1.000993252 | N151: 0.04455177501 | O151: 1.000577295 | P151: 0.06941351828 | Q151: 15.62970557 | R151: -99.83292797 | S151: 80.16707203 | U151: 1000000000 | V151: 73289864.9 | X151: -5.705038706 | Y151: -34.59192951 | AA151: 21.33474428 | AB151: -65.24099846 | AD151: 0 | AE151: 0
A152: 8610.5 | B152: 8.6105 | C152: 2.103731995 | D152: 1.075439383 | E152: 1.000007171 | F152: 0.003787077587 | G152: 1 | H152: 0 | I152: 10811.05999 | J152: 1.570703829 | K152: 1.892575046 | L152: 1.014104261 | M152: 1.001004777 | N152: 0.04480929259 | O152: 1.000584014 | P152: 0.06981545992 | Q152: 15.57674367 | R152: -99.859475 | S152: 80.140525 | U152: 1000000000 | V152: 74140710.25 | X152: -5.71919213 | Y152: -34.4581895 | AA152: 21.2959358 | AB152: -65.4012855 | AD152: 0 | AE152: 0
A153: 8660.05 | B153: 8.66005 | C153: 2.113108775 | D153: 1.077835331 | E153: 1.000007254 | F153: 0.003808870501 | G153: 1 | H153: 0 | I153: 10873.27333 | J153: 1.570704358 | K153: 1.900431722 | L153: 1.016675101 | M153: 1.001016369 | N153: 0.04506680423 | O153: 1.000590773 | P153: 0.07021740471 | Q153: 15.52409897 | R153: -99.88602016 | S153: 80.11397984 | U153: 1000000000 | V153: 74996466 | X153: -5.733150049 | Y153: -34.32567586 | AA153: 21.25724902 | AB153: -65.5603443 | AD153: 0 | AE153: 0
A154: 8709.6 | B154: 8.7096 | C154: 2.122497578 | D154: 1.080210096 | E154: 1.000007337 | F154: 0.003830663411 | G154: 1 | H154: 0 | I154: 10935.48668 | J154: 1.570704881 | K154: 1.908300855 | L154: 1.019224756 | M154: 1.001028026 | N154: 0.04532430988 | O154: 1.000597572 | P154: 0.07061935265 | Q154: 15.47176779 | R154: -99.91256495 | S154: 80.08743505 | U154: 1000000000 | V154: 75857132.16 | X154: -5.746915937 | Y154: -34.19437538 | AA154: 21.21868373 | AB154: -65.71818956 | AD154: 0 | AE154: =IF(AD154>0,S154,0) -> 0
A155: 8760.325 | B155: 8.760325 | C155: 2.132121311 | D155: 1.082619496 | E155: 1.000007423 | F155: 0.003852973102 | G155: 1 | H155: 0 | I155: 10999.17532 | J155: 1.570705411 | K155: 1.916369336 | L155: 1.021813164 | M155: 1.00104003 | N155: 0.04558791565 | O155: 1.000604571 | P155: 0.07103083545 | Q155: 15.41851666 | R155: -99.93974034 | S155: 80.06025966 | U155: 1000000000 | V155: 76743294.11 | X155: -5.760812896 | Y155: -34.06120434 | AA155: 21.17932956 | AB155: -65.878536 | AD155: 0 | AE155: 0
A156: 8811.05 | B156: 8.81105 | C156: 2.141757309 | D156: 1.085007229 | E156: 1.000007509 | F156: 0.003875282789 | G156: 1 | H156: 0 | I156: 11062.86396 | J156: 1.570705934 | K156: 1.924450548 | L156: 1.024379851 | M156: 1.001052102 | N156: 0.04585151507 | O156: 1.000611613 | P156: 0.0714423216 | Q156: 15.36558651 | R156: -99.96691836 | S156: 80.03308164 | U156: 1000000000 | V156: 77634602.1 | X156: -5.774515744 | Y156: -33.92927714 | AA156: 21.14010225 | AB156: -66.03764122 | AD156: 0 | AE156: 0
A157: 8861.775 | B157: 8.861775 | C157: 2.151405409 | D157: 1.08737356 | E157: 1.000007596 | F157: 0.003897592472 | G157: 1 | H157: 0 | I157: 11126.55259 | J157: 1.570706452 | K157: 1.932544331 | L157: 1.026925055 | M157: 1.001064245 | N157: 0.04611510812 | O157: 1.000618695 | P157: 0.07185381112 | Q157: 15.31297359 | R157: -99.99410046 | S157: 80.00589954 | U157: 1000000000 | V157: 78531056.15 | X157: -5.788027974 | Y157: -33.7985801 | AA157: 21.10100156 | AB157: -66.19552036 | AD157: 0 | AE157: 0
A158: 8912.5 | B158: 8.9125 | C158: 2.161065448 | D158: 1.089718749 | E158: 1.000007683 | F158: 0.003919902152 | G158: 1 | H158: 0 | I158: 11190.24123 | J158: 1.570706963 | K158: =SQRT(1+(A158/Zero2)^2) -> 1.94065053 | L158: =ATAN(A158/Zero2) -> 1.029449013 | M158: 1.001076456 | N158: 0.04637869475 | O158: 1.000625818 | P158: 0.07226530403 | Q158: 15.26067421 | R158: -100.021288 | S158: 79.97871196 | U158: 1000000000 | V158: 79432656.25 | X158: -5.801353004 | Y158: -33.6690997 | AA158: 21.06202721 | AB158: -66.35218834 | AD158: 0 | AE158: 0
A159: 8964.4 | B159: 8.9644 | C159: 2.170961444 | D159: 1.092096648 | E159: 1.000007773 | F159: 0.003942728611 | G159: 1 | H159: 0 | I159: 11255.40516 | J159: 1.570707481 | K159: 1.948957189 | L159: 1.032009688 | M159: 1.001089023 | N159: 0.04664838046 | O159: 1.000633149 | P159: 0.07268633234 | Q159: 15.20748411 | R159: -100.0491125 | S159: 79.95088752 | U159: 1000000000 | V159: 80360467.36 | X159: -5.814796433 | Y159: -33.53786531 | AA159: 21.02228054 | AB159: -66.51124717 | AD159: 0 | AE159: 0
A160: 9016.3 | B160: 9.0163 | C160: 2.180869605 | D160: 1.094452953 | E160: 1.000007863 | F160: 0.003965555066 | G160: 1 | H160: 0 | I160: 11320.56909 | J160: 1.570707992 | K160: 1.95727652 | L160: 1.034548612 | M160: 1.001101663 | N160: 0.04691805939 | O160: 1.000640523 | P160: 0.07310736423 | Q160: 15.15461464 | R160: -100.0769454 | S160: 79.92305455 | U160: 1000000000 | V160: 81293665.69 | X160: -5.8280509 | Y160: -33.40787646 | AA160: 20.98266554 | AB160: -66.66906899 | AD160: 0 | AE160: 0
A161: 9068.2 | B161: 9.0682 | C161: 2.190789764 | D161: 1.096787931 | E161: 1.000007954 | F161: 0.003988381518 | G161: 1 | H161: 0 | I161: 11385.73302 | J161: 1.570708498 | K161: 1.96560836 | L161: 1.037066028 | M161: 1.001114375 | N161: 0.04718773148 | O161: 1.00064794 | P161: 0.07352839973 | Q161: 15.10206204 | R161: -100.1047883 | S161: 79.8952117 | U161: 1000000000 | V161: 82232251.24 | X161: -5.841119834 | Y161: -33.2791192 | AA161: 20.94318187 | AB161: -66.82566911 | AD161: 0 | AE161: 0
A162: 9120.1 | B162: 9.1201 | C162: 2.20072176 | D162: 1.099101846 | E162: 1.000008045 | F162: 0.004011207965 | G162: 1 | H162: 0 | I162: 11450.89695 | J162: 1.570708997 | K162: 1.973952552 | L162: 1.039562176 | M162: 1.00112716 | N162: 0.0474573967 | O162: 1.0006554 | P162: 0.07394943886 | Q162: 15.04982263 | R162: -100.1326423 | S162: 79.86735767 | U162: 1000000000 | V162: 83176224.01 | X162: -5.854006592 | Y162: -33.15157974 | AA162: 20.90382922 | AB162: -66.98106259 | AD162: 0 | AE162: 0
A163: 9173.2 | B163: 9.1732 | C163: 2.210895482 | D163: 1.101447734 | E163: 1.000008139 | F163: 0.004034562186 | G163: 1 | H163: 0 | I163: 11517.56756 | J163: 1.570709503 | K163: 1.982502293 | L163: 1.042094276 | M163: 1.001140316 | N163: 0.04773328981 | O163: 1.000663077 | P163: 0.07438021678 | Q163: 14.99669572 | R163: -100.1611532 | S163: 79.83884676 | U163: 1000000000 | V163: 84147598.24 | X163: -5.867006192 | Y163: -33.02233755 | AA163: 20.86370191 | AB163: -67.13881568 | AD163: 0 | AE163: 0
A164: 9226.3 | B164: 9.2263 | C164: 2.221081259 | D164: 1.103772117 | E164: 1.000008233 | F164: 0.004057916404 | G164: 1 | H164: 0 | I164: 11584.23816 | J164: 1.570710003 | K164: 1.991064637 | L164: 1.044604615 | M164: 1.001153548 | N164: 0.04800917565 | O164: 1.000670799 | P164: 0.07481099853 | Q164: 14.94388902 | R164: -100.1896784 | S164: 79.81032157 | U164: 1000000000 | V164: 85124611.69 | X164: -5.879821973 | Y164: -32.89434149 | AA164: 20.82371099 | AB164: -67.29533693 | AD164: 0 | AE164: 0
A165: 9279.4 | B165: 9.2794 | C165: 2.231278927 | D165: 1.106075267 | E165: 1.000008328 | F165: 0.004081270617 | G165: 1 | H165: 0 | I165: 11650.90877 | J165: 1.570710497 | K165: 1.99963942 | L165: 1.047093439 | M165: 1.001166857 | N165: 0.04828505417 | O165: 1.000678566 | P165: 0.07524178415 | Q165: 14.89139877 | R165: -100.2182191 | S165: 79.78178087 | U165: 1000000000 | V165: 86107264.36 | X165: -5.892457301 | Y165: -32.76757734 | AA165: 20.78385607 | AB165: -67.45064178 | AD165: 0 | AE165: 0
A166: 9332.5 | B166: 9.3325 | C166: 2.241488323 | D166: 1.108357448 | E166: 1.000008424 | F166: 0.004104624825 | G166: 1 | H166: 0 | I166: 11717.57938 | J166: 1.570710985 | K166: 2.008226484 | L166: 1.049560994 | M166: 1.001180241 | N166: 0.04856092534 | O166: 1.000686379 | P166: 0.07567257365 | Q166: 14.83922129 | R166: -100.2467765 | S166: 79.75322348 | U166: 1000000000 | V166: 87095556.25 | X166: -5.904915467 | Y166: -32.64203107 | AA166: 20.74413675 | AB166: -67.60474545 | AD166: 0 | AE166: 0
A167: 9386.85 | B167: 9.38685 | C167: 2.251950032 | D167: 1.110671911 | E167: 1.000008522 | F167: 0.004128528799 | G167: 1 | H167: 0 | I167: 11785.81945 | J167: 1.570711479 | K167: 2.017028245 | L167: 1.052064863 | M167: 1.00119402 | N167: 0.04884328299 | O167: 1.000694422 | P167: 0.07611350819 | Q167: 14.78613562 | R167: -100.2760247 | S167: 79.72397535 | U167: 1000000000 | V167: 88112952.92 | X167: -5.917486798 | Y167: -32.51477614 | AA167: 20.70362242 | AB167: -67.76124851 | AD167: 0 | AE167: 0
A168: 9441.2 | B168: 9.4412 | C168: 2.262423692 | D168: 1.112964957 | E168: 1.000008621 | F168: 0.004152432767 | G168: 1 | H168: 0 | I168: 11854.05952 | J168: 1.570711968 | K168: 2.025842542 | L168: 1.05454696 | M168: 1.001207878 | N168: 0.04912563285 | O168: 1.000702512 | P168: 0.07655444684 | Q168: 14.73336997 | R168: -100.3052926 | S168: 79.69470736 | U168: 1000000000 | V168: 89136257.44 | X168: -5.92987928 | Y168: -32.38876794 | AA168: 20.66324925 | AB168: -67.9165247 | AD168: 0 | AE168: 0
A169: 9495.55 | B169: 9.49555 | C169: 2.272909138 | D169: 1.115236858 | E169: 1.000008721 | F169: 0.004176336731 | G169: 1 | H169: 0 | I169: 11922.29959 | J169: 1.57071245 | K169: 2.034669211 | L169: 1.057007536 | M169: 1.001221817 | N169: 0.04940797487 | O169: 1.00071065 | P169: 0.07699538963 | Q169: 14.68092057 | R169: -100.3345816 | S169: 79.6654184 | U169: 1000000000 | V169: 90165469.8 | X169: -5.942096214 | Y169: -32.26399198 | AA169: 20.62301678 | AB169: -68.07058962 | AD169: 0 | AE169: 0
A170: 9549.9 | B170: 9.5499 | C170: 2.283406209 | D170: 1.117487883 | E170: 1.000008821 | F170: 0.00420024069 | G170: 1 | H170: 0 | I170: 11990.53966 | J170: 1.570712928 | K170: 2.043508093 | L170: 1.059446841 | M170: 1.001235835 | N170: 0.049690309 | O170: 1.000718835 | P170: 0.07743633658 | Q170: 14.62878372 | R170: -100.3638926 | S170: 79.63610737 | U170: 1000000000 | V170: 91200590.01 | X170: -5.954140832 | Y170: -32.140434 | AA170: 20.58292455 | AB170: -68.22345863 | AD170: 0 | AE170: 0
A171: 9605.525 | B171: 9.605525 | C171: 2.294161401 | D171: 1.119770373 | E171: 1.000008924 | F171: 0.004224705409 | G171: 1 | H171: 0 | I171: 12060.38057 | J171: 1.570713411 | K171: 2.052566807 | L171: 1.061921601 | M171: 1.001250264 | N171: 0.04997925822 | O171: 1.000727261 | P171: 0.07788763207 | Q171: 14.57574362 | R171: -100.3939152 | S171: 79.60608482 | U171: 1000000000 | V171: 92266110.53 | X171: -5.966292874 | Y171: -32.01522393 | AA171: 20.5420365 | AB171: -68.37869125 | AD171: 0 | AE171: 0
A172: 9661.15 | B172: 9.66115 | C172: 2.304928433 | D172: 1.122031549 | E172: 1.000009028 | F172: 0.004249170123 | G172: 1 | H172: 0 | I172: 12130.22149 | J172: 1.570713888 | K172: 2.061637981 | L172: 1.064374599 | M172: 1.001264778 | N172: 0.05026819909 | O172: 1.000735736 | P172: 0.07833893196 | Q172: 14.52302326 | R172: -100.423963 | S172: 79.57603702 | U172: 1000000000 | V172: 93337819.32 | X172: -5.978271039 | Y172: -31.89125998 | AA172: 20.5012943 | AB172: -68.532703 | AD172: 0 | AE172: 0
A173: 9716.775 | B173: 9.716775 | C173: 2.31570714 | D173: 1.124271688 | E173: 1.000009132 | F173: 0.004273634831 | G173: 1 | H173: 0 | I173: 12200.0624 | J173: 1.57071436 | K173: 2.070721453 | L173: 1.06680609 | M173: 1.001279374 | N173: 0.05055713155 | O173: 1.000744261 | P173: 0.07879023628 | Q173: 14.47061885 | R173: -100.454037 | S173: 79.54596296 | U173: 1000000000 | V173: 94415716.4 | X173: -5.990078567 | Y173: -31.76852745 | AA173: 20.46069742 | AB173: -68.68550958 | AD173: 0 | AE173: 0
A174: 9772.4 | B174: 9.7724 | C174: 2.32649736 | D174: 1.126491058 | E174: 1.000009237 | F174: 0.004298099534 | G174: 1 | H174: 0 | I174: 12269.90332 | J174: 1.570714827 | K174: 2.079817059 | L174: 1.069216328 | M174: 1.001294055 | N174: 0.05084605557 | O174: 1.000752836 | P174: 0.07924154506 | Q174: 14.4185267 | R174: -100.4841383 | S174: 79.51586167 | U174: 1000000000 | V174: 95499801.76 | X174: -6.001718621 | Y174: -31.64701184 | AA174: 20.42024532 | AB174: -68.83712649 | AD174: 0 | AE174: 0
A175: 9829.3 | B175: 9.8293 | C175: 2.337546653 | D175: 1.128740088 | E175: 1.000009345 | F175: 0.004323124996 | G175: 1 | H175: 0 | I175: 12341.34508 | J175: 1.570715298 | K175: 2.08913354 | L175: 1.071660083 | M175: 1.001309158 | N175: 0.05114159332 | O175: 1.000761659 | P175: 0.07970320308 | Q175: 14.36555978 | R175: -100.5149587 | S175: 79.48504127 | U175: 1000000000 | V175: 96615138.49 | X175: -6.013455435 | Y175: -31.52395509 | AA175: 20.37901522 | AB175: -68.99100364 | AD175: 0 | AE175: 0
A176: 9886.2 | B176: 9.8862 | C176: 2.348607658 | D176: 1.130967946 | E176: 1.000009453 | F176: 0.004348150453 | G176: 1 | H176: 0 | I176: 12412.78685 | J176: 1.570715765 | K176: 2.098462386 | L176: 1.074082124 | M176: 1.001324349 | N176: 0.05143712214 | O176: 1.000770533 | P176: 0.08016486582 | Q176: 14.31291194 | R176: -100.5458095 | S176: 79.45419045 | U176: 1000000000 | V176: 97736950.44 | X176: -6.025023489 | Y176: -31.40214159 | AA176: 20.33793543 | AB176: -69.14366795 | AD176: 0 | AE176: 0
A177: 9943.1 | B177: 9.9431 | C177: 2.35968021 | D177: 1.133174906 | E177: 1.000009562 | F177: 0.004373175904 | G177: 1 | H177: 0 | I177: 12484.22861 | J177: 1.570716226 | K177: 2.107803433 | L177: 1.076482713 | M177: 1.001339627 | N177: 0.05173264196 | O177: 1.00077946 | P177: 0.0806265333 | Q177: 14.2605794 | R177: -100.5766917 | S177: 79.42330832 | U177: 1000000000 | V177: 98865237.61 | X177: -6.03642595 | Y177: -31.28155646 | AA177: 20.29700535 | AB177: -69.29513521 | AD177: 0 | AE177: 0
A178: 10000 | B178: 10 | C178: 2.370764148 | D178: 1.135361241 | E178: 1.000009672 | F178: 0.00439820135 | G178: 1 | H178: 0 | I178: 12555.67038 | J178: 1.570716682 | K178: 2.11715652 | L178: 1.078862104 | M178: 1.001354993 | N178: 0.05202815273 | O178: 1.000788438 | P178: 0.08108820554 | Q178: 14.20855845 | R178: -100.607606 | S178: 79.39239401 | U178: 1000000000 | V178: 100000000 | X178: -6.047665914 | Y178: -31.162185 | AA178: 20.25622436 | AB178: -69.44542099 | AD178: 0 | AE178: 0
A179: 10058.25 | B179: 10.05825 | C179: 2.382122691 | D179: 1.137578362 | E179: 1.000009785 | F179: 0.00442382054 | G179: 1 | H179: 0 | I179: 12628.80715 | J179: 1.570717143 | K179: 2.126743822 | L179: 1.081276256 | M179: 1.001370813 | N179: 0.05233066533 | O179: 1.000797683 | P179: 0.08156083631 | Q179: 14.15562222 | R179: -100.639288 | S179: 79.36071204 | U179: 1000000000 | V179: 101168393.1 | X179: -6.059007389 | Y179: -31.04122343 | AA179: 20.21462961 | AB179: -69.59806453 | AD179: 0 | AE179: 0
A180: 10116.5 | B180: 10.1165 | C180: 2.393492831 | D180: 1.139774429 | E180: 1.000009899 | F180: 0.004449439723 | G180: 1 | H180: 0 | I180: 12701.94393 | J180: 1.570717599 | K180: 2.136343409 | L180: 1.083668725 | M180: 1.001386726 | N180: 0.05263316834 | O180: 1.000806983 | P180: 0.08203347214 | Q180: 14.10300487 | R180: -100.6710054 | S180: 79.32899464 | U180: 1000000000 | V180: 102343572.2 | X180: -6.07018491 | Y180: -30.92150329 | AA180: 20.17318978 | AB180: -69.74950207 | AD180: 0 | AE180: 0
A181: 10174.75 | B181: 10.17475 | C181: 2.404874406 | D181: 1.14194972 | E181: 1.000010013 | F181: 0.004475058901 | G181: 1 | H181: 0 | I181: 12775.08071 | J181: 1.570718049 | K181: 2.145955113 | L181: 1.086039777 | M181: 1.00140273 | N181: 0.05293566171 | O181: 1.000816337 | P181: 0.08250611304 | Q181: 14.05070262 | R181: -100.702759 | S181: 79.29724103 | U181: 1000000000 | V181: 103525537.6 | X181: -6.081201579 | Y181: -30.80300948 | AA181: 20.1319042 | AB181: -69.8997495 | AD181: 0 | AE181: 0
A182: 10233 | B182: 10.233 | C182: 2.416267253 | D182: 1.144104507 | E182: 1.000010128 | F182: 0.004500678073 | G182: 1 | H182: 0 | I182: 12848.21749 | J182: 1.570718495 | K182: 2.155578775 | L182: 1.08838967 | M182: 1.001418826 | N182: 0.05323814538 | O182: 1.000825746 | P182: 0.08297875906 | Q182: 13.99871176 | R182: -100.7345496 | S182: 79.26545044 | U182: 1000000000 | V182: 104714289 | X182: -6.092060428 | Y182: -30.68572709 | AA182: 20.09077219 | AB182: -70.04882248 | AD182: 0 | AE182: 0
A183: 10292.5 | B183: 10.2925 | C183: 2.427916054 | D183: 1.146284646 | E183: 1.000010246 | F183: 0.004526847007 | G183: 1 | H183: 0 | I183: 12922.92373 | J183: 1.570718945 | K183: 2.165421131 | L183: 1.090768412 | M183: 1.001435361 | N183: 0.05354711005 | O183: 1.000835413 | P183: 0.08346155299 | Q183: 13.9459229 | R183: -100.7670613 | S183: 79.23293873 | U183: 1000000000 | V183: 105935556.2 | X183: -6.102992443 | Y183: -30.56716333 | AA183: 20.04891534 | AB183: -70.19989794 | AD183: 0 | AE183: 0
A184: 10352 | B184: 10.352 | C184: 2.439576286 | D184: 1.148443955 | E184: 1.000010365 | F184: 0.004553015934 | G184: 1 | H184: 0 | I184: 12997.62997 | J184: 1.57071939 | K184: 2.17527563 | L184: 1.093125616 | M184: 1.001451993 | N184: 0.05385606449 | O184: 1.000845137 | P184: 0.08394435232 | Q184: 13.89345129 | R184: -100.799613 | S184: 79.20038697 | U184: 1000000000 | V184: 107163904 | X184: -6.113765969 | Y184: -30.44983281 | AA184: 20.00721726 | AB184: -70.34978022 | AD184: 0 | AE184: 0
A185: 10411.5 | B185: 10.4115 | C185: 2.451247783 | D185: 1.150582711 | E185: 1.000010485 | F185: 0.004579184855 | G185: 1 | H185: 0 | I185: 13072.33621 | J185: 1.570719829 | K185: 2.185142106 | L185: 1.095461545 | M185: 1.001468719 | N185: 0.05416500863 | O185: 1.000854918 | P185: 0.08442715707 | Q185: 13.84129318 | R185: -100.8322055 | S185: 79.16779448 | U185: 1000000000 | V185: 108399332.2 | X185: -6.124384022 | Y185: -30.3337203 | AA185: 19.9656772 | AB185: -70.49848522 | AD185: 0 | AE185: 0
A186: 10471 | B186: 10.471 | C186: 2.462930387 | D186: 1.152701187 | E186: 1.000010605 | F186: 0.00460535377 | G186: 1 | H186: 0 | I186: 13147.04245 | J186: 1.570720264 | K186: 2.195020398 | L186: 1.097776462 | M186: 1.001485542 | N186: 0.05447394243 | O186: 1.000864755 | P186: 0.08490996727 | Q186: 13.78944486 | R186: -100.8648394 | S186: 79.13516061 | U186: 1000000000 | V186: 109641841 | X186: -6.134849551 | Y186: -30.21881084 | AA186: 19.92429441 | AB186: -70.64602856 | AD186: 0 | AE186: 0
A187: 10532 | B187: 10.532 | C187: 2.474918876 | D187: 1.154852297 | E187: 1.000010729 | F187: 0.004632182399 | G187: 1 | H187: 0 | I187: 13223.63204 | J187: 1.570720705 | K187: 2.205159823 | L187: 1.100128194 | M187: 1.001502888 | N187: 0.05479065367 | O187: 1.0008749 | P187: 0.08540495484 | Q187: 13.73660723 | R187: -100.8983396 | S187: 79.10166044 | U187: 1000000000 | V187: 110923024 | X187: -6.145423589 | Y187: -30.10223795 | AA187: 19.88203082 | AB187: -70.79610161 | AD187: 0 | AE187: 0
A188: 10593 | B188: 10.593 | C188: 2.486918707 | D188: 1.156982658 | E188: 1.000010853 | F188: 0.004659011021 | G188: 1 | H188: 0 | I188: 13300.22162 | J188: 1.57072114 | K188: 2.215311333 | L188: 1.102458386 | M188: 1.001520334 | N188: 0.05510735391 | O188: 1.000885105 | P188: 0.0858999482 | Q188: 13.68408755 | R188: -100.9318845 | S188: 79.06811552 | U188: 1000000000 | V188: 112211649 | X188: -6.155843374 | Y188: -29.98689832 | AA188: 19.83993093 | AB188: -70.94498616 | AD188: 0 | AE188: 0
A189: 10654 | B189: 10.654 | C189: 2.498929716 | D189: 1.159092549 | E189: 1.000010979 | F189: 0.004685839637 | G189: 1 | H189: 0 | I189: 13376.81121 | J189: 1.570721571 | K189: 2.225474761 | L189: 1.104767308 | M189: 1.001537881 | N189: 0.05542404308 | O189: 1.000895369 | P189: 0.08639494739 | Q189: 13.63188202 | R189: -100.9654747 | S189: 79.03452528 | U189: 1000000000 | V189: 113507716 | X189: -6.16611187 | Y189: -29.8727765 | AA189: 19.79799389 | AB189: -71.09269822 | AD189: 0 | AE189: 0
A190: 10715 | B190: 10.715 | C190: 2.510951742 | D190: 1.161182246 | E190: 1.000011105 | F190: 0.004712668246 | G190: 1 | H190: 0 | I190: 13453.4008 | J190: 1.570721996 | K190: 2.235649946 | L190: 1.107055223 | M190: 1.001555528 | N190: 0.05574072112 | O190: 1.000905694 | P190: 0.08688995244 | Q190: 13.57998693 | R190: -100.9991108 | S190: 79.00088915 | U190: 1000000000 | V190: 114811225 | X190: -6.17623197 | Y190: -29.75985728 | AA190: 19.7562189 | AB190: -71.23925357 | AD190: 0 | AE190: 0
A191: 10777.5 | B191: 10.7775 | C191: 2.523280655 | D191: 1.163302666 | E191: 1.000011235 | F191: 0.004740156567 | G191: 1 | H191: 0 | I191: 13531.87374 | J191: 1.570722427 | K191: 2.246087367 | L191: 1.109377887 | M191: 1.001573713 | N191: 0.05606517472 | O191: 1.000916334 | P191: 0.08739713585 | Q191: 13.52713388 | R191: -101.0336222 | S191: 78.9663778 | U191: 1000000000 | V191: 116154506.2 | X191: -6.186449968 | Y191: -29.64539299 | AA191: 19.71358385 | AB191: -71.38822921 | AD191: 0 | AE191: 0
A192: 10840 | B192: 10.84 | C192: 2.535620803 | D192: 1.165402457 | E192: 1.000011365 | F192: 0.004767644882 | G192: 1 | H192: 0 | I192: 13610.34668 | J192: 1.570722853 | K192: 2.256536792 | L192: 1.111679051 | M192: 1.001592004 | N192: 0.0563896165 | O192: 1.000927037 | P192: 0.08790432548 | Q192: 13.47459901 | R192: -101.0681828 | S192: 78.93181724 | U192: 1000000000 | V192: 117505600 | X192: -6.196518124 | Y192: -29.53215954 | AA192: 19.67111714 | AB192: -71.53602322 | AD192: 0 | AE192: 0
A193: 10902.5 | B193: 10.9025 | C193: 2.547972023 | D193: 1.167481899 | E193: 1.000011497 | F193: 0.004795133189 | G193: 1 | H193: 0 | I193: 13688.81962 | J193: 1.570723274 | K193: 2.266998057 | L193: 1.11395899 | M193: 1.0016104 | N193: 0.0567140464 | O193: 1.000937804 | P193: 0.08841152136 | Q193: 13.42237854 | R193: -101.102793 | S193: 78.89720701 | U193: 1000000000 | V193: 118864506.2 | X193: -6.206439339 | Y193: -29.42014127 | AA193: 19.62881788 | AB193: -71.68265172 | AD193: 0 | AE193: 0
A194: 10965 | B194: 10.965 | C194: 2.560334154 | D194: 1.16954127 | E194: 1.000011629 | F194: 0.004822621489 | G194: 1 | H194: 0 | I194: 13767.29256 | J194: 1.570723691 | K194: 2.277470997 | L194: 1.116217971 | M194: 1.001628901 | N194: 0.05703846435 | O194: 1.000948633 | P194: 0.08891872353 | Q194: 13.37046871 | R194: -101.1374534 | S194: 78.86254664 | U194: 1000000000 | V194: 120231225 | X194: -6.21621645 | Y194: -29.3093228 | AA194: 19.58668516 | AB194: -71.82813056 | AD194: 0 | AE194: 0
A195: 11028.75 | B195: 11.02875 | C195: 2.572954605 | D195: 1.171621433 | E195: 1.000011765 | F195: 0.004850659548 | G195: 1 | H195: 0 | I195: 13847.33496 | J195: 1.570724111 | K195: 2.288165259 | L195: 1.118500818 | M195: 1.001647881 | N195: 0.05736935828 | O195: 1.000959743 | P195: 0.08943607625 | Q195: 13.31783692 | R195: -101.172859 | S195: 78.82714101 | U195: 1000000000 | V195: 121633326.6 | X195: -6.226043517 | Y195: -29.19750823 | AA195: 19.54388044 | AB195: -71.97535076 | AD195: 0 | AE195: 0
A196: 11092.5 | B196: 11.0925 | C196: 2.585586081 | D196: 1.17368128 | E196: 1.000011901 | F196: 0.004878697598 | G196: 1 | H196: 0 | I196: 13927.37736 | J196: 1.570724526 | K196: 2.298871334 | L196: 1.120762413 | M196: 1.001666971 | N196: 0.05770023963 | O196: 1.00097092 | P196: 0.08995343558 | Q196: 13.26552069 | R196: -101.2083176 | S196: 78.79168239 | U196: 1000000000 | V196: 123043556.2 | X196: -6.23572641 | Y196: -29.08691027 | AA196: 19.5012471 | AB196: -72.12140734 | AD196: 0 | AE196: 0
A197: 11156.25 | B197: 11.15625 | C197: 2.598228421 | D197: 1.17572109 | E197: 1.000012038 | F197: 0.004906735642 | G197: 1 | H197: 0 | I197: 14007.41975 | J197: 1.570724936 | K197: 2.309589058 | L197: 1.123003029 | M197: 1.001686171 | N197: 0.05803110833 | O197: 1.000982161 | P197: 0.09047080157 | Q197: 13.21351625 | R197: -101.2438296 | S197: 78.75617043 | U197: 1000000000 | V197: 124461914.1 | X197: -6.245267932 | Y197: -28.9775133 | AA197: 19.45878419 | AB197: -72.26631626 | AD197: 0 | AE197: 0
A198: 11220 | B198: 11.22 | C198: 2.610881466 | D198: 1.177741137 | E198: 1.000012176 | F198: 0.004934773677 | G198: 1 | H198: 0 | I198: 14087.46215 | J198: 1.570725342 | K198: 2.32031827 | L198: 1.125222935 | M198: 1.00170548 | N198: 0.05836196431 | O198: 1.000993468 | P198: 0.09098817424 | Q198: 13.16181992 | R198: -101.2793952 | S198: 78.72060479 | U198: 1000000000 | V198: 125888400 | X198: -6.254670821 | Y198: -28.86930195 | AA198: 19.41649074 | AB198: -72.41009326 | AD198: 0 | AE198: 0
A199: 11285.5 | B199: 11.2855 | C199: 2.623892839 | D199: 1.179796336 | E199: 1.000012319 | F199: 0.004963581376 | G199: 1 | H199: 0 | I199: 14169.70179 | J199: 1.570725754 | K199: 2.331353808 | L199: 1.127482486 | M199: 1.001725433 | N199: 0.05870188929 | O199: 1.001005154 | P199: 0.0915197563 | Q199: 13.10902155 | R199: -101.3159934 | S199: 78.6840066 | U199: 1000000000 | V199: 127362510.2 | X199: -6.264190246 | Y199: -28.75933906 | AA199: 19.3732118 | AB199: -72.55665435 | AD199: 0 | AE199: 0
A200: 11351 | B200: 11.351 | C200: 2.636915185 | D200: 1.181831245 | E200: 1.000012462 | F200: 0.004992389067 | G200: 1 | H200: 0 | I200: 14251.94143 | J200: 1.570726161 | K200: 2.342401137 | L200: 1.129720736 | M200: 1.001745502 | N200: 0.05904180069 | O200: 1.00101691 | P200: 0.09205134549 | Q200: 13.05654073 | R200: -101.3526489 | S200: 78.6473511 | U200: 1000000000 | V200: 128845201 | X200: -6.273568979 | Y200: -28.65059562 | AA200: 19.33010971 | AB200: -72.70205328 | AD200: 0 | AE200: 0
A201: 11416.5 | B201: 11.4165 | C201: 2.649948342 | D201: 1.183846145 | E201: 1.000012606 | F201: 0.005021196749 | G201: 1 | H201: 0 | I201: 14334.18107 | J201: 1.570726563 | K201: 2.35346009 | L201: 1.131937961 | M201: 1.001765687 | N201: 0.05938169843 | O201: 1.001028734 | P201: 0.09258294187 | Q201: 13.00437364 | R201: -101.389362 | S201: 78.61063804 | U201: 1000000000 | V201: 130336472.2 | X201: -6.282809785 | Y201: -28.54305573 | AA201: 19.28718342 | AB201: -72.84630624 | AD201: 0 | AE201: 0
A202: 11482 | B202: 11.482 | C202: 2.662992153 | D202: 1.185841315 | E202: 1.000012751 | F202: 0.005050004423 | G202: 1 | H202: 0 | I202: 14416.42071 | J202: 1.570726961 | K202: 2.364530505 | L202: 1.134134436 | M202: 1.001785988 | N202: 0.05972158244 | O202: 1.001040628 | P202: 0.09311454545 | Q202: 12.95251654 | R202: -101.4261328 | S202: 78.57386716 | U202: 1000000000 | V202: 131836324 | X202: -6.291915366 | Y202: -28.43670372 | AA202: 19.2444319 | AB202: -72.98942912 | AD202: 0 | AE202: 0
... 433 more rows

Sheet Ch2 Stability Calculations (hidden)
A2: Divider Network & EA Poles/Zeros | E2: Modulator | J2: Power Stage Poles/Zeros | M2: Complex Pole Pair | P2: Total System
B3: Afb1 | C3: =Afb_Ch2 -> 0.16 | D3: V/V | E3: Acs | F3: =Acs_Ch2 -> 50 | G3: A/V | H3: gm | I3: =gm -> 0.0006 | J3: z_ESR | K3: =Fesr_Ch2 -> 964575.4138 | L3: Hz | M3: p3 | N3: =Fsw/2 -> 200000 | O3: Hz | P3: Adc | Q3: =Am_Ch2*Afb_Ch2*AEA -> 84875.18705 | R3: V/V
B4: EA zero, z1 | C4: =Fz1_u_Ch2 -> 5508.99769 | D4: Hz | E4: Am | F4: =Am_Ch2 -> 11.9475207 | G4: V/V | J4: p_dom | K4: =Fp_dominant_Ch2 -> 4036.717902 | L4: Hz | M4: pterm1 | N4: =Q_Ch2*pole3 -> 134311.5182 | P4: Crossover | Q4: =AE7 -> 47.863 | R4: kHz
B5: EA pole, p1 | C5: =Fp1_u_Ch2 -> 0.7964561244 | D5: Hz | E5: Q | F5: =Q_Ch2 -> 0.6715575912 | M5: pterm2 | N5: =pole3^2 -> 40000000000 | P5: Phase Margin | Q5: =AE9 -> 56.76141132 | R5: °
B6: Aea | C6: =AEA -> 44400 | D6: V/V | E6: mc | F6: =mc_Ch2 -> 1.088794926 | P6: radconv | Q6: =180/Pi -> 57.29577958 | AD6: XOVER SEARCH
B7: EA pole, p2 | C7: =Fp2_u_Ch2 -> 197414.1986 | D7: Hz | E7: k | F7: =k_Ch2 -> 0.9739874744 | AD7: xover | AE7: =SUM(AD12:AD613)/1000 -> 47.863
AD9: phase margin | AE9: =SUM(AE13:AE613) -> 56.76141132
A10: Freq (Hz) | C10: Power Stage | I10: Error Amplifier | O10: Sampling Double Pole | Q10: System Response | X10: ERROR AMP Response | AA10: PLANT Response
C11: p_dom | E11: z_ESR | G11: z_RHP | I11: p1 | K11: z1 | M11: p2 | O11: p3
C12: Gain(V/V) | D12: Phase(rad) | E12: Gain(V/V) | F12: Phase(rad) | G12: Gain(V/V) | H12: Phase(rad) | I12: Gain(V/V) | J12: Phase(rad) | K12: Gain(V/V) | L12: Phase(rad) | M12: Gain(V/V) | N12: Phase(rad) | O12: Gain(V/V) | P12: Phase(rad) | Q12: Gain (dB) | R12: Phase (°) | S12: Phase Margin (°) | V12: Fsquare | X12: Gain(dB) | Y12: Phase(Deg) | AA12: Gain(dB) | AB12: Phase(Deg)
A13: 1 | B13: =A13/1000 -> 0.001 | C13: =SQRT(1+(A13/pole1)^2) -> 1.000000031 | D13: =ATAN(A13/pole1) -> 0.0002477260001 | E13: =SQRT(1+(A13/Zero1)^2) -> 1 | F13: =ATAN(A13/Zero1) -> 1.036725574e-06 | G13: =IF(VIN_nom>Vout, 1, SQRT(1+(A13/z_RHP)^2)) -> 1 | H13: =IF(VIN_nom>Vout, 0, -ATAN(A13/z_RHP)) -> 0 | I13: =SQRT(1+(A13/Pole2)^2) -> 1.605127969 | J13: =ATAN(A13/Pole2) -> 0.898220023 | K13: =SQRT(1+(A13/Zero2)^2) -> 1.000000016 | L13: =ATAN(A13/Zero2) -> 0.0001815212213 | M13: =SQRT(1+(A13/pole4)^2) -> 1 | N13: =ATAN(A13/pole4) -> 5.065491778e-06 | O13: =SQRT((1-(V13/pterm2))^2+(A13/pterm1)^2) -> 1 | P13: =IF((ATAN((A13/pterm1)/(1-A13^2/pterm2))>0),ATAN((A13/pterm1)/(1-A13^2/pterm2)),PI()+ATAN((A13/pterm1)/(1-A13^2/pterm2))) -> 7.445377828e-06 | Q13: =20*LOG10(((E13*K13*G13)/(C13*I13*O13*M13))*Adc) -> 94.46542152 | R13: =((F13+L13+H13)-(D13+J13+P13+N13))*radconv -> -51.46866713 | S13: =IF(R13>0,R13,R13+180) -> 128.5313329 | U13: =IF(Q13<0,A13,1000000000) -> 1000000000 | V13: =A13^2 -> 1 | X13: =20*LOG10((K13/(I13*M13))*AEA*Afb_Ch2) -> 72.91986595 | Y13: =(L13-(J13+N13))*radconv -> -51.45410628 | AA13: =20*LOG10((E13*G13/(C13*O13))*Am_Ch2) -> 21.54555557 | AB13: =(F13+H13-(D13+P13))*radconv -> -0.01456084303 | AD13: =SUM((Q14<0)*(Q13>0))*A13 -> 0 | AE13: =IF(AD13>0,S11,0) -> 0
A14: 1.0965 | B14: =A14/1000 -> 0.0010965 | C14: 1.000000037 | D14: 0.000271631558 | E14: 1 | F14: 1.136769592e-06 | G14: 1 | H14: 0 | I14: 1.701578111 | J14: 0.9425958491 | K14: 1.00000002 | L14: 0.0001990380187 | M14: 1 | N14: 5.554311735e-06 | O14: 1 | P14: 8.163856789e-06 | Q14: 93.95857693 | R14: -54.01164416 | S14: 125.9883558 | U14: =IF(Q14<0,A14,1000000000) -> 1000000000 | V14: =A14^2 -> 1.20231225 | X14: 72.41302142 | Y14: =(L14-(J14+N14))*radconv -> -53.9956782 | AA14: 21.54555551 | AB14: -0.01596596431 | AD14: =SUM((Q15<0)*(Q14>0))*A14 -> 0 | AE14: 0
A15: 1.2023 | B15: 0.0012023 | C15: 1.000000044 | D15: 0.0002978409673 | E15: 1 | F15: 1.246455158e-06 | G15: 1 | H15: 0 | I15: 1.810739576 | J15: 0.9857229796 | K15: 1.000000024 | L15: 0.0002182429633 | M15: 1 | N15: 6.090240765e-06 | O15: 1 | P15: 8.951577763e-06 | Q15: 93.41849484 | R15: -56.48311761 | S15: 123.5168824 | U15: 1000000000 | V15: 1.44552529 | X15: 71.87293939 | Y15: -56.46561111 | AA15: 21.54555545 | AB15: -0.01750650142 | AD15: 0 | AE15: 0
A16: 1.3183 | B16: 0.0013183 | C16: 1.000000053 | D16: 0.0003265771811 | E16: 1 | F16: 1.366715325e-06 | G16: 1 | H16: 0 | I16: 1.933833303 | J16: 1.027328064 | K16: 1.000000029 | L16: 0.0002392994241 | M16: 1 | N16: 6.677837811e-06 | O16: 1 | P16: 9.815241591e-06 | Q16: 92.84723397 | R16: -58.86742962 | S16: 121.1325704 | U16: 1000000000 | V16: 1.73791489 | X16: 71.3016786 | Y16: -58.84823406 | AA16: 21.54555537 | AB16: -0.01919555908 | AD16: 0 | AE16: 0
A17: 1.4454 | B17: 0.0014454 | C17: 1.000000064 | D17: 0.0003580631526 | E17: 1 | F17: 1.498483145e-06 | G17: 1 | H17: 0 | I17: 2.072066593 | J17: 1.067164073 | K17: 1.000000034 | L17: 0.0002623707702 | M17: 1 | N17: 7.321661816e-06 | O17: 1 | P17: 1.076154911e-05 | Q17: 92.24754045 | R17: -61.15043049 | S17: 118.8495695 | U17: 1000000000 | V17: 2.08918116 | X17: 70.70198518 | Y17: -61.12938424 | AA17: 21.54555528 | AB17: -0.02104624205 | AD17: 0 | AE17: 0
A18: 1.5849 | B18: 0.0015849 | C18: 1.000000077 | D18: 0.0003926209255 | E18: 1 | F18: 1.643106363e-06 | G18: 1 | H18: 0 | I18: 2.227074696 | J18: 1.105128617 | K18: 1.000000041 | L18: 0.0002876929789 | M18: 1 | N18: 8.028297919e-06 | O18: 1 | P18: 1.180017932e-05 | Q18: 91.62091891 | R18: -63.32625951 | S18: 116.6737405 | U18: 1000000000 | V18: 2.51190801 | X18: 70.07536374 | Y18: -63.30318203 | AA18: 21.54555516 | AB18: -0.02307747942 | AD18: 0 | AE18: 0
A19: 1.7378 | B19: 0.0017378 | C19: 1.000000093 | D19: 0.0004304982253 | E19: 1 | F19: 1.801621703e-06 | G19: 1 | H19: 0 | I19: 2.400157381 | J19: 1.14105095 | K19: 1.00000005 | L19: 0.0003154475714 | M19: 1 | N19: 8.802811612e-06 | O19: 1 | P19: 1.293857759e-05 | Q19: 90.97082012 | R19: -65.38513808 | S19: 114.6148619 | U19: 1000000000 | V19: 3.01994884 | X19: 69.42526509 | Y19: -65.35983425 | AA19: 21.54555503 | AB19: -0.02530383199 | AD19: 0 | AE19: 0
A20: 1.9055 | B20: 0.0019055 | C20: 1.000000111 | D20: 0.0004720418679 | E20: 1 | F20: 1.975480582e-06 | G20: 1 | H20: 0 | I20: 2.593053879 | J20: 1.174888805 | K20: 1.00000006 | L20: 0.0003458886772 | M20: 1 | N20: 9.652294583e-06 | O20: 1 | P20: 1.418716745e-05 | Q20: 90.29938363 | R20: -67.32465075 | S20: 112.6753492 | U20: 1000000000 | V20: 3.63093025 | X20: 68.75382876 | Y20: -67.29690507 | AA20: 21.54555486 | AB20: -0.02774568493 | AD20: 0 | AE20: 0
A21: 2.0893 | B21: 0.0020893 | C21: 1.000000134 | D21: 0.0005175738965 | E21: 1 | F21: 2.166030743e-06 | G21: 1 | H21: 0 | I21: 2.807386208 | J21: 1.206594897 | K21: 1.000000072 | L21: 0.0003792522737 | M21: 1 | N21: 1.058333197e-05 | O21: 1 | P21: 1.55556279e-05 | Q21: 89.60957111 | R21: -69.14209404 | S21: 110.857906 | U21: 1000000000 | V21: 4.36517449 | X21: 68.06401644 | Y21: -69.11167207 | AA21: 21.54555467 | AB21: -0.0304219673 | AD21: 0 | AE21: 0
A22: 2.2909 | B22: 0.0022909 | C22: 1.000000161 | D22: 0.0005675154444 | E22: 1 | F22: 2.375034619e-06 | G22: 1 | H22: 0 | I22: 3.045239941 | J22: 1.236206946 | K22: 1.000000086 | L22: 0.0004158469465 | M22: 1 | N22: 1.160453511e-05 | O22: 1 | P22: 1.705661607e-05 | Q22: 88.90318389 | R22: -70.83963675 | S22: 109.1603633 | U22: 1000000000 | V22: 5.24822281 | X22: 67.35762946 | Y22: -70.80627932 | AA22: 21.54555443 | AB22: -0.03335743247 | AD22: 0 | AE22: 0
A23: 2.5119 | B23: 0.0025119 | C23: 1.000000194 | D23: 0.0006222628722 | E23: 1 | F23: 2.604150971e-06 | G23: 1 | H23: 0 | I23: 3.30858654 | J23: 1.263750585 | K23: 1.000000104 | L23: 0.0004559631293 | M23: 1 | N23: 1.27240088e-05 | O23: 1 | P23: 1.870204457e-05 | Q23: 88.18276414 | R23: -72.41875461 | S23: 107.5812454 | U23: 1000000000 | V23: 6.30964161 | X23: 66.63720999 | Y23: -72.38217923 | AA23: 21.54555415 | AB23: -0.03657537773 | AD23: 0 | AE23: 0
A24: 2.7542 | B24: 0.0027542 | C24: 1.000000233 | D24: 0.0006822868577 | E24: 1 | F24: 2.855349577e-06 | G24: 1 | H24: 0 | I24: 3.599755433 | J24: 1.289296608 | K24: 1.000000125 | L24: 0.0004999457116 | M24: 1 | N24: 1.395137745e-05 | O24: 1 | P24: 2.050605962e-05 | Q24: 87.45015403 | R24: -73.88351232 | S24: 106.1164877 | U24: 1000000000 | V24: 7.58561764 | X24: 65.90460022 | Y24: -73.84340885 | AA24: 21.54555381 | AB24: -0.0401034686 | AD24: 0 | AE24: 0
A25: 3.02 | B25: 0.00302 | C25: 1.00000028 | D25: 0.0007481323962 | E25: 1 | F25: 3.130911235e-06 | G25: 1 | H25: 0 | I25: 3.921444253 | J25: 1.312940259 | K25: 1.00000015 | L25: 0.0005481940395 | M25: 1 | N25: 1.529778517e-05 | O25: 1 | P25: 2.248504104e-05 | Q25: 86.70669285 | R25: -75.23937673 | S25: 104.7606233 | U25: 1000000000 | V25: 9.1204 | X25: 65.16113945 | Y25: -75.19540299 | AA25: 21.5455534 | AB25: -0.04397373882 | AD25: 0 | AE25: 0
A26: 3.3113 | B26: 0.0033113 | C26: 1.000000336 | D26: 0.0008202949371 | E26: 1 | F26: 3.432909395e-06 | G26: 1 | H26: 0 | I26: 4.276114789 | J26: 1.334753373 | K26: 1.000000181 | L26: 0.0006010711544 | M26: 1 | N26: 1.677336292e-05 | O26: 1 | P26: 2.46538796e-05 | Q26: 85.95462643 | R26: -76.49047258 | S26: 103.5095274 | U26: 1000000000 | V26: 10.96470769 | X26: 64.40907352 | Y26: -76.44225727 | AA26: 21.54555291 | AB26: -0.04821530994 | AD26: 0 | AE26: 0
A27: 3.6308 | B27: 0.0036308 | C27: 1.000000404 | D27: 0.0008994433372 | E27: 1 | F27: 3.764143216e-06 | G27: 1 | H27: 0 | I27: 4.66708622 | J27: 1.35485555 | K27: 1.000000217 | L27: 0.0006590671622 | M27: 1 | N27: 1.839178755e-05 | O27: 1 | P27: 2.703267782e-05 | Q27: 85.19469678 | R27: -77.64366443 | S27: 102.3563356 | U27: 1000000000 | V27: 13.18270864 | X27: 63.64914446 | Y27: -77.59079694 | AA27: 21.54555232 | AB27: -0.05286749602 | AD27: 0 | AE27: 0
A28: 3.9811 | B28: 0.0039811 | C28: 1.000000486 | D28: 0.0009862216796 | E28: 1 | F28: 4.127308185e-06 | G28: 1 | H28: 0 | I28: 5.097565964 | J28: 1.373343737 | K28: 1.000000261 | L28: 0.0007226540164 | M28: 1 | N28: 2.016622932e-05 | O28: 1 | P28: 2.964079367e-05 | Q28: 84.42835584 | R28: -78.70451864 | S28: 101.2954814 | U28: 1000000000 | V28: 15.84915721 | X28: 62.88280423 | Y28: -78.64655048 | AA28: 21.54555161 | AB28: -0.05796815501 | AD28: 0 | AE28: 0
A29: 4.3652 | B29: 0.0043652 | C29: 1.000000585 | D29: 0.001081373136 | E29: 1 | F29: 4.525514478e-06 | G29: 1 | H29: 0 | I29: 5.57126004 | J29: 1.390325667 | K29: 1.000000314 | L29: 0.0007923762782 | M29: 1 | N29: 2.211188471e-05 | O29: 1 | P29: 3.25005633e-05 | Q29: 83.65654394 | R29: -79.67922104 | S29: 100.320779 | U29: 1000000000 | V29: 19.05497104 | X29: 62.11099319 | Y29: -79.61566007 | AA29: 21.54555075 | AB29: -0.0635609691 | AD29: 0 | AE29: 0
A30: 4.7863 | B30: 0.0047863 | C30: 1.000000703 | D30: 0.001185690423 | E30: 1 | F30: 4.962079617e-06 | G30: 1 | H30: 0 | I30: 6.092129659 | J30: 1.405903907 | K30: 1.000000377 | L30: 0.0008688148126 | M30: 1 | N30: 2.424496329e-05 | O30: 1 | P30: 3.56358119e-05 | Q30: 82.8802293 | R30: -80.57366261 | S30: 99.42633739 | U30: 1000000000 | V30: 22.90866769 | X30: 61.33467957 | Y30: -80.50397008 | AA30: 21.54554973 | AB30: -0.06969253254 | AD30: 0 | AE30: 0
A31: 5.2481 | B31: 0.0052481 | C31: 1.000000845 | D31: 0.001300090115 | E31: 1 | F31: 5.440839487e-06 | G31: 1 | H31: 0 | I31: 6.664763118 | J31: 1.420184722 | K31: 1.000000454 | L31: 0.0009526412439 | M31: 1 | N31: 2.658420739e-05 | O31: 1 | P31: 3.907408739e-05 | Q31: 82.09991712 | R31: -81.39394833 | S31: 98.60605167 | U31: 1000000000 | V31: 27.54255361 | X31: 60.55436863 | Y31: -81.31753161 | AA31: 21.54554849 | AB31: -0.07641671985 | AD31: 0 | AE31: 0
A32: 5.7544 | B32: 0.0057544 | C32: 1.000001016 | D32: 0.001425513559 | E32: 1 | F32: 5.965733646e-06 | G32: 1 | H32: 0 | I32: 7.293881454 | J32: 1.43326193 | K32: 1.000000546 | L32: 0.001044545348 | M32: 1 | N32: 2.914886588e-05 | O32: 1 | P32: 4.284368218e-05 | Q32: 81.31643679 | R32: -82.14547052 | S32: 97.85452948 | U32: 1000000000 | V32: 33.11311936 | X32: 59.77088978 | Y32: -82.06168166 | AA32: 21.54554701 | AB32: -0.08378886146 | AD32: 0 | AE32: 0
A33: 6.3096 | B33: 0.0063096 | C33: 1.000001222 | D33: 0.00156305073 | E33: 1 | F33: 6.541323685e-06 | G33: 1 | H33: 0 | I33: 7.984958841 | J33: 1.44523117 | K33: 1.000000656 | L33: 0.00114532581 | M33: 1.000000001 | N33: 3.196122691e-05 | O33: 1 | P33: 4.697735596e-05 | Q33: 80.53015633 | R33: -82.83372848 | S33: 97.16627152 | U33: 1000000000 | V33: 39.81105216 | X33: 58.98461111 | Y33: -82.74185546 | AA33: 21.54554522 | AB33: -0.09187302406 | AD33: 0 | AE33: 0
A34: 6.9183 | B34: 0.0069183 | C34: 1.000001469 | D34: 0.001713841144 | E34: 1 | F34: 7.172378542e-06 | G34: 1 | H34: 0 | I34: 8.74372628 | J34: 1.456177811 | K34: 1.000000789 | L34: 0.001255817619 | M34: 1.000000001 | N34: 3.504459175e-05 | O34: 1 | P34: 5.150935744e-05 | Q34: 79.7416779 | R34: -83.46363394 | S34: 96.53636606 | U34: 1000000000 | V34: 47.86287489 | X34: 58.19613483 | Y34: -83.36289775 | AA34: 21.54554308 | AB34: -0.1007361862 | AD34: 0 | AE34: 0
A35: 7.5858 | B35: 0.0075858 | C35: 1.000001766 | D35: 0.001879197718 | E35: 1 | F35: 7.864392863e-06 | G35: 1 | H35: 0 | I35: 9.576794429 | J35: 1.466186563 | K35: 1.000000948 | L35: 0.001376982826 | M35: 1.000000001 | N35: 3.842580751e-05 | O35: 1 | P35: 5.647914715e-05 | Q35: 78.95120448 | R35: -84.04006401 | S35: 95.95993599 | U35: 1000000000 | V35: 57.54436164 | X35: 57.40566398 | Y35: -83.9296085 | AA35: 21.54554049 | AB35: -0.1104555185 | AD35: 0 | AE35: 0
A36: 8.3176 | B36: 0.0083176 | C36: 1.000002123 | D36: 0.002060482905 | E36: 1 | F36: 8.623068638e-06 | G36: 1 | H36: 0 | I36: 10.49103054 | J36: 1.47533187 | K36: 1.00000114 | L36: 0.00150981978 | M36: 1.000000001 | N36: 4.213273439e-05 | O36: 1 | P36: 6.192767465e-05 | Q36: 78.15924332 | R36: -84.56730848 | S36: 95.43269152 | U36: 1000000000 | V36: 69.18246976 | X36: 56.61370592 | Y36: -84.44619738 | AA36: 21.54553739 | AB36: -0.1211111033 | AD36: 0 | AE36: 0
A37: 9.1201 | B37: 0.0091201 | C37: 1.000002552 | D37: 0.002259282096 | E37: 1 | F37: 9.455040912e-06 | G37: 1 | H37: 0 | I37: 11.49443243 | J37: 1.483687565 | K37: 1.00000137 | L37: 0.001655490196 | M37: 1.000000001 | N37: 4.619779153e-05 | O37: 1 | P37: 6.790259037e-05 | Q37: 77.36585398 | R37: -85.04962615 | S37: 94.95037385 | U37: 1000000000 | V37: 83.17622401 | X37: 55.82032032 | Y37: -84.91683002 | AA37: 21.54553366 | AB37: -0.1327961269 | AD37: 0 | AE37: 0
A38: 10 | B38: 0.01 | C38: 1.000003068 | D38: 0.002477254985 | E38: 1 | F38: 1.036725574e-05 | G38: 1 | H38: 0 | I38: 12.59537929 | J38: 1.491318485 | K38: 1.000001647 | L38: 0.001815210239 | M38: 1.000000001 | N38: 5.065491774e-05 | O38: 1 | P38: 7.445377833e-05 | Q38: 76.57137753 | R38: -85.49076176 | S38: 94.50923824 | U38: 1000000000 | V38: 100 | X38: 55.02584835 | Y38: -85.34515362 | AA38: 21.54552918 | AB38: -0.1456081428 | AD38: 0 | AE38: 0
A39: 10.965 | B39: 0.010965 | C39: 1.000003689 | D39: 0.002716308967 | E39: 1 | F39: 1.136769592e-05 | G39: 1 | H39: 0 | I39: 13.80350705 | J39: 1.49828745 | K39: 1.000001981 | L39: 0.001990377585 | M39: 1.000000002 | N39: 5.554311729e-05 | O39: 1 | P39: 8.163856795e-05 | Q39: 75.77581121 | R39: -85.89434889 | S39: 94.10565111 | U39: 1000000000 | V39: 120.231225 | X39: 54.23028742 | Y39: -85.73468962 | AA39: 21.54552379 | AB39: -0.1596592642 | AD39: 0 | AE39: 0
A40: 12.023 | B40: 0.012023 | C40: 1.000004435 | D40: 0.002978400954 | E40: 1 | F40: 1.246455158e-05 | G40: 1 | H40: 0 | I40: 15.12870718 | J40: 1.504648598 | K40: 1.000002381 | L40: 0.002182426203 | M40: 1.000000002 | N40: 6.090240757e-05 | O40: 1 | P40: 8.951577771e-05 | Q40: 74.97956068 | R40: -86.26352455 | S40: 93.73647545 | U40: 1000000000 | V40: 144.552529 | X40: 53.43404338 | Y40: -86.08846003 | AA40: 21.5455173 | AB40: -0.1750645146 | AD40: 0 | AE40: 0
A41: 13.183 | B41: 0.013183 | C41: 1.000005333 | D41: 0.003265760317 | E41: 1 | F41: 1.366715325e-05 | G41: 1 | H41: 0 | I41: 16.58225329 | J41: 1.510454279 | K41: 1.000002863 | L41: 0.002392989719 | M41: 1.000000002 | N41: 6.677837801e-05 | O41: 1 | P41: 9.815241602e-05 | Q41: 74.18272252 | R41: -86.60132828 | S41: 93.39867172 | U41: 1000000000 | V41: 173.791489 | X41: 52.63721301 | Y41: -86.40937335 | AA41: 21.54550951 | AB41: -0.1919549323 | AD41: 0 | AE41: 0
A42: 14.454 | B42: 0.014454 | C42: 1.00000641 | D42: 0.003580616377 | E42: 1 | F42: 1.498483145e-05 | G42: 1 | H42: 0 | I42: 18.17542287 | J42: 1.515749178 | K42: 1.000003442 | L42: 0.002623701741 | M42: 1.000000003 | N42: 7.321661803e-05 | O42: 1.000000001 | P42: 0.0001076154913 | Q42: 73.3858986 | R42: -86.91036031 | S42: 93.08963969 | U42: 1000000000 | V42: 208.918116 | X42: 51.84039845 | Y42: -86.69989876 | AA42: 21.54550015 | AB42: -0.2104615526 | AD42: 0 | AE42: 0
A43: 15.849 | B43: 0.015849 | C43: 1.000007708 | D43: 0.003926189282 | E43: 1 | F43: 1.643106363e-05 | G43: 1 | H43: 0 | I43: 19.92451179 | J43: 1.520585796 | K43: 1.000004138 | L43: 0.002876921931 | M43: 1.000000003 | N43: 8.028297902e-05 | O43: 1.000000001 | P43: 0.0001180017934 | Q43: 72.58783008 | R43: -87.19368666 | S43: 92.80631334 | U43: 1000000000 | V43: 251.190801 | X43: 51.0423412 | Y43: -86.96291301 | AA43: 21.54548888 | AB43: -0.2307736499 | AD43: 0 | AE43: 0
A44: 17.378 | B44: 0.017378 | C44: 1.000009266 | D44: 0.004304955924 | E44: 1 | F44: 1.801621703e-05 | G44: 1 | H44: 0 | I44: 21.84205909 | J44: 1.524997088 | K44: 1.000004975 | L44: 0.003154465356 | M44: 1.000000004 | N44: 8.802811589e-05 | O44: 1.000000001 | P44: 0.0001293857762 | Q44: 71.78970602 | R44: -87.45323991 | S44: 92.54676009 | U44: 1000000000 | V44: 301.994884 | X44: 50.24423068 | Y44: -87.2002031 | AA44: 21.54547534 | AB44: -0.2530368114 | AD44: 0 | AE44: 0
A45: 19.055 | B45: 0.019055 | C45: 1.000011141 | D45: 0.004720383969 | E45: 1 | F45: 1.975480582e-05 | G45: 1 | H45: 0 | I45: 23.9456226 | J45: 1.529022892 | K45: 1.000005982 | L45: 0.003458873116 | M45: 1.000000005 | N45: 9.652294553e-05 | O45: 1.000000001 | P45: 0.0001418716749 | Q45: 70.99104736 | R45: -87.691365 | S45: 92.308635 | U45: 1000000000 | V45: 363.093025 | X45: 49.4455883 | Y45: -87.41391014 | AA45: 21.54545906 | AB45: -0.2774548606 | AD45: 0 | AE45: 0
A46: 20.893 | B46: 0.020893 | C46: 1.000013394 | D46: 0.005175693211 | E46: 1 | F46: 2.166030742e-05 | G46: 1 | H46: 0 | I46: 26.25150914 | J46: 1.53269406 | K46: 1.000007192 | L46: 0.003792504736 | M46: 1.000000006 | N46: 0.0001058333193 | O46: 1.000000001 | P46: 0.0001555562794 | Q46: 70.19247546 | R46: -87.90988736 | S46: 92.09011264 | U46: 1000000000 | V46: 436.517449 | X46: 48.64703597 | Y46: -87.60567031 | AA46: 21.54543949 | AB46: -0.3042170515 | AD46: 0 | AE46: 0
A47: 22.909 | B47: 0.022909 | C47: 1.000016104 | D47: 0.005675094127 | E47: 1 | F47: 2.375034618e-05 | G47: 1 | H47: 0 | I47: 28.78104637 | J47: 1.536044244 | K47: 1.000008646 | L47: 0.004158445735 | M47: 1.000000007 | N47: 0.0001160453506 | O47: 1.000000001 | P47: 0.0001705661612 | Q47: 69.39341846 | R47: -88.1108108 | S47: 91.8891892 | U47: 1000000000 | V47: 524.822281 | X47: 47.84800251 | Y47: -87.77723993 | AA47: 21.54541595 | AB47: -0.3335708688 | AD47: 0 | AE47: 0
A48: 25.119 | B48: 0.025119 | C48: 1.00001936 | D48: 0.006222549211 | E48: 1 | F48: 2.60415097e-05 | G48: 1 | H48: 0 | I48: 31.55431015 | J48: 1.539099628 | K48: 1.000010395 | L48: 0.00455960001 | M48: 1.000000008 | N48: 0.0001272400873 | O48: 1.000000002 | P48: 0.0001870204464 | Q48: 68.59436314 | R48: -88.29570674 | S48: 91.70429326 | U48: 1000000000 | V48: 630.964161 | X48: 47.04897548 | Y48: -87.92995751 | AA48: 21.54538766 | AB48: -0.3657492217 | AD48: 0 | AE48: 0
A49: 27.542 | B49: 0.027542 | C49: 1.000023276 | D49: 0.006822763767 | E49: 1 | F49: 2.855349577e-05 | G49: 1 | H49: 0 | I49: 34.59514298 | J49: 1.541886508 | K49: 1.000012497 | L49: 0.00499941588 | M49: 1.00000001 | N49: 0.0001395137736 | O49: 1.000000002 | P49: 0.0002050605972 | Q49: 67.79521857 | R49: -88.46616631 | S49: 91.53383369 | U49: 1000000000 | V49: 758.561764 | X49: 46.24986492 | Y49: -88.06513763 | AA49: 21.54535365 | AB49: -0.4010286809 | AD49: 0 | AE49: 0
A50: 30.2 | B50: 0.0302 | C50: 1.000027985 | D50: 0.007481185785 | E50: 1 | F50: 3.130911234e-05 | G50: 1 | H50: 0 | I50: 37.93115478 | J50: 1.544429719 | K50: 1.000015026 | L50: 0.005481886031 | M50: 1.000000012 | N50: 0.0001529778505 | O50: 1.000000002 | P50: 0.0002248504117 | Q50: 66.99558092 | R50: -88.62371029 | S50: 91.37628971 | U50: 1000000000 | V50: 912.04 | X50: 45.45026817 | Y50: -88.18398081 | AA50: 21.54531275 | AB50: -0.4397294714 | AD50: 0 | AE50: 0
A51: 33.113 | B51: 0.033113 | C51: 1.000033644 | D51: 0.00820276723 | E51: 1.000000001 | F51: 3.432909393e-05 | G51: 1 | H51: 0 | I51: 41.58744725 | J51: 1.546748292 | K51: 1.000018064 | L51: 0.006010639883 | M51: 1.000000014 | N51: 0.0001677336277 | O51: 1.000000003 | P51: 0.0002465387978 | Q51: 66.19623417 | R51: -88.76951798 | S51: 91.23048202 | U51: 1000000000 | V51: 1096.470769 | X51: 44.65097057 | Y51: -88.28737532 | AA51: 21.54526359 | AB51: -0.4821426636 | AD51: 0 | AE51: 0
A52: 36.308 | B52: 0.036308 | C52: 1.000040449 | D52: 0.00899419326 | E52: 1.000000001 | F52: 3.764143214e-05 | G52: 1 | H52: 0 | I52: 45.5979098 | J52: 1.548863739 | K52: 1.000021718 | L52: 0.006590577152 | M52: 1.000000017 | N52: 0.0001839178734 | O52: 1.000000004 | P52: 0.0002703267805 | Q52: 65.39655332 | R52: -88.90494203 | S52: 91.09505797 | U52: 1000000000 | V52: 1318.270864 | X52: 43.85134885 | Y52: -88.37628083 | AA52: 21.54520448 | AB52: -0.5286612029 | AD52: 0 | AE52: 0
A53: 39.811 | B53: 0.039811 | C53: 1.000048631 | D53: 0.009861900268 | E53: 1.000000001 | F53: 4.127308182e-05 | G53: 1 | H53: 0 | I53: 49.99517852 | J53: 1.550793064 | K53: 1.000026111 | L53: 0.007226415628 | M53: 1.00000002 | N53: 0.0002016622904 | O53: 1.000000004 | P53: 0.0002964079398 | Q53: 64.59685662 | R53: -89.03107227 | S53: 90.96892773 | U53: 1000000000 | V53: 1584.915721 | X53: 43.0517232 | Y53: -88.45140885 | AA53: 21.54513341 | AB53: -0.5796634146 | AD53: 0 | AE53: 0
A54: 43.652 | B54: 0.043652 | C54: 1.000058467 | D54: 0.0108133141 | E54: 1.000000001 | F54: 4.525514475e-05 | G54: 1 | H54: 0 | I54: 54.81691202 | J54: 1.55255277 | K54: 1.000031393 | L54: 0.007923598613 | M54: 1.000000024 | N54: 0.0002211188435 | O54: 1.000000005 | P54: 0.000325005637 | Q54: 63.79708815 | R54: -89.14898747 | S54: 90.85101253 | U54: 1000000000 | V54: 1905.497104 | X54: 42.25204017 | Y54: -88.51340168 | AA54: 21.54504798 | AB54: -0.6355857838 | AD54: 0 | AE54: 0
A55: 47.863 | B55: 0.047863 | C55: 1.000070291 | D55: 0.01185635419 | E55: 1.000000001 | F55: 4.962079613e-05 | G55: 1 | H55: 0 | I55: 60.10328092 | J55: 1.554157532 | K55: 1.000037741 | L55: 0.008687931716 | M55: 1.000000029 | N55: 0.0002424496282 | O55: 1.000000006 | P55: 0.0003563581243 | Q55: 62.99736828 | R55: -89.25967073 | S55: 90.74032927 | U55: 1000000000 | V55: 2290.866769 | X55: 41.45242301 | Y55: -88.56277692 | AA55: 21.54494527 | AB55: -0.6968938109 | AD55: 0 | AE55: 0
A56: 52.481 | B56: 0.052481 | C56: 1.000084508 | D56: 0.01300017607 | E56: 1.000000001 | F56: 5.440839482e-05 | G56: 1 | H56: 0 | I56: 65.900734 | J56: 1.555621407 | K56: 1.000045375 | L56: 0.009526127154 | M56: 1.000000035 | N56: 0.0002658420677 | O56: 1.000000007 | P56: 0.0003907408808 | Q56: 62.19746961 | R56: -89.36409162 | S56: 90.63590838 | U56: 1000000000 | V56: 2754.255361 | X56: 40.65264783 | Y56: -88.59996597 | AA56: 21.54482178 | AB56: -0.7641256544 | AD56: 0 | AE56: 0
A57: 57.544 | B57: 0.057544 | C57: 1.000101599 | D57: 0.01425417977 | E57: 1.000000002 | F57: 5.965733639e-05 | G57: 1 | H57: 0 | I57: 72.25697659 | J57: 1.556956391 | K57: 1.000054552 | L57: 0.01044507741 | M57: 1.000000042 | N57: 0.0002914886506 | O57: 1.000000009 | P57: 0.000428436831 | Q57: 61.39761013 | R57: -89.46310625 | S57: 90.53689375 | U57: 1000000000 | V57: 3311.311936 | X57: 39.8529368 | Y57: -88.6252724 | AA57: 21.54467333 | AB57: -0.8378338508 | AD57: 0 | AE57: 0
A58: 63.096 | B58: 0.063096 | C58: 1.000122149 | D58: 0.0156292473 | E58: 1.000000002 | F58: 6.541323676e-05 | G58: 1 | H58: 0 | I58: 79.22724764 | J58: 1.558174071 | K58: 1.000065586 | L58: 0.01145276234 | M58: 1.000000051 | N58: 0.0003196122583 | O58: 1.000000011 | P58: 0.0004697735716 | Q58: 60.59763174 | R58: -89.55757368 | S58: 90.44242632 | U58: 1000000000 | V58: 3981.105216 | X58: 39.05313689 | Y58: -88.63891563 | AA58: 21.54449485 | AB58: -0.9186580488 | AD58: 0 | AE58: 0
A59: 69.183 | B59: 0.069183 | C59: 1.000146852 | D59: 0.01713675052 | E59: 1.000000003 | F59: 7.17237853e-05 | G59: 1 | H59: 0 | I59: 86.86929795 | J59: 1.559284526 | K59: 1.000078851 | L59: 0.01255752268 | M59: 1.000000061 | N59: 0.0003504459033 | O59: 1.000000013 | P59: 0.0005150935904 | Q59: 59.79769745 | R59: -89.6482752 | S59: 90.3517248 | U59: 1000000000 | V59: 4786.287489 | X59: 38.25341715 | Y59: -88.6410085 | AA59: 21.54428029 | AB59: -1.007266699 | AD59: 0 | AE59: 0
A60: 75.858 | B60: 0.075858 | C60: 1.000176554 | D60: 0.01878978771 | E60: 1.000000003 | F60: 7.864392847e-05 | G60: 1 | H60: 0 | I60: 95.24966747 | J60: 1.56029741 | K60: 1.0000948 | L60: 0.01376896677 | M60: 1.000000074 | N60: 0.0003842580564 | O60: 1.000000016 | P60: 0.0005647914925 | Q60: 58.99763476 | R60: -89.73599888 | S60: 90.26400112 | U60: 1000000000 | V60: 5754.436164 | X60: 37.45361243 | Y60: -88.63156914 | AA60: 21.54402233 | AB60: -1.104429739 | AD60: 0 | AE60: 0
A61: 83.176 | B61: 0.083176 | C61: 1.000212258 | D61: 0.02060194295 | E61: 1.000000004 | F61: 8.623068617e-05 | G61: 1 | H61: 0 | I61: 104.4374079 | J61: 1.561221067 | K61: 1.000113971 | L61: 0.01509706219 | M61: 1.000000089 | N61: 0.0004213273192 | O61: 1.000000019 | P61: 0.0006192767742 | Q61: 58.19763873 | R61: -89.82146615 | S61: 90.17853385 | U61: 1000000000 | V61: 6918.246976 | X61: 36.65392648 | Y61: -88.61052048 | AA61: 21.54371225 | AB61: -1.210945673 | AD61: 0 | AE61: 0
A62: 91.201 | B62: 0.091201 | C62: 1.000255186 | D62: 0.0225890165 | E62: 1.000000004 | F62: 9.455040884e-05 | G62: 1 | H62: 0 | I62: 114.5128713 | J62: 1.562063573 | K62: 1.000137023 | L62: 0.01655340496 | M62: 1.000000107 | N62: 0.0004619778828 | O62: 1.000000023 | P62: 0.0006790259401 | Q62: 57.39750157 | R62: -89.9054226 | S62: 90.0945774 | U62: 1000000000 | V62: 8317.622401 | X62: 35.85416213 | Y62: -88.57767931 | AA62: 21.54333944 | AB62: -1.327743291 | AD62: 0 | AE62: 0
A63: 100 | B63: 0.1 | C63: 1.000306794 | D63: 0.02476753489 | E63: 1.000000005 | F63: 0.0001036725571 | G63: 1 | H63: 0 | I63: 125.5601766 | J63: 1.562831934 | K63: 1.000164736 | L63: 0.01815012902 | M63: 1.000000128 | N63: 0.0005065491345 | O63: 1.000000027 | P63: 0.0007445378314 | Q63: 56.59734162 | R63: -89.98856544 | S63: 90.01143456 | U63: 1000000000 | V63: 10000 | X63: 35.05445034 | Y63: -88.53277134 | AA63: 21.54289127 | AB63: -1.455794095 | AD63: 0 | AE63: 0
A64: 109.65 | B64: 0.10965 | C64: 1.000368851 | D64: 0.02715647877 | E64: 1.000000006 | F64: 0.0001136769588 | G64: 1 | H64: 0 | I64: 137.6759989 | J64: 1.563532833 | K64: 1.000198061 | L64: 0.01990117439 | M64: 1.000000154 | N64: 0.0005554311164 | O64: 1.000000033 | P64: 0.0008163857429 | Q64: 55.79696556 | R64: -90.07161698 | S64: 89.92838302 | U64: 1000000000 | V64: 12023.1225 | X64: 34.25461316 | Y64: -88.47540311 | AA64: 21.5423524 | AB64: -1.596213869 | AD64: 0 | AE64: 0
A65: 120.23 | B65: 0.12023 | C65: 1.000443448 | D65: 0.02977529521 | E65: 1.000000008 | F65: 0.0001246455152 | G65: 1 | H65: 0 | I65: 150.9595247 | J65: 1.564171986 | K65: 1.000238122 | L65: 0.0218208327 | M65: 1.000000185 | N65: 0.0006090240012 | O65: 1.000000039 | P65: 0.0008951578607 | Q65: 54.99661977 | R65: -90.15525208 | S65: 89.84474792 | U65: 1000000000 | V65: 14455.2529 | X65: 33.4549151 | Y65: -88.40510623 | AA65: 21.54170467 | AB65: -1.750145857 | AD65: 0 | AE65: 0
A66: 131.83 | B66: 0.13183 | C66: 1.000533121 | D66: 0.03264611658 | E66: 1.000000009 | F66: 0.0001366715316 | G66: 1 | H66: 0 | I66: 165.5237518 | J66: 1.564754861 | K66: 1.00028628 | L66: 0.02392537667 | M66: 1.000000223 | N66: 0.0006677836818 | O66: 1.000000047 | P66: 0.0009815242703 | Q66: 54.19626303 | R66: -90.24017889 | S66: 89.75982111 | U66: 1000000000 | V66: 17379.1489 | X66: 32.65533693 | Y66: -88.32128769 | AA66: 21.54092611 | AB66: -1.918891196 | AD66: 0 | AE66: 0
A67: 144.54 | B67: 0.14454 | C67: 1.000640841 | D67: 0.03579102622 | E67: 1.000000011 | F67: 0.0001498483134 | G67: 1 | H67: 0 | I67: 181.4816785 | J67: 1.565286101 | K67: 1.000344133 | L67: 0.02623105971 | M67: 1.000000268 | N67: 0.0007321660508 | O67: 1.000000057 | P67: 0.001076155058 | Q67: 53.39638051 | R67: -90.32705664 | S67: 89.67294336 | U67: 1000000000 | V67: 20891.8116 | X67: 31.85638957 | Y67: -88.22330842 | AA67: 21.53999095 | AB67: -2.103748216 | AD67: 0 | AE67: 0
A68: 158.49 | B68: 0.15849 | C68: 1.000770459 | D68: 0.03924193887 | E68: 1.000000013 | F68: 0.0001643106348 | G68: 1 | H68: 0 | I68: 198.9965252 | J68: 1.565771092 | K68: 1.000413751 | L68: 0.02876136544 | M68: 1.000000322 | N68: 0.0008028296194 | O68: 1.000000068 | P68: 0.001180018125 | Q68: 52.59560526 | R68: -90.4167625 | S68: 89.5832375 | U68: 1000000000 | V68: 25119.0801 | X68: 31.05673945 | Y68: -88.11016927 | AA68: 21.53886581 | AB68: -2.306593232 | AD68: 0 | AE68: 0
A69: 173.78 | B69: 0.17378 | C69: 1.000926215 | D69: 0.04302326015 | E69: 1.000000016 | F69: 0.0001801621684 | G69: 1 | H69: 0 | I69: 218.1938462 | J69: 1.56621323 | K69: 1.000497412 | L69: 0.03153430133 | M69: 1.000000387 | N69: 0.0008802809338 | O69: 1.000000082 | P69: 0.001293858014 | Q69: 51.79503911 | R69: -90.50992331 | S69: 89.49007669 | U69: 1000000000 | V69: 30199.4884 | X69: 30.25752513 | Y69: -87.98106201 | AA69: 21.53751398 | AB69: -2.528861302 | AD69: 0 | AE69: 0
A70: 190.55 | B70: 0.19055 | C70: 1.001113498 | D70: 0.04716917641 | E70: 1.00000002 | F70: 0.0001975480557 | G70: 1 | H70: 0 | I70: 239.2494183 | J70: 1.566616576 | K70: 1.000598016 | L70: 0.03457508507 | M70: 1.000000466 | N70: 0.0009652291586 | O70: 1.000000099 | P70: 0.001418717081 | Q70: 50.99411875 | R70: -90.6073777 | S70: 89.3926223 | U70: 1000000000 | V70: 36309.3025 | X70: 29.45822995 | Y70: -87.83481513 | AA70: 21.53588881 | AB70: -2.772562566 | AD70: 0 | AE70: 0
A71: 208.93 | B71: 0.20893 | C71: 1.001338518 | D71: 0.05171125203 | E71: 1.000000023 | F71: 0.0002166030709 | G71: 1 | H71: 0 | I71: 262.326463 | J71: 1.566984274 | K71: 1.000718903 | L71: 0.03790706195 | M71: 1.00000056 | N71: 0.001058332802 | O71: 1.000000119 | P71: 0.001555563232 | Q71: 50.19339075 | R71: -90.70986215 | S71: 89.29013785 | U71: 1000000000 | V71: 43651.7449 | X71: 28.65945419 | Y71: -87.67030888 | AA71: 21.53393656 | AB71: -3.039553264 | AD71: 0 | AE71: 0
A72: 229.09 | B72: 0.22909 | C72: 1.001609075 | D72: 0.0566907407 | E72: 1.000000028 | F72: 0.0002375034574 | G72: 1 | H72: 0 | I72: 287.6384241 | J72: 1.567319733 | K72: 1.00086427 | L72: 0.04156075126 | M72: 1.000000673 | N72: 0.001160452991 | O72: 1.000000143 | P72: 0.00170566219 | Q72: 49.39220873 | R72: -90.81829884 | S72: 89.18170116 | U72: 1000000000 | V72: 52482.2281 | X72: 27.86061891 | Y72: -87.48603936 | AA72: 21.53158983 | AB72: -3.332259483 | AD72: 0 | AE72: 0
A73: 251.19 | B73: 0.25119 | C73: 1.001934185 | D73: 0.06214616561 | E73: 1.000000034 | F73: 0.0002604150912 | G73: 1 | H73: 0 | I73: 315.3861901 | J73: 1.567625606 | K73: 1.001038972 | L73: 0.04556475683 | M73: 1.00000081 | N73: 0.001272400193 | O73: 1.000000171 | P73: 0.001870205226 | Q73: 48.59098902 | R73: -90.93351324 | S73: 89.06648676 | U73: 1000000000 | V73: 63096.4161 | X73: 27.06221828 | Y73: -87.28056606 | AA73: 21.52877074 | AB73: -3.652947187 | AD73: 0 | AE73: 0
A74: 275.42 | B74: 0.27542 | C74: 1.002324875 | D74: 0.06812311937 | E74: 1.000000041 | F74: 0.00028553495 | G74: 1 | H74: 0 | I74: 345.8083166 | J74: 1.567904547 | K74: 1.001248949 | L74: 0.04995298457 | M74: 1.000000973 | N74: 0.00139513684 | O74: 1.000000206 | P74: 0.002050606976 | Q74: 47.78956762 | R74: -91.05645201 | S74: 88.94354799 | U74: 1000000000 | V74: 75856.1764 | X74: 26.26418339 | Y74: -87.0521536 | AA74: 21.52538423 | AB74: -4.004298409 | AD74: 0 | AE74: 0
A75: 302 | B75: 0.302 | C75: 1.002794607 | D75: 0.07467414327 | E75: 1.000000049 | F75: 0.0003130911133 | G75: 1 | H75: 0 | I75: 379.1810258 | J75: 1.568159061 | K75: 1.001501457 | L75: 0.05476459441 | M75: 1.00000117 | N75: 0.001529777324 | O75: 1.000000248 | P75: 0.002248505442 | Q75: 46.98746297 | R75: -91.18816988 | S75: 88.81183012 | U75: 1000000000 | V75: 91204 | X75: 25.46614866 | Y75: -86.79876556 | AA75: 21.52131432 | AB75: -4.389404326 | AD75: 0 | AE75: 0
A76: 331.13 | B76: 0.33113 | C76: 1.00335878 | D76: 0.08184626353 | E76: 1.000000059 | F76: 0.000343290926 | G76: 1 | H76: 0 | I76: 415.7554292 | J76: 1.568391064 | K76: 1.001804804 | L76: 0.06003489286 | M76: 1.000001407 | N76: 0.001677334719 | O76: 1.000000298 | P76: 0.002465389723 | Q76: 46.18537911 | R76: -91.3295797 | S76: 88.6704203 | U76: 1000000000 | V76: 109647.0769 | X76: 24.66895046 | Y76: -86.51854692 | AA76: 21.51642865 | AB76: -4.811032779 | AD76: 0 | AE76: 0
A77: 363.08 | B77: 0.36308 | C77: =SQRT(1+(A77/pole1)^2) -> 1.004036846 | D77: =ATAN(A77/pole1) -> 0.08970297897 | E77: =SQRT(1+(A77/Zero1)^2) -> 1.000000071 | F77: =ATAN(A77/Zero1) -> 0.0003764143038 | G77: =IF(VIN_nom>Vout, 1, SQRT(1+(A77/z_RHP)^2)) -> 1 | H77: =IF(VIN_nom>Vout, 0, -ATAN(A77/z_RHP)) -> 0 | I77: =SQRT(1+(A77/Pole2)^2) -> 455.8705275 | J77: =ATAN(A77/Pole2) -> 1.56860272 | K77: =SQRT(1+(A77/Zero2)^2) -> 1.002169495 | L77: =ATAN(A77/Zero2) -> 0.06581154742 | M77: =SQRT(1+(A77/pole4)^2) -> 1.000001691 | N77: =ATAN(A77/pole4) -> 0.001839176681 | O77: =SQRT((1-(V77/pterm2))^2+(A77/pterm1)^2) -> 1.000000358 | P77: =IF((ATAN((A77/pterm1)/(1-A77^2/pterm2))>0),ATAN((A77/pterm1)/(1-A77^2/pterm2)),PI()+ATAN((A77/pterm1)/(1-A77^2/pterm2))) -> 0.002703270106 | Q77: =20*LOG10(((E77*K77*G77)/(C77*I77*O77*M77))*Adc) -> 45.38259796 | R77: =((F77+L77+H77)-(D77+J77+P77+N77))*radconv -> -91.48188995 | S77: =IF(R77>0,R77,R77+180) -> 88.51811005 | U77: 1000000000 | V77: 131827.0864 | X77: =20*LOG10((K77/(I77*M77))*AEA*Afb_Ch2) -> 23.87203764 | Y77: -86.20896882 | AA77: =20*LOG10((E77*G77/(C77*O77))*Am_Ch2) -> 21.51056032 | AB77: =(F77+H77-(D77+P77))*radconv -> -5.272921128 | AD77: 0 | AE77: =IF(AD77>0,S75,0) -> 0
A78: 398.11 | B78: =A78/1000 -> 0.39811 | C78: 1.004851401 | D78: 0.09830430874 | E78: 1.000000085 | F78: 0.000412730795 | G78: 1 | H78: 0 | I78: 499.8527659 | J78: 1.568795736 | K78: 1.002607745 | L78: 0.07214000993 | M78: 1.000002033 | N78: 0.002016620198 | O78: 1.000000431 | P78: 0.002964082431 | Q78: 44.57933649 | R78: -91.64620412 | S78: 88.35379588 | U78: =IF(Q78<0,A78,1000000000) -> 1000000000 | V78: =A78^2 -> 158491.5721 | X78: 23.0758205 | Y78: =(L78-(J78+N78))*radconv -> -85.86760043 | AA78: 21.50351598 | AB78: -5.778603686 | AD78: =SUM((Q79<0)*(Q78>0))*A78 -> 0 | AE78: 0
A79: 436.52 | B79: 0.43652 | C79: 1.00582985 | D79: 0.1077187806 | E79: 1.000000102 | F79: 0.0004525514169 | G79: 1 | H79: 0 | I79: 548.0788121 | J79: 1.568971771 | K79: 1.00313439 | L79: 0.0790724324 | M79: 1.000002445 | N79: 0.002211184867 | O79: 1.000000518 | P79: 0.003250060369 | Q79: 43.77542177 | R79: -91.8237526 | S79: 88.1762474 | U79: 1000000000 | V79: 190549.7104 | X79: 22.28035994 | Y79: -85.49163564 | AA79: 21.49506182 | AB79: -6.332116963 | AD79: 0 | AE79: 0
A80: 478.63 | B80: 0.47863 | C80: 1.007004782 | D80: 0.1180180985 | E80: 1.000000123 | F80: 0.000496207921 | G80: 1 | H80: 0 | I80: 600.9504454 | J80: 1.569132295 | K80: 1.003767102 | L80: 0.08666388256 | M80: 1.000002939 | N80: 0.002424491579 | O80: 1.000000622 | P80: 0.003563586514 | Q80: 42.97084029 | R80: -92.01578335 | S80: 87.98421665 | U80: 1000000000 | V80: 229086.6769 | X80: 21.48591946 | Y80: -85.07809654 | AA80: 21.48492084 | AB80: -6.937686806 | AD80: 0 | AE80: 0
A81: 524.81 | B81: 0.52481 | C81: 1.008415768 | D81: 0.1292839379 | E81: 1.000000148 | F81: 0.0005440838951 | G81: 1 | H81: 0 | I81: 658.9322227 | J81: 1.569278719 | K81: 1.004527381 | L81: 0.09497753002 | M81: 1.000003534 | N81: 0.002658414478 | O81: 1.000000748 | P81: 0.003907415757 | Q81: 42.16520709 | R81: -92.22368064 | S81: 87.77631936 | U81: 1000000000 | V81: 275425.5361 | X81: 20.69244903 | Y81: -84.62355191 | AA81: 21.47275806 | AB81: -7.600128727 | AD81: 0 | AE81: 0
A82: 575.44 | B82: 0.57544 | C82: 1.010109359 | D82: 0.1415974652 | E82: 1.000000178 | F82: 0.0005965732938 | G82: 1 | H82: 0 | I82: 722.5012572 | J82: 1.569412246 | K82: 1.005440579 | L82: 0.1040771476 | M82: 1.000004248 | N82: 0.002914878333 | O82: 1.0000009 | P82: 0.00428437747 | Q82: 41.35855986 | R82: -92.44875978 | S82: 87.55124022 | U82: 1000000000 | V82: 331131.1936 | X82: 19.90037819 | Y82: -84.12452702 | AA82: 21.45818167 | AB82: -8.324232769 | AD82: 0 | AE82: 0
A83: 630.96 | B83: 0.63096 | C83: 1.012141944 | D83: 0.1550506262 | E83: 1.000000214 | F83: 0.0006541322752 | G83: 1 | H83: 0 | I83: 792.2099954 | J83: 1.569534035 | K83: 1.006537492 | L83: 0.1140357337 | M83: 1.000005108 | N83: 0.003196111809 | O83: 1.000001082 | P83: 0.004697747792 | Q83: 40.55052731 | R83: -92.69246217 | S83: 87.30753783 | U83: 1000000000 | V83: 398110.5216 | X83: 19.10980747 | Y83: -83.57703356 | AA83: 21.44071984 | AB83: -9.115428604 | AD83: 0 | AE83: 0
A84: 691.83 | B84: 0.69183 | C84: 1.014579998 | D84: 0.1697352488 | E84: 1.000000257 | F84: 0.0007172377312 | G84: 1 | H84: 0 | I84: 868.6359954 | J84: 1.569645096 | K84: 1.007854551 | L84: 0.1249278302 | M84: 1.000006141 | N84: 0.003504444831 | O84: 1.0000013 | P84: 0.005150951822 | Q84: 39.74102735 | R84: -92.95613844 | S84: 87.04386156 | U84: 1000000000 | V84: 478628.7489 | X84: 18.3212065 | Y84: -82.97699193 | AA84: 21.41982085 | AB84: -9.979146508 | AD84: 0 | AE84: 0
A85: 758.58 | B85: 0.75858 | C85: 1.017503771 | D85: 0.1857536482 | E85: 1.000000309 | F85: 0.0007864391242 | G85: 1 | H85: 0 | I85: 952.4447046 | J85: 1.569746397 | K85: 1.009435902 | L85: 0.136837846 | M85: 1.000007383 | N85: 0.003842561841 | O85: 1.000001563 | P85: 0.00564793591 | Q85: 38.92959883 | R85: -93.2412184 | S85: 86.7587816 | U85: 1000000000 | V85: 575443.6164 | X85: 17.53477444 | Y85: -82.31977506 | AA85: 21.39482439 | AB85: -10.92144333 | AD85: 0 | AE85: 0
A86: 831.76 | B86: 0.83176 | C86: 1.021007355 | D86: 0.2032046816 | E86: 1.000000372 | F86: 0.0008623066501 | G86: 1 | H86: 0 | I86: 1044.326681 | J86: 1.569838772 | K86: 1.011333571 | L86: 0.1498502908 | M86: 1.000008876 | N86: 0.004213248511 | O86: 1.00000188 | P86: 0.006192795405 | Q86: 38.11610829 | R86: -93.54893353 | S86: 86.45106647 | U86: 1000000000 | V86: 691824.6976 | X86: 16.75114296 | Y86: -81.60074837 | AA86: 21.36496533 | AB86: -11.94818516 | AD86: 0 | AE86: 0
A87: 912.01 | B87: 0.91201 | C87: 1.025204238 | D87: 0.2221981155 | E87: 1.000000447 | F87: 0.0009455038094 | G87: 1 | H87: 0 | I87: 1145.085485 | J87: 1.569923029 | K87: 1.013610639 | L87: 0.1640611876 | M87: 1.000010671 | N87: 0.004619746291 | O87: 1.00000226 | P87: 0.006790295868 | Q87: 37.29996361 | R87: -93.88053834 | S87: 86.11946166 | U87: 1000000000 | V87: 831762.2401 | X87: 15.97063138 | Y87: -80.81464217 | AA87: 21.32933223 | AB87: -13.06589617 | AD87: 0 | AE87: 0
A88: 1000 | B88: 1 | C88: 1.030227244 | D88: 0.2428372903 | E88: 1.000000537 | F88: 0.001036725203 | G88: 1 | H88: 0 | I88: 1255.562342 | J88: 1.569999871 | K88: 1.016341456 | L88: 0.1795660289 | M88: 1.00001283 | N88: 0.005065448453 | O88: 1.000002717 | P88: 0.007445426387 | Q88: 36.48085109 | R88: -94.23696313 | S88: 85.76303687 | U88: 1000000000 | V88: 1000000 | X88: 15.1939748 | Y88: -79.95621974 | AA88: 21.28687629 | AB88: -14.28074339 | AD88: 0 | AE88: 0
A89: 1096.5 | B89: 1.0965 | C89: 1.036235353 | D89: 0.2652319145 | E89: 1.000000646 | F89: 0.001136769103 | G89: 1 | H89: 0 | I89: 1376.724035 | J89: 1.570069965 | K89: 1.01961568 | L89: 0.1964704095 | M89: 1.000015425 | N89: 0.005554254618 | O89: 1.000003267 | P89: 0.008163920805 | Q89: 35.65808226 | R89: -94.61898814 | S89: 85.38101186 | U89: 1000000000 | V89: 1202312.25 | X89: 14.4217173 | Y89: -79.01969269 | AA89: 21.23636497 | AB89: -15.59929544 | AD89: 0 | AE89: 0
A90: 1202.3 | B90: 1.2023 | C90: 1.043412309 | D90: 0.2894748635 | E90: 1.000000777 | F90: 0.001246454513 | G90: 1 | H90: 0 | I90: 1509.562457 | J90: 1.570133883 | K90: 1.023537978 | L90: 0.2148737697 | M90: 1.000018545 | N90: 0.006090165469 | O90: 1.000003928 | P90: 0.008951662154 | Q90: 34.83136483 | R90: -95.02678936 | S90: 84.97321064 | U90: 1000000000 | V90: 1445525.29 | X90: 13.65495548 | Y90: -77.99962551 | AA90: 21.17640935 | AB90: -17.02716385 | AD90: 0 | AE90: =IF(AD90>0,S90,0) -> 0
A91: 1318.3 | B91: 1.3183 | C91: 1.0519756 | D91: 0.3156577539 | E91: 1.000000934 | F91: 0.001366714474 | G91: 1 | H91: 0 | I91: 1655.207613 | J91: 1.570192173 | K91: 1.028233542 | L91: 0.2348824594 | M91: 1.000022297 | N91: 0.006677738551 | O91: 1.000004723 | P91: 0.009815352841 | Q91: 34.00006082 | R91: -95.46014567 | S91: 84.53985433 | U91: 1000000000 | V91: 1737914.89 | X91: 12.89465123 | Y91: -76.89021725 | AA91: 21.10540959 | AB91: -18.56992841 | AD91: 0 | AE91: 0
A92: 1445.4 | B92: 1.4454 | C92: 1.062171941 | D92: 0.3438399056 | E92: 1.000001123 | F92: 0.001498482024 | G92: 1 | H92: 0 | I92: 1814.78951 | J92: 1.570245299 | K92: 1.033846422 | L92: 0.2565874331 | M92: 1.000026803 | N92: 0.00732153099 | O92: 1.000005677 | P92: 0.01076169574 | Q92: 33.16404141 | R92: -95.91786283 | S92: 84.08213717 | U92: 1000000000 | V92: 2089181.16 | X92: 12.14242163 | Y92: -75.68654433 | AA92: 21.02161978 | AB92: -20.23131849 | AD92: 0 | AE92: 0
A93: 1584.9 | B93: 1.5849 | C93: 1.074314296 | D93: 0.3741289823 | E93: 1.00000135 | F93: 0.001643104884 | G93: 1 | H93: 0 | I93: 1989.940377 | J93: 1.570293799 | K93: 1.040561029 | L93: 0.2801280665 | M93: 1.000032226 | N93: 0.008028125442 | O93: 1.000006826 | P93: 0.01180037263 | Q93: 32.32121016 | R93: -96.39900942 | S93: 83.60099058 | U93: 1000000000 | V93: 2511908.01 | X93: 11.398329 | Y93: -74.38102914 | AA93: 20.92288116 | AB93: -22.01798028 | AD93: 0 | AE93: 0
A94: 1737.8 | B94: 1.7378 | C94: 1.08872804 | D94: 0.4065184835 | E94: 1.000001623 | F94: 0.001801619754 | G94: 1 | H94: 0 | I94: 2181.915776 | J94: 1.570338014 | K94: 1.048573878 | L94: 0.3055679519 | M94: 1.000038744 | N94: 0.008802584247 | O94: 1.000008207 | P94: 0.01293883242 | Q94: 31.47205405 | R94: -96.90024633 | S94: 83.09975367 | U94: 1000000000 | V94: 3019948.84 | X94: 10.66494357 | Y94: -72.97033762 | AA94: 20.80711048 | AB94: -23.9299087 | AD94: 0 | AE94: 0
A95: 1905.5 | B95: 1.9055 | C95: 1.105813528 | D95: 0.4410320293 | E95: 1.000001951 | F95: 0.001975478012 | G95: 1 | H95: 0 | I95: 2392.473494 | J95: 1.570378349 | K95: 1.058129948 | L95: 0.3330074985 | M95: 1.000046582 | N95: 0.009651994842 | O95: 1.000009869 | P95: 0.0141875034 | Q95: 30.61534098 | R95: -97.41811754 | S95: 82.58188246 | U95: 1000000000 | V95: 3630930.25 | X95: 9.943491883 | Y95: -71.44914609 | AA95: 20.67184909 | AB95: -25.96897145 | AD95: 0 | AE95: 0
A96: 2089.3 | B96: 2.0893 | C96: 1.126003013 | D96: 0.4776077162 | E96: 1.000002346 | F96: 0.002166027355 | G96: 1 | H96: 0 | I96: 2623.245761 | J96: 1.57041512 | K96: 1.069500959 | L96: 0.3624934852 | M96: 1.000056002 | N96: 0.01058293686 | O96: 1.000011865 | P96: 0.01555607072 | Q96: 29.75109871 | R96: -97.94726874 | S96: 82.05273126 | U96: 1000000000 | V96: 4365174.49 | X96: 9.236416615 | Y96: -69.81516933 | AA96: 20.51468209 | AB96: -28.13209941 | AD96: 0 | AE96: 0
A97: 2290.9 | B97: 2.2909 | C97: 1.149814702 | D97: 0.5161912923 | E97: 1.00000282 | F97: 0.002375030153 | G97: 1 | H97: 0 | I97: 2876.367032 | J97: 1.570448666 | K97: 1.08301833 | L97: 0.3940924772 | M97: 1.00006733 | N97: 0.01160401425 | O97: 1.000014267 | P97: 0.01705719984 | Q97: 28.87820361 | R97: -98.48191481 | S97: 81.51808519 | U97: 1000000000 | V97: 5248222.81 | X97: 8.545304346 | Y97: -68.06510594 | AA97: 20.33289926 | AB97: -30.41680886 | AD97: 0 | AE97: 0
A98: 2511.9 | B98: 2.5119 | C98: 1.177799296 | D98: 0.5566286798 | E98: 1.000003391 | F98: 0.002604145084 | G98: 1 | H98: 0 | I98: 3153.846206 | J98: 1.570479254 | K98: 1.099046134 | L98: 0.4278018138 | M98: 1.000080947 | N98: 0.01272332219 | O98: 1.000017154 | P98: 0.01870281409 | Q98: 27.99687469 | R98: -99.01444732 | S98: 80.98555268 | U98: 1000000000 | V98: 6309641.61 | X98: 7.872864212 | Y98: -66.19958739 | AA98: 20.12401047 | AB98: -32.81485994 | AD98: 0 | AE98: 0
A99: 2754.2 | B99: 2.7542 | C99: 1.210584776 | D99: 0.5987388383 | E99: 1.000004077 | F99: 0.002855341817 | G99: 1 | H99: 0 | I99: 3458.068851 | J99: 1.570507148 | K99: 1.11800973 | L99: 0.4636042107 | M99: 1.000097316 | N99: 0.01395047239 | O99: 1.000020627 | P99: 0.02050707396 | Q99: 27.10696069 | R99: -99.53674816 | S99: 80.46325184 | U99: 1000000000 | V99: 7585617.64 | X99: 7.221452767 | Y99: -64.22016991 | AA99: 19.88550792 | AB99: -35.31657826 | AD99: 0 | AE99: 0
A100: 3020 | B100: 3.02 | C100: 1.248880415 | D100: 0.6423048599 | E100: 1.000004901 | F100: 0.003130901005 | G100: 1 | H100: 0 | I100: 3791.797203 | J100: 1.5705326 | K100: 1.140402019 | L100: 0.5014556619 | M100: 1.000117004 | N100: 0.015296592 | O100: 1.000024804 | P100: 0.02248637827 | Q100: 26.2082662 | R100: -100.0403716 | S100: 79.95962842 | U100: 1000000000 | V100: 9120400 | X100: 6.593300342 | Y100: -62.13002674 | AA100: 19.61496586 | AB100: -37.91034484 | AD100: 0 | AE100: 0
A101: 3311.3 | B101: 3.3113 | C101: 1.293400203 | D101: 0.6869940898 | E101: 1.000005892 | F101: 0.003432895909 | G101: 1 | H101: 0 | I101: 4157.542386 | J101: 1.5705558 | K101: 1.166741882 | L101: 0.5412067948 | M101: 1.000140663 | N101: 0.01677179015 | O101: 1.000029826 | P101: 0.02465564224 | Q101: 25.30228886 | R101: -100.5161422 | S101: 79.48385775 | U101: 1000000000 | V101: 10964707.69 | X101: 5.991599406 | Y101: -59.93830651 | AA101: 19.31068945 | AB101: -40.57783574 | AD101: 0 | AE101: 0
A102: 3630.8 | B102: 3.6308 | C102: 1.344990243 | D102: 0.7325076022 | E102: 1.000007084 | F102: 0.003764125438 | G102: 1 | H102: 0 | I102: 4558.694417 | J102: 1.570576966 | K102: 1.197651723 | L102: 0.5827230053 | M102: 1.000169115 | N102: 0.01838971425 | O102: 1.000035869 | P102: 0.02703500138 | Q102: 24.38931467 | R102: -100.9564329 | S102: 79.04356712 | U102: 1000000000 | V102: 13182708.64 | X102: 5.418391521 | Y102: -57.65351579 | AA102: 18.97092314 | AB102: -43.30291709 | AD102: 0 | AE102: 0
A103: 3981.1 | B103: 3.9811 | C103: 1.404504835 | D103: 0.7784614868 | E103: 1.000008517 | F103: 0.004127284749 | G103: 1 | H103: 0 | I103: 4998.517756 | J103: 1.570596267 | K103: 1.233786452 | L103: 0.6257688402 | M103: 1.000203318 | N103: 0.02016349627 | O103: 1.000043137 | P103: 0.02964385655 | Q103: 23.47105876 | R103: -101.3544569 | S103: 78.64554312 | U103: 1000000000 | V103: 15849157.21 | X103: 4.876268397 | Y103: -55.28990725 | AA103: 18.59479036 | AB103: -46.06454963 | AD103: 0 | AE103: 0
A104: 4365.2 | B104: 4.3652 | C104: 1.472877718 | D104: 0.8244743473 | E104: 1.00001024 | F104: 0.004525483584 | G104: 1 | H104: 0 | I104: 5480.77909 | J104: 1.570613871 | K104: 1.275876338 | L104: 0.6700751149 | M104: 1.000244438 | N104: 0.02210828201 | O104: 1.000051881 | P104: 0.0325046007 | Q104: 22.54912218 | R104: -101.7057671 | S104: 78.29423288 | U104: 1000000000 | V104: 19054971.04 | X104: 4.367261865 | Y104: -52.86378132 | AA104: 18.18186031 | AB104: -48.8419858 | AD104: 0 | AE104: 0
A105: 4786.3 | B105: 4.7863 | C105: 1.551084491 | D105: 0.8701522051 | E105: 1.000012311 | F105: 0.004962038892 | G105: 1 | H105: 0 | I105: 6009.496217 | J105: 1.570629923 | K105: 1.324703574 | L105: 0.7153162528 | M105: 1.000293866 | N105: 0.02424021443 | O105: 1.000062401 | P105: 0.03564113362 | Q105: 21.62553145 | R105: -102.0085571 | S105: 77.99144288 | U105: 1000000000 | V105: 22908667.69 | X105: 3.89311978 | Y105: -50.39472553 | AA105: 17.73241167 | AB105: -51.61383159 | AD105: 0 | AE105: 0
A106: 5248.1 | B106: 5.2481 | C106: 1.640193956 | D106: 0.9151344715 | E106: 1.000014801 | F106: 0.005440785801 | G106: 1 | H106: 0 | I106: 6589.314715 | J106: 1.570644566 | K106: 1.381132104 | L106: 0.7611493781 | M106: 1.000353298 | N106: 0.02657794752 | O106: 1.000075063 | P106: 0.03908110215 | Q106: 20.70201858 | R106: -102.2642532 | S106: 77.73574681 | U106: 1000000000 | V106: 27542553.61 | X106: 3.45489029 | Y106: -47.90346207 | AA106: 17.24712829 | AB106: -54.36079112 | AD106: 0 | AE106: 0
A107: 5370.3 | B107: 5.3703 | C107: 1.664291327 | D107: 0.9262243593 | E107: 1.000015499 | F107: 0.005567469828 | G107: 1 | H107: 0 | I107: 6742.744383 | J107: 1.570648019 | K107: 1.396524511 | L107: 0.7726500816 | M107: 1.000369939 | N107: 0.02719650322 | O107: 1.00007861 | P107: 0.0399914286 | Q107: 20.47150441 | R107: -102.3212531 | S107: 77.67874692 | U107: 1000000000 | V107: 28840122.09 | X107: 3.351083738 | Y107: -47.28015879 | AA107: 17.12042068 | AB107: -55.04109428 | AD107: 0 | AE107: 0
A108: 5432.85 | B108: 5.43285 | C108: 1.676703423 | D108: 0.9317772042 | E108: 1.000015862 | F108: 0.005632314979 | G108: 1 | H108: 0 | I108: 6821.279782 | J108: 1.570649727 | K108: 1.404473644 | L108: 0.7784389675 | M108: 1.000378605 | N108: 0.02751311269 | O108: 1.000080458 | P108: 0.04045740257 | Q108: 20.35559553 | R108: -102.3489501 | S108: 77.65104987 | U108: 1000000000 | V108: 29515859.12 | X108: 3.29972577 | Y108: -46.96671828 | AA108: 17.05586976 | AB108: -55.38223185 | AD108: 0 | AE108: 0
A109: 5495.4 | B109: 5.4954 | C109: 1.689166458 | D109: 0.9372482756 | E109: 1.000016229 | F109: 0.005697160083 | G109: 1 | H109: 0 | I109: 6899.81518 | J109: 1.570651395 | K109: 1.412469311 | L109: 0.7841625044 | M109: 1.000387372 | N109: 0.02782971665 | O109: 1.000082328 | P109: 0.04092338271 | Q109: 20.24105905 | R109: -102.3757039 | S109: 77.62429605 | U109: 1000000000 | V109: 30199421.16 | X109: 3.249526294 | Y109: -46.65701945 | AA109: 16.99153275 | AB109: -55.71868449 | AD109: 0 | AE109: 0
A110: 5559.4 | B110: 5.5594 | C110: 1.701969961 | D110: 0.9427630714 | E110: 1.000016609 | F110: 0.005763508341 | G110: 1 | H110: 0 | I110: 6980.171144 | J110: 1.570653064 | K110: 1.420697675 | L110: 0.7899518452 | M110: 1.000396445 | N110: 0.02815365417 | O110: 1.000084264 | P110: 0.04140017142 | Q110: 20.12525864 | R110: -102.402146 | S110: 77.59785397 | U110: 1000000000 | V110: 30906928.36 | X110: 3.199328233 | Y110: -46.3439705 | AA110: 16.92593041 | AB110: -56.05817552 | AD110: 0 | AE110: 0
A111: 5623.4 | B111: 5.6234 | C111: 1.714824452 | D111: 0.9481953514 | E111: 1.000016994 | F111: 0.005829856548 | G111: 1 | H111: 0 | I111: 7060.527108 | J111: 1.570654694 | K111: 1.428973107 | L111: 0.7956743219 | M111: 1.000405624 | N111: 0.02847758578 | O111: 1.000086222 | P111: 0.04187696675 | Q111: 20.01083639 | R111: -102.4276892 | S111: 77.57231079 | U111: 1000000000 | V111: 31622627.56 | X111: 3.150275182 | Y111: -46.03475008 | AA111: 16.86056121 | AB111: -56.39293913 | AD111: 0 | AE111: 0
A112: 5688.9 | B112: 5.6889 | C112: 1.728031827 | D112: 0.9536711021 | E112: 1.000017392 | F112: 0.005897759738 | G112: 1 | H112: 0 | I112: 7142.766414 | J112: 1.570656325 | K112: 1.437490381 | L112: 0.8014625032 | M112: 1.000415126 | N112: 0.02880910335 | O112: 1.00008825 | P112: 0.0423649439 | Q112: 19.89512972 | R112: -102.4529447 | S112: 77.5470553 | U112: 1000000000 | V112: 32363583.21 | X112: 3.101224054 | Y112: -45.7221997 | AA112: 16.79390566 | AB112: -56.730745 | AD112: 0 | AE112: 0
A113: 5754.4 | B113: 5.7544 | C113: 1.741290228 | D113: 0.9590636263 | E113: 1.000017795 | F113: 0.005965662874 | G113: 1 | H113: 0 | I113: 7225.005721 | J113: 1.570657919 | K113: 1.446055247 | L113: 0.8071823085 | M113: 1.000424738 | N113: 0.02914061459 | O113: 1.000090301 | P113: 0.04285292815 | Q113: 19.78080724 | R113: -102.4773473 | S113: 77.52265275 | U113: 1000000000 | V113: 33113119.36 | X113: 3.053304417 | Y113: -45.4135645 | AA113: 16.72750283 | AB113: -57.06378276 | AD113: 0 | AE113: 0
A114: 5821.4 | B114: 5.8214 | C114: 1.754903844 | D114: 0.9644951797 | E114: 1.000018212 | F114: 0.006035120987 | G114: 1 | H114: 0 | I114: 7309.12837 | J114: 1.570659512 | K114: 1.454864618 | L114: 0.8129632313 | M114: 1.000434684 | N114: 0.02947971105 | O114: 1.000092424 | P114: 0.04335209503 | Q114: 19.66526887 | R114: -102.5014704 | S114: 77.49852957 | U114: 1000000000 | V114: 33888697.96 | X114: 3.005424109 | Y114: -45.10186209 | AA114: 16.65984476 | AB114: -57.39960834 | AD114: 0 | AE114: 0
A115: 5888.4 | B115: 5.8884 | C115: 1.768568434 | D115: 0.9698429565 | E115: 1.000018633 | F115: 0.006104579041 | G115: 1 | H115: 0 | I115: 7393.25102 | J115: 1.570661068 | K115: 1.463722023 | L115: 0.8186743788 | M115: 1.000444745 | N115: 0.02981880074 | O115: 1.000094572 | P115: 0.04385126951 | Q115: 19.5511189 | R115: -102.5247894 | S115: 77.47521064 | U115: 1000000000 | V115: 34673254.56 | X115: 2.958660014 | Y115: -44.79415504 | AA115: 16.59245888 | AB115: -57.73063432 | AD115: 0 | AE115: 0
A116: 5957 | B116: 5.957 | C116: 1.782610935 | D116: 0.9752333365 | E116: 1.00001907 | F116: 0.006175695734 | G116: 1 | H116: 0 | I116: 7479.382568 | J116: 1.570662626 | K116: 1.472839812 | L116: 0.8244505469 | M116: 1.000455166 | N116: 0.03016598098 | O116: 1.000096798 | P116: 0.04436237253 | Q116: 19.43565119 | R116: -102.5478759 | S116: 77.4521241 | U116: 1000000000 | V116: 35485849 | X116: 2.911901775 | Y116: -44.4831862 | AA116: 16.52374941 | AB116: -58.0646897 | AD116: 0 | AE116: 0
A117: 6025.6 | B117: 6.0256 | C117: 1.79670442 | D117: 0.9805393036 | E117: 1.000019512 | F117: 0.006246812365 | G117: 1 | H117: 0 | I117: 7565.514117 | J117: 1.570664148 | K117: 1.482006134 | L117: 0.8301554512 | M117: 1.000465707 | N117: 0.03051315395 | O117: 1.000099049 | P117: 0.0448734837 | Q117: 19.32157832 | R117: -102.5702071 | S117: 77.42979293 | U117: 1000000000 | V117: 36307855.36 | X117: 2.866246025 | Y117: -44.17629801 | AA117: 16.4553323 | AB117: -58.39390905 | AD117: 0 | AE117: 0
A118: 6095.8 | B118: 6.0958 | C118: 1.811178158 | D118: 0.9858833838 | E118: 1.000019969 | F118: 0.006319587627 | G118: 1 | H118: 0 | I118: 7653.654565 | J118: 1.57066567 | K118: 1.491435561 | L118: 0.8359206254 | M118: 1.000476619 | N118: 0.03086841663 | O118: 1.00010138 | P118: 0.04539652436 | Q118: 19.20625822 | R118: -102.5923207 | S118: 77.40767926 | U118: 1000000000 | V118: 37158777.64 | X118: 2.820632921 | Y118: -43.86642013 | AA118: 16.3856253 | AB118: -58.7259006 | AD118: 0 | AE118: 0
A119: 6166 | B119: 6.166 | C119: 1.8257028 | D119: 0.9911425811 | E119: 1.000020431 | F119: 0.006392362822 | G119: 1 | H119: 0 | I119: 7741.795012 | J119: 1.570667158 | K119: 1.500913935 | L119: 0.8416131718 | M119: 1.000487657 | N119: 0.03122367151 | O119: 1.000103739 | P119: 0.04591957374 | Q119: 19.09233744 | R119: -102.6137303 | S119: 77.3862697 | U119: 1000000000 | V119: 38019556 | X119: 2.776106793 | Y119: -43.56070108 | AA119: 16.31623065 | AB119: -59.05302922 | AD119: 0 | AE119: 0
A120: 6237.8 | B120: 6.2378 | C120: 1.840609891 | D120: 0.996435634 | E120: 1.00002091 | F120: 0.006466796641 | G120: 1 | H120: 0 | I120: 7831.944359 | J120: 1.570668645 | K120: 1.510658014 | L120: 0.8473613775 | M120: 1.000499077 | N120: 0.03158701521 | O120: 1.00010618 | P120: 0.04645455361 | Q120: 18.97723672 | R120: -102.6349426 | S120: 77.36505743 | U120: 1000000000 | V120: 38910148.84 | X120: 2.731656516 | Y120: -43.25225641 | AA120: 16.24558021 | AB120: -59.38268616 | AD120: 0 | AE120: 0
A121: 6309.6 | B121: 6.3096 | C121: 1.85556772 | D121: 1.001643496 | E121: 1.000021394 | F121: 0.006541230389 | G121: 1 | H121: 0 | I121: 7922.093706 | J121: 1.570670098 | K121: 1.520451366 | L121: 0.8530357193 | M121: 1.00051063 | N121: 0.03195035058 | O121: 1.000108649 | P121: 0.04698954283 | Q121: 18.8635379 | R121: -102.6555039 | S121: 77.34449606 | U121: 1000000000 | V121: 39811052.16 | X121: 2.688276077 | Y121: -42.9480414 | AA121: 16.17526182 | AB121: -59.70746254 | AD121: 0 | AE121: 0
A122: 6383.05 | B122: 6.38305 | C122: 1.870920518 | D122: 1.006884726 | E122: 1.000021895 | F122: 0.006617374586 | G122: 1 | H122: 0 | I122: 8014.31473 | J122: 1.57067155 | K122: 1.530519775 | L122: 0.858765132 | M122: 1.000522584 | N122: 0.03232202684 | O122: 1.000111205 | P122: 0.04753683614 | Q122: 18.74864556 | R122: -102.6759067 | S122: 77.32409329 | U122: 1000000000 | V122: 40743327.3 | X122: 2.644972165 | Y122: -42.64114894 | AA122: 16.10367339 | AB122: -60.03475777 | AD122: 0 | AE122: 0
A123: 6456.5 | B123: 6.4565 | C123: 1.886323874 | D123: 1.012040498 | E123: 1.000022402 | F123: 0.006693518706 | G123: 1 | H123: 0 | I123: 8106.535754 | J123: 1.57067297 | K123: 1.540637767 | L123: 0.8644194735 | M123: 1.000534677 | N123: 0.03269369416 | O123: 1.000113791 | P123: 0.04808413946 | Q123: 18.63515776 | R123: -102.6957125 | S123: 77.30428747 | U123: 1000000000 | V123: 41686392.25 | X123: 2.602720898 | Y123: -42.33855533 | AA123: 16.03243686 | AB123: -60.3571572 | AD123: 0 | AE123: 0
A124: 6531.7 | B124: 6.5317 | C124: 1.902145323 | D124: 1.017232459 | E124: 1.000022927 | F124: 0.006771476936 | G124: 1 | H124: 0 | I124: 8200.954012 | J124: 1.57067439 | K124: 1.551047184 | L124: 0.870131919 | M124: 1.000547201 | N124: 0.03307420737 | O124: 1.00011647 | P124: 0.04864449316 | Q124: 18.52038959 | R124: -102.7154134 | S124: 77.28458663 | U124: 1000000000 | V124: 42663104.89 | X124: 2.560520086 | Y124: -42.03313949 | AA124: 15.95986951 | AB124: -60.68227389 | AD124: 0 | AE124: 0
A125: 6606.9 | B125: 6.6069 | C125: 1.9180172 | D125: 1.022338628 | E125: 1.000023458 | F125: 0.006849435083 | G125: 1 | H125: 0 | I125: 8295.372269 | J125: 1.570675778 | K125: 1.561506538 | L125: 0.8757680195 | M125: 1.00055987 | N125: 0.033454711 | O125: 1.000119181 | P125: 0.04920485759 | Q125: 18.40703048 | R125: -102.7345711 | S125: 77.26542888 | U125: 1000000000 | V125: 43651127.61 | X125: 2.519355978 | Y125: -41.73209549 | AA125: 15.8876745 | AB125: -61.00247563 | AD125: 0 | AE125: 0
A126: 6683.85 | B126: 6.68385 | C126: 1.934309343 | D126: 1.027476742 | E126: 1.000024007 | F126: 0.00692920733 | G126: 1 | H126: 0 | I126: 8391.98776 | J126: 1.570677166 | K126: 1.572259951 | L126: 0.8814574686 | M126: 1.000572984 | N126: 0.03384405941 | O126: 1.000121987 | P126: 0.04977827364 | Q126: 18.29246007 | R126: -102.7536532 | S126: 77.24634683 | U126: 1000000000 | V126: 44673850.82 | X126: 2.478273813 | Y126: -41.4285016 | AA126: 15.81418626 | AB126: -61.32515157 | AD126: 0 | AE126: 0
A127: 6760.8 | B127: 6.7608 | C127: 1.950651699 | D127: 1.032528894 | E127: 1.000024563 | F127: 0.007008979488 | G127: 1 | H127: 0 | I127: 8488.603251 | J127: 1.570678522 | K127: 1.583063564 | L127: 0.8870694421 | M127: 1.000586249 | N127: 0.03423339754 | O127: 1.000124827 | P127: 0.05035170119 | Q127: 18.17930122 | R127: -102.7722473 | S127: 77.22775273 | U127: 1000000000 | V127: 45708416.64 | X127: 2.438210809 | Y127: -41.12934435 | AA127: 15.74109041 | AB127: -61.64290292 | AD127: 0 | AE127: 0
A128: 6839.55 | B128: 6.83955 | C128: 1.967427014 | D128: 1.037612193 | E128: 1.000025139 | F128: 0.007090617569 | G128: 1 | H128: 0 | I128: 8587.478753 | J128: 1.570679878 | K128: 1.594170806 | L128: 0.8927337531 | M128: 1.000599982 | N128: 0.03463183226 | O128: 1.000127767 | P128: 0.05093855429 | Q128: 18.06492464 | R128: -102.7908108 | S128: 77.20918922 | U128: 1000000000 | V128: 46779444.2 | X128: 2.398232765 | Y128: -40.82770958 | AA128: 15.66669188 | AB128: -61.9631012 | AD128: 0 | AE128: 0
A129: 6918.3 | B129: 6.9183 | C129: 1.984252307 | D129: 1.042609413 | E129: 1.000025721 | F129: 0.007172255556 | G129: 1 | H129: 0 | I129: 8686.354256 | J129: 1.570681204 | K129: 1.605328487 | L129: 0.8983195027 | M129: 1.000613873 | N129: 0.03503025597 | O129: 1.000130742 | P129: 0.0515254197 | Q129: 17.95196198 | R129: -102.8089418 | S129: 77.19105816 | U129: 1000000000 | V129: 47862874.89 | X129: 2.359256159 | Y129: -40.53057364 | AA129: 15.59270582 | AB129: -62.2783682 | AD129: 0 | AE129: 0
A130: 6998.9 | B130: 6.9989 | C130: 2.001523298 | D130: 1.047636899 | E130: 1.000026324 | F130: 0.007255811289 | G130: 1 | H130: 0 | I130: 8787.552548 | J130: 1.570682529 | K130: 1.616799425 | L130: 0.9039564593 | M130: 1.000628256 | N130: 0.03543802796 | O130: 1.000133824 | P130: 0.05212608468 | Q130: 17.83777721 | R130: -102.8270895 | S130: 77.17291046 | U130: 1000000000 | V130: 48984601.21 | X130: 2.320368032 | Y130: -40.23103939 | AA130: 15.51740918 | AB130: -62.59605015 | AD130: 0 | AE130: 0
A131: 7079.5 | B131: 7.0795 | C131: 2.018844013 | D131: 1.052578242 | E131: 1.000026934 | F131: 0.00733936692 | G131: 1 | H131: 0 | I131: 8888.75084 | J131: 1.570683825 | K131: 1.628321013 | L131: 0.9095138191 | M131: 1.000642804 | N131: 0.03584578815 | O131: 1.000136941 | P131: 0.05272676287 | Q131: 17.72500853 | R131: -102.8448605 | S131: 77.15513952 | U131: 1000000000 | V131: 50119320.25 | X131: 2.282463416 | Y131: -39.9360633 | AA131: 15.44254511 | AB131: -62.90879718 | AD131: 0 | AE131: 0
A132: 7161.95 | B132: 7.16195 | C132: 2.036612413 | D132: 1.057545914 | E132: 1.000027565 | F132: 0.007424840286 | G132: 1 | H132: 0 | I132: 8992.271922 | J132: 1.57068512 | K132: 1.640158348 | L132: 0.9151177728 | M132: 1.000657859 | N132: 0.03626289527 | O132: 1.000140168 | P132: 0.05334124215 | Q132: 17.61108392 | R132: -102.8626867 | S132: 77.13731329 | U132: 1000000000 | V132: 51293527.8 | X132: 2.244673793 | Y132: -39.63895309 | AA132: 15.36641013 | AB132: -63.22373362 | AD132: 0 | AE132: 0
A133: 7244.4 | B133: 7.2444 | C133: 2.054430202 | D133: 1.062427537 | E133: 1.000028203 | F133: 0.007510313543 | G133: 1 | H133: 0 | I133: 9095.793003 | J133: 1.570686386 | K133: 1.652046452 | L133: 0.9206412459 | M133: 1.000673088 | N133: 0.03667998976 | O133: 1.000143433 | P133: 0.05395573556 | Q133: 17.4985756 | R133: -102.8801923 | S133: 77.11980772 | U133: 1000000000 | V133: 52481331.36 | X133: 2.20784838 | Y133: -39.34645166 | AA133: 15.29072722 | AB133: -63.53374061 | AD133: 0 | AE133: 0
A134: 7328.75 | B134: 7.32875 | C134: 2.072708371 | D134: 1.067334681 | E134: 1.000028864 | F134: 0.007597756355 | G134: 1 | H134: 0 | I134: 9201.699653 | J134: 1.570687651 | K134: 1.664259912 | L134: 0.9262101705 | M134: 1.000688848 | N134: 0.03710668268 | O134: 1.000146813 | P134: 0.05458440432 | Q134: 17.38490723 | R134: -102.8978052 | S134: 77.10219477 | U134: 1000000000 | V134: 53710576.56 | X134: 2.171139828 | Y134: -39.05189599 | AA134: 15.2137674 | AB134: -63.84590924 | AD134: 0 | AE134: 0
A135: 7413.1 | B135: 7.4131 | C135: 2.091035577 | D135: 1.072155921 | E135: 1.000029532 | F135: 0.007685199051 | G135: 1 | H135: 0 | I135: 9307.606302 | J135: 1.570688888 | K135: 1.676524232 | L135: 0.9316977862 | M135: 1.00070479 | N135: 0.03753336208 | O135: 1.000150233 | P135: 0.0552130882 | Q135: 17.27265517 | R135: -102.9151533 | S135: 77.08484667 | U135: 1000000000 | V135: 54954051.61 | X135: 2.135376081 | Y135: -38.76199655 | AA135: 15.13727909 | AB135: -64.15315678 | AD135: 0 | AE135: 0
A136: 7499.45 | B136: 7.49945 | C136: 2.109846795 | D136: 1.077004598 | E136: 1.000030224 | F136: 0.007774714955 | G136: 1 | H136: 0 | I136: 9416.024075 | J136: 1.570690125 | K136: 1.689130875 | L136: 0.9372328016 | M136: 1.000721299 | N136: 0.0379701442 | O136: 1.000153776 | P136: 0.05585669449 | Q136: 17.15917535 | R136: -102.9326728 | S136: 77.06732724 | U136: 1000000000 | V136: 56241750.3 | X136: 2.099710991 | Y136: -38.46996018 | AA136: 15.05946436 | AB136: -64.46271258 | AD136: 0 | AE136: 0
A137: 7585.8 | B137: 7.5858 | C137: 2.128706738 | D137: 1.081767469 | E137: 1.000030924 | F137: 0.007864230735 | G137: 1 | H137: 0 | I137: 9524.441849 | J137: 1.570691334 | K137: 1.7017885 | L137: 0.9426856449 | M137: 1.000737999 | N137: 0.03840691182 | O137: 1.00015736 | P137: 0.05650031701 | Q137: 17.04711326 | R137: -102.9499824 | S137: 77.05001756 | U137: 1000000000 | V137: 57544361.64 | X137: 2.064972241 | Y137: -38.18262948 | AA137: 14.98214102 | AB137: -64.76735297 | AD137: 0 | AE137: 0
A138: 7674.15 | B138: 7.67415 | C138: 2.148052599 | D138: 1.086553981 | E138: 1.000031648 | F138: 0.007955819709 | G138: 1 | H138: 0 | I138: 9635.370746 | J138: 1.570692543 | K138: 1.714790883 | L138: 0.9481812991 | M138: 1.000755283 | N138: 0.03885378048 | O138: 1.000161072 | P138: 0.0571588638 | Q138: 16.9338895 | R138: -102.9675088 | S138: 77.03249123 | U138: 1000000000 | V138: 58892578.22 | X138: 2.030355945 | Y138: -37.89342463 | AA138: 14.90353355 | AB138: -65.07408414 | AD138: 0 | AE138: 0
A139: 7762.5 | B139: 7.7625 | C139: 2.167446794 | D139: 1.091254939 | E139: 1.000032381 | F139: 0.008047408549 | G139: 1 | H139: 0 | I139: 9746.299643 | J139: 1.570693724 | K139: 1.727844277 | L139: 0.9535940784 | M139: 1.000772767 | N139: 0.03930063362 | O139: 1.000164827 | P139: 0.05781742798 | Q139: 16.8220829 | R139: -102.9848802 | S139: 77.0151198 | U139: 1000000000 | V139: 60256406.25 | X139: 1.996646267 | Y139: -37.6089657 | AA139: 14.82543663 | AB139: -65.3759145 | AD139: 0 | AE139: 0
A140: 7852.9 | B140: 7.8529 | C140: 2.187339683 | D140: 1.095978581 | E140: 1.00003314 | F140: 0.0081411224 | G140: 1 | H140: 0 | I140: 9859.802442 | J140: 1.570694905 | K140: 1.741252153 | L140: 0.9590482868 | M140: 1.000790864 | N140: 0.03975783891 | O140: 1.000168715 | P140: 0.05849129112 | Q140: 16.70911519 | R140: -103.0025255 | S140: 76.99747446 | U140: 1000000000 | V140: 61668038.41 | X140: 1.96306148 | Y140: -37.32272619 | AA140: 14.74605371 | AB140: -65.67979935 | AD140: 0 | AE140: 0
A141: 7943.3 | B141: 7.9433 | C141: =SQRT(1+(A141/pole1)^2) -> 2.207280498 | D141: =ATAN(A141/pole1) -> 1.100616977 | E141: =SQRT(1+(A141/Zero1)^2) -> 1.000033907 | F141: =ATAN(A141/Zero1) -> 0.008234836109 | G141: =IF(VIN_nom>Vout, 1, SQRT(1+(A141/z_RHP)^2)) -> 1 | H141: =IF(VIN_nom>Vout, 0, -ATAN(A141/z_RHP)) -> 0 | I141: =SQRT(1+(A141/Pole2)^2) -> 9973.305241 | J141: =ATAN(A141/Pole2) -> 1.570696059 | K141: =SQRT(1+(A141/Zero2)^2) -> 1.754711036 | L141: =ATAN(A141/Zero2) -> 0.9644189838 | M141: =SQRT(1+(A141/pole4)^2) -> 1.000809169 | N141: =ATAN(A141/pole4) -> 0.04021502758 | O141: =SQRT((1-(V141/pterm2))^2+(A141/pterm1)^2) -> 1.00017265 | P141: =IF((ATAN((A141/pterm1)/(1-A141^2/pterm2))>0),ATAN((A141/pterm1)/(1-A141^2/pterm2)),PI()+ATAN((A141/pterm1)/(1-A141^2/pterm2))) -> 0.05916517287 | Q141: =20*LOG10(((E141*K141*G141)/(C141*I141*O141*M141))*Adc) -> 16.59756379 | R141: =((F141+L141+H141)-(D141+J141+P141+N141))*radconv -> -103.0200701 | S141: =IF(R141>0,R141,R141+180) -> 76.97992992 | U141: 1000000000 | V141: 63096014.89 | X141: =20*LOG10((K141/(I141*M141))*AEA*Afb_Ch2) -> 1.930363469 | Y141: -37.04126903 | AA141: =20*LOG10((E141*G141/(C141*O141))*Am_Ch2) -> 14.66720033 | AB141: =(F141+H141-(D141+P141))*radconv -> -65.97880105 | AD141: 0 | AE141: 0
A142: 8035.8 | B142: =A142/1000 -> 8.0358 | C142: 2.227732806 | D142: 1.105277066 | E142: 1.000034702 | F142: 0.008330726646 | G142: 1 | H142: 0 | I142: 10089.44472 | J142: 1.570697213 | K142: 1.768534154 | L142: 0.9698296682 | M142: 1.000828117 | N142: 0.04068281936 | O142: 1.000176724 | P142: 0.05985472844 | Q142: 16.48485318 | R142: -103.0379473 | S142: 76.96205271 | U142: =IF(Q142<0,A142,1000000000) -> 1000000000 | V142: =A142^2 -> 64574081.64 | X142: 1.897792821 | Y142: =(L142-(J142+N142))*radconv -> -36.75812827 | AA142: 14.58706036 | AB142: -66.27981902 | AD142: =SUM((Q143<0)*(Q142>0))*A142 -> 0 | AE142: 0
A143: 8128.3 | B143: 8.1283 | C143: 2.248232612 | D143: 1.109852271 | E143: 1.000035505 | F143: 0.008426617029 | G143: 1 | H143: 0 | I143: 10205.5842 | J143: 1.570698341 | K143: 1.782408242 | L143: 0.9751562741 | M143: 1.000847283 | N143: 0.04115059333 | O143: 1.000180846 | P143: 0.06054430395 | Q143: 16.37355768 | R143: -103.0557769 | S143: 76.94422309 | U143: 1000000000 | V143: 66069260.89 | X143: 1.866088992 | Y143: -36.47980233 | AA143: 14.50746869 | AB143: -66.57597458 | AD143: 0 | AE143: 0
A144: 8222.95 | B144: 8.22295 | C144: 2.269256723 | D144: 1.114448153 | E144: 1.000036337 | F144: 0.008524736056 | G144: 1 | H144: 0 | I144: 10324.42314 | J144: 1.570699469 | K144: 1.796656339 | L144: 0.9805213753 | M144: 1.000867122 | N144: 0.04162922123 | O144: 1.000185115 | P144: 0.0612499283 | Q144: 16.26110605 | R144: -103.0739994 | S144: 76.92600062 | U144: 1000000000 | V144: 67616906.7 | X144: 1.834514964 | Y144: -36.19989266 | AA144: 14.42659109 | AB144: -66.87410672 | AD144: 0 | AE144: 0
A145: 8270.275 | B145: 8.270275 | C145: 2.279786504 | D145: 1.116714283 | E145: 1.000036756 | F145: 0.008573795508 | G145: 1 | H145: 0 | I145: 10383.84261 | J145: 1.570700023 | K145: 1.803799551 | L145: 0.9831721038 | M145: 1.000877127 | N145: 0.04186852804 | O145: 1.000187268 | P145: 0.06160274847 | Q145: 16.2054124 | R145: -103.0831107 | S145: 76.91688927 | U145: 1000000000 | V145: 68397448.58 | X145: 1.819047318 | Y145: -36.06176013 | AA145: 14.38636508 | AB145: -67.0213506 | AD145: 0 | AE145: 0
A146: 8317.6 | B146: 8.3176 | C146: 2.290327884 | D146: 1.118959564 | E146: 1.000037178 | F146: 0.008622854919 | G146: 1 | H146: 0 | I146: 10443.26207 | J146: 1.570700571 | K146: 1.810955337 | L146: 0.9858019026 | M146: 1.00088719 | N146: 0.04210783005 | O146: 1.000189434 | P146: 0.06195557401 | Q146: 16.15006798 | R146: -103.0922264 | S146: 76.9077736 | U146: 1000000000 | V146: 69182469.76 | X146: 1.803787691 | Y146: -35.92482615 | AA146: 14.34628029 | AB146: -67.16740025 | AD146: 0 | AE146: 0
A147: 8366.05 | B147: 8.36605 | C147: 2.301131703 | D147: 1.121236897 | E147: 1.000037612 | F147: 0.008673080516 | G147: 1 | H147: 0 | I147: 10504.09405 | J147: 1.570701126 | K147: 1.8182941 | L147: 0.9884727547 | M147: 1.000897551 | N147: 0.0423528157 | O147: 1.000191665 | P147: 0.06231679244 | Q147: 16.09376546 | R147: -103.1015664 | S147: 76.89843357 | U147: 1000000000 | V147: 69990792.6 | X147: 1.788377076 | Y147: -35.78586601 | AA147: 14.30538838 | AB147: -67.31570042 | AD147: 0 | AE147: 0
A148: 8414.5 | B148: 8.4145 | C148: 2.311947344 | D148: 1.123492935 | E148: 1.000038049 | F148: 0.00872330607 | G148: 1 | H148: 0 | I148: 10564.92603 | J148: 1.570701674 | K148: =SQRT(1+(A148/Zero2)^2) -> 1.825645729 | L148: =ATAN(A148/Zero2) -> 0.9911221152 | M148: 1.000907973 | N148: 0.04259779626 | O148: 1.000193909 | P148: 0.06267801656 | Q148: 16.03782041 | R148: -103.1109174 | S148: 76.88908265 | U148: 1000000000 | V148: 70803810.25 | X148: 1.773176981 | Y148: -35.64813659 | AA148: 14.26464343 | AB148: -67.46278076 | AD148: 0 | AE148: 0
A149: 8462.95 | B149: 8.46295 | C149: 2.322774643 | D149: 1.125727951 | E149: 1.000038489 | F149: 0.00877353158 | G149: 1 | H149: 0 | I149: 10625.758 | J149: 1.570702216 | K149: 1.83301007 | L149: 0.9937502058 | M149: 1.000918454 | N149: 0.0428427717 | O149: 1.000196167 | P149: 0.0630392464 | Q149: 15.98222862 | R149: -103.1202822 | S149: 76.87971779 | U149: 1000000000 | V149: 71621522.7 | X149: 1.758183726 | Y149: -35.5116252 | AA149: 14.22404489 | AB149: -67.60865701 | AD149: 0 | AE149: 0
A150: 8511.4 | B150: 8.5114 | C150: 2.333613437 | D150: 1.127942217 | E150: 1.000038931 | F150: 0.008823757046 | G150: 1 | H150: 0 | I150: 10686.58998 | J150: 1.570702752 | K150: 1.840386969 | L150: 0.9963572457 | M150: 1.000928995 | N150: 0.043087742 | O150: 1.000198438 | P150: 0.063400482 | Q150: 15.9269859 | R150: -103.1296639 | S150: 76.87033607 | U150: 1000000000 | V150: 72443929.96 | X150: 1.743393707 | Y150: -35.37631927 | AA150: 14.1835922 | AB150: -67.75334466 | AD150: 0 | AE150: 0
A151: 8560.95 | B151: 8.56095 | C151: 2.344710037 | D151: 1.13018557 | E151: 1.000039385 | F151: 0.008875122775 | G151: 1 | H151: 0 | I151: 10748.80307 | J151: 1.570703293 | K151: 1.847944186 | L151: 0.9990019284 | M151: 1.000939838 | N151: 0.04333826871 | O151: 1.000200774 | P151: 0.06376992502 | Q151: 15.87084578 | R151: -103.1392791 | S151: 76.86072094 | U151: 1000000000 | V151: 73289864.9 | X151: 1.728474431 | Y151: -35.23917527 | AA151: 14.14237134 | AB151: -67.90010379 | AD151: 0 | AE151: 0
A152: 8610.5 | B152: 8.6105 | C152: 2.355818325 | D152: 1.132407778 | E152: 1.000039842 | F152: 0.008926488458 | G152: 1 | H152: 0 | I152: 10811.01617 | J152: 1.570703829 | K152: 1.855514223 | L152: 1.00162505 | M152: 1.000950744 | N152: 0.04358878998 | O152: 1.000203125 | P152: 0.06413937412 | Q152: 15.81506218 | R152: -103.1489177 | S152: 76.85108229 | U152: 1000000000 | V152: 74140710.25 | X152: 1.713760338 | Y152: -35.10326596 | AA152: 14.10130184 | AB152: -68.04565176 | AD152: 0 | AE152: 0
A153: 8660.05 | B153: 8.66005 | C153: 2.366938138 | D153: 1.134609117 | E153: 1.000040302 | F153: 0.008977854093 | G153: 1 | H153: 0 | I153: 10873.22926 | J153: 1.570704358 | K153: 1.863096923 | L153: 1.004226838 | M153: 1.000961712 | N153: 0.04383930577 | O153: 1.000205489 | P153: 0.06450882936 | Q153: 15.75963088 | R153: -103.1585827 | S153: 76.84141729 | U153: 1000000000 | V153: 74996466 | X153: 1.699247808 | Y153: -34.96857833 | AA153: 14.06038307 | AB153: -68.19000438 | AD153: 0 | AE153: 0
A154: 8709.6 | B154: 8.7096 | C154: 2.378069313 | D154: 1.136789858 | E154: 1.000040765 | F154: 0.009029219681 | G154: 1 | H154: 0 | I154: 10935.44235 | J154: 1.570704881 | K154: 1.870692132 | L154: 1.006807515 | M154: 1.000972744 | N154: 0.04408981605 | O154: 1.000207867 | P154: 0.06487829075 | Q154: 15.7045477 | R154: -103.1682768 | S154: 76.83172324 | U154: 1000000000 | V154: 75857132.16 | X154: 1.6849333 | Y154: -34.83509955 | AA154: 14.0196144 | AB154: -68.33317721 | AD154: 0 | AE154: =IF(AD154>0,S154,0) -> 0
A155: 8760.325 | B155: 8.760325 | C155: 2.389476051 | D155: 1.139001256 | E155: 1.000041241 | F155: 0.009081803274 | G155: 1 | H155: 0 | I155: 10999.13073 | J155: 1.570705411 | K155: 1.87848025 | L155: 1.009427755 | M155: 1.000984102 | N155: 0.04434626106 | O155: 1.000210317 | P155: 0.06525651975 | Q155: 15.64851465 | R155: -103.1782335 | S155: 76.82176651 | U155: 1000000000 | V155: 76743294.11 | X155: 1.670480845 | Y155: -34.69969443 | AA155: 13.9780338 | AB155: -68.47853906 | AD155: 0 | AE155: 0
A156: 8811.05 | B156: 8.81105 | C156: 2.400894363 | D156: 1.14119163 | E156: 1.00004172 | F156: 0.009134386816 | G156: 1 | H156: 0 | I156: 11062.81911 | J156: 1.570705934 | K156: 1.886281158 | L156: 1.01202634 | M156: 1.000995526 | N156: 0.04460270023 | O156: 1.000212781 | P156: 0.06563475528 | Q156: 15.59283781 | R156: -103.1882261 | S156: 76.81177391 | U156: 1000000000 | V156: 77634602.1 | X156: 1.656228637 | Y156: -34.56552936 | AA156: 13.93660917 | AB156: -68.62269673 | AD156: 0 | AE156: 0
A157: 8861.775 | B157: 8.861775 | C157: 2.412324085 | D157: 1.143361258 | E157: 1.000042202 | F157: 0.009186970308 | G157: 1 | H157: 0 | I157: 11126.50749 | J157: 1.570706451 | K157: 1.894094699 | L157: 1.014603502 | M157: 1.001007015 | N157: 0.04485913352 | O157: 1.000215259 | P157: 0.06601299738 | Q157: 15.53751292 | R157: -103.1982571 | S157: 76.80174287 | U157: 1000000000 | V157: 78531056.15 | X157: 1.64217311 | Y157: -34.43259101 | AA157: 13.89533981 | AB157: -68.76566612 | AD157: 0 | AE157: 0
A158: 8912.5 | B158: 8.9125 | C158: 2.423765055 | D158: 1.145510413 | E158: 1.000042686 | F158: 0.009239553749 | G158: 1 | H158: 0 | I158: 11190.19587 | J158: 1.570706963 | K158: =SQRT(1+(A158/Zero2)^2) -> 1.901920716 | L158: =ATAN(A158/Zero2) -> 1.017159473 | M158: 1.001018571 | N158: 0.04511556092 | O158: 1.000217753 | P158: 0.06639124609 | Q158: 15.4825358 | R158: -103.2083291 | S158: 76.7916709 | U158: 1000000000 | V158: 79432656.25 | X158: 1.628310774 | Y158: -34.3008662 | AA158: 13.85422503 | AB158: -68.9074629 | AD158: 0 | AE158: 0
A159: 8964.4 | B159: 8.9644 | C159: 2.435482522 | D159: 1.147688443 | E159: 1.000043185 | F159: 0.009293355186 | G159: 1 | H159: 0 | I159: 11255.35954 | J159: 1.57070748 | K159: 1.90994077 | L159: 1.019752953 | M159: 1.001030462 | N159: 0.04537792208 | O159: 1.000220319 | P159: 0.06677826346 | Q159: 15.42664084 | R159: -103.2186792 | S159: 76.78132077 | U159: 1000000000 | V159: 80360467.36 | X159: 1.614323721 | Y159: -34.16733256 | AA159: 13.81231712 | AB159: -69.05134667 | AD159: 0 | AE159: 0
A160: 9016.3 | B160: 9.0163 | C160: 2.447211432 | D160: 1.149845605 | E160: 1.000043686 | F160: 0.00934715657 | G160: 1 | H160: 0 | I160: 11320.5232 | J160: 1.570707992 | K160: 1.917973563 | L160: 1.022324727 | M160: 1.001042422 | N160: 0.045640277 | O160: 1.000222901 | P160: 0.06716528783 | Q160: 15.3711013 | R160: -103.2290771 | S160: 76.77092286 | U160: 1000000000 | V160: 81293665.69 | X160: 1.600531756 | Y160: -34.03504192 | AA160: 13.77056954 | AB160: -69.19403522 | AD160: 0 | AE160: 0
A161: 9068.2 | B161: 9.0682 | C161: 2.458951621 | D161: 1.151982178 | E161: 1.000044191 | F161: 0.009400957899 | G161: 1 | H161: 0 | I161: 11385.68687 | J161: 1.570708497 | K161: 1.926018935 | L161: 1.024875031 | M161: 1.001054451 | N161: 0.04590262562 | O161: 1.000225498 | P161: 0.06755231924 | Q161: 15.31591291 | R161: -103.2395252 | S161: 76.7604748 | U161: 1000000000 | V161: 82232251.24 | X161: 1.586931372 | Y161: -33.90398066 | AA161: 13.72898154 | AB161: -69.33554454 | AD161: 0 | AE161: 0
A162: 9120.1 | B162: 9.1201 | C162: 2.470702928 | D162: 1.154098437 | E162: 1.000044698 | F162: 0.009454759174 | G162: 1 | H162: 0 | I162: 11450.85053 | J162: 1.570708997 | K162: 1.93407673 | L162: 1.027404102 | M162: 1.001066549 | N162: 0.04616496793 | O162: 1.000228111 | P162: 0.06793935771 | Q162: 15.26107148 | R162: -103.2500256 | S162: 76.74997436 | U162: 1000000000 | V162: 83176224.01 | X162: 1.573519142 | Y162: -33.77413532 | AA162: 13.68755234 | AB162: -69.47589032 | AD162: 0 | AE162: 0
A163: 9173.2 | B163: 9.1732 | C163: 2.482737284 | D163: 1.156242883 | E163: 1.00004522 | F163: 0.009509804352 | G163: 1 | H163: 0 | I163: 11517.52087 | J163: 1.570709503 | K163: 1.942333528 | L163: 1.029969915 | M163: 1.001078998 | N163: 0.04643336936 | O163: 1.0002308 | P163: 0.06833535242 | Q163: 15.20531683 | R163: -103.2608253 | S163: 76.73917466 | U163: 1000000000 | V163: 84147598.24 | X163: 1.55998803 | Y163: -33.64253233 | AA163: 13.6453288 | AB163: -69.618293 | AD163: 0 | AE163: 0
A164: 9226.3 | B164: 9.2263 | C164: 2.494782947 | D164: 1.158366631 | E164: 1.000045745 | F164: 0.009564849473 | G164: 1 | H164: 0 | I164: 11584.19121 | J164: 1.570710002 | K164: 1.950603005 | L164: 1.032513988 | M164: 1.001091519 | N164: 0.04670176411 | O164: 1.000233506 | P164: 0.06873135461 | Q164: 15.14991669 | R164: -103.2716843 | S164: 76.72831566 | U164: 1000000000 | V164: 85124611.69 | X164: 1.546646841 | Y164: -33.51217416 | AA164: 13.60326985 | AB164: -69.75951018 | AD164: 0 | AE164: 0
A165: 9279.4 | B165: 9.2794 | C165: 2.506839754 | D165: 1.160469959 | E165: 1.000046273 | F165: 0.009619894536 | G165: 1 | H165: 0 | I165: 11650.86155 | J165: 1.570710496 | K165: 1.958885 | L165: 1.035036566 | M165: 1.001104113 | N165: 0.04697015212 | O165: 1.000236228 | P165: 0.06912736433 | Q165: 15.09486681 | R165: -103.2826048 | S165: 76.71739523 | U165: 1000000000 | V165: 86107264.36 | X165: 1.533492133 | Y165: -33.3830469 | AA165: 13.56137468 | AB165: -69.89955786 | AD165: 0 | AE165: 0
A166: 9332.5 | B166: 9.3325 | C166: 2.518907545 | D166: 1.162553143 | E166: 1.000046804 | F166: 0.00967493954 | G166: 1 | H166: 0 | I166: 11717.53189 | J166: 1.570710985 | K166: 1.967179356 | L166: 1.037537888 | M166: 1.001116778 | N166: 0.04723853336 | O166: 1.000238965 | P166: 0.06952338163 | Q166: 15.04016297 | R166: -103.2935886 | S166: 76.70641137 | U166: 1000000000 | V166: 87095556.25 | X166: 1.52052054 | Y166: -33.25513684 | AA166: 13.51964243 | AB166: -70.03845179 | AD166: 0 | AE166: 0
A167: 9386.85 | B167: 9.38685 | C167: 2.531270629 | D167: 1.164664787 | E167: 1.000047351 | F167: 0.00973128027 | G167: 1 | H167: 0 | I167: 11785.77168 | J167: 1.570711479 | K167: 1.975681602 | L167: 1.040076325 | M167: 1.001129816 | N167: 0.04751322538 | O167: 1.000241785 | P167: 0.06992872926 | Q167: 14.98452543 | R167: -103.3048988 | S167: 76.69510123 | U167: 1000000000 | V167: 88112952.92 | X167: 1.507429781 | Y167: -33.12546208 | AA167: 13.47709565 | AB167: -70.17943669 | AD167: 0 | AE167: 0
A168: 9441.2 | B168: 9.4412 | C168: 2.54364489 | D168: 1.166755895 | E168: 1.000047901 | F168: 0.009787620939 | G168: 1 | H168: 0 | I168: 11854.01147 | J168: 1.570711967 | K168: 1.984196469 | L168: 1.042592992 | M168: 1.00114293 | N168: 0.04778791021 | O168: 1.000244621 | P168: 0.07033408491 | Q168: 14.92924173 | R168: -103.3162794 | S168: 76.68372064 | U168: 1000000000 | V168: 89136257.44 | X168: 1.49452395 | Y168: -32.99703394 | AA168: 13.43471778 | AB168: -70.31924542 | AD168: 0 | AE168: 0
A169: 9495.55 | B169: 9.49555 | C169: 2.556030166 | D169: 1.168826746 | E169: 1.000048454 | F169: 0.009843961545 | G169: 1 | H169: 0 | I169: 11922.25126 | J169: 1.57071245 | K169: 1.992723796 | L169: 1.045088136 | M169: 1.001156119 | N169: 0.04806258784 | O169: 1.000247474 | P169: 0.07073944863 | Q169: 14.87430759 | R169: -103.3277323 | S169: 76.67226772 | U169: 1000000000 | V169: 90165469.8 | X169: 1.481799668 | Y169: -32.86983825 | AA169: 13.39250792 | AB169: -70.45789404 | AD169: 0 | AE169: 0
A170: 9549.9 | B170: 9.5499 | C170: 2.568426297 | D170: 1.170877618 | E170: 1.00004901 | F170: 0.009900302089 | G170: 1 | H170: 0 | I170: 11990.49105 | J170: 1.570712927 | K170: 2.001263424 | L170: 1.047562002 | M170: 1.001169384 | N170: 0.0483372582 | O170: 1.000250344 | P170: 0.07114482048 | Q170: 14.8197188 | R170: -103.3392593 | S170: 76.66074067 | U170: 1000000000 | V170: 91200590.01 | X170: 1.469253627 | Y170: -32.74386101 | AA170: 13.35046517 | AB170: -70.59539832 | AD170: 0 | AE170: 0
A171: 9605.525 | B171: 9.605525 | C171: 2.581124308 | D171: 1.172956194 | E171: 1.000049583 | F171: 0.009957964264 | G171: 1 | H171: 0 | I171: 12060.33169 | J171: 1.57071341 | K171: 2.010015956 | L171: 1.05007212 | M171: 1.001183038 | N171: 0.04861836451 | O171: 1.000253299 | P171: 0.07155971041 | Q171: 14.76420268 | R171: -103.3511353 | S171: 76.64886468 | U171: 1000000000 | V171: 92266110.53 | X171: 1.456594454 | Y171: -32.61617573 | AA171: 13.30760822 | AB171: -70.73495959 | AD171: 0 | AE171: 0
A172: 9661.15 | B172: 9.66115 | C172: 2.593833361 | D172: 1.17501441 | E172: 1.000050158 | F172: 0.01001562637 | G172: 1 | H172: 0 | I172: 12130.17232 | J172: 1.570713888 | K172: 2.018781043 | L172: 1.052560456 | M172: 1.001196771 | N172: 0.04889946314 | O172: 1.000256272 | P172: 0.07197460895 | Q172: 14.70903959 | R172: -103.3630925 | S172: 76.63690753 | U172: 1000000000 | V172: 93337819.32 | X172: 1.444115201 | Y172: -32.48973765 | AA172: 13.26492439 | AB172: -70.87335482 | AD172: 0 | AE172: 0
A173: 9716.775 | B173: 9.716775 | C173: 2.606553295 | D173: 1.177052546 | E173: 1.000050738 | F173: 0.01007328841 | G173: 1 | H173: 0 | I173: 12200.01295 | J173: 1.57071436 | K173: 2.027558522 | L173: 1.055027264 | M173: 1.001210583 | N173: 0.04918055403 | O173: 1.000259263 | P173: 0.07238951613 | Q173: 14.65422525 | R173: -103.3751324 | S173: 76.62486758 | U173: 1000000000 | V173: 94415716.4 | X173: 1.431812552 | Y173: -32.36453235 | AA173: 13.2224127 | AB173: -71.01060007 | AD173: 0 | AE173: 0
A174: 9772.4 | B174: 9.7724 | C174: 2.619283952 | D174: 1.179070878 | E174: 1.00005132 | F174: 0.01013095039 | G174: 1 | H174: 0 | I174: 12269.85358 | J174: 1.570714826 | K174: 2.036348233 | L174: 1.057472791 | M174: 1.001224475 | N174: 0.04946163714 | O174: 1.000262272 | P174: 0.07280443202 | Q174: 14.59975544 | R174: -103.3872567 | S174: 76.61274325 | U174: 1000000000 | V174: 95499801.76 | X174: 1.419683261 | Y174: -32.2405456 | AA174: 13.18007218 | AB174: -71.14671115 | AD174: 0 | AE174: 0
A175: 9829.3 | B175: 9.8293 | C175: 2.632317344 | D175: 1.181115267 | E175: 1.00005192 | F175: 0.01018993399 | G175: 1 | H175: 0 | I175: 12341.29506 | J175: 1.570715298 | K175: 2.045351906 | L175: 1.05995261 | M175: 1.001238767 | N175: 0.04974915497 | O175: 1.000265368 | P175: 0.07322886738 | Q175: 14.54438924 | R175: -103.3997478 | S175: 76.60025219 | U175: 1000000000 | V175: 96615138.49 | X175: 1.407452007 | Y175: -32.11496301 | AA175: 13.13693723 | AB175: -71.2847848 | AD175: 0 | AE175: 0
A176: 9886.2 | B176: 9.8862 | C176: 2.645361629 | D176: 1.183139501 | E176: 1.000052522 | F176: 0.01024891751 | G176: 1 | H176: 0 | I176: 12412.73653 | J176: 1.570715764 | K176: 2.054368047 | L176: 1.062410678 | M176: 1.001253141 | N176: 0.05003666456 | O176: 1.000268483 | P176: 0.07365331195 | Q176: 14.48937483 | R176: -103.4123302 | S176: 76.5876698 | U176: 1000000000 | V176: 97736950.44 | X176: 1.395395507 | Y176: -31.99062592 | AA176: 13.09397932 | AB176: -71.42170428 | AD176: 0 | AE176: 0
A177: 9943.1 | B177: 9.9431 | C177: 2.658416647 | D177: 1.185143863 | E177: 1.000053129 | F177: 0.01030790096 | G177: 1 | H177: 0 | I177: 12484.17801 | J177: 1.570716225 | K177: 2.063396492 | L177: 1.064847249 | M177: 1.001267598 | N177: 0.05032416587 | O177: 1.000271617 | P177: 0.07407776578 | Q177: 14.43470793 | R177: -103.4250053 | S177: 76.57499467 | U177: 1000000000 | V177: 98865237.61 | X177: 1.383510515 | Y177: -31.86751968 | AA177: 13.05119742 | AB177: -71.55748565 | AD177: 0 | AE177: 0
A178: 10000 | B178: 10 | C178: 2.671482241 | D178: 1.187128627 | E178: 1.000053739 | F178: 0.01036688434 | G178: 1 | H178: 0 | I178: 12555.61948 | J178: 1.570716681 | K178: 2.07243708 | L178: 1.067262577 | M178: 1.001282138 | N178: 0.05061165886 | O178: 1.00027477 | P178: 0.07450222892 | Q178: 14.38038432 | R178: -103.4377745 | S178: 76.56222547 | U178: 1000000000 | V178: 100000000 | X178: 1.371793854 | Y178: -31.74562984 | AA178: 13.00859046 | AB178: -71.69214468 | AD178: 0 | AE178: 0
A179: 10058.25 | B179: 10.05825 | C179: 2.684868621 | D179: 1.189140462 | E179: 1.000054366 | F179: 0.01042726708 | G179: 1 | H179: 0 | I179: 12628.75596 | J179: 1.570717142 | K179: 2.081704578 | L179: 1.069713464 | M179: 1.001297109 | N179: 0.05090596419 | O179: 1.000278017 | P179: 0.07493677249 | Q179: 14.3251231 | R179: -103.4509454 | S179: 76.54905456 | U179: 1000000000 | V179: 101168393.1 | X179: 1.359970333 | Y179: -31.62209323 | AA179: 12.96515277 | AB179: -71.82885221 | AD179: 0 | AE179: 0
A180: 10116.5 | B180: 10.1165 | C180: 2.698265761 | D180: 1.191132328 | E180: 1.000054998 | F180: 0.01048764974 | G180: 1 | H180: 0 | I180: 12701.89245 | J180: 1.570717598 | K180: 2.090984469 | L180: 1.072142611 | M180: 1.001312167 | N180: 0.05120026068 | O180: 1.000281283 | P180: 0.07537132594 | Q180: 14.27021294 | R180: -103.4642175 | S180: 76.53578247 | U180: 1000000000 | V180: 102343572.2 | X180: 1.348316714 | Y180: -31.49980141 | AA180: 12.92189622 | AB180: -71.96441611 | AD180: 0 | AE180: 0
A181: 10174.75 | B181: 10.17475 | C181: 2.711673499 | D181: 1.193104504 | E181: 1.000055633 | F181: 0.01054803233 | G181: 1 | H181: 0 | I181: 12775.02893 | J181: 1.570718049 | K181: 2.10027659 | L181: 1.074550279 | M181: 1.001327311 | N181: 0.05149454831 | O181: 1.00028457 | P181: 0.07580588931 | Q181: 14.21564953 | R181: -103.477592 | S181: 76.52240804 | U181: 1000000000 | V181: 103525537.6 | X181: 1.336829812 | Y181: -31.3787395 | AA181: 12.87881972 | AB181: -72.09885246 | AD181: 0 | AE181: 0
A182: 10233 | B182: 10.233 | C182: 2.725091681 | D182: 1.195057266 | E182: 1.000056272 | F182: 0.01060841483 | G182: 1 | H182: 0 | I182: 12848.16541 | J182: 1.570718495 | K182: 2.109580778 | L182: 1.076936722 | M182: 1.001342542 | N182: 0.051788827 | O182: 1.000287876 | P182: 0.07624046266 | Q182: 14.16142865 | R182: -103.4910699 | S182: 76.50893013 | U182: 1000000000 | V182: 104714289 | X182: 1.325506515 | Y182: -31.25889284 | AA182: 12.83592213 | AB182: -72.23217703 | AD182: 0 | AE182: 0
A183: 10292.5 | B183: 10.2925 | C183: 2.738808429 | D183: 1.19703217 | E183: 1.000056928 | F183: 0.01067009302 | G183: 1 | H183: 0 | I183: 12922.87135 | J183: 1.570718945 | K183: 2.119096921 | L183: 1.079352727 | M183: 1.001358189 | N183: 0.05208941142 | O183: 1.000291273 | P183: 0.07668437198 | Q183: 14.10639355 | R183: -103.5049449 | S183: 76.4950551 | U183: 1000000000 | V183: 105935556.2 | X183: 1.314105973 | Y183: -31.13771395 | AA183: 12.79228758 | AB183: -72.36723095 | AD183: 0 | AE183: 0
A184: 10352 | B184: 10.352 | C184: 2.752535753 | D184: 1.198987384 | E184: 1.000057588 | F184: 0.01073177113 | G184: 1 | H184: 0 | I184: 12997.57728 | J184: 1.570719389 | K184: 2.128625322 | L184: 1.081747116 | M184: 1.001373927 | N184: 0.05238998642 | O184: 1.000294691 | P184: 0.07712829184 | Q184: 14.05170716 | R184: -103.51893 | S184: 76.48107001 | U184: 1000000000 | V184: 107163904 | X184: 1.302869787 | Y184: -31.01777272 | AA184: 12.74883737 | AB184: -72.50115728 | AD184: 0 | AE184: 0
A185: 10411.5 | B185: 10.4115 | C185: 2.766273494 | D185: 1.200923185 | E185: 1.000058252 | F185: 0.01079344916 | G185: 1 | H185: 0 | I185: 13072.28322 | J185: 1.570719829 | K185: 2.138165818 | L185: 1.084120151 | M185: 1.001389755 | N185: 0.05269055194 | O185: 1.00029813 | P185: 0.07757222229 | Q185: 13.9973652 | R185: -103.5330261 | S185: 76.46697389 | U185: 1000000000 | V185: 108399332.2 | X185: 1.291794857 | Y185: -30.89905414 | AA185: 12.70557034 | AB185: -72.63397197 | AD185: 0 | AE185: 0
A186: 10471 | B186: 10.471 | C186: 2.7800215 | D186: 1.202839847 | E186: 1.00005892 | F186: 0.0108551271 | G186: 1 | H186: 0 | I186: 13146.98916 | J186: 1.570720264 | K186: 2.147718248 | L186: 1.08647209 | M186: 1.001405673 | N186: 0.05299110794 | O186: 1.000301589 | P186: 0.07801616339 | Q186: 13.94336348 | R186: -103.5472341 | S186: 76.45276587 | U186: 1000000000 | V186: 109641841 | X186: 1.280878154 | Y186: -30.78154345 | AA186: 12.66248532 | AB186: -72.76569068 | AD186: 0 | AE186: 0
A187: 10532 | B187: 10.532 | C187: 2.79412659 | D187: 1.204785241 | E187: 1.000059608 | F187: 0.01091835987 | G187: 1 | H187: 0 | I187: 13223.57843 | J187: 1.570720704 | K187: 2.157523718 | L187: 1.088861688 | M187: 1.001422087 | N187: 0.05329923103 | O187: 1.000305157 | P187: 0.0784713074 | Q187: 13.88834925 | R187: -103.5619174 | S187: 76.43808263 | U187: 1000000000 | V187: 110923024 | X187: 1.269847402 | Y187: -30.66230899 | AA187: 12.61850185 | AB187: -72.89960838 | AD187: 0 | AE187: 0
A188: 10593 | B188: 10.593 | C188: 2.808242148 | D188: 1.206711085 | E188: 1.000060301 | F188: 0.01098159255 | G188: 1 | H188: 0 | I188: 13300.16771 | J188: 1.57072114 | K188: 2.167341397 | L188: 1.09122965 | M188: 1.001438596 | N188: 0.05360734399 | O188: 1.000308747 | P188: 0.07892646273 | Q188: 13.83368392 | R188: -103.5767199 | S188: 76.4232801 | U188: 1000000000 | V188: 112211649 | X188: 1.258976724 | Y188: -30.54431328 | AA188: 12.57470719 | AB188: -73.03240662 | AD188: 0 | AE188: 0
A189: 10654 | B189: 10.654 | C189: 2.822368018 | D189: 1.208617658 | E189: 1.000060997 | F189: 0.01104482514 | G189: 1 | H189: 0 | I189: 13376.75699 | J189: 1.57072157 | K189: 2.177171119 | L189: 1.093576243 | M189: 1.0014552 | N189: 0.05391544676 | O189: 1.000312358 | P189: 0.07938162946 | Q189: 13.77936318 | R189: -103.5916425 | S189: 76.40835754 | U189: 1000000000 | V189: 113507716 | X189: 1.248263075 | Y189: -30.42754106 | AA189: 12.5311001 | AB189: -73.1641014 | AD189: 0 | AE189: 0
A190: 10715 | B190: 10.715 | C190: 2.836504044 | D190: 1.210505235 | E190: 1.000061698 | F190: 0.01110805764 | G190: 1 | H190: 0 | I190: 13453.34627 | J190: 1.570721996 | K190: 2.187012721 | L190: 1.095901729 | M190: 1.001471899 | N190: 0.05422353929 | O190: 1.000315991 | P190: 0.07983680763 | Q190: 13.72538281 | R190: -103.6066857 | S190: 76.39331428 | U190: 1000000000 | V190: 114811225 | X190: 1.237703475 | Y190: -30.3119773 | AA190: 12.48767934 | AB190: -73.29470842 | AD190: 0 | AE190: 0
A191: 10777.5 | B191: 10.7775 | C191: 2.850998055 | D191: 1.212419806 | E191: 1.000062419 | F191: 0.01117284494 | G191: 1 | H191: 0 | I191: 13531.81889 | J191: 1.570722427 | K191: 2.197108486 | L191: 1.098262778 | M191: 1.001489108 | N191: 0.05453919717 | O191: 1.000319737 | P191: 0.08030319066 | Q191: 13.67042376 | R191: -103.6222247 | S191: 76.37777527 | U191: 1000000000 | V191: 116154506.2 | X191: 1.227040949 | Y191: -30.19480972 | AA191: 12.44338281 | AB191: -73.42741501 | AD191: 0 | AE191: 0
A192: 10840 | B192: 10.84 | C192: 2.865502411 | D192: 1.214315002 | E192: 1.000063146 | F192: 0.01123763216 | G192: 1 | H192: 0 | I192: 13610.29151 | J192: 1.570722853 | K192: 2.207216386 | L192: 1.100602215 | M192: 1.001506416 | N192: 0.05485484418 | O192: 1.000323505 | P192: 0.08076958585 | Q192: 13.61581328 | R192: -103.6378917 | S192: 76.36210831 | U192: 1000000000 | V192: 117505600 | X192: 1.216534029 | Y192: -30.07887949 | AA192: 12.39927925 | AB192: -73.5590122 | AD192: 0 | AE192: 0
A193: 10902.5 | B193: 10.9025 | C193: 2.880016955 | D193: 1.216191103 | E193: 1.000063876 | F193: 0.01130241928 | G193: 1 | H193: 0 | I193: 13688.76413 | J193: 1.570723274 | K193: 2.217336256 | L193: 1.102920311 | M193: 1.001523823 | N193: 0.05517048024 | O193: 1.000327296 | P193: 0.08123599326 | Q193: 13.56154708 | R193: -103.6536871 | S193: 76.34631289 | U193: 1000000000 | V193: 118864506.2 | X193: 1.206179728 | Y193: -29.96417114 | AA193: 12.35536735 | AB193: -73.68951598 | AD193: 0 | AE193: 0
A194: 10965 | B194: 10.965 | C194: 2.894541535 | D194: 1.218048381 | E194: 1.00006461 | F194: 0.0113672063 | G194: 1 | H194: 0 | I194: 13767.23675 | J194: 1.570723691 | K194: 2.227467934 | L194: 1.105217331 | M194: 1.001541331 | N194: 0.0554861053 | O194: 1.00033111 | P194: 0.08170241297 | Q194: 13.50762091 | R194: -103.6696115 | S194: 76.33038852 | U194: 1000000000 | V194: 120231225 | X194: 1.195975124 | Y194: -29.85066942 | AA194: 12.31164579 | AB194: -73.81894206 | AD194: 0 | AE194: 0
A195: 11028.75 | B195: 11.02875 | C195: 2.909366788 | D195: 1.219923694 | E195: 1.000065364 | F195: 0.01143328897 | G195: 1 | H195: 0 | I195: 13847.27883 | J195: 1.57072411 | K195: 2.237814241 | L195: 1.107538851 | M195: 1.001559292 | N195: 0.05580803146 | O195: 1.000335024 | P195: 0.08217817382 | Q195: 13.45296222 | R195: -103.6859876 | S195: 76.31401242 | U195: 1000000000 | V195: 121633326.6 | X195: 1.18571769 | Y195: -29.73612517 | AA195: 12.26724453 | AB195: -73.94986241 | AD195: 0 | AE195: 0
A196: 11092.5 | B196: 11.0925 | C196: 2.924202169 | D196: 1.221779986 | E196: 1.000066121 | F196: 0.01149937153 | G196: 1 | H196: 0 | I196: 13927.3209 | J196: 1.570724525 | K196: 2.248172498 | L196: 1.109838992 | M196: 1.001577356 | N196: 0.05612994604 | O196: 1.000338962 | P196: 0.08265394761 | Q196: 13.39864863 | R196: -103.7024986 | S196: 76.29750138 | U196: 1000000000 | V196: 123043556.2 | X196: 1.175610078 | Y196: -29.62280497 | AA196: 12.22303855 | AB196: -74.07969365 | AD196: 0 | AE196: 0
A197: 11156.25 | B197: 11.15625 | C197: 2.939047525 | D197: 1.223617531 | E197: 1.000066884 | F197: 0.011565454 | G197: 1 | H197: 0 | I197: 14007.36298 | J197: 1.570724936 | K197: 2.25854254 | L197: 1.112118022 | M197: 1.001595524 | N197: 0.05645184898 | O197: 1.000342923 | P197: 0.08312973441 | Q197: 13.3446759 | R197: -103.7191449 | S197: 76.28085508 | U197: 1000000000 | V197: 124461914.1 | X197: 1.165649399 | Y197: -29.51069335 | AA197: 12.1790265 | AB197: -74.20845157 | AD197: 0 | AE197: 0
A198: 11220 | B198: 11.22 | C198: 2.953902705 | D198: 1.2254366 | E198: 1.00006765 | F198: 0.01163153636 | G198: 1 | H198: 0 | I198: 14087.40505 | J198: 1.570725341 | K198: 2.268924206 | L198: 1.114376208 | M198: 1.001613796 | N198: 0.05677374021 | O198: 1.000346909 | P198: 0.0836055343 | Q198: 13.29103982 | R198: -103.7359267 | S198: 76.26407328 | U198: 1000000000 | V198: 125888400 | X198: 1.155832831 | Y198: -29.39977507 | AA198: 12.13520699 | AB198: -74.33615164 | AD198: 0 | AE198: 0
A199: 11285.5 | B199: 11.2855 | C199: 2.969175752 | D199: 1.22728664 | E199: 1.000068442 | F199: 0.01169943265 | G199: 1 | H199: 0 | I199: 14169.64436 | J199: 1.570725753 | K199: 2.279602799 | L199: 1.116674948 | M199: 1.001632678 | N199: 0.05710445539 | O199: 1.000351029 | P199: 0.08409440907 | Q199: 13.23627771 | R199: -103.7533105 | S199: 76.24668946 | U199: 1000000000 | V199: 127362510.2 | X199: 1.14589399 | Y199: -29.28703914 | AA199: 12.09038372 | AB199: -74.4662714 | AD199: 0 | AE199: 0
A200: 11351 | B200: 11.351 | C200: 2.984458857 | D200: 1.229117738 | E200: 1.000069239 | F200: 0.01176732883 | G200: 1 | H200: 0 | I200: 14251.88366 | J200: 1.570726161 | K200: 2.290293325 | L200: 1.118952241 | M200: 1.001651669 | N200: 0.05743515808 | O200: 1.000355175 | P200: 0.08458329781 | Q200: 13.18186228 | R200: -103.7708378 | S200: 76.2291622 | U200: 1000000000 | V200: 128845201 | X200: 1.13610145 | Y200: -29.1755311 | AA200: 12.04576083 | AB200: -74.5953067 | AD200: 0 | AE200: 0
A201: 11416.5 | B201: 11.4165 | C201: 2.999751867 | D201: 1.230930172 | E201: 1.00007004 | F201: 0.01183522489 | G201: 1 | H201: 0 | I201: 14334.12297 | J201: 1.570726563 | K201: 2.300995618 | L201: 1.12120836 | M201: 1.00167077 | N201: 0.05776584818 | O201: 1.000359346 | P201: 0.08507220061 | Q201: 13.12778921 | R201: -103.7885086 | S201: 76.21149141 | U201: 1000000000 | V201: 130336472.2 | X201: 1.126452358 | Y201: -29.06523516 | AA201: 12.00133685 | AB201: -74.72327343 | AD201: 0 | AE201: 0
A202: 11482 | B202: 11.482 | C202: 3.015054631 | D202: 1.232724214 | E202: 1.000070846 | F202: 0.01190312085 | G202: 1 | H202: 0 | I202: 14416.36228 | J202: 1.570726961 | K202: 2.311709514 | L202: 1.123443579 | M202: 1.00168998 | N202: 0.05809652564 | O202: 1.000363542 | P202: 0.08556111753 | Q202: 13.07405428 | R202: -103.806323 | S202: 76.19367702 | U202: 1000000000 | V202: 131836324 | X202: 1.116943928 | Y202: -28.95613579 | AA202: 11.95711035 | AB202: -74.85018719 | AD202: 0 | AE202: 0
... 433 more rows

Sheet Bode Plot Management (hidden)
J1: Single or dual output (MODE) | N1: 3.3V or 5V fixed (FB1/2)
A2: =CHOOSE(BODE_PLOT_TYPE, "BODE_PLOT_Ch1", "BODE_PLOT_Ch2") -> BODE_PLOT_Ch1 | J2: With/without dither (DITH) | N2: With/without VOUT connected to VCCX
J3: FPWM or DEM (DEMB)
J4: Shunt or inductor DCR current sensing
F6: =INDIRECT(A2) -> 0

Sheet Efficiency Calculations (hidden)
A1: BUCK CONTROLLER POWER DESIGN TOOL
H2: =AV19 -> 0.9322654553 | I2: 10% load
H3: =AV59 -> 0.9598316777 | I3: 50% load | AP3: =IF(MODE=1, (Qg_Q1+Qg_Q2)*Fsw*Vin, (Qg_Q1+Qg_Q2+Qg_Q3+Qg_Q4)*Fsw*Vin) -> 0.9216
H4: =AV109 -> 0.9559633019 | I4: 100% load | AO4: I_VCC | AP4: =(Qg_Q1+Qg_Q2)*Fsw*1000 -> 9.6 | AQ4: mA | AR4: =AP4*5/1000 -> 0.048
A6: Enter the values of your design and MOSFET datasheet specifications below. Note that thermal resistance (θJA) will change when components are placed on the PCB
G7: Operating Point Condtions | R7: Filter Inductor | V7: Cout | Y7: Cin | AB7: High-side BUCK "Control" MOSFET Losses | AH7: Low-side BUCK "Sync" MOSFET Losses | AL7: External Diode | AM7: Diode/FET | AN7: Sense Rs | AO7: Controller IC Losses | AT7: RESULTS | AZ7: Consolidated Buck/Boost Efficiency & Losses
A8: Input Parameters | G8: Step | H8: Vin | I8: Mode | J8: Iout | K8: Iout/ phase | L8: Iin | M8: Duty Cycle BUCK Leg | N8: Ripple Current pk-pk | O8: Peak Inductor Current | P8: Valley Inductor Current | Q8: SW node voltage at Q1 turn-on | R8: Irms Lo | S8: DCR Loss | T8: Core Loss | U8: Total Inductor Loss | V8: Irms Cout | W8: Cout ESR Loss | X8: Total Cout Loss | Y8: Irms Cin | Z8: Cin ESR Loss | AA8: Total Cin Loss | AB8: Irms | AC8: RDS(on) Loss | AD8: Transition Loss (not including capacitive loss) | AE8: MOSFET Output Capacitance Loss | AF8: Dead Time Loss | AG8: Total Control MOSFET Loss | AH8: Irms | AI8: RDS(on) Loss | AJ8: Deadtime Loss | AK8: Total Sync MOSFET Loss | AL8: Deadtime Loss | AM8: Reverse Recovery Loss | AN8: Isense Shunt Loss | AO8: IQ Loss | AP8: Switching Current Loss | AQ8: Switching Current Diss | AR8: LDO Loss Saved from Gate Drive Current | AS8: Total IC Loss | AT8: Total Loss | AU8: Pout | AV8: EFF, h | AW8: =IF(Vin>Vout, "Buck ''CONTROL'' MOSFET Temp Rise", "Boost ''CONTROL'' MOSFET Temp Rise") -> Buck ''CONTROL'' MOSFET Temp Rise | AX8: =IF(Vin>Vout, "Buck ''SYNC'' MOSFET Temp Rise", "Boost ''SYNC'' MOSFET Temp Rise") -> Buck ''SYNC'' MOSFET Temp Rise | AZ8: h | BA8: Inductor Cu & Core Loss | BB8: Total MOSFET Loss | BC8: Control MOSFET Loss | BD8: SYNC MOSFET Loss | BE8: Shunt Loss
A9: Design | B9: Input Value | C9: Units | D9: Description | G9: 0 | H9: =Vin -> 48 | I9: =MODE -> 2 | J9: 0 | K9: =Iout*G9/100/Number_of_Phases -> 0 | L9: =Vout*K9/(Vin*Efficiency) -> 0 | M9: =(Vout+(Rdson2+Rs+Rdcr)*K9)/(Vin+(Rs+Rdson2-Rdson1)*K9) -> 0.25 | N9: =(Vin-(Rdson1+Rdcr)*K9-Vout)*M9/(Fsw*Lf) -> 3.308823529 | O9: =K9+N9/2 -> 1.654411765 | P9: =K9-N9/2 -> -1.654411765 | Q9: =IF(MIN(Vin, -P9/(Coss_Q1+Coss_Q2)*0.00000002)<0, 0, MIN(Vin, -P9/(Coss_Q1+Coss_Q2)*0.00000002)) -> 48 | R9: =SQRT(K9^2+(N9^2)/12) -> 0.9551750777 | S9: =R9^2*Rdcr -> 0.01140449286 | T9: =Core_Loss_Ch1 -> 0.4 | U9: =(T9+S9*(1+Ltc*(Ta-25)))/(1-S9*Ltc*ThetaCa) -> 0.4117801844 | V9: =N9/SQRT(12) -> 0.9551750777 | W9: =RCoutEsr*V9^2 -> 0.0009123594291 | X9: =W9 -> 0.0009123594291 | Y9: =SQRT(M9*(1-M9))*SQRT(K9^2+(N9^2)/12) -> 0.4136029412 | Z9: =RCinEsr*Y9^2 -> 0.0003421347859 | AA9: =Z9 -> 0.0003421347859 | AB9: =SQRT(M9)*SQRT(K9^2+(N9^2)/12) -> 0.4775875389 | AC9: =Rdson1*AB9^2 -> 0.002623033359 | AD9: =(Vin*K9/2)*Fsw*(Tr_buck+Tf_buck) -> 0 | AE9: =(0.5*Coss_Q1*(Vin-Q9)^2-0.5*Coss_Q2*(Vin-Q9)^2+(Qoss_Q2*(Vin-Q9)/Vin)*Vin)*Fsw -> 0 | AF9: =IF(K9>N9/2,0,ABS(K9-N9/2)*Vsd_Q1*Deadtime2*Fsw) -> 0.009264705882 | AG9: =(AF9+AE9+AD9+AC9*(1+RdsonTopTc*Ta-RdsonTopTc*25))/(1-AC9*RdsonTopTc*ThetaJA_Q1) -> 0.01189298012 | AH9: =SQRT((1-M9))*SQRT(K9^2+(N9^2)/12) -> 0.8272058824 | AI9: =Rdson2*AH9^2 -> 0.004242471345 | AJ9: =IF(K9<N9/2,Deadtime1*Fsw*IF(VfdSky_Q2>0,0,Vsd_Q2)*O9,(Deadtime1+Deadtime2)*Fsw*IF(VfdSky_Q2>0,0,Vsd_Q2)*K9) -> 0.009264705882 | AK9: =(AJ9+AI9*(1+RdsonBotTc*Ta-RdsonBotTc*25))/(1-AI9*RdsonBotTc*ThetaJA_Q2) -> 0.01351651274 | AL9: =(Deadtime1+Deadtime2)*Fsw*IF(VfdSky_Q2>0,VfdSky_Q2,Vsd_Q2)*K9 -> 0 | AM9: =IF(QrrSky_Q2>0,QrrSky_Q2,Qrr_Q2*K9/(Iout/Number_of_Phases))*Fsw*Vin -> 0 | AN9: =CHOOSE(SENSING_TYPE, Rs*R9^2, 0) -> 0.003649437716 | AO9: =Iq*Vin -> 0.00168 | AP9: ='Variable Management'!$B$344 -> 0.1152 | AQ9: =(Vin-VCC)*Fsw*(Qg_Q1+Qg_Q2)+(RdsonDRT+RdsonDRT2)*Fsw*Qg_Q1*VCC/(RdsonDRT+2*Rgate1+RdsonDRT2)+(RdsonDRB+RdsonDRB2)*Fsw*Qg_Q2*VCC/(RdsonDRB+2*Rgate2+RdsonDRB2) -> 0.4322221388 | AR9: =(Qg_Q1+Qg_Q2)*Fsw*(Vin-Vout) -> 0.3456 | AS9: =SUM(AO9:AP9) -> 0.11688 | AT9: =SUM(U9,X9,AA9,AG9,AK9,AL9,AM9,AS9,AN9) -> 0.5589736092 | AU9: =Vout*K9 -> 0 | AV9: =AU9/(AU9+AT9) -> 0 | AW9: =ThetaJA_Q1*BC9 -> 0.4995051649 | AX9: =ThetaJA_Q2*BD9 -> 0.5501220684 | AZ9: =AV9*100 -> 0 | BA9: =U9 -> 0.4117801844 | BB9: =AG9+AK9+AM9 -> 0.02540949285 | BC9: =AG9+AM9*0.66 -> 0.01189298012 | BD9: =AK9+AM9*0.33 -> 0.01351651274 | BE9: =AN9 -> 0.003649437716
G10: 1 | H10: 48 | I10: 2 | J10: =Iout*G10/100 -> 0.2 | K10: 0.1 | L10: 0.02777777778 | M10: 0.2500479689 | N10: 3.309237781 | O10: =K10+N10/2 -> 1.754618891 | P10: =K10-N10/2 -> -1.554618891 | Q10: 48 | R10: =SQRT(K10^2+(N10^2)/12) -> 0.9605143887 | S10: 0.01153234864 | T10: 0.4 | U10: 0.411912374 | V10: =N10/SQRT(12) -> 0.9552946619 | W10: 0.000912587891 | X10: =W10 -> 0.000912587891 | Y10: =SQRT(M10*(1-M10))*SQRT(K10^2+(N10^2)/12) -> 0.4159415286 | Z10: 0.0003460147104 | AA10: =Z10 -> 0.0003460147104 | AB10: =SQRT(M10)*SQRT(K10^2+(N10^2)/12) -> 0.480303267 | AC10: 0.002652949125 | AD10: 0.007284137143 | AE10: 0 | AF10: 0.008705865787 | AG10: 0.01865126484 | AH10: 0.8318032596 | AI10: 0.004289759309 | AJ10: 0.009825865787 | AK10: 0.01412548995 | AL10: 0.00112 | AM10: 0.00864 | AN10: 0.003690351564 | AO10: 0.00168 | AP10: ='Variable Management'!$B$344 -> 0.1152 | AQ10: 0.4322221388 | AR10: 0.3456 | AS10: 0.11688 | AT10: 0.576278083 | AU10: 1.2 | AV10: =AU10/(AU10+AT10) -> 0.6755698961 | AW10: 1.022853923 | AX10: 0.6909512811 | AZ10: =AV10*100 -> 67.55698961 | BA10: 0.411912374 | BB10: 0.04141675479 | BC10: 0.02435366484 | BD10: 0.01697668995 | BE10: 0.003690351564
A11: Vin | B11: =Vin -> 48 | C11: V | D11: Vin | G11: 2 | H11: 48 | I11: 2 | J11: 0.4 | K11: 0.2 | L11: 0.05555555556 | M11: 0.250095938 | N11: 3.309651952 | O11: 1.854825976 | P11: -1.454825976 | Q11: 48 | R11: 0.9761231155 | S11: 0.01191020421 | T11: 0.4 | U11: 0.4123030533 | V11: 0.9554142226 | W11: 0.0009128163367 | X11: 0.0009128163367 | Y11: 0.4227277611 | Z11: 0.00035739752 | AA11: 0.00035739752 | AB11: 0.4881551961 | AC11: 0.002740398198 | AD11: 0.01456827429 | AE11: 0 | AF11: 0.008147025464 | AG11: 0.02546742282 | AH11: 0.8452933462 | AI11: 0.004430029216 | AJ11: 0.01038702546 | AK11: 0.01482774858 | AL11: 0.00224 | AM11: 0.01728 | AN11: 0.003811265347 | AO11: 0.00168 | AP11: ='Variable Management'!$B$344 -> 0.1152 | AQ11: 0.4322221388 | AR11: 0.3456 | AS11: 0.11688 | AT11: 0.5940797039 | AU11: 2.4 | AV11: 0.8015818673 | AW11: 1.548633358 | AX11: 0.8355770473 | AZ11: 80.15818673 | BA11: 0.4123030533 | BB11: 0.0575751714 | BC11: 0.03687222282 | BD11: 0.02053014858 | BE11: 0.003811265347
A12: Vout | B12: =Vout -> 12 | C12: V | D12: Vout | G12: 3 | H12: 48 | I12: 2 | J12: 0.6 | K12: 0.3 | L12: 0.08333333333 | M12: 0.2501439074 | N12: 3.310066041 | O12: 1.95503302 | P12: -1.35503302 | Q12: 48 | R12: 1.001521226 | S12: 0.01253805958 | T12: 0.4 | U12: 0.4129522692 | V12: 0.9555337598 | W12: 0.0009130447662 | X12: 0.0009130447662 | Y12: 0.4337545915 | Z12: 0.0003762860914 | AA12: 0.0003762860914 | AB12: 0.5009047186 | AC12: 0.002885413677 | AD12: 0.02185241143 | AE12: 0 | AF12: 0.007588184914 | AG12: 0.03234168764 | AH12: 0.8672596088 | AI12: 0.00466326322 | AJ12: 0.01094818491 | AK12: 0.01562330903 | AL12: 0.00336 | AM12: 0.02592 | AN12: 0.004012179065 | AO12: 0.00168 | AP12: ='Variable Management'!$B$344 -> 0.1152 | AQ12: 0.4322221388 | AR12: 0.3456 | AS12: 0.11688 | AT12: 0.6123787758 | AU12: 3.6 | AV12: 0.8546240003 | AW12: 2.076853281 | AX12: 0.9840001974 | AZ12: 85.46240003 | BA12: 0.4129522692 | BB12: 0.07388499666 | BC12: 0.04944888764 | BD12: 0.02417690903 | BE12: 0.004012179065
A13: Fsw | B13: =Fsw/1000 -> 400 | C13: kHz | D13: Switching Frequency | G13: 4 | H13: 48 | I13: 2 | J13: 0.8 | K13: 0.4 | L13: 0.1111111111 | M13: 0.2501918771 | N13: 3.310480049 | O13: 2.055240024 | P13: -1.255240024 | Q13: 48 | R13: 1.035988986 | S13: 0.01341591474 | T13: 0.4 | U13: 0.4138600997 | V13: 0.9556532737 | W13: 0.0009132731795 | X13: 0.0009132731795 | Y13: 0.4487110985 | Z13: 0.0004026832998 | AA13: 0.0004026832998 | AB13: 0.5181932375 | AC13: 0.003088028661 | AD13: 0.02913654857 | AE13: 0 | AF13: 0.007029344137 | AG13: 0.03927429643 | AH13: 0.8970780056 | AI13: 0.004989443478 | AJ13: 0.01150934414 | AK13: 0.01651220017 | AL13: 0.00448 | AM13: 0.03456 | AN13: 0.004293092718 | AO13: 0.00168 | AP13: ='Variable Management'!$B$344 -> 0.1152 | AQ13: 0.4322221388 | AR13: 0.3456 | AS13: 0.11688 | AT13: 0.6311756455 | AU13: 4.8 | AV13: 0.8837865525 | AW13: 2.60752365 | AX13: 1.136221907 | AZ13: 88.37865525 | BA13: 0.4138600997 | BB13: 0.0903464966 | BC13: 0.06208389643 | BD13: 0.02791700017 | BE13: 0.004293092718
A14: Iout | B14: =Iout -> 20 | C14: A | D14: Max Output Current | G14: 5 | H14: 48 | I14: 2 | J14: 1 | K14: 0.5 | L14: 0.1388888889 | M14: 0.250239847 | N14: 3.310893976 | O14: 2.155446988 | P14: -1.155446988 | Q14: 48 | R14: 1.078657303 | S14: 0.01454376971 | T14: 0.4 | U14: 0.4150266539 | V14: 0.955772764 | W14: 0.0009135015765 | X14: 0.0009135015765 | Y14: 0.4672215854 | Z14: 0.0004365920197 | AA14: 0.0004365920197 | AB14: 0.539587302 | AC14: 0.00334827625 | AD14: 0.03642068571 | AE14: 0 | AF14: 0.006470503132 | AG14: 0.04626548992 | AH14: 0.9339952462 | AI14: 0.005408552144 | AJ14: 0.01207050313 | AK14: 0.01749445936 | AL14: 0.0056 | AM14: 0.0432 | AN14: 0.004654006306 | AO14: 0.00168 | AP14: ='Variable Management'!$B$344 -> 0.1152 | AQ14: 0.4322221388 | AR14: 0.3456 | AS14: 0.11688 | AT14: 0.6504707031 | AU14: 6 | AV14: 0.9021917798 | AW14: 3.140654576 | AX14: 1.292243696 | AZ14: 90.21917798 | BA14: 0.4150266539 | BB14: 0.1069599493 | BC14: 0.07477748992 | BD14: 0.03175045936 | BE14: 0.004654006306
A15: Ta | B15: =Ta -> 25 | C15: °C | D15: Ambient Temperature | G15: 6 | H15: 48 | I15: 2 | J15: 1.2 | K15: 0.6 | L15: 0.1666666667 | M15: 0.2502878172 | N15: 3.311307821 | O15: 2.255653911 | P15: -1.055653911 | Q15: 48 | R15: 1.128596455 | S15: 0.01592162447 | T15: 0.4 | U15: 0.4164520719 | V15: 0.955892231 | W15: 0.0009137299573 | X15: 0.0009137299573 | Y15: 0.4888839966 | Z15: 0.0004780151243 | AA15: 0.0004780151243 | AB15: 0.5646229633 | AC15: 0.003666189543 | AD15: 0.04370482286 | AE15: 0 | AF15: 0.0059116619 | AG15: 0.05331551238 | AH15: 0.9772056419 | AI15: 0.005920571373 | AJ15: 0.0126316619 | AK15: 0.01857013245 | AL15: 0.00672 | AM15: 0.05184 | AN15: 0.005094919829 | AO15: 0.00168 | AP15: ='Variable Management'!$B$344 -> 0.1152 | AQ15: 0.4322221388 | AR15: 0.3456 | AS15: 0.11688 | AT15: 0.6702643817 | AU15: 7.2 | AV15: 0.9148358493 | AW15: 3.67625632 | AX15: 1.452067431 | AZ15: 91.48358493 | BA15: 0.4164520719 | BB15: 0.1237256448 | BC15: 0.08752991238 | BD15: 0.03567733245 | BE15: 0.005094919829
A16: Vcc | B16: =VCC -> 5 | C16: V | D16: Subregulated VCC Voltage | G16: 7 | H16: 48 | I16: 2 | J16: 1.4 | K16: 0.7 | L16: 0.1944444444 | M16: 0.2503357876 | N16: 3.311721586 | O16: 2.355860793 | P16: -0.9558607928 | Q16: 48 | R16: 1.184887472 | S16: 0.01754947902 | T16: 0.4 | U16: 0.4181365253 | V16: 0.9560116745 | W16: 0.0009139583217 | X16: 0.0009139583217 | Y16: 0.5133008308 | Z16: 0.0005269554859 | AA16: 0.0005269554859 | AB16: 0.5928414731 | AC16: 0.004041801641 | AD16: 0.05098896 | AE16: 0 | AF16: 0.00535282044 | AG16: 0.06042461176 | AH16: 1.025912915 | AI16: 0.006525483319 | AJ16: 0.01319282044 | AK16: 0.01973927375 | AL16: 0.00784 | AM16: 0.06048 | AN16: 0.005615833287 | AO16: 0.00168 | AP16: ='Variable Management'!$B$344 -> 0.1152 | AQ16: 0.4322221388 | AR16: 0.3456 | AS16: 0.11688 | AT16: 0.6905571579 | AU16: 8.4 | AV16: 0.9240357719 | AW16: 4.214339294 | AX16: 1.615695322 | AZ16: 92.40357719 | BA16: 0.4181365253 | BB16: 0.1406438855 | BC16: 0.1003414118 | BD16: 0.03969767375 | BE16: 0.005615833287
A17: Components | B17: Input Value | C17: Units | D17: Description | G17: 8 | H17: 48 | I17: 2 | J17: 1.6 | K17: 0.8 | L17: 0.2222222222 | M17: 0.2503837583 | N17: 3.312135269 | O17: 2.456067634 | P17: -0.8560676344 | Q17: 46.77965215 | R17: 1.246670233 | S17: 0.01942733337 | T17: 0.4 | U17: 0.4200802164 | V17: 0.9561310945 | W17: 0.0009141866699 | X17: 0.0009141866699 | Y17: 0.5400999794 | Z17: 0.0005834159755 | AA17: 0.0005834159755 | AB17: 0.6238133531 | AC17: 0.004475145645 | AD17: 0.05827309714 | AE17: 0.0121635666 | AF17: 0.004793978753 | AG17: 0.07976575799 | AH17: 1.079371841 | AI17: 0.007223270136 | AJ17: 0.01375397875 | AK17: 0.02100194609 | AL17: 0.00896 | AM17: 0.06912 | AN17: 0.00621674668 | AO17: 0.00168 | AP17: ='Variable Management'!$B$344 -> 0.1152 | AQ17: 0.4322221388 | AR17: 0.3456 | AS17: 0.11688 | AT17: 0.7235222699 | AU17: 9.6 | AV17: 0.9299151732 | AW17: 5.266168235 | AX17: 1.783129926 | AZ17: 92.99151732 | BA17: 0.4200802164 | BB17: 0.1698877041 | BC17: 0.125384958 | BD17: 0.04381154609 | BE17: 0.00621674668
A18: L | B18: =Lf*1000000 -> 6.8 | C18: uH | D18: Filter Inductance | G18: 9 | H18: 48 | I18: 2 | J18: 1.8 | K18: 0.9 | L18: 0.25 | M18: 0.2504317293 | N18: 3.312548871 | O18: 2.556274435 | P18: -0.7562744354 | Q18: 41.32647188 | R18: 1.31316983 | S18: 0.02155518752 | T18: 0.4 | U18: 0.4222833793 | V18: 0.9562504911 | W18: 0.0009144150018 | X18: 0.0009144150018 | Y18: 0.5689461588 | Z18: 0.0006473994633 | AA18: 0.0006473994633 | AB18: 0.6571516042 | AC18: 0.004966254655 | AD18: 0.06555723429 | AE18: 0.06554171701 | AF18: 0.004235136838 | AG18: 0.1404174974 | AH18: 1.136911066 | AI18: 0.00801391398 | AJ18: 0.01431513684 | AK18: 0.02235822081 | AL18: 0.01008 | AM18: 0.07776 | AN18: 0.006897660007 | AO18: 0.00168 | AP18: ='Variable Management'!$B$344 -> 0.1152 | AQ18: 0.4322221388 | AR18: 0.3456 | AS18: 0.11688 | AT18: 0.798238572 | AU18: 10.8 | AV18: 0.9311758792 | AW18: 8.053042092 | AX18: 1.954374147 | AZ18: 93.11758792 | BA18: 0.4222833793 | BB18: 0.2405357182 | BC18: 0.1917390974 | BD18: 0.04801902081 | BE18: 0.006897660007
A19: Rdcr | B19: =Rdcr*1000 -> 12.5 | C19: mW | D19: Inductor DCR at 25°C | G19: 10 | H19: 48 | I19: 2 | J19: 2 | K19: 1 | L19: 0.2777777778 | M19: 0.2504797005 | N19: 3.312962392 | O19: 2.656481196 | P19: -0.6564811958 | Q19: 35.87328939 | R19: 1.38370637 | S19: 0.02393304147 | T19: 0.4 | U19: 0.4247462791 | V19: 0.9563698643 | W19: 0.0009146433173 | X19: 0.0009146433173 | Y19: 0.5995451685 | Z19: 0.0007189088182 | AA19: 0.0007189088182 | AB19: 0.6925166313 | AC19: 0.005515161774 | AD19: 0.07284137143 | AE19: 0.1173259756 | AF19: 0.003676294696 | AG19: 0.1995436901 | AH19: 1.197941581 | AI19: 0.008897397002 | AJ19: 0.0148762947 | AK19: 0.02380817775 | AL19: 0.0112 | AM19: 0.0864 | AN19: 0.007658573269 | AO19: 0.00168 | AP19: ='Variable Management'!$B$344 -> 0.1152 | AQ19: 0.4322221388 | AR19: 0.3456 | AS19: 0.11688 | AT19: 0.8718702724 | AU19: 12 | AV19: 0.9322654553 | AW19: 10.77584299 | AX19: 2.129431235 | AZ19: 93.22654553 | BA19: 0.4247462791 | BB19: 0.3097518679 | BC19: 0.2565676901 | BD19: 0.05232017775 | BE19: 0.007658573269
A20: LTc | B20: =Ltc*1000000 -> 4000 | C20: ppm | D20: Inductor Series Resistance Temp Co | G20: 11 | H20: 48 | I20: 2 | J20: 2.2 | K20: 1.1 | L20: 0.3055555556 | M20: 0.250527672 | N20: 3.313375831 | O20: 2.756687916 | P20: -0.5566879155 | Q20: 30.42010467 | R20: 1.457693938 | S20: 0.02656089521 | T20: 0.4 | U20: 0.4274692124 | V20: 0.956489214 | W20: 0.0009148716165 | X20: 0.0009148716165 | Y20: 0.6316434548 | Z20: 0.0007979469081 | AA20: 0.0007979469081 | AB20: 0.7296157477 | AC20: 0.006121900102 | AD20: 0.08012550857 | AE20: 0.1675163404 | AF20: 0.003117452327 | AG20: 0.2571456704 | AH20: 1.261955814 | AI20: 0.009873701358 | AJ20: 0.01543745233 | AK20: 0.02535190532 | AL20: 0.01232 | AM20: 0.09504 | AN20: 0.008499486466 | AO20: 0.00168 | AP20: ='Variable Management'!$B$344 -> 0.1152 | AQ20: 0.4322221388 | AR20: 0.3456 | AS20: 0.11688 | AT20: 0.9444190931 | AU20: 13.2 | AV20: 0.9332302665 | AW20: 13.43462696 | AX20: 2.308304786 | AZ20: 93.32302665 | BA20: 0.4274692124 | BB20: 0.3775375757 | BC20: 0.3198720704 | BD20: 0.05671510532 | BE20: 0.008499486466
A21: ThetaCa | B21: =ThetaCa -> 20 | C21: °C/W | D21: Core to Ambient Thermal Resistance | G21: 12 | H21: 48 | I21: 2 | J21: 2.4 | K21: 1.2 | L21: 0.3333333333 | M21: 0.2505756437 | N21: 3.313789189 | O21: 2.856894595 | P21: -0.4568945947 | Q21: 24.96691774 | R21: 1.534633474 | S21: 0.02943874874 | T21: 0.4 | U21: 0.4304525074 | V21: 0.9566085402 | W21: 0.0009150998993 | X21: 0.0009150998993 | Y21: 0.6650250371 | Z21: 0.0008845165999 | AA21: 0.0008845165999 | AB21: 0.7681996311 | AC21: 0.006786502742 | AD21: 0.08740964571 | AE21: 0.2161128094 | AF21: 0.00255860973 | AG21: 0.3132246853 | AH21: 1.328521444 | AI21: 0.0109428092 | AJ21: 0.01599860973 | AK21: 0.02698950044 | AL21: 0.01344 | AM21: 0.10368 | AN21: 0.009420399597 | AO21: 0.00168 | AP21: ='Variable Management'!$B$344 -> 0.1152 | AQ21: 0.4322221388 | AR21: 0.3456 | AS21: 0.11688 | AT21: 1.015886709 | AU21: 14.4 | AV21: 0.934101312 | AW21: 16.02944638 | AX21: 2.490998748 | AZ21: 93.4101312 | BA21: 0.4304525074 | BB21: 0.4438941857 | BC21: 0.3816534853 | BD21: 0.06120390044 | BE21: 0.009420399597
A22: Cin | B22: =Cin*1000000 -> 35 | C22: μF | D22: Input Capacitance | G22: 13 | H22: 48 | I22: 2 | J22: 2.6 | K22: 1.3 | L22: 0.3611111111 | M22: 0.2506236157 | N22: 3.314202466 | O22: 2.957101233 | P22: -0.3571012332 | Q22: 19.51372859 | R22: 1.614102898 | S22: 0.03256660207 | T22: 0.4 | U22: 0.4336965238 | V22: 0.9567278431 | W22: 0.0009153281657 | X22: 0.0009153281657 | Y22: 0.6995072406 | Z22: 0.0009786207593 | AA22: 0.0009786207593 | AB22: 0.808057402 | AC22: 0.007509002797 | AD22: 0.09469378286 | AE22: 0.2631153808 | AF22: 0.001999766906 | AG22: 0.3677818948 | AH22: 1.397272844 | AI22: 0.01210470268 | AJ22: 0.01655976691 | AK22: 0.02872106864 | AL22: 0.01456 | AM22: 0.11232 | AN22: 0.01042131266 | AO22: 0.00168 | AP22: ='Variable Management'!$B$344 -> 0.1152 | AQ22: 0.4322221388 | AR22: 0.3456 | AS22: 0.11688 | AT22: 1.086274749 | AU22: 15.6 | AV22: 0.9349001041 | AW22: 18.56034998 | AX22: 2.677517414 | AZ22: 93.49001041 | BA22: 0.4336965238 | BB22: 0.5088229635 | BC22: 0.4419130948 | BD22: 0.06578666864 | BE22: 0.01042131266
A23: RCinEsr | B23: =RCinEsr*1000 -> 2 | C23: mW | D23: Input Capacitor ESR | G23: 14 | H23: 48 | I23: 2 | J23: 2.8 | K23: 1.4 | L23: 0.3888888889 | M23: 0.250671588 | N23: 3.314615662 | O23: 3.057307831 | P23: -0.2573078311 | Q23: 14.06053722 | R23: 1.695746566 | S23: 0.0359444552 | T23: 0.4 | U23: 0.4372016532 | V23: 0.9568471224 | W23: 0.0009155564157 | X23: 0.0009155564157 | Y23: 0.734936137 | Z23: 0.001080262251 | AA23: 0.001080262251 | AB23: 0.8490113621 | AC23: 0.00828943337 | AD23: 0.10197792 | AE23: 0.3085240526 | AF23: 0.001440923854 | AG23: 0.4208183719 | AH23: 1.467901946 | AI23: 0.01335936396 | AJ23: 0.01712092385 | AK23: 0.03054672402 | AL23: 0.01568 | AM23: 0.12096 | AN23: 0.01150222566 | AO23: 0.00168 | AP23: ='Variable Management'!$B$344 -> 0.1152 | AQ23: 0.4322221388 | AR23: 0.3456 | AS23: 0.11688 | AT23: 1.155584794 | AU23: 16.8 | AV23: 0.9356420408 | AW23: 21.02738282 | AX23: 2.867865428 | AZ23: 93.56420408 | BA23: 0.4372016532 | BB23: 0.572325096 | BC23: 0.5006519719 | BD23: 0.07046352402 | BE23: 0.01150222566
A24: Cout | B24: =Cout*1000000 -> 70 | C24: μF | D24: Output Capcitance | G24: 15 | H24: 48 | I24: 2 | J24: 3 | K24: 1.5 | L24: 0.4166666667 | M24: 0.2507195605 | N24: 3.315028777 | O24: 3.157514388 | P24: -0.1575143885 | Q24: 8.607343631 | R24: 1.779265199 | S24: 0.03957230812 | T24: 0.4 | U24: 0.4409683189 | V24: 0.9569663784 | W24: 0.0009157846493 | X24: 0.0009157846493 | Y24: 0.7711821895 | Z24: 0.001189443939 | AA24: 0.001189443939 | AB24: 0.8909119686 | AC24: 0.009127827562 | AD24: 0.1092620571 | AE24: 0.3523388228 | AF24: 0.0008820805753 | AG24: 0.4723351022 | AH24: 1.54014951 | AI24: 0.01470677518 | AJ24: 0.01768208058 | AK24: 0.03246658931 | AL24: 0.0168 | AM24: 0.1296 | AN24: 0.0126631386 | AO24: 0.00168 | AP24: ='Variable Management'!$B$344 -> 0.1152 | AQ24: 0.4322221388 | AR24: 0.3456 | AS24: 0.11688 | AT24: 1.223818378 | AU24: 18 | AV24: 0.9363384343 | AW24: 23.43058629 | AX24: 3.062047785 | AZ24: 93.63384343 | BA24: 0.4409683189 | BB24: 0.6344016915 | BC24: 0.5578711022 | BD24: 0.07523458931 | BE24: 0.0126631386
A25: RCoutEsr | B25: =Cout_ESR*1000 -> 1 | C25: mW | D25: Output Capacitor ESR | G25: 16 | H25: 48 | I25: 2 | J25: 3.2 | K25: 1.6 | L25: 0.4444444444 | M25: 0.2507675333 | N25: 3.31544181 | O25: 3.257720905 | P25: -0.05772090516 | Q25: 3.154147823 | R25: 1.86440684 | S25: 0.04345016083 | T25: 0.4 | U25: 0.444996976 | V25: 0.9570856108 | W25: 0.0009160128665 | X25: 0.0009160128665 | Y25: 0.808136339 | Z25: 0.001306168685 | AA25: 0.001306168685 | AB25: 0.9336333178 | AC25: 0.01002421848 | AD25: 0.1165461943 | AE25: 0.3945596895 | AF25: 0.0003232370689 | AG25: 0.522332984 | AH25: 1.61379729 | AI25: 0.01614691851 | AJ25: 0.01824323707 | AK25: 0.03448079587 | AL25: 0.01792 | AM25: 0.13824 | AN25: 0.01390405147 | AO25: 0.00168 | AP25: ='Variable Management'!$B$344 -> 0.1152 | AQ25: 0.4322221388 | AR25: 0.3456 | AS25: 0.11688 | AT25: 1.290976989 | AU25: 19.2 | AV25: 0.9369977825 | AW25: 25.76999813 | AX25: 3.260069832 | AZ25: 93.69977825 | BA25: 0.444996976 | BB25: 0.6950537798 | BC25: 0.613571384 | BD25: 0.08009999587 | BE25: 0.01390405147
A26: Top Driver | B26: Input Value | C26: Units | D26: Description | G26: 17 | H26: 48 | I26: 2 | J26: 3.4 | K26: 1.7 | L26: 0.4722222222 | M26: 0.2508155063 | N26: 3.315854763 | O26: 3.357927381 | P26: 0.04207261874 | Q26: 0 | R26: 1.950959012 | S26: 0.04757801334 | T26: 0.4 | U26: 0.4492881122 | V26: 0.9572048199 | W26: 0.0009162410672 | X26: 0.0009162410672 | Y26: 0.8457066132 | Z26: 0.001430439351 | AA26: 0.001430439351 | AB26: 0.9770692301 | AC26: 0.01097863922 | AD26: 0.1238303314 | AE26: 0.4182528 | AF26: 0 | AG26: 0.554083729 | AH26: 1.688661241 | AI26: 0.01767977608 | AJ26: 0.01904 | AK26: 0.0368257705 | AL26: 0.01904 | AM26: 0.14688 | AN26: 0.01522496427 | AO26: 0.00168 | AP26: ='Variable Management'!$B$344 -> 0.1152 | AQ26: 0.4322221388 | AR26: 0.3456 | AS26: 0.11688 | AT26: 1.340569256 | AU26: 20.4 | AV26: 0.9383378954 | AW26: 27.34303022 | AX26: 3.471554139 | AZ26: 93.83378954 | BA26: 0.4492881122 | BB26: 0.7377894995 | BC26: 0.651024529 | BD26: 0.0852961705 | BE26: 0.01522496427
A27: RdsonDRT | B27: =RdsonDRT -> 1 | C27: W | D27: Drain to Source Resistance of pullup Top FET Driver | G27: 18 | H27: 48 | I27: 2 | J27: 3.6 | K27: 1.8 | L27: 0.5 | M27: 0.2508634796 | N27: 3.316267633 | O27: 3.458133817 | P27: 0.1418661833 | Q27: 0 | R27: 2.038742076 | S27: 0.05195586564 | T27: 0.4 | U27: 0.453842247 | V27: 0.9573240054 | W27: 0.0009164692514 | X27: 0.0009164692514 | Y27: 0.8838152515 | Z27: 0.001562258798 | AA27: 0.001562258798 | AB27: 1.021129933 | AC27: 0.0119911229 | AD27: 0.1311144686 | AE27: 0.4182528 | AF27: 0 | AG27: 0.5624915355 | AH27: 1.764585762 | AI27: 0.01930533006 | AJ27: 0.02016 | AK27: 0.03958975701 | AL27: 0.02016 | AM27: 0.15552 | AN27: 0.01662587701 | AO27: 0.00168 | AP27: ='Variable Management'!$B$344 -> 0.1152 | AQ27: 0.4322221388 | AR27: 0.3456 | AS27: 0.11688 | AT27: 1.367588145 | AU27: 21.6 | AV27: 0.9404557354 | AW27: 27.93565889 | AX27: 3.70009223 | AZ27: 94.04557354 | BA27: 0.453842247 | BB27: 0.7576012925 | BC27: 0.6651347355 | BD27: 0.09091135701 | BE27: 0.01662587701
A28: RdsonDRT2 | B28: =RdsonDRT2 -> 0.5 | C28: W | D28: Drain to Source Resistance of pulldown Top FET Driver | G28: 19 | H28: 48 | I28: 2 | J28: 3.8 | K28: 1.9 | L28: 0.5277777778 | M28: 0.2509114532 | N28: 3.316680423 | O28: 3.558340212 | P28: 0.2416597884 | Q28: 0 | R28: 2.12760368 | S28: 0.05658371774 | T28: 0.4 | U28: 0.4586599325 | V28: 0.9574431676 | W28: 0.0009166974192 | X28: 0.0009166974192 | Y28: 0.9223963041 | Z28: 0.001701629884 | AA28: 0.001701629884 | AB28: 1.065739287 | AC28: 0.01306170262 | AD28: 0.1383986057 | AE28: 0.4182528 | AF28: 0 | AG28: 0.5709660168 | AH28: 1.841438892 | AI28: 0.02102356259 | AJ28: 0.02128 | AK28: 0.04244884955 | AL28: 0.02128 | AM28: 0.16416 | AN28: 0.01810678968 | AO28: 0.00168 | AP28: ='Variable Management'!$B$344 -> 0.1152 | AQ28: 0.4322221388 | AR28: 0.3456 | AS28: 0.11688 | AT28: 1.395119916 | AU28: 22.8 | AV28: 0.942338789 | AW28: 28.5310879 | AX28: 3.932501137 | AZ28: 94.2338789 | BA28: 0.4586599325 | BB28: 0.7775748663 | BC28: 0.6793116168 | BD28: 0.09662164955 | BE28: 0.01810678968
A29: Bottom Driver | B29: Input Value | C29: Units | D29: Description | G29: 20 | H29: 48 | I29: 2 | J29: 4 | K29: 2 | L29: 0.5555555556 | M29: 0.250959427 | N29: 3.317093132 | O29: 3.658546566 | P29: 0.3414534341 | Q29: 0 | R29: 2.217414163 | S29: 0.06146156963 | T29: 0.4 | U29: 0.4637417533 | V29: 0.9575623063 | W29: 0.0009169255704 | X29: 0.0009169255704 | Y29: 0.9613936415 | Z29: 0.001848555468 | AA29: 0.001848555468 | AB29: 1.110832491 | AC29: 0.01419041147 | AD29: 0.1456827429 | AE29: 0.4182528 | AF29: 0 | AG29: 0.5795074939 | AH29: 1.919108321 | AI29: 0.02283445583 | AJ29: 0.0224 | AK29: 0.04540324008 | AL29: 0.0224 | AM29: 0.1728 | AN29: 0.01966770228 | AO29: 0.00168 | AP29: ='Variable Management'!$B$344 -> 0.1152 | AQ29: 0.4322221388 | AR29: 0.3456 | AS29: 0.11688 | AT29: 1.423165671 | AU29: 24 | AV29: 0.9440209103 | AW29: 29.12933074 | AX29: 4.168788671 | AZ29: 94.40209103 | BA29: 0.4637417533 | BB29: 0.797710734 | BC29: 0.6935554939 | BD29: 0.1024272401 | BE29: 0.01966770228
A30: RdsonDRB | B30: =RdsonDRB -> 1 | C30: W | D30: Drain to Source Resistance of pullup Bottom FET Driver | G30: 21 | H30: 48 | I30: 2 | J30: 4.2 | K30: 2.1 | L30: 0.5833333333 | M30: 0.251007401 | N30: 3.317505759 | O30: 3.75875288 | P30: 0.4412471205 | Q30: 0 | R30: 2.30806276 | S30: 0.06658942131 | T30: 0.4 | U30: 0.4690883269 | V30: 0.9576814215 | W30: 0.0009171537051 | X30: 0.0009171537051 | Y30: 1.000759313 | Z30: 0.002003038407 | AA30: 0.002003038407 | AB30: 1.156354187 | AC30: 0.01537728257 | AD30: 0.15296688 | AE30: 0.4182528 | AF30: 0 | AG30: 0.5881162925 | AH30: 1.99749811 | AI30: 0.02473799193 | AJ30: 0.02352 | AK30: 0.0484531294 | AL30: 0.02352 | AM30: 0.18144 | AN30: 0.02130861482 | AO30: 0.00168 | AP30: ='Variable Management'!$B$344 -> 0.1152 | AQ30: 0.4322221388 | AR30: 0.3456 | AS30: 0.11688 | AT30: 1.451726556 | AU30: 25.2 | AV30: 0.945529737 | AW30: 29.73040108 | AX30: 4.408963007 | AZ30: 94.5529737 | BA30: 0.4690883269 | BB30: 0.8180094219 | BC30: 0.7078666925 | BD30: 0.1083283294 | BE30: 0.02130861482
A31: RdsonDRB2 | B31: 0.7 | C31: W | D31: Drain to Source Resistance of pulldown Bottom FET Driver | G31: 22 | H31: 48 | I31: 2 | J31: 4.4 | K31: 2.2 | L31: 0.6111111111 | M31: 0.2510553754 | N31: 3.317918305 | O31: 3.858959153 | P31: 0.5410408474 | Q31: 0 | R31: 2.399454485 | S31: 0.07196727279 | T31: 0.4 | U31: 0.4747003037 | V31: 0.9578005133 | W31: 0.0009173818233 | X31: 0.0009173818233 | Y31: 1.040452199 | Z31: 0.002165081557 | AA31: 0.002165081557 | AB31: 1.202256901 | AC31: 0.01662234903 | AD31: 0.1602510171 | AE31: 0.4182528 | AF31: 0 | AG31: 0.5967927425 | AH31: 2.076525985 | AI31: 0.02673415304 | AJ31: 0.02464 | AK31: 0.05159872722 | AL31: 0.02464 | AM31: 0.19008 | AN31: 0.02302952729 | AO31: 0.00168 | AP31: ='Variable Management'!$B$344 -> 0.1152 | AQ31: 0.4322221388 | AR31: 0.3456 | AS31: 0.11688 | AT31: 1.480803764 | AU31: 26.4 | AV31: 0.9468880533 | AW31: 30.33431279 | AX31: 4.653032678 | AZ31: 94.68880533 | BA31: 0.4747003037 | BB31: 0.8384714697 | BC31: 0.7222455425 | BD31: 0.1143251272 | BE31: 0.02302952729
A32: Deadtime | B32: Input Value | C32: Units | D32: Description | G32: 23 | H32: 48 | I32: 2 | J32: 4.6 | K32: 2.3 | L32: 0.6388888889 | M32: 0.25110335 | N32: 3.31833077 | O32: 3.959165385 | P32: 0.640834615 | Q32: 0 | R32: 2.491507561 | S32: 0.07759512406 | T32: 0.4 | U32: 0.4805783671 | V32: 0.9579195817 | W32: 0.0009176099249 | X32: 0.0009176099249 | Y32: 1.080436896 | Z32: 0.002334687774 | AA32: 0.002334687774 | AB32: 1.248499759 | AC32: 0.01792564395 | AD32: 0.1675351543 | AE32: 0.4182528 | AF32: 0 | AG32: 0.6055371784 | AH32: 2.156121118 | AI32: 0.02882292132 | AJ32: 0.02576 | AK32: 0.05484025216 | AL32: 0.02576 | AM32: 0.19872 | AN32: 0.0248304397 | AO32: 0.00168 | AP32: ='Variable Management'!$B$344 -> 0.1152 | AQ32: 0.4322221388 | AR32: 0.3456 | AS32: 0.11688 | AT32: 1.510398535 | AU32: 27.6 | AV32: 0.9481148108 | AW32: 30.94107989 | AX32: 4.901006583 | AZ32: 94.81148108 | BA32: 0.4805783671 | BB32: 0.8590974306 | BC32: 0.7366923784 | BD32: 0.1204178522 | BE32: 0.0248304397
A33: Deadtime1 | B33: 10 | C33: ns | D33: LO off to HO on deadtime | G33: 24 | H33: 48 | I33: 2 | J33: 4.8 | K33: 2.4 | L33: 0.6666666667 | M33: 0.2511513248 | N33: 3.318743154 | O33: 4.059371577 | P33: 0.7406284232 | Q33: 0 | R33: 2.584151313 | S33: 0.08347297512 | T33: 0.4 | U33: 0.486723234 | V33: 0.9580386266 | W33: 0.00091783801 | X33: 0.00091783801 | Y33: 1.120682808 | Z33: 0.002511859911 | AA33: 0.002511859911 | AB33: 1.295047437 | AC33: 0.01928720043 | AD33: 0.1748192914 | AE33: 0.4182528 | AF33: 0 | AG33: 0.614349939 | AH33: 2.236222294 | AI33: 0.03100427891 | AJ33: 0.02688 | AK33: 0.05817793182 | AL33: 0.02688 | AM33: 0.20736 | AN33: 0.02671135204 | AO33: 0.00168 | AP33: ='Variable Management'!$B$344 -> 0.1152 | AQ33: 0.4322221388 | AR33: 0.3456 | AS33: 0.11688 | AT33: 1.540512155 | AU33: 28.8 | AV33: 0.9492259014 | AW33: 31.55071664 | AX33: 5.152893985 | AZ33: 94.92259014 | BA33: 0.486723234 | BB33: 0.8798878709 | BC33: 0.751207539 | BD33: 0.1266067318 | BE33: 0.02671135204
A34: Deadtime2 | B34: 13 | C34: ns | D34: LO off to HO on deadtime | G34: 25 | H34: 48 | I34: 2 | J34: 5 | K34: 2.5 | L34: 0.6944444444 | M34: 0.2511993 | N34: 3.319155456 | O34: 4.159577728 | P34: 0.840422272 | Q34: 0 | R34: 2.677324425 | S34: 0.08960082598 | T34: 0.4 | U34: 0.4931356549 | V34: 0.958157648 | W34: 0.0009180660784 | X34: 0.0009180660784 | Y34: 1.161163387 | Z34: 0.002696600821 | AA34: 0.002696600821 | AB34: 1.341869286 | AC34: 0.02070705158 | AD34: 0.1821034286 | AE34: 0.4182528 | AF34: 0 | AG34: 0.6232313679 | AH34: 2.316776402 | AI34: 0.03327820796 | AJ34: 0.028 | AK34: 0.06161200284 | AL34: 0.028 | AM34: 0.216 | AN34: 0.02867226431 | AO34: 0.00168 | AP34: ='Variable Management'!$B$344 -> 0.1152 | AQ34: 0.4322221388 | AR34: 0.3456 | AS34: 0.11688 | AT34: 1.571145957 | AU34: 30 | AV34: 0.9502347505 | AW34: 32.16323745 | AX34: 5.408704515 | AZ34: 95.02347505 | BA34: 0.4931356549 | BB34: 0.9008433707 | BC34: 0.7657913679 | BD34: 0.1328920028 | BE34: 0.02867226431
A35: IQ | B35: Input Value | C35: Units | D35: Description | G35: 26 | H35: 48 | I35: 2 | J35: 5.2 | K35: 2.6 | L35: 0.7222222222 | M35: 0.2512472753 | N35: 3.319567677 | O35: 4.259783839 | P35: 0.9402161614 | Q35: 0 | R35: 2.770973499 | S35: 0.09597867663 | T35: 0.4 | U35: 0.4998164141 | V35: 0.958276646 | W35: 0.0009182941303 | X35: 0.0009182941303 | Y35: 1.201855515 | Z35: 0.002888913356 | AA35: 0.002888913356 | AB35: 1.388938616 | AC35: 0.02218523051 | AD35: 0.1893875657 | AE35: 0.4182528 | AF35: 0 | AG35: 0.6321818129 | AH35: 2.397737194 | AI35: 0.03564469064 | AJ35: 0.02912 | AK35: 0.0651427109 | AL35: 0.02912 | AM35: 0.22464 | AN35: 0.03071317652 | AO35: 0.00168 | AP35: ='Variable Management'!$B$344 -> 0.1152 | AQ35: 0.4322221388 | AR35: 0.3456 | AS35: 0.11688 | AT35: 1.602301322 | AU35: 31.2 | AV35: 0.9511527772 | AW35: 32.77865694 | AX35: 5.668448173 | AZ35: 95.11527772 | BA35: 0.4998164141 | BB35: 0.9219645238 | BC35: 0.7804442129 | BD35: 0.1392739109 | BE35: 0.03071317652
A36: IQ | B36: =Iq*1000 -> 0.035 | C36: mA | D36: Quiescent Current Of Controller (Not Switching!) | G36: 27 | H36: 48 | I36: 2 | J36: 5.4 | K36: 2.7 | L36: 0.75 | M36: 0.251295251 | N36: 3.319979817 | O36: 4.359989909 | P36: 1.040010091 | Q36: 0 | R36: 2.865051861 | S36: 0.1026065271 | T36: 0.4 | U36: 0.5067663297 | V36: 0.9583956206 | W36: 0.0009185221655 | X36: 0.0009185221655 | Y36: 1.242738984 | Z36: 0.003088800366 | AA36: 0.003088800366 | AB36: 1.436232097 | AC36: 0.02372177033 | AD36: 0.1966717029 | AE36: 0.4182528 | AF36: 0 | AG36: 0.6412016267 | AH36: 2.479064244 | AI36: 0.03810370907 | AJ36: 0.03024 | AK36: 0.06877031083 | AL36: 0.03024 | AM36: 0.23328 | AN36: 0.03283408866 | AO36: 0.00168 | AP36: ='Variable Management'!$B$344 -> 0.1152 | AQ36: 0.4322221388 | AR36: 0.3456 | AS36: 0.11688 | AT36: 1.633979678 | AU36: 32.4 | AV36: 0.9519897557 | AW36: 33.39698992 | AX36: 5.932135331 | AZ36: 95.19897557 | BA36: 0.5067663297 | BB36: 0.9432519376 | BC36: 0.7951664267 | BD36: 0.1457527108 | BE36: 0.03283408866
A37: High-side FET | B37: Input Value | C37: Units | D37: Description | G37: 28 | H37: 48 | I37: 2 | J37: 5.6 | K37: 2.8 | L37: 0.7777777778 | M37: 0.2513432269 | N37: 3.320391876 | O37: 4.460195938 | P37: 1.139804062 | Q37: 0 | R37: 2.959518573 | S37: 0.1094843773 | T37: 0.4 | U37: 0.5139862545 | V37: 0.9585145717 | W37: 0.0009187501841 | X37: 0.0009187501841 | Y37: 1.283796071 | Z37: 0.003296264701 | AA37: 0.003296264701 | AB37: 1.483729266 | AC37: 0.02531670415 | AD37: 0.20395584 | AE37: 0.4182528 | AF37: 0 | AG37: 0.6502911666 | AH37: 2.560722095 | AI37: 0.04065524543 | AJ37: 0.03136 | AK37: 0.07249506664 | AL37: 0.03136 | AM37: 0.24192 | AN37: 0.03503500074 | AO37: 0.00168 | AP37: ='Variable Management'!$B$344 -> 0.1152 | AQ37: 0.4322221388 | AR37: 0.3456 | AS37: 0.11688 | AT37: 1.666182503 | AU37: 33.6 | AV37: 0.9527541008 | AW37: 34.0182514 | AX37: 6.199776732 | AZ37: 95.27541008 | BA37: 0.5139862545 | BB37: 0.9647062333 | BC37: 0.8099583666 | BD37: 0.1523286666 | BE37: 0.03503500074
A38: RdsonTop | B38: =Rdson1*1000 -> 11.5 | C38: mW | D38: Drain-Source Resistance of Top FET | G38: 29 | H38: 48 | I38: 2 | J38: 5.8 | K38: 2.9 | L38: 0.8055555556 | M38: 0.251391203 | N38: 3.320803853 | O38: 4.560401927 | P38: 1.239598073 | Q38: 0 | R38: 3.054337602 | S38: 0.1166122273 | T38: 0.4 | U38: 0.5214770756 | V38: 0.9586334993 | W38: 0.000918978186 | X38: 0.000918978186 | Y38: 1.325011172 | Z38: 0.003511309211 | AA38: 0.003511309211 | AB38: 1.531412109 | AC38: 0.02697006506 | AD38: 0.2112399771 | AE38: 0.4182528 | AF38: 0 | AG38: 0.6594507946 | AH38: 2.642679537 | AI38: 0.04329928185 | AJ38: 0.03248 | AK38: 0.07631725155 | AL38: 0.03248 | AM38: 0.25056 | AN38: 0.03731591274 | AO38: 0.00168 | AP38: ='Variable Management'!$B$344 -> 0.1152 | AQ38: 0.4322221388 | AR38: 0.3456 | AS38: 0.11688 | AT38: 1.698911322 | AU38: 34.8 | AV38: 0.953453096 | AW38: 34.64245657 | AX38: 6.471383498 | AZ38: 95.3453096 | BA38: 0.5214770756 | BB38: 0.9863280461 | BC38: 0.8248203946 | BD38: 0.1590020515 | BE38: 0.03731591274
A39: RdsonTopTc | B39: =RdsonTopTc*1000000 -> 4000 | C39: ppm | D39: Drain to Source Resistance Temp Co | G39: 30 | H39: 48 | I39: 2 | J39: 6 | K39: 3 | L39: 0.8333333333 | M39: 0.2514391794 | N39: 3.32121575 | O39: 4.660607875 | P39: 1.339392125 | Q39: 0 | R39: 3.149477127 | S39: 0.1239900771 | T39: 0.4 | U39: 0.529239715 | V39: 0.9587524035 | W39: 0.0009192061712 | X39: 0.0009192061712 | Y39: 1.36637051 | Z39: 0.003733936742 | AA39: 0.003733936742 | AB39: 1.579264721 | AC39: 0.02868188619 | AD39: 0.2185241143 | AE39: 0.4182528 | AF39: 0 | AG39: 0.6686808773 | AH39: 2.72490901 | AI39: 0.04603580049 | AJ39: 0.0336 | AK39: 0.08023714809 | AL39: 0.0336 | AM39: 0.2592 | AN39: 0.03967682468 | AO39: 0.00168 | AP39: ='Variable Management'!$B$344 -> 0.1152 | AQ39: 0.4322221388 | AR39: 0.3456 | AS39: 0.11688 | AT39: 1.732167708 | AU39: 36 | AV39: 0.9540930773 | AW39: 35.26962085 | AX39: 6.746967127 | AZ39: 95.40930773 | BA39: 0.529239715 | BB39: 1.008118025 | BC39: 0.8397528773 | BD39: 0.1657731481 | BE39: 0.03967682468
A40: QgTop | B40: =Qg_Q1*1000000000 -> 8 | C40: nC | D40: Gate Charge Of Top FET | G40: 31 | H40: 48 | I40: 2 | J40: 6.2 | K40: 3.1 | L40: 0.8611111111 | M40: 0.2514871561 | N40: 3.321627565 | O40: 4.760813782 | P40: 1.439186218 | Q40: 0 | R40: 3.244908957 | S40: 0.1316179267 | T40: 0.4 | U40: 0.5372751298 | V40: 0.9588712843 | W40: 0.0009194341398 | X40: 0.0009194341398 | Y40: 1.407861879 | Z40: 0.00396415014 | AA40: 0.00396415014 | AB40: 1.627273009 | AC40: 0.03045220064 | AD40: 0.2258082514 | AE40: 0.4182528 | AF40: 0 | AG40: 0.6779817864 | AH40: 2.807386096 | AI40: 0.04886478349 | AJ40: 0.03472 | AK40: 0.08425504814 | AL40: 0.03472 | AM40: 0.26784 | AN40: 0.04211773656 | AO40: 0.00168 | AP40: ='Variable Management'!$B$344 -> 0.1152 | AQ40: 0.4322221388 | AR40: 0.3456 | AS40: 0.11688 | AT40: 1.765953285 | AU40: 37.2 | AV40: 0.9546795821 | AW40: 35.89975983 | AX40: 7.026539499 | AZ40: 95.46795821 | BA40: 0.5372751298 | BB40: 1.030076834 | BC40: 0.8547561864 | BD40: 0.1726422481 | BE40: 0.04211773656
A41: QgdTop | B41: =Qgd_Q1*1000000000 -> 2.8 | C41: nC | D41: Gate to Drain Charge | G41: 32 | H41: =Vin -> 48 | I41: =MODE -> 2 | J41: 6.4 | K41: =Iout*G41/100/Number_of_Phases -> 3.2 | L41: =Vout*K41/(Vin*Efficiency) -> 0.8888888889 | M41: =(Vout+(Rdson2+Rs+Rdcr)*K41)/(Vin+(Rs+Rdson2-Rdson1)*K41) -> 0.251535133 | N41: =(Vin-(Rdson1+Rdcr)*K41-Vout)*M41/(Fsw*Lf) -> 3.322039298 | O41: 4.861019649 | P41: 1.538980351 | Q41: =IF(MIN(Vin, -P41/(Coss_Q1+Coss_Q2)*0.00000002)<0, 0, MIN(Vin, -P41/(Coss_Q1+Coss_Q2)*0.00000002)) -> 0 | R41: 3.340608042 | S41: =R41^2*Rdcr -> 0.1394957761 | T41: =Core_Loss_Ch1 -> 0.4 | U41: =(T41+S41*(1+Ltc*(Ta-25)))/(1-S41*Ltc*ThetaCa) -> 0.5455843127 | V41: 0.9589901416 | W41: 0.0009196620916 | X41: 0.0009196620916 | Y41: 1.449474431 | Z41: 0.004201952252 | AA41: 0.004201952252 | AB41: 1.67542445 | AC41: =Rdson1*AB41^2 -> 0.03228104152 | AD41: =(Vin*K41/2)*Fsw*(Tr_buck+Tf_buck) -> 0.2330923886 | AE41: =(0.5*Coss_Q1*(Vin-Q41)^2-0.5*Coss_Q2*(Vin-Q41)^2+(Qoss_Q2*(Vin-Q41)/Vin)*Vin)*Fsw -> 0.4182528 | AF41: =IF(K41>N41/2,0,ABS(K41-N41/2)*Vsd_Q1*Deadtime2*Fsw) -> 0 | AG41: =(AF41+AE41+AD41+AC41*(1+RdsonTopTc*Ta-RdsonTopTc*25))/(1-AC41*RdsonTopTc*ThetaJA_Q1) -> 0.687353898 | AH41: =SQRT((1-M41))*SQRT(K41^2+(N41^2)/12) -> 2.890089099 | AI41: =Rdson2*AH41^2 -> 0.05178621302 | AJ41: =IF(K41<N41/2,Deadtime1*Fsw*IF(VfdSky_Q2>0,0,Vsd_Q2)*O41,(Deadtime1+Deadtime2)*Fsw*IF(VfdSky_Q2>0,0,Vsd_Q2)*K41) -> 0.03584 | AK41: =(AJ41+AI41*(1+RdsonBotTc*Ta-RdsonBotTc*25))/(1-AI41*RdsonBotTc*ThetaJA_Q2) -> 0.08837125298 | AL41: =(Deadtime1+Deadtime2)*Fsw*IF(VfdSky_Q2>0,VfdSky_Q2,Vsd_Q2)*K41 -> 0.03584 | AM41: =IF(QrrSky_Q2>0,QrrSky_Q2,Qrr_Q2*K41/(Iout/Number_of_Phases))*Fsw*Vin -> 0.27648 | AN41: =CHOOSE(SENSING_TYPE, Rs*R41^2, 0) -> 0.04463864837 | AO41: =Iq*Vin -> 0.00168 | AP41: ='Variable Management'!$B$344 -> 0.1152 | AQ41: 0.4322221388 | AR41: =(Qg_Q1+Qg_Q2)*Fsw*(Vin-Vout) -> 0.3456 | AS41: =SUM(AO41:AP41) -> 0.11688 | AT41: =SUM(U41,X41,AA41,AG41,AK41,AL41,AM41,AS41,AN41) -> 1.800269726 | AU41: =Vout*K41 -> 38.4 | AV41: 0.9552174715 | AW41: =ThetaJA_Q1*BC41 -> 36.53288932 | AX41: =ThetaJA_Q2*BD41 -> 7.310112876 | AZ41: 95.52174715 | BA41: =U41 -> 0.5455843127 | BB41: =AG41+AK41+AM41 -> 1.052205151 | BC41: =AG41+AM41*0.66 -> 0.869830698 | BD41: =AK41+AM41*0.33 -> 0.179609653 | BE41: =AN41 -> 0.04463864837
A42: QgsTop | B42: =Qgs_Q1*1000000000 -> 3.1 | C42: nC | G42: 33 | H42: 48 | I42: 2 | J42: =Iout*G42/100 -> 6.6 | K42: 3.3 | L42: 0.9166666667 | M42: 0.2515831102 | N42: 3.322450951 | O42: 4.961225475 | P42: 1.638774525 | Q42: 0 | R42: 3.436552055 | S42: 0.1476236253 | T42: 0.4 | U42: 0.5541682919 | V42: 0.9591089754 | W42: 0.0009198900267 | X42: 0.0009198900267 | Y42: 1.491198498 | Z42: 0.004447345921 | AA42: 0.004447345921 | AB42: 1.723707883 | AC42: 0.03416844194 | AD42: 0.2403765257 | AE42: 0.4182528 | AF42: 0 | AG42: 0.6967975937 | AH42: 2.972998682 | AI42: 0.05480007121 | AJ42: 0.03696 | AK42: 0.09258607338 | AL42: 0.03696 | AM42: 0.28512 | AN42: 0.04723956011 | AO42: 0.00168 | AP42: ='Variable Management'!$B$344 -> 0.1152 | AQ42: 0.4322221388 | AR42: 0.3456 | AS42: 0.11688 | AT42: 1.835118755 | AU42: 39.6 | AV42: 0.9557110294 | AW42: 37.16902533 | AX42: 7.597699906 | AZ42: 95.57110294 | BA42: 0.5541682919 | BB42: 1.074503667 | BC42: 0.8849767937 | BD42: 0.1866756734 | BE42: 0.04723956011
A43: RGateTop | B43: =Rgate1 -> 1.2 | C43: W | D43: Gate Resistance | G43: 34 | H43: 48 | I43: 2 | J43: 6.8 | K43: 3.4 | L43: 0.9444444444 | M43: 0.2516310877 | N43: 3.322862522 | O43: 5.061431261 | P43: 1.738568739 | Q43: 0 | R43: 3.53272104 | S43: 0.1560014743 | T43: 0.4 | U43: 0.5630281318 | V43: 0.9592277858 | W43: 0.0009201179451 | X43: 0.0009201179451 | Y43: 1.533025439 | Z43: 0.004700333991 | AA43: 0.004700333991 | AB43: 1.77211333 | AC43: 0.03611443501 | AD43: 0.2476606629 | AE43: 0.4182528 | AF43: 0 | AG43: 0.7063132594 | AH43: 3.056097559 | AI43: 0.05790634021 | AJ43: 0.03808 | AK43: 0.09689982965 | AL43: 0.03808 | AM43: 0.29376 | AN43: 0.04992047178 | AO43: 0.00168 | AP43: ='Variable Management'!$B$344 -> 0.1152 | AQ43: 0.4322221388 | AR43: 0.3456 | AS43: 0.11688 | AT43: 1.870502145 | AU43: 40.8 | AV43: 0.9561640466 | AW43: 37.80818409 | AX43: 7.889313627 | AZ43: 95.61640466 | BA43: 0.5630281318 | BB43: 1.096973089 | BC43: 0.9001948594 | BD43: 0.1938406297 | BE43: 0.04992047178
A44: GfsTop | B44: =Gfs_Q1 -> 55 | C44: S | D44: Transconductance of Top FET | G44: 35 | H44: 48 | I44: 2 | J44: 7 | K44: 3.5 | L44: 0.9722222222 | M44: 0.2516790654 | N44: 3.323274012 | O44: 5.161637006 | P44: 1.838362994 | Q44: 0 | R44: 3.629097112 | S44: 0.1646293231 | T44: 0.4 | U44: 0.5721649331 | V44: 0.9593465728 | W44: 0.0009203458467 | X44: 0.0009203458467 | Y44: 1.574947508 | Z44: 0.004960919303 | AA44: 0.004960919303 | AB44: 1.82063185 | AC44: 0.03811905384 | AD44: 0.2549448 | AE44: 0.4182528 | AF44: 0 | AG44: 0.7159012864 | AH44: 3.139370241 | AI44: 0.06110500218 | AJ44: 0.0392 | AK44: 0.1013128517 | AL44: 0.0392 | AM44: 0.3024 | AN44: 0.05268138339 | AO44: 0.00168 | AP44: ='Variable Management'!$B$344 -> 0.1152 | AQ44: 0.4322221388 | AR44: 0.3456 | AS44: 0.11688 | AT44: 1.90642172 | AU44: 42 | AV44: 0.9565798887 | AW44: 38.45038203 | AX44: 8.184967465 | AZ44: 95.65798887 | BA44: 0.5721649331 | BB44: 1.119614138 | BC44: 0.9154852864 | BD44: 0.2011048517 | BE44: 0.05268138339
A45: VthTop | B45: =Vth_Q1 -> 3 | C45: V | D45: Threshold Voltage of Top FET | G45: 36 | H45: 48 | I45: 2 | J45: 7.2 | K45: 3.6 | L45: 1 | M45: 0.2517270434 | N45: 3.323685421 | O45: 5.261842711 | P45: 1.938157289 | Q45: 0 | R45: 3.7256642 | S45: 0.1735071716 | T45: 0.4 | U45: 0.5815798334 | V45: 0.9594653363 | W45: 0.0009205737315 | X45: 0.0009205737315 | Y45: 1.616957745 | Z45: 0.0052291047 | AA45: 0.0052291047 | AB45: 1.86925541 | AC45: 0.04018233154 | AD45: 0.2622289371 | AE45: 0.4182528 | AF45: 0 | AG45: 0.725562071 | AH45: 3.222802809 | AI45: 0.06439603926 | AJ45: 0.04032 | AK45: 0.1058254792 | AL45: 0.04032 | AM45: 0.31104 | AN45: 0.05552229493 | AO45: 0.00168 | AP45: ='Variable Management'!$B$344 -> 0.1152 | AQ45: 0.4322221388 | AR45: 0.3456 | AS45: 0.11688 | AT45: 1.942879357 | AU45: 43.2 | AV45: 0.9569615544 | AW45: 39.09563578 | AX45: 8.484675244 | AZ45: 95.69615544 | BA45: 0.5815798334 | BB45: 1.14242755 | BC45: 0.930848471 | BD45: 0.2084686792 | BE45: 0.05552229493
A46: VspTop | B46: =Vsp_Q1 -> 3.181818182 | C46: V | G46: 37 | H46: 48 | I46: 2 | J46: 7.4 | K46: 3.7 | L46: 1.027777778 | M46: 0.2517750216 | N46: 3.324096749 | O46: 5.362048374 | P46: 2.037951626 | Q46: 0 | R46: 3.822407827 | S46: 0.18263502 | T46: 0.4 | U46: 0.5912740072 | V46: 0.9595840763 | W46: 0.0009208015996 | X46: 0.0009208015996 | Y46: 1.659049882 | Z46: 0.00550489302 | AA46: 0.00550489302 | AB46: 1.91797677 | AC46: 0.04230430122 | AD46: 0.2695130743 | AE46: 0.4182528 | AF46: 0 | AG46: 0.7352960144 | AH46: 3.306382723 | AI46: 0.06777943361 | AJ46: 0.04144 | AK46: 0.1104380615 | AL46: 0.04144 | AM46: 0.31968 | AN46: 0.0584432064 | AO46: 0.00168 | AP46: ='Variable Management'!$B$344 -> 0.1152 | AQ46: 0.4322221388 | AR46: 0.3456 | AS46: 0.11688 | AT46: 1.979876984 | AU46: 44.4 | AV46: 0.9573117241 | AW46: 39.74396221 | AX46: 8.788451183 | AZ46: 95.73117241 | BA46: 0.5912740072 | BB46: 1.165414076 | BC46: 0.9462848144 | BD46: 0.2159324615 | BE46: 0.0584432064
A47: VsdTop | B47: =Vsd_Q1 -> 0.7 | C47: V | G47: 38 | H47: 48 | I47: 2 | J47: 7.6 | K47: 3.8 | L47: 1.055555556 | M47: 0.2518230001 | N47: 3.324507995 | O47: 5.462253998 | P47: 2.137746002 | Q47: 0 | R47: 3.919314921 | S47: 0.1920128681 | T47: 0.4 | U47: 0.6012486666 | V47: 0.9597027929 | W47: 0.0009210294508 | X47: 0.0009210294508 | Y47: 1.701218255 | Z47: 0.005788287103 | AA47: 0.005788287103 | AB47: 1.966789394 | AC47: 0.04448499599 | AD47: 0.2767972114 | AE47: 0.4182528 | AF47: 0 | AG47: 0.7451035232 | AH47: 3.390098661 | AI47: 0.07125516736 | AJ47: 0.04256 | AK47: 0.1151509578 | AL47: 0.04256 | AM47: 0.32832 | AN47: 0.0614441178 | AO47: 0.00168 | AP47: ='Variable Management'!$B$344 -> 0.1152 | AQ47: 0.4322221388 | AR47: 0.3456 | AS47: 0.11688 | AT47: 2.017416582 | AU47: 45.6 | AV47: 0.9576328006 | AW47: 40.39537837 | AX47: 9.096309901 | AZ47: 95.76328006 | BA47: 0.6012486666 | BB47: 1.188574481 | BC47: 0.9617947232 | BD47: 0.2234965578 | BE47: 0.0614441178
A48: θJATop | B48: =ThetaJA_Q1 -> 42 | C48: °C/W | D48: Junction to Ambient Resistance | G48: 39 | H48: 48 | I48: 2 | J48: 7.8 | K48: 3.9 | L48: 1.083333333 | M48: 0.2518709789 | N48: 3.32491916 | O48: 5.56245958 | P48: 2.23754042 | Q48: 0 | R48: 4.016373649 | S48: 0.2016407161 | T48: 0.4 | U48: 0.6115050615 | V48: 0.9598214861 | W48: 0.0009212572852 | X48: 0.0009212572852 | Y48: 1.743457741 | Z48: 0.006079289787 | AA48: 0.006079289787 | AB48: 2.015687367 | AC48: 0.04672444897 | AD48: 0.2840813486 | AE48: 0.4182528 | AF48: 0 | AG48: 0.754985009 | AH48: 3.473940374 | AI48: 0.07482322268 | AJ48: 0.04368 | AK48: 0.1199645372 | AL48: 0.04368 | AM48: 0.33696 | AN48: 0.06452502914 | AO48: 0.00168 | AP48: ='Variable Management'!$B$344 -> 0.1152 | AQ48: 0.4322221388 | AR48: 0.3456 | AS48: 0.11688 | AT48: 2.055500184 | AU48: 46.8 | AV48: 0.9579269442 | AW48: 41.04990158 | AX48: 9.408266423 | AZ48: 95.79269442 | BA48: 0.6115050615 | BB48: 1.211909546 | BC48: 0.977378609 | BD48: 0.2311613372 | BE48: 0.06452502914
A49: Low-side FET | B49: Input Value | C49: Units | D49: Description | G49: 40 | H49: 48 | I49: 2 | J49: 8 | K49: 4 | L49: 1.111111111 | M49: 0.2519189579 | N49: 3.325330244 | O49: 5.662665122 | P49: 2.337334878 | Q49: 0 | R49: 4.113573277 | S49: 0.2115185638 | T49: 0.4 | U49: 0.6220444802 | V49: 0.9599401558 | W49: 0.0009214851027 | X49: 0.0009214851027 | Y49: 1.785763689 | Z49: 0.006377903907 | AA49: 0.006377903907 | AB49: 2.064665322 | AC49: 0.04902269327 | AD49: 0.2913654857 | AE49: 0.4182528 | AF49: 0 | AG49: 0.7649408887 | AH49: 3.557898567 | AI49: 0.0784835817 | AJ49: 0.0448 | AK49: 0.1248791788 | AL49: 0.0448 | AM49: 0.3456 | AN49: 0.06768594041 | AO49: 0.00168 | AP49: ='Variable Management'!$B$344 -> 0.1152 | AQ49: 0.4322221388 | AR49: 0.3456 | AS49: 0.11688 | AT49: 2.094129877 | AU49: 48 | AV49: 0.9581961024 | AW49: 41.70754933 | AX49: 9.724336179 | AZ49: 95.81961024 | BA49: 0.6220444802 | BB49: 1.235420068 | BC49: 0.9930368887 | BD49: 0.2389271788 | BE49: 0.06768594041
A50: RdsonBot | B50: =Rdson2*1000 -> 6.2 | C50: mW | D50: Drain-Source Resistance of Low-side FET | G50: 41 | H50: 48 | I50: 2 | J50: 8.2 | K50: 4.1 | L50: 1.138888889 | M50: 0.2519669372 | N50: 3.325741247 | O50: 5.762870623 | P50: 2.437129377 | Q50: 0 | R50: 4.210904048 | S50: 0.2216464113 | T50: 0.4 | U50: 0.6328682494 | V50: 0.960058802 | W50: 0.0009217129034 | X50: 0.0009217129034 | Y50: 1.828131875 | Z50: 0.006684132301 | AA50: 0.006684132301 | AB50: 2.11371838 | AC50: 0.051379762 | AD50: 0.2986496229 | AE50: 0.4182528 | AF50: 0 | AG50: 0.7749715846 | AH50: 3.641964787 | AI50: 0.08223622658 | AJ50: 0.04592 | AK50: 0.129895272 | AL50: 0.04592 | AM50: 0.35424 | AN50: 0.07092685161 | AO50: 0.00168 | AP50: ='Variable Management'!$B$344 -> 0.1152 | AQ50: 0.4322221388 | AR50: 0.3456 | AS50: 0.11688 | AT50: 2.133307803 | AU50: 49.2 | AV50: 0.9584420351 | AW50: 42.36833935 | AX50: 10.04453501 | AZ50: 95.84420351 | BA50: 0.6328682494 | BB50: 1.259106857 | BC50: 1.008769985 | BD50: 0.246794472 | BE50: 0.07092685161
A51: RdsonBotTc | B51: =RdsonBotTc*1000000 -> 4000 | C51: ppm | D51: Drain To Source Resitance Temp Co | G51: 42 | H51: 48 | I51: 2 | J51: 8.4 | K51: 4.2 | L51: 1.166666667 | M51: 0.2520149167 | N51: 3.326152168 | O51: 5.863076084 | P51: 2.536923916 | Q51: 0 | R51: 4.308357075 | S51: 0.2320242586 | T51: 0.4 | U51: 0.6439777351 | V51: 0.9601774248 | W51: 0.0009219406872 | X51: 0.0009219406872 | Y51: 1.870558446 | Z51: 0.006997977803 | AA51: 0.006997977803 | AB51: 2.162842097 | AC51: 0.05379568826 | AD51: 0.30593376 | AE51: 0.4182528 | AF51: 0 | AG51: 0.7850775243 | AH51: 3.726131338 | AI51: 0.08608113946 | AJ51: 0.04704 | AK51: 0.1350132159 | AL51: 0.04704 | AM51: 0.36288 | AN51: 0.07424776275 | AO51: 0.00168 | AP51: ='Variable Management'!$B$344 -> 0.1152 | AQ51: 0.4322221388 | AR51: 0.3456 | AS51: 0.11688 | AT51: 2.173036157 | AU51: 50.4 | AV51: 0.9586663371 | AW51: 43.03228962 | AX51: 10.36887917 | AZ51: 95.86663371 | BA51: 0.6439777351 | BB51: 1.28297074 | BC51: 1.024578324 | BD51: 0.2547636159 | BE51: 0.07424776275
A52: QgBot | B52: =Qg_Q2*1000000000 -> 16 | C52: nC | D52: Gate Charge Of Top FET | G52: 43 | H52: 48 | I52: 2 | J52: 8.6 | K52: 4.3 | L52: 1.194444444 | M52: 0.2520628965 | N52: 3.326563008 | O52: 5.963281504 | P52: 2.636718496 | Q52: 0 | R52: 4.405924245 | S52: 0.2426521057 | T52: 0.4 | U52: 0.6553743428 | V52: 0.9602960242 | W52: 0.0009221684541 | X52: 0.0009221684541 | Y52: 1.913039891 | Z52: 0.007319443246 | AA52: 0.007319443246 | AB52: 2.212032416 | AC52: 0.05627050519 | AD52: 0.3132178971 | AE52: 0.4182528 | AF52: 0 | AG52: 0.7952591408 | AH52: 3.810391193 | AI52: 0.09001830249 | AJ52: 0.04816 | AK52: 0.1402334204 | AL52: 0.04816 | AM52: 0.37152 | AN52: 0.07764867382 | AO52: 0.00168 | AP52: ='Variable Management'!$B$344 -> 0.1152 | AQ52: 0.4322221388 | AR52: 0.3456 | AS52: 0.11688 | AT52: 2.21331719 | AU52: 51.6 | AV52: 0.9588704561 | AW52: 43.69941831 | AX52: 10.69738533 | AZ52: 95.88704561 | BA52: 0.6553743428 | BB52: 1.307012561 | BC52: 1.040462341 | BD52: 0.2628350204 | BE52: 0.07764867382
A53: RGateBot | B53: =Rgate2 -> 1.2 | C53: W | D53: Gate Resistance | G53: 44 | H53: 48 | I53: 2 | J53: 8.8 | K53: 4.4 | L53: 1.222222222 | M53: 0.2521108765 | N53: 3.326973767 | O53: 6.063486884 | P53: 2.736513116 | Q53: 0 | R53: 4.50359814 | S53: 0.2535299526 | T53: 0.4 | U53: 0.667059518 | V53: 0.9604146001 | W53: 0.000922396204 | X53: 0.000922396204 | Y53: 1.955572993 | Z53: 0.007648531462 | AA53: 0.007648531462 | AB53: 2.261285627 | AC53: 0.05880424588 | AD53: 0.3205020343 | AE53: 0.4182528 | AF53: 0 | AG53: 0.8055168726 | AH53: 3.894737927 | AI53: 0.09404769782 | AJ53: 0.04928 | AK53: 0.1455563053 | AL53: 0.04928 | AM53: 0.38016 | AN53: 0.08112958482 | AO53: 0.00168 | AP53: ='Variable Management'!$B$344 -> 0.1152 | AQ53: 0.4322221388 | AR53: 0.3456 | AS53: 0.11688 | AT53: 2.254153208 | AU53: 52.8 | AV53: 0.9590557101 | AW53: 44.36974385 | AX53: 11.03007059 | AZ53: 95.90557101 | BA53: 0.667059518 | BB53: 1.331233178 | BC53: 1.056422473 | BD53: 0.2710091053 | BE53: 0.08112958482
A54: VsdBot | B54: =Vsd_Q2 -> 0.7 | C54: V | D54: Diode Forward Voltage of Bottom FET Body Diode | G54: 45 | H54: 48 | I54: 2 | J54: 9 | K54: 4.5 | L54: 1.25 | M54: 0.2521588569 | N54: 3.327384445 | O54: 6.163692223 | P54: 2.836307777 | Q54: 0 | R54: 4.601371962 | S54: 0.2646577992 | T54: 0.4 | U54: 0.6790347465 | V54: 0.9605331525 | W54: 0.0009226239371 | X54: 0.0009226239371 | Y54: 1.998154809 | Z54: 0.007985245284 | AA54: 0.007985245284 | AB54: 2.310598331 | AC54: 0.06139694346 | AD54: 0.3277861714 | AE54: 0.4182528 | AF54: 0 | AG54: 0.8158511639 | AH54: 3.979165652 | AI54: 0.09816930759 | AJ54: 0.0504 | AK54: 0.1509823012 | AL54: 0.0504 | AM54: 0.3888 | AN54: 0.08469049575 | AO54: 0.00168 | AP54: ='Variable Management'!$B$344 -> 0.1152 | AQ54: 0.4322221388 | AR54: 0.3456 | AS54: 0.11688 | AT54: 2.295546577 | AU54: 54 | AV54: 0.9592233007 | AW54: 45.04328488 | AX54: 11.36695246 | AZ54: 95.92233007 | BA54: 0.6790347465 | BB54: 1.355633465 | BC54: 1.072459164 | BD54: 0.2792863012 | BE54: 0.08469049575
A55: QrrBot | B55: =Qrr_Q2*1000000000 -> 45 | C55: nC | D55: Reverse Recovery Charge of Body Diode | G55: 46 | H55: 48 | I55: 2 | J55: 9.2 | K55: 4.6 | L55: 1.277777778 | M55: 0.2522068374 | N55: 3.327795041 | O55: 6.263897521 | P55: 2.936102479 | Q55: 0 | R55: 4.699239476 | S55: 0.2760356457 | T55: 0.4 | U55: 0.6913015554 | V55: 0.9606516815 | W55: 0.0009228516532 | X55: 0.0009228516532 | Y55: 2.040782637 | Z55: 0.008329587541 | AA55: 0.008329587541 | AB55: 2.35996741 | AC55: 0.06404863104 | AD55: 0.3350703086 | AE55: 0.4182528 | AF55: 0 | AG55: 0.8262624642 | AH55: 4.063668967 | AI55: 0.102383114 | AJ55: 0.05152 | AK55: 0.1565118489 | AL55: 0.05152 | AM55: 0.39744 | AN55: 0.08833140661 | AO55: 0.00168 | AP55: ='Variable Management'!$B$344 -> 0.1152 | AQ55: 0.4322221388 | AR55: 0.3456 | AS55: 0.11688 | AT55: 2.337499714 | AU55: 55.2 | AV55: 0.9593743259 | AW55: 45.7200603 | AX55: 11.70804889 | AZ55: 95.93743259 | BA55: 0.6913015554 | BB55: 1.380214313 | BC55: 1.088572864 | BD55: 0.2876670489 | BE55: 0.08833140661
A56: TrrBot | B56: =Trr_Q2*1000000000 -> 40 | C56: ns | D56: Reverse Recovery Time of Body Diode | G56: 47 | H56: 48 | I56: 2 | J56: 9.4 | K56: 4.7 | L56: 1.305555556 | M56: 0.2522548183 | N56: 3.328205557 | O56: 6.364102778 | P56: 3.035897222 | Q56: 0 | R56: 4.797194946 | S56: 0.2876634919 | T56: 0.4 | U56: 0.7038615127 | V56: 0.960770187 | W56: 0.0009230793523 | X56: 0.0009230793523 | Y56: 2.083453991 | Z56: 0.008681561062 | AA56: 0.008681561062 | AB56: 2.409389995 | AC56: 0.06675934172 | AD56: 0.3423544457 | AE56: 0.4182528 | AF56: 0 | AG56: 0.8367512289 | AH56: 4.148242905 | AI56: 0.1066890991 | AJ56: 0.05264 | AK56: 0.1621454001 | AL56: 0.05264 | AM56: 0.40608 | AN56: 0.09205231741 | AO56: 0.00168 | AP56: ='Variable Management'!$B$344 -> 0.1152 | AQ56: 0.4322221388 | AR56: 0.3456 | AS56: 0.11688 | AT56: 2.3800151 | AU56: 56.4 | AV56: 0.9595097909 | AW56: 46.40008921 | AX56: 12.05337827 | AZ56: 95.95097909 | BA56: 0.7038615127 | BB56: 1.404976629 | BC56: 1.104764029 | BD56: 0.2961518001 | BE56: 0.09205231741
A57: θJABot | B57: =ThetaJA_Q2 -> 40.7 | C57: °C/W | D57: Junction to Ambient Resistance | G57: 48 | H57: 48 | I57: 2 | J57: 9.6 | K57: 4.8 | L57: 1.333333333 | M57: 0.2523027994 | N57: 3.328615991 | O57: 6.464307995 | P57: 3.135692005 | Q57: 0 | R57: 4.895233093 | S57: 0.2995413379 | T57: 0.4 | U57: 0.716716229 | V57: 0.9608886691 | W57: 0.0009233070344 | X57: 0.0009233070344 | Y57: 2.126166583 | Z57: 0.009041168677 | AA57: 0.009041168677 | AB57: 2.458863446 | AC57: 0.06952910864 | AD57: 0.3496385829 | AE57: 0.4182528 | AF57: 0 | AG57: 0.8473179191 | AH57: 4.232882893 | AI57: 0.111087245 | AJ57: 0.05376 | AK57: 0.1678834172 | AL57: 0.05376 | AM57: 0.41472 | AN57: 0.09585322814 | AO57: 0.00168 | AP57: ='Variable Management'!$B$344 -> 0.1152 | AQ57: 0.4322221388 | AR57: 0.3456 | AS57: 0.11688 | AT57: 2.423095269 | AU57: 57.6 | AV57: 0.9596306179 | AW57: 47.083391 | AX57: 12.4029594 | AZ57: 95.96306179 | BA57: 0.716716229 | BB57: 1.429921336 | BC57: 1.121033119 | BD57: 0.3047410172 | BE57: 0.09585322814
A58: Bottom Schottky | B58: Input Value | C58: Units | D58: Std Units | G58: 49 | H58: 48 | I58: 2 | J58: 9.8 | K58: 4.9 | L58: 1.361111111 | M58: 0.2523507807 | N58: 3.329026343 | O58: 6.564513172 | P58: 3.235486828 | Q58: 0 | R58: 4.993349046 | S58: 0.3116691837 | T58: 0.4 | U58: 0.7298673568 | V58: 0.9610071278 | W58: 0.0009235346996 | X58: 0.0009235346996 | Y58: 2.168918303 | Z58: 0.009408413211 | AA58: 0.009408413211 | AB58: 2.508385327 | AC58: 0.0723579649 | AD58: 0.35692272 | AE58: 0.4182528 | AF58: 0 | AG58: 0.8579630016 | AH58: 4.317584713 | AI58: 0.1155775341 | AJ58: 0.05488 | AK58: 0.1737263734 | AL58: 0.05488 | AM58: 0.42336 | AN58: 0.0997341388 | AO58: 0.00168 | AP58: ='Variable Management'!$B$344 -> 0.1152 | AQ58: 0.4322221388 | AR58: 0.3456 | AS58: 0.11688 | AT58: 2.466742819 | AU58: 58.8 | AV58: 0.9597376537 | AW58: 47.76998527 | AX58: 12.75681156 | AZ58: 95.97376537 | BA58: 0.7298673568 | BB58: 1.455049375 | BC58: 1.137380602 | BD58: 0.3134351734 | BE58: 0.0997341388
A59: VfdSky | B59: =VfdSky_Q2 -> 0 | C59: V | D59: Diode Forward Voltage | G59: 50 | H59: 48 | I59: 2 | J59: 10 | K59: 5 | L59: 1.388888889 | M59: 0.2523987623 | N59: 3.329436615 | O59: 6.664718307 | P59: 3.335281693 | Q59: 0 | R59: 5.091538309 | S59: 0.3240470293 | T59: 0.4 | U59: 0.743316592 | V59: 0.9611255629 | W59: 0.0009237623477 | X59: 0.0009237623477 | Y59: 2.211707202 | Z59: 0.009783297491 | AA59: 0.009783297491 | AB59: 2.557953387 | AC59: 0.07524594361 | AD59: 0.3642068571 | AE59: 0.4182528 | AF59: 0 | AG59: 0.8686869492 | AH59: 4.402344468 | AI59: 0.1201599483 | AJ59: 0.056 | AK59: 0.1796747529 | AL59: 0.056 | AM59: 0.432 | AN59: 0.1036950494 | AO59: 0.00168 | AP59: ='Variable Management'!$B$344 -> 0.1152 | AQ59: 0.4322221388 | AR59: 0.3456 | AS59: 0.11688 | AT59: 2.510960403 | AU59: 60 | AV59: 0.9598316777 | AW59: 48.45989187 | AX59: 13.11495444 | AZ59: 95.98316777 | BA59: 0.743316592 | BB59: 1.480361702 | BC59: 1.153806949 | BD59: 0.3222347529 | BE59: 0.1036950494
A60: QrrSky | B60: =QrrSky_Q2*1000000000 -> 0 | C60: nC | D60: Diode Reverse Recovery Charge | G60: 51 | H60: 48 | I60: 2 | J60: 10.2 | K60: 5.1 | L60: 1.416666667 | M60: 0.2524467442 | N60: 3.329846805 | O60: 6.764923403 | P60: 3.435076597 | Q60: 0 | R60: 5.189796718 | S60: 0.3366748747 | T60: 0.4 | U60: 0.757065674 | V60: 0.9612439747 | W60: 0.0009239899788 | X60: 0.0009239899788 | Y60: 2.254531475 | Z60: 0.01016582434 | AA60: 0.01016582434 | AB60: 2.607565546 | AC60: 0.0781930779 | AD60: 0.3714909943 | AE60: 0.4182528 | AF60: 0 | AG60: 0.8794902404 | AH60: 4.487158555 | AI60: 0.1248344698 | AJ60: 0.05712 | AK60: 0.1857290509 | AL60: 0.05712 | AM60: 0.44064 | AN60: 0.1077359599 | AO60: 0.00168 | AP60: ='Variable Management'!$B$344 -> 0.1152 | AQ60: 0.4322221388 | AR60: 0.3456 | AS60: 0.11688 | AT60: 2.55575074 | AU60: 61.2 | AV60: 0.9599134084 | AW60: 49.1531309 | AX60: 13.47740821 | AZ60: 95.99134084 | BA60: 0.757065674 | BB60: 1.505859291 | BC60: 1.17031264 | BD60: 0.3311402509 | BE60: 0.1077359599
A61: Ireverse | B61: =Ireverse -> 0 | C61: mA | D61: Reverse Leakage Current | G61: 52 | H61: 48 | I61: 2 | J61: 10.4 | K61: 5.2 | L61: 1.444444444 | M61: 0.2524947263 | N61: 3.330256914 | O61: 6.865128457 | P61: 3.534871543 | Q61: 0 | R61: 5.288120422 | S61: 0.3495527199 | T61: 0.4 | U61: 0.7711163863 | V61: 0.9613623629 | W61: 0.0009242175928 | X61: 0.0009242175928 | Y61: 2.297389452 | Z61: 0.01055599659 | AA61: 0.01055599659 | AB61: 2.657219876 | AC61: 0.08119940089 | AD61: 0.3787751314 | AE61: 0.4182528 | AF61: 0 | AG61: 0.8903733599 | AH61: 4.572023636 | AI61: 0.1296010808 | AJ61: 0.05824 | AK61: 0.1918897738 | AL61: 0.05824 | AM61: 0.44928 | AN61: 0.1118568704 | AO61: 0.00168 | AP61: ='Variable Management'!$B$344 -> 0.1152 | AQ61: 0.4322221388 | AR61: 0.3456 | AS61: 0.11688 | AT61: 2.601116605 | AU61: 62.4 | AV61: 0.9599835089 | AW61: 49.84972272 | AX61: 13.84419348 | AZ61: 95.99835089 | BA61: 0.7711163863 | BB61: 1.531543134 | BC61: 1.18689816 | BD61: 0.3401521738 | BE61: 0.1118568704
A62: Controller | B62: Input Value | C62: Units | D62: Std Units | G62: 53 | H62: 48 | I62: 2 | J62: 10.6 | K62: 5.3 | L62: 1.472222222 | M62: 0.2525427087 | N62: 3.330666942 | O62: 6.965333471 | P62: 3.634666529 | Q62: 0 | R62: 5.386505842 | S62: 0.3626805649 | T62: 0.4 | U62: 0.7854705573 | V62: 0.9614807277 | W62: 0.0009244451898 | X62: 0.0009244451898 | Y62: 2.340279583 | Z62: 0.01095381705 | AA62: 0.01095381705 | AB62: 2.706914587 | AC62: 0.08426494568 | AD62: 0.3860592686 | AE62: 0.4182528 | AF62: 0 | AG62: 0.9013367984 | AH62: 4.656936612 | AI62: 0.1344597634 | AJ62: 0.05936 | AK62: 0.1981574395 | AL62: 0.05936 | AM62: 0.45792 | AN62: 0.1160577808 | AO62: 0.00168 | AP62: ='Variable Management'!$B$344 -> 0.1152 | AQ62: 0.4322221388 | AR62: 0.3456 | AS62: 0.11688 | AT62: 2.647060838 | AU62: 63.6 | AV62: 0.960042592 | AW62: 50.54968793 | AX62: 14.21533131 | AZ62: 96.0042592 | BA62: 0.7854705573 | BB62: 1.557414238 | BC62: 1.203563998 | BD62: 0.3492710395 | BE62: 0.1160577808
